Workbook

Sheet GUIDE
C1: CDM Energy Efficiency Cost Effectiveness Tool
A4: BEFORE YOU BEGIN: ENABLE MACROS WITHIN EXCEL (Option 1: Click the security warning at the top of your worksheet and click "Enable Content", if this warning does not appear click "File" > "Options" > "Trust Center" > "Trust Center Settings" > "Macro Settings" and finally select "Enable all macros" Each section of the tool is grouped, linked, and colour coded for easy navigation. Simply click on the hyperlink to reach the worksheet you are looking for. Module worksheet dividers (i.e., the black tabs) provide high-level instructions for that module. Some tabs are locked or hidden where standard assumptions or key calculations are housed. Instructions are embedded throughout the Tool. Detailed instructions and procedures can be found in the User Guide that accompanies this Tool.
A7: Tool Structure: (click hyperlinks for easy navigation)
B8: Module | C8: Section | D8: Section Description | E8: Worksheet Name | F8: Worksheet Permissions
C9: Consolidated Summaries | D9: Contains summaries of the results of a 2015-2020 portfolio from various perspectives. The summaries reflect the portfolio (programs, measures, budget) specified within the "Program Design" section of the Tool for input into CDM plans | E9: Plan | F9: Tool Output
E10: Budget | F10: Tool Output
E11: Sector | F11: Tool Output
E12: Detail | F12: Tool Output
E13: BMG | F13: Tool Output
B14: PROGRAM DESIGN MODULE
C15: Program Design (User Inputs) | D15: Main input worksheets for the average user for program design purposes. Users create and select measures associated with programs, and input budgets | E15: Measures | F15: User Input
E16: Program Design | F16: User Input
E17: Budget Inputs | F17: User Input
E18: External Inputs | F18: User Input
B19: RESULTS MODULE
C20: Results | D20: Contains the results of the cost effectiveness analysis for the inputs specified by the user in the Program Design module. | E20: CE Results | F20: Tool Output
E21: Savings Results | F21: Tool Output
E22: Summary CE Results | F22: Tool Output
B24: ADMIN INPUT MODULE
C25: OPA/Admin Inputs | D25: Administrative users input assumptions within these worksheets, the average user does not need to interact with this module | E25: ADMIN OPTIONS | F25: Administrative Use only
E26: CE Parameters | F26: Administrative Use only
E27: Rates Table | F27: Administrative Use only
E28: Avoided Cost Table | F28: Administrative Use only
B29: DEFINED INPUTS MODULE
C30: Custom Input | D30: Users can create custom inputs to the Tool (load profiles and measures) that can be used when creating a new program/portfolio/measure. User defined load profiles available building blocks for the program design module are found here. | E30: Custom Load Profile Input | F30: User Input
E31: Custom Measure Input | F31: User Input
E32: Formatted Load Profiles | F32: Tool Output
B34: CALCULATION ENGINE
C35: Calculation Engine | D35: The worksheets in this module are required to calculate the cost effectiveness outputs and contain detailed calculations and reference information. Users do not need to interact with these worksheets. | E35: Measure CE Results | F35: Reference Only
E36: VBA References | F36: Reference Only
E37: Levelized Avoided Cost Table | F37: Reference Only
E38: Levelized Rates Table | F38: Reference Only
A41: Legend: (cells within the Tool are formatted according to the table below)
B42: Code | C42: Code Definition | D42: Description
B43: Blue Text | C43: User input (mandatory) | D43: These cells or columns provide the model with key user inputs required to complete the cost effectiveness calculations. If these cells are not populated, the Tool may return an error or the results will be incomplete.
B44: Black Text | C44: User input (optional) | D44: These cells or columns provide the Tool with parameters that may be populated through a user input form. However, the user can choose to manually override the information provided from the input form within these cells or columns.
B45: Black Text, Italics | C45: Description or Instructions | D45: These cells or columns contain information for the user to better understand the procedures and/or purpose associated with a particular worksheet.
B46: Black Text | C46: Calculated cell | D46: These cells or columns contain formulas that are essential to the calculation of the tool, in most cases these cells are locked and cannot be modified by the user.
B47: White Text | C47: Calculated columns
B48: Red Text | C48: Caution | D48: These instructions indicate a step that is critical or a mistake that is common that may result in an error in the Tool. Special care should be taken when these instructions are encountered.
A50: Cost Effectiveness Acronyms Used in the Tool:
B52: CDM | C52: Conservation And Demand Management
B53: CE | C53: Cost Effectiveness
B54: DR | C54: Demand Response
B55: Dx | C55: Distribution System
B56: EE | C56: Energy Efficiency
B57: EUL | C57: Effective Useful Life
B58: kW | C58: Kilowatt
B59: kWh | C59: Kilowatt Hour
B60: LC | C60: Levelized Delivery Cost
B61: MW | C61: Megawatt
B62: MWh | C62: Megawatt Hour
B63: NPV | C63: Net Present Value
B64: O&M | C64: Operations And Maintenance
B65: PAC | C65: Program Administrator Cost
B66: PV | C66: Present Value
B67: RIM | C67: Rate Impact Measure
B68: RUL | C68: Remaining Useful Life
B69: SC | C69: Societal Cost
B70: TRC | C70: Total Resource Cost
B72: Disclaimer: This Tool is provided solely for informational purposes and based on information currently available to the IESO. The Independent Electricity System Operator (“IESO”) expressly disclaims any responsibility or liability for any other use of the information in the Tool or any methods described. In particular, the information and outputs of the Tool are not meant to be relied on to determine actual electricity or cost savings. The IESO does not warrant the accuracy, reliability, completeness or timeliness of any of the information contained in the Tool, and undertakes no obligation to revise or update the Tool. Users of this Tool rely on the information contained therein at their own risk and remain responsible for seeking appropriate legal, technical or other professional advice with regard to their particular circumstances. The IESO and its respective officers, directors, employees, consultants, agents and subcontractors assume no liability or responsibility whatsoever to any person for damages of whatever kind and nature, which may occur or be suffered as a result of the use of this Tool or reliance on the information therein.

Sheet ARCHITECTURE (hidden)

Sheet SUMMARIES >>

Sheet Plan
A2: CDM Portfolio Summary for Inclusion in CDM Plans
A4: TABLE 1
A5: SUMMARY OF CDM PORTFOLIO COST EFFECTIVENESS
A6: Plan Cost Effectiveness | B6: Program Year | C6: TRC | F6: PACT | I6: Levelized Cost
C7: Benefits ($) | D7: Costs ($) | E7: Ratio | F7: Benefits ($) | G7: Costs ($) | H7: Ratio | I7: Benefits (Energy) | J7: Costs ($) | K7: ($/kWh)
B8: 2015 | C8: =SUMIFS('Program Design'!X:X,'Program Design'!$J:$J,$B8) -> 15691186.9 | D8: =SUMIFS('Program Design'!Y:Y,'Program Design'!$J:$J,$B8)+IFERROR(SUMIFS(INDEX(OFFSET('Budget Inputs'!$A$1,6,1,2000,560),0,MATCH(CONCATENATE($B8," Sub-Total"),OFFSET('Budget Inputs'!$A$1,6,1,1,560),0)),OFFSET('Budget Inputs'!$A$1,6,1,2000,1),"Total")*INDEX(OFFSET('Levelized Avoided Cost Table'!$A$1,7,1,900,20),MATCH(CONCATENATE($B8,"_",1),OFFSET('Levelized Avoided Cost Table'!$A$1,7,1,900,1),0),MATCH("Discount Factor",OFFSET('Levelized Avoided Cost Table'!$A$1,7,1,1,20),0)),0) -> 6131148.131 | E8: =IF(C8=0,"",C8/D8) -> 2.559257511 | F8: =SUMIFS('Program Design'!AF:AF,'Program Design'!$J:$J,$B8) -> 13684735.45 | G8: =SUMIFS('Program Design'!AG:AG,'Program Design'!$J:$J,$B8)+IFERROR(SUMIFS(INDEX(OFFSET('Budget Inputs'!$A$1,6,1,2000,560),0,MATCH(CONCATENATE($B8," Sub-Total"),OFFSET('Budget Inputs'!$A$1,6,1,1,560),0)),OFFSET('Budget Inputs'!$A$1,6,1,2000,1),"Total")*INDEX(OFFSET('Levelized Avoided Cost Table'!$A$1,7,1,900,20),MATCH(CONCATENATE($B8,"_",1),OFFSET('Levelized Avoided Cost Table'!$A$1,7,1,900,1),0),MATCH("Discount Factor",OFFSET('Levelized Avoided Cost Table'!$A$1,7,1,1,20),0)),0) -> 2 | H8: =IF(F8=0,"",F8/G8) -> 6842367.727 | I8: =SUMIFS('Program Design'!AS:AS,'Program Design'!$J:$J,$B8) -> 187415964.1 | J8: =IFERROR(SUMIFS('Program Design'!AT:AT,'Program Design'!$J:$J,$B8)+(SUMIFS(INDEX(OFFSET('Budget Inputs'!$A$1,6,1,2000,560),0,MATCH(CONCATENATE($B8," Sub-Total"),OFFSET('Budget Inputs'!$A$1,6,1,1,560),0)),OFFSET('Budget Inputs'!$A$1,6,1,2000,1),"Total")*INDEX(OFFSET('Levelized Avoided Cost Table'!$A$1,7,1,900,20),MATCH(CONCATENATE($B8,"_",1),OFFSET('Levelized Avoided Cost Table'!$A$1,7,1,900,1),0),MATCH("Discount Factor",OFFSET('Levelized Avoided Cost Table'!$A$1,7,1,1,20),0))),0) -> 2 | K8: =IF(I8=0,"",J8/I8) -> 1.067144952e-08
B9: 2016 | C9: =SUMIFS('Program Design'!X:X,'Program Design'!$J:$J,$B9) -> 7583675.224 | D9: =SUMIFS('Program Design'!Y:Y,'Program Design'!$J:$J,$B9)+IFERROR(SUMIFS(INDEX(OFFSET('Budget Inputs'!$A$1,6,1,2000,560),0,MATCH(CONCATENATE($B9," Sub-Total"),OFFSET('Budget Inputs'!$A$1,6,1,1,560),0)),OFFSET('Budget Inputs'!$A$1,6,1,2000,1),"Total")*INDEX(OFFSET('Levelized Avoided Cost Table'!$A$1,7,1,900,20),MATCH(CONCATENATE($B9,"_",1),OFFSET('Levelized Avoided Cost Table'!$A$1,7,1,900,1),0),MATCH("Discount Factor",OFFSET('Levelized Avoided Cost Table'!$A$1,7,1,1,20),0)),0) -> 1941101.002 | E9: 3.906893673 | F9: =SUMIFS('Program Design'!AF:AF,'Program Design'!$J:$J,$B9) -> 6601708.059 | G9: =SUMIFS('Program Design'!AG:AG,'Program Design'!$J:$J,$B9)+IFERROR(SUMIFS(INDEX(OFFSET('Budget Inputs'!$A$1,6,1,2000,560),0,MATCH(CONCATENATE($B9," Sub-Total"),OFFSET('Budget Inputs'!$A$1,6,1,1,560),0)),OFFSET('Budget Inputs'!$A$1,6,1,2000,1),"Total")*INDEX(OFFSET('Levelized Avoided Cost Table'!$A$1,7,1,900,20),MATCH(CONCATENATE($B9,"_",1),OFFSET('Levelized Avoided Cost Table'!$A$1,7,1,900,1),0),MATCH("Discount Factor",OFFSET('Levelized Avoided Cost Table'!$A$1,7,1,1,20),0)),0) -> 2714309.07 | H9: 2.432187304 | I9: =SUMIFS('Program Design'!AS:AS,'Program Design'!$J:$J,$B9) -> 95786072.92 | J9: =IFERROR(SUMIFS('Program Design'!AT:AT,'Program Design'!$J:$J,$B9)+(SUMIFS(INDEX(OFFSET('Budget Inputs'!$A$1,6,1,2000,560),0,MATCH(CONCATENATE($B9," Sub-Total"),OFFSET('Budget Inputs'!$A$1,6,1,1,560),0)),OFFSET('Budget Inputs'!$A$1,6,1,2000,1),"Total")*INDEX(OFFSET('Levelized Avoided Cost Table'!$A$1,7,1,900,20),MATCH(CONCATENATE($B9,"_",1),OFFSET('Levelized Avoided Cost Table'!$A$1,7,1,900,1),0),MATCH("Discount Factor",OFFSET('Levelized Avoided Cost Table'!$A$1,7,1,1,20),0))),0) -> 2714309.07 | K9: 0.02833719963
B10: 2017 | C10: =SUMIFS('Program Design'!X:X,'Program Design'!$J:$J,$B10) -> 9940245.405 | D10: =SUMIFS('Program Design'!Y:Y,'Program Design'!$J:$J,$B10)+IFERROR(SUMIFS(INDEX(OFFSET('Budget Inputs'!$A$1,6,1,2000,560),0,MATCH(CONCATENATE($B10," Sub-Total"),OFFSET('Budget Inputs'!$A$1,6,1,1,560),0)),OFFSET('Budget Inputs'!$A$1,6,1,2000,1),"Total")*INDEX(OFFSET('Levelized Avoided Cost Table'!$A$1,7,1,900,20),MATCH(CONCATENATE($B10,"_",1),OFFSET('Levelized Avoided Cost Table'!$A$1,7,1,900,1),0),MATCH("Discount Factor",OFFSET('Levelized Avoided Cost Table'!$A$1,7,1,1,20),0)),0) -> 4018947.976 | E10: 2.47334513 | F10: =SUMIFS('Program Design'!AF:AF,'Program Design'!$J:$J,$B10) -> 8650899.521 | G10: =SUMIFS('Program Design'!AG:AG,'Program Design'!$J:$J,$B10)+IFERROR(SUMIFS(INDEX(OFFSET('Budget Inputs'!$A$1,6,1,2000,560),0,MATCH(CONCATENATE($B10," Sub-Total"),OFFSET('Budget Inputs'!$A$1,6,1,1,560),0)),OFFSET('Budget Inputs'!$A$1,6,1,2000,1),"Total")*INDEX(OFFSET('Levelized Avoided Cost Table'!$A$1,7,1,900,20),MATCH(CONCATENATE($B10,"_",1),OFFSET('Levelized Avoided Cost Table'!$A$1,7,1,900,1),0),MATCH("Discount Factor",OFFSET('Levelized Avoided Cost Table'!$A$1,7,1,1,20),0)),0) -> 3948227.261 | H10: 2.191084492 | I10: =SUMIFS('Program Design'!AS:AS,'Program Design'!$J:$J,$B10) -> 139709391.4 | J10: =IFERROR(SUMIFS('Program Design'!AT:AT,'Program Design'!$J:$J,$B10)+(SUMIFS(INDEX(OFFSET('Budget Inputs'!$A$1,6,1,2000,560),0,MATCH(CONCATENATE($B10," Sub-Total"),OFFSET('Budget Inputs'!$A$1,6,1,1,560),0)),OFFSET('Budget Inputs'!$A$1,6,1,2000,1),"Total")*INDEX(OFFSET('Levelized Avoided Cost Table'!$A$1,7,1,900,20),MATCH(CONCATENATE($B10,"_",1),OFFSET('Levelized Avoided Cost Table'!$A$1,7,1,900,1),0),MATCH("Discount Factor",OFFSET('Levelized Avoided Cost Table'!$A$1,7,1,1,20),0))),0) -> 3948227.261 | K10: 0.0282602853
B11: 2018 | C11: =SUMIFS('Program Design'!X:X,'Program Design'!$J:$J,$B11) -> 11736317.44 | D11: =SUMIFS('Program Design'!Y:Y,'Program Design'!$J:$J,$B11)+IFERROR(SUMIFS(INDEX(OFFSET('Budget Inputs'!$A$1,6,1,2000,560),0,MATCH(CONCATENATE($B11," Sub-Total"),OFFSET('Budget Inputs'!$A$1,6,1,1,560),0)),OFFSET('Budget Inputs'!$A$1,6,1,2000,1),"Total")*INDEX(OFFSET('Levelized Avoided Cost Table'!$A$1,7,1,900,20),MATCH(CONCATENATE($B11,"_",1),OFFSET('Levelized Avoided Cost Table'!$A$1,7,1,900,1),0),MATCH("Discount Factor",OFFSET('Levelized Avoided Cost Table'!$A$1,7,1,1,20),0)),0) -> 3785073.139 | E11: 3.100684455 | F11: =SUMIFS('Program Design'!AF:AF,'Program Design'!$J:$J,$B11) -> 10212701.29 | G11: =SUMIFS('Program Design'!AG:AG,'Program Design'!$J:$J,$B11)+IFERROR(SUMIFS(INDEX(OFFSET('Budget Inputs'!$A$1,6,1,2000,560),0,MATCH(CONCATENATE($B11," Sub-Total"),OFFSET('Budget Inputs'!$A$1,6,1,1,560),0)),OFFSET('Budget Inputs'!$A$1,6,1,2000,1),"Total")*INDEX(OFFSET('Levelized Avoided Cost Table'!$A$1,7,1,900,20),MATCH(CONCATENATE($B11,"_",1),OFFSET('Levelized Avoided Cost Table'!$A$1,7,1,900,1),0),MATCH("Discount Factor",OFFSET('Levelized Avoided Cost Table'!$A$1,7,1,1,20),0)),0) -> 3772146.185 | H11: =IF(F11=0,"",F11/G11) -> 2.707398067 | I11: =SUMIFS('Program Design'!AS:AS,'Program Design'!$J:$J,$B11) -> 117213380.2 | J11: =IFERROR(SUMIFS('Program Design'!AT:AT,'Program Design'!$J:$J,$B11)+(SUMIFS(INDEX(OFFSET('Budget Inputs'!$A$1,6,1,2000,560),0,MATCH(CONCATENATE($B11," Sub-Total"),OFFSET('Budget Inputs'!$A$1,6,1,1,560),0)),OFFSET('Budget Inputs'!$A$1,6,1,2000,1),"Total")*INDEX(OFFSET('Levelized Avoided Cost Table'!$A$1,7,1,900,20),MATCH(CONCATENATE($B11,"_",1),OFFSET('Levelized Avoided Cost Table'!$A$1,7,1,900,1),0),MATCH("Discount Factor",OFFSET('Levelized Avoided Cost Table'!$A$1,7,1,1,20),0))),0) -> 3772146.185 | K11: 0.03218187359
B12: 2019 | C12: =SUMIFS('Program Design'!X:X,'Program Design'!$J:$J,$B12) -> 8763100.318 | D12: =SUMIFS('Program Design'!Y:Y,'Program Design'!$J:$J,$B12)+IFERROR(SUMIFS(INDEX(OFFSET('Budget Inputs'!$A$1,6,1,2000,560),0,MATCH(CONCATENATE($B12," Sub-Total"),OFFSET('Budget Inputs'!$A$1,6,1,1,560),0)),OFFSET('Budget Inputs'!$A$1,6,1,2000,1),"Total")*INDEX(OFFSET('Levelized Avoided Cost Table'!$A$1,7,1,900,20),MATCH(CONCATENATE($B12,"_",1),OFFSET('Levelized Avoided Cost Table'!$A$1,7,1,900,1),0),MATCH("Discount Factor",OFFSET('Levelized Avoided Cost Table'!$A$1,7,1,1,20),0)),0) -> 2295509.412 | E12: 3.81749701 | F12: =SUMIFS('Program Design'!AF:AF,'Program Design'!$J:$J,$B12) -> 7627295.097 | G12: =SUMIFS('Program Design'!AG:AG,'Program Design'!$J:$J,$B12)+IFERROR(SUMIFS(INDEX(OFFSET('Budget Inputs'!$A$1,6,1,2000,560),0,MATCH(CONCATENATE($B12," Sub-Total"),OFFSET('Budget Inputs'!$A$1,6,1,1,560),0)),OFFSET('Budget Inputs'!$A$1,6,1,2000,1),"Total")*INDEX(OFFSET('Levelized Avoided Cost Table'!$A$1,7,1,900,20),MATCH(CONCATENATE($B12,"_",1),OFFSET('Levelized Avoided Cost Table'!$A$1,7,1,900,1),0),MATCH("Discount Factor",OFFSET('Levelized Avoided Cost Table'!$A$1,7,1,1,20),0)),0) -> 2754775.737 | H12: 2.768753548 | I12: =SUMIFS('Program Design'!AS:AS,'Program Design'!$J:$J,$B12) -> 81019138.86 | J12: =IFERROR(SUMIFS('Program Design'!AT:AT,'Program Design'!$J:$J,$B12)+(SUMIFS(INDEX(OFFSET('Budget Inputs'!$A$1,6,1,2000,560),0,MATCH(CONCATENATE($B12," Sub-Total"),OFFSET('Budget Inputs'!$A$1,6,1,1,560),0)),OFFSET('Budget Inputs'!$A$1,6,1,2000,1),"Total")*INDEX(OFFSET('Levelized Avoided Cost Table'!$A$1,7,1,900,20),MATCH(CONCATENATE($B12,"_",1),OFFSET('Levelized Avoided Cost Table'!$A$1,7,1,900,1),0),MATCH("Discount Factor",OFFSET('Levelized Avoided Cost Table'!$A$1,7,1,1,20),0))),0) -> 2754775.737 | K12: 0.03400154304
B13: 2020 | C13: =SUMIFS('Program Design'!X:X,'Program Design'!$J:$J,$B13) -> 15370489.96 | D13: =SUMIFS('Program Design'!Y:Y,'Program Design'!$J:$J,$B13)+IFERROR(SUMIFS(INDEX(OFFSET('Budget Inputs'!$A$1,6,1,2000,560),0,MATCH(CONCATENATE($B13," Sub-Total"),OFFSET('Budget Inputs'!$A$1,6,1,1,560),0)),OFFSET('Budget Inputs'!$A$1,6,1,2000,1),"Total")*INDEX(OFFSET('Levelized Avoided Cost Table'!$A$1,7,1,900,20),MATCH(CONCATENATE($B13,"_",1),OFFSET('Levelized Avoided Cost Table'!$A$1,7,1,900,1),0),MATCH("Discount Factor",OFFSET('Levelized Avoided Cost Table'!$A$1,7,1,1,20),0)),0) -> 3654304.032 | E13: 4.206133322 | F13: =SUMIFS('Program Design'!AF:AF,'Program Design'!$J:$J,$B13) -> 13372851.3 | G13: =SUMIFS('Program Design'!AG:AG,'Program Design'!$J:$J,$B13)+IFERROR(SUMIFS(INDEX(OFFSET('Budget Inputs'!$A$1,6,1,2000,560),0,MATCH(CONCATENATE($B13," Sub-Total"),OFFSET('Budget Inputs'!$A$1,6,1,1,560),0)),OFFSET('Budget Inputs'!$A$1,6,1,2000,1),"Total")*INDEX(OFFSET('Levelized Avoided Cost Table'!$A$1,7,1,900,20),MATCH(CONCATENATE($B13,"_",1),OFFSET('Levelized Avoided Cost Table'!$A$1,7,1,900,1),0),MATCH("Discount Factor",OFFSET('Levelized Avoided Cost Table'!$A$1,7,1,1,20),0)),0) -> 3744118.039 | H13: 3.571695969 | I13: =SUMIFS('Program Design'!AS:AS,'Program Design'!$J:$J,$B13) -> 112461627.1 | J13: =IFERROR(SUMIFS('Program Design'!AT:AT,'Program Design'!$J:$J,$B13)+(SUMIFS(INDEX(OFFSET('Budget Inputs'!$A$1,6,1,2000,560),0,MATCH(CONCATENATE($B13," Sub-Total"),OFFSET('Budget Inputs'!$A$1,6,1,1,560),0)),OFFSET('Budget Inputs'!$A$1,6,1,2000,1),"Total")*INDEX(OFFSET('Levelized Avoided Cost Table'!$A$1,7,1,900,20),MATCH(CONCATENATE($B13,"_",1),OFFSET('Levelized Avoided Cost Table'!$A$1,7,1,900,1),0),MATCH("Discount Factor",OFFSET('Levelized Avoided Cost Table'!$A$1,7,1,1,20),0))),0) -> 3744118.039 | K13: 0.03329240503
B14: Plan Total | C14: =SUM(C8:C13) -> 69085015.25 | D14: =SUM(D8:D13) -> 21826083.69 | E14: =IF(C14="","",C14/D14) -> 3.165250176 | F14: =SUM(F8:F13) -> 60150190.73 | G14: =SUM(G8:G13) -> 16933578.29 | H14: =IF(F14="","",F14/G14) -> 3.552125233 | I14: =SUM(I8:I13) -> 733605574.6 | J14: =SUM(J8:J13) -> 16933578.29 | K14: =IF(I14="","",J14/I14) -> 0.02308267396
A16: TABLE 2
A17: SUMMARY OF PERSISTING CDM PORTFOLIO SAVINGS
A18: Plan Persisting Savings (end-user level) | C18: MW | D18: MWh
B19: 2015 | C19: =(SUMIFS(OFFSET('Savings Results'!$A$1,6,16+IF(MAX('Savings Results'!$G:$G)<2020,2020-MAX('Savings Results'!$G:$G),0)+MAX('Savings Results'!$G:$G)-MIN('Savings Results'!$G:$G),5000),OFFSET('Savings Results'!$A$1,6,6,5000),B19,OFFSET('Savings Results'!$A$1,6,4,5000),"Dx")/(1/(1-SUM('CE Parameters'!$F$10:$F$11))))/1000 -> 2.502746093 | D19: =(SUMIFS(OFFSET('Savings Results'!$A$1,6,16+MAX('Savings Results'!$G:$G)-MIN('Savings Results'!$G:$G)+MAX('Savings Results'!$J:$J)+IF(MAX('Savings Results'!$G:$G)=MIN('Savings Results'!$G:$G),2020-MAX('Savings Results'!$G:$G),MAX('Savings Results'!$G:$G)-MIN('Savings Results'!$G:$G)),5000),OFFSET('Savings Results'!$A$1,6,6,5000),B19,OFFSET('Savings Results'!$A$1,6,4,5000),"Dx")/(1/(1-SUM('CE Parameters'!$F$10:$F$11))))/1000 -> 15848.99734
B20: 2016 | C20: =(SUMIFS(OFFSET('Savings Results'!$A$1,6,16+IF(MAX('Savings Results'!$G:$G)<2020,2020-MAX('Savings Results'!$G:$G),0)+MAX('Savings Results'!$G:$G)-MIN('Savings Results'!$G:$G),5000),OFFSET('Savings Results'!$A$1,6,6,5000),B20,OFFSET('Savings Results'!$A$1,6,4,5000),"Dx")/(1/(1-SUM('CE Parameters'!$F$10:$F$11))))/1000 -> 1.242617111 | D20: =(SUMIFS(OFFSET('Savings Results'!$A$1,6,16+MAX('Savings Results'!$G:$G)-MIN('Savings Results'!$G:$G)+MAX('Savings Results'!$J:$J)+IF(MAX('Savings Results'!$G:$G)=MIN('Savings Results'!$G:$G),2020-MAX('Savings Results'!$G:$G),MAX('Savings Results'!$G:$G)-MIN('Savings Results'!$G:$G)),5000),OFFSET('Savings Results'!$A$1,6,6,5000),B20,OFFSET('Savings Results'!$A$1,6,4,5000),"Dx")/(1/(1-SUM('CE Parameters'!$F$10:$F$11))))/1000 -> 9286.320758
B21: 2017 | C21: =(SUMIFS(OFFSET('Savings Results'!$A$1,6,16+IF(MAX('Savings Results'!$G:$G)<2020,2020-MAX('Savings Results'!$G:$G),0)+MAX('Savings Results'!$G:$G)-MIN('Savings Results'!$G:$G),5000),OFFSET('Savings Results'!$A$1,6,6,5000),B21,OFFSET('Savings Results'!$A$1,6,4,5000),"Dx")/(1/(1-SUM('CE Parameters'!$F$10:$F$11))))/1000 -> 1.282937443 | D21: =(SUMIFS(OFFSET('Savings Results'!$A$1,6,16+MAX('Savings Results'!$G:$G)-MIN('Savings Results'!$G:$G)+MAX('Savings Results'!$J:$J)+IF(MAX('Savings Results'!$G:$G)=MIN('Savings Results'!$G:$G),2020-MAX('Savings Results'!$G:$G),MAX('Savings Results'!$G:$G)-MIN('Savings Results'!$G:$G)),5000),OFFSET('Savings Results'!$A$1,6,6,5000),B21,OFFSET('Savings Results'!$A$1,6,4,5000),"Dx")/(1/(1-SUM('CE Parameters'!$F$10:$F$11))))/1000 -> 15327.19613
B22: 2018 | C22: =(SUMIFS(OFFSET('Savings Results'!$A$1,6,16+IF(MAX('Savings Results'!$G:$G)<2020,2020-MAX('Savings Results'!$G:$G),0)+MAX('Savings Results'!$G:$G)-MIN('Savings Results'!$G:$G),5000),OFFSET('Savings Results'!$A$1,6,6,5000),B22,OFFSET('Savings Results'!$A$1,6,4,5000),"Dx")/(1/(1-SUM('CE Parameters'!$F$10:$F$11))))/1000 -> 1.840219363 | D22: =(SUMIFS(OFFSET('Savings Results'!$A$1,6,16+MAX('Savings Results'!$G:$G)-MIN('Savings Results'!$G:$G)+MAX('Savings Results'!$J:$J)+IF(MAX('Savings Results'!$G:$G)=MIN('Savings Results'!$G:$G),2020-MAX('Savings Results'!$G:$G),MAX('Savings Results'!$G:$G)-MIN('Savings Results'!$G:$G)),5000),OFFSET('Savings Results'!$A$1,6,6,5000),B22,OFFSET('Savings Results'!$A$1,6,4,5000),"Dx")/(1/(1-SUM('CE Parameters'!$F$10:$F$11))))/1000 -> 13018.56687
B23: 2019 | C23: =(SUMIFS(OFFSET('Savings Results'!$A$1,6,16+IF(MAX('Savings Results'!$G:$G)<2020,2020-MAX('Savings Results'!$G:$G),0)+MAX('Savings Results'!$G:$G)-MIN('Savings Results'!$G:$G),5000),OFFSET('Savings Results'!$A$1,6,6,5000),B23,OFFSET('Savings Results'!$A$1,6,4,5000),"Dx")/(1/(1-SUM('CE Parameters'!$F$10:$F$11))))/1000 -> 1.311419639 | D23: =(SUMIFS(OFFSET('Savings Results'!$A$1,6,16+MAX('Savings Results'!$G:$G)-MIN('Savings Results'!$G:$G)+MAX('Savings Results'!$J:$J)+IF(MAX('Savings Results'!$G:$G)=MIN('Savings Results'!$G:$G),2020-MAX('Savings Results'!$G:$G),MAX('Savings Results'!$G:$G)-MIN('Savings Results'!$G:$G)),5000),OFFSET('Savings Results'!$A$1,6,6,5000),B23,OFFSET('Savings Results'!$A$1,6,4,5000),"Dx")/(1/(1-SUM('CE Parameters'!$F$10:$F$11))))/1000 -> 9371.164052
B24: 2020 | C24: =(SUMIFS(OFFSET('Savings Results'!$A$1,6,16+IF(MAX('Savings Results'!$G:$G)<2020,2020-MAX('Savings Results'!$G:$G),0)+MAX('Savings Results'!$G:$G)-MIN('Savings Results'!$G:$G),5000),OFFSET('Savings Results'!$A$1,6,6,5000),B24,OFFSET('Savings Results'!$A$1,6,4,5000),"Dx")/(1/(1-SUM('CE Parameters'!$F$10:$F$11))))/1000 -> 26.72895631 | D24: =(SUMIFS(OFFSET('Savings Results'!$A$1,6,16+MAX('Savings Results'!$G:$G)-MIN('Savings Results'!$G:$G)+MAX('Savings Results'!$J:$J)+IF(MAX('Savings Results'!$G:$G)=MIN('Savings Results'!$G:$G),2020-MAX('Savings Results'!$G:$G),MAX('Savings Results'!$G:$G)-MIN('Savings Results'!$G:$G)),5000),OFFSET('Savings Results'!$A$1,6,6,5000),B24,OFFSET('Savings Results'!$A$1,6,4,5000),"Dx")/(1/(1-SUM('CE Parameters'!$F$10:$F$11))))/1000 -> 16535.30639
B25: Plan Total | C25: =SUM(C19:C24) -> 34.90889596 | D25: =SUM(D19:D24) -> 79387.55154
A27: TABLE 3
A28: PROGRAM ROLL OUT SCHEDULE (ANNUAL ANTICIPATED BUDGET & INCREMENTAL ANNUAL ENERGY SAVINGS BY PROGRAM)
C29: 2015 | E29: 2016 | G29: 2017 | I29: 2018 | K29: 2019 | M29: 2020 | O29: Total 2015 - 2020
A31: Sector | B31: Program | C31: Anticipated Annual Budget ($) | D31: Energy Savings (MWh) | E31: Anticipated Annual Budget ($) | F31: Energy Savings (MWh) | G31: Anticipated Annual Budget ($) | H31: Energy Savings (MWh) | I31: Anticipated Annual Budget ($) | J31: Energy Savings (MWh) | K31: Anticipated Annual Budget ($) | L31: Energy Savings (MWh) | M31: Anticipated Annual Budget ($) | N31: Energy Savings (MWh) | O31: Total Plan Budget ($) | P31: Total Persisting Energy Savings in 2020 (MWh)
A32: Business | B32: Retrofit Oshawa PUC Networks Inc. | C32: =IFERROR(SUMIFS('Program Design'!$U:$U,'Program Design'!$C:$C,$A32,'Program Design'!$D:$D,$B32,'Program Design'!$J:$J,C$29)+SUMIFS('Program Design'!$V:$V,'Program Design'!$C:$C,$A32,'Program Design'!$D:$D,$B32,'Program Design'!$J:$J,C$29)+SUMIFS('Program Design'!$W:$W,'Program Design'!$C:$C,$A32,'Program Design'!$D:$D,$B32,'Program Design'!$J:$J,C$29)+SUMIFS(INDEX(OFFSET('Budget Inputs'!$A$1,6,1,5000,560),0,MATCH(CONCATENATE(C$29," Sub-Total"),OFFSET('Budget Inputs'!$A$1,6,1,1,560),0)),OFFSET('Budget Inputs'!$A$1,6,1,5000,1),$A32,OFFSET('Budget Inputs'!$A$1,6,2,5000,1),$B32),0) -> 0 | D32: =(SUMIFS(OFFSET('Savings Results'!$A$1,6,16 +MAX('Savings Results'!$G:$G)-MIN('Savings Results'!$G:$G)+MAX('Savings Results'!$J:$J)+C$29-MIN('Savings Results'!$G:$G),5000),OFFSET('Savings Results'!$A$1,6,6,5000),C$29,OFFSET('Savings Results'!$A$1,6,4,5000),"Dx",OFFSET('Savings Results'!$A$1,6,1,5000),$A32,OFFSET('Savings Results'!$A$1,6,2,5000),$B32)/(1/(1-SUM('CE Parameters'!$F$10:$F$11))))/1000 -> 1655.09035 | E32: =IFERROR(SUMIFS('Program Design'!$U:$U,'Program Design'!$C:$C,$A32,'Program Design'!$D:$D,$B32,'Program Design'!$J:$J,E$29)+SUMIFS('Program Design'!$V:$V,'Program Design'!$C:$C,$A32,'Program Design'!$D:$D,$B32,'Program Design'!$J:$J,E$29)+SUMIFS('Program Design'!$W:$W,'Program Design'!$C:$C,$A32,'Program Design'!$D:$D,$B32,'Program Design'!$J:$J,E$29)+SUMIFS(INDEX(OFFSET('Budget Inputs'!$A$1,6,1,5000,560),0,MATCH(CONCATENATE(E$29," Sub-Total"),OFFSET('Budget Inputs'!$A$1,6,1,1,560),0)),OFFSET('Budget Inputs'!$A$1,6,1,5000,1),$A32,OFFSET('Budget Inputs'!$A$1,6,2,5000,1),$B32),0) -> 0 | F32: =(SUMIFS(OFFSET('Savings Results'!$A$1,6,16 +MAX('Savings Results'!$G:$G)-MIN('Savings Results'!$G:$G)+MAX('Savings Results'!$J:$J)+E$29-MIN('Savings Results'!$G:$G),5000),OFFSET('Savings Results'!$A$1,6,6,5000),E$29,OFFSET('Savings Results'!$A$1,6,4,5000),"Dx",OFFSET('Savings Results'!$A$1,6,1,5000),$A32,OFFSET('Savings Results'!$A$1,6,2,5000),$B32)/(1/(1-SUM('CE Parameters'!$F$10:$F$11))))/1000 -> 0 | G32: =IFERROR(SUMIFS('Program Design'!$U:$U,'Program Design'!$C:$C,$A32,'Program Design'!$D:$D,$B32,'Program Design'!$J:$J,G$29)+SUMIFS('Program Design'!$V:$V,'Program Design'!$C:$C,$A32,'Program Design'!$D:$D,$B32,'Program Design'!$J:$J,G$29)+SUMIFS('Program Design'!$W:$W,'Program Design'!$C:$C,$A32,'Program Design'!$D:$D,$B32,'Program Design'!$J:$J,G$29)+SUMIFS(INDEX(OFFSET('Budget Inputs'!$A$1,6,1,5000,560),0,MATCH(CONCATENATE(G$29," Sub-Total"),OFFSET('Budget Inputs'!$A$1,6,1,1,560),0)),OFFSET('Budget Inputs'!$A$1,6,1,5000,1),$A32,OFFSET('Budget Inputs'!$A$1,6,2,5000,1),$B32),0) -> 0 | H32: =(SUMIFS(OFFSET('Savings Results'!$A$1,6,16 +MAX('Savings Results'!$G:$G)-MIN('Savings Results'!$G:$G)+MAX('Savings Results'!$J:$J)+G$29-MIN('Savings Results'!$G:$G),5000),OFFSET('Savings Results'!$A$1,6,6,5000),G$29,OFFSET('Savings Results'!$A$1,6,4,5000),"Dx",OFFSET('Savings Results'!$A$1,6,1,5000),$A32,OFFSET('Savings Results'!$A$1,6,2,5000),$B32)/(1/(1-SUM('CE Parameters'!$F$10:$F$11))))/1000 -> 0 | I32: =IFERROR(SUMIFS('Program Design'!$U:$U,'Program Design'!$C:$C,$A32,'Program Design'!$D:$D,$B32,'Program Design'!$J:$J,I$29)+SUMIFS('Program Design'!$V:$V,'Program Design'!$C:$C,$A32,'Program Design'!$D:$D,$B32,'Program Design'!$J:$J,I$29)+SUMIFS('Program Design'!$W:$W,'Program Design'!$C:$C,$A32,'Program Design'!$D:$D,$B32,'Program Design'!$J:$J,I$29)+SUMIFS(INDEX(OFFSET('Budget Inputs'!$A$1,6,1,5000,560),0,MATCH(CONCATENATE(I$29," Sub-Total"),OFFSET('Budget Inputs'!$A$1,6,1,1,560),0)),OFFSET('Budget Inputs'!$A$1,6,1,5000,1),$A32,OFFSET('Budget Inputs'!$A$1,6,2,5000,1),$B32),0) -> 0 | J32: =(SUMIFS(OFFSET('Savings Results'!$A$1,6,16 +MAX('Savings Results'!$G:$G)-MIN('Savings Results'!$G:$G)+MAX('Savings Results'!$J:$J)+I$29-MIN('Savings Results'!$G:$G),5000),OFFSET('Savings Results'!$A$1,6,6,5000),I$29,OFFSET('Savings Results'!$A$1,6,4,5000),"Dx",OFFSET('Savings Results'!$A$1,6,1,5000),$A32,OFFSET('Savings Results'!$A$1,6,2,5000),$B32)/(1/(1-SUM('CE Parameters'!$F$10:$F$11))))/1000 -> 0 | K32: =IFERROR(SUMIFS('Program Design'!$U:$U,'Program Design'!$C:$C,$A32,'Program Design'!$D:$D,$B32,'Program Design'!$J:$J,K$29)+SUMIFS('Program Design'!$V:$V,'Program Design'!$C:$C,$A32,'Program Design'!$D:$D,$B32,'Program Design'!$J:$J,K$29)+SUMIFS('Program Design'!$W:$W,'Program Design'!$C:$C,$A32,'Program Design'!$D:$D,$B32,'Program Design'!$J:$J,K$29)+SUMIFS(INDEX(OFFSET('Budget Inputs'!$A$1,6,1,5000,560),0,MATCH(CONCATENATE(K$29," Sub-Total"),OFFSET('Budget Inputs'!$A$1,6,1,1,560),0)),OFFSET('Budget Inputs'!$A$1,6,1,5000,1),$A32,OFFSET('Budget Inputs'!$A$1,6,2,5000,1),$B32),0) -> 0 | L32: =(SUMIFS(OFFSET('Savings Results'!$A$1,6,16 +MAX('Savings Results'!$G:$G)-MIN('Savings Results'!$G:$G)+MAX('Savings Results'!$J:$J)+K$29-MIN('Savings Results'!$G:$G),5000),OFFSET('Savings Results'!$A$1,6,6,5000),K$29,OFFSET('Savings Results'!$A$1,6,4,5000),"Dx",OFFSET('Savings Results'!$A$1,6,1,5000),$A32,OFFSET('Savings Results'!$A$1,6,2,5000),$B32)/(1/(1-SUM('CE Parameters'!$F$10:$F$11))))/1000 -> 0 | M32: =IFERROR(SUMIFS('Program Design'!$U:$U,'Program Design'!$C:$C,$A32,'Program Design'!$D:$D,$B32,'Program Design'!$J:$J,M$29)+SUMIFS('Program Design'!$V:$V,'Program Design'!$C:$C,$A32,'Program Design'!$D:$D,$B32,'Program Design'!$J:$J,M$29)+SUMIFS('Program Design'!$W:$W,'Program Design'!$C:$C,$A32,'Program Design'!$D:$D,$B32,'Program Design'!$J:$J,M$29)+SUMIFS(INDEX(OFFSET('Budget Inputs'!$A$1,6,1,5000,560),0,MATCH(CONCATENATE(M$29," Sub-Total"),OFFSET('Budget Inputs'!$A$1,6,1,1,560),0)),OFFSET('Budget Inputs'!$A$1,6,1,5000,1),$A32,OFFSET('Budget Inputs'!$A$1,6,2,5000,1),$B32),0) -> 0 | N32: =(SUMIFS(OFFSET('Savings Results'!$A$1,6,16 +MAX('Savings Results'!$G:$G)-MIN('Savings Results'!$G:$G)+MAX('Savings Results'!$J:$J)+M$29-MIN('Savings Results'!$G:$G),5000),OFFSET('Savings Results'!$A$1,6,6,5000),M$29,OFFSET('Savings Results'!$A$1,6,4,5000),"Dx",OFFSET('Savings Results'!$A$1,6,1,5000),$A32,OFFSET('Savings Results'!$A$1,6,2,5000),$B32)/(1/(1-SUM('CE Parameters'!$F$10:$F$11))))/1000 -> 0 | O32: =IFERROR(SUMIFS('Program Design'!$U:$U,'Program Design'!$C:$C,$A32,'Program Design'!$D:$D,$B32)+SUMIFS('Program Design'!$V:$V,'Program Design'!$C:$C,$A32,'Program Design'!$D:$D,$B32)+SUMIFS('Program Design'!$W:$W,'Program Design'!$C:$C,$A32,'Program Design'!$D:$D,$B32)+SUMIFS(INDEX(OFFSET('Budget Inputs'!$A$1,6,1,5000,560),0,MATCH("Total",OFFSET('Budget Inputs'!$A$1,6,1,1,560),0)),OFFSET('Budget Inputs'!$A$1,6,1,5000,1),$A32,OFFSET('Budget Inputs'!$A$1,6,2,5000,1),$B32),0) -> 0 | P32: =(SUMIFS(OFFSET('Savings Results'!$A$1,6,16 +MAX('Savings Results'!$G:$G)-MIN('Savings Results'!$G:$G)+MAX('Savings Results'!$J:$J)+M$29-MIN('Savings Results'!$G:$G),5000),OFFSET('Savings Results'!$A$1,6,4,5000),"Dx",OFFSET('Savings Results'!$A$1,6,1,5000),$A32,OFFSET('Savings Results'!$A$1,6,2,5000),$B32)/(1/(1-SUM('CE Parameters'!$F$10:$F$11))))/1000 -> 1582.774185
A33: Business | B33: Small Business Lighting Oshawa PUC Networks Inc. | C33: =IFERROR(SUMIFS('Program Design'!$U:$U,'Program Design'!$C:$C,$A33,'Program Design'!$D:$D,$B33,'Program Design'!$J:$J,C$29)+SUMIFS('Program Design'!$V:$V,'Program Design'!$C:$C,$A33,'Program Design'!$D:$D,$B33,'Program Design'!$J:$J,C$29)+SUMIFS('Program Design'!$W:$W,'Program Design'!$C:$C,$A33,'Program Design'!$D:$D,$B33,'Program Design'!$J:$J,C$29)+SUMIFS(INDEX(OFFSET('Budget Inputs'!$A$1,6,1,5000,560),0,MATCH(CONCATENATE(C$29," Sub-Total"),OFFSET('Budget Inputs'!$A$1,6,1,1,560),0)),OFFSET('Budget Inputs'!$A$1,6,1,5000,1),$A33,OFFSET('Budget Inputs'!$A$1,6,2,5000,1),$B33),0) -> 0 | D33: =(SUMIFS(OFFSET('Savings Results'!$A$1,6,16 +MAX('Savings Results'!$G:$G)-MIN('Savings Results'!$G:$G)+MAX('Savings Results'!$J:$J)+C$29-MIN('Savings Results'!$G:$G),5000),OFFSET('Savings Results'!$A$1,6,6,5000),C$29,OFFSET('Savings Results'!$A$1,6,4,5000),"Dx",OFFSET('Savings Results'!$A$1,6,1,5000),$A33,OFFSET('Savings Results'!$A$1,6,2,5000),$B33)/(1/(1-SUM('CE Parameters'!$F$10:$F$11))))/1000 -> 0 | E33: =IFERROR(SUMIFS('Program Design'!$U:$U,'Program Design'!$C:$C,$A33,'Program Design'!$D:$D,$B33,'Program Design'!$J:$J,E$29)+SUMIFS('Program Design'!$V:$V,'Program Design'!$C:$C,$A33,'Program Design'!$D:$D,$B33,'Program Design'!$J:$J,E$29)+SUMIFS('Program Design'!$W:$W,'Program Design'!$C:$C,$A33,'Program Design'!$D:$D,$B33,'Program Design'!$J:$J,E$29)+SUMIFS(INDEX(OFFSET('Budget Inputs'!$A$1,6,1,5000,560),0,MATCH(CONCATENATE(E$29," Sub-Total"),OFFSET('Budget Inputs'!$A$1,6,1,1,560),0)),OFFSET('Budget Inputs'!$A$1,6,1,5000,1),$A33,OFFSET('Budget Inputs'!$A$1,6,2,5000,1),$B33),0) -> 0 | F33: =(SUMIFS(OFFSET('Savings Results'!$A$1,6,16 +MAX('Savings Results'!$G:$G)-MIN('Savings Results'!$G:$G)+MAX('Savings Results'!$J:$J)+E$29-MIN('Savings Results'!$G:$G),5000),OFFSET('Savings Results'!$A$1,6,6,5000),E$29,OFFSET('Savings Results'!$A$1,6,4,5000),"Dx",OFFSET('Savings Results'!$A$1,6,1,5000),$A33,OFFSET('Savings Results'!$A$1,6,2,5000),$B33)/(1/(1-SUM('CE Parameters'!$F$10:$F$11))))/1000 -> 0 | G33: =IFERROR(SUMIFS('Program Design'!$U:$U,'Program Design'!$C:$C,$A33,'Program Design'!$D:$D,$B33,'Program Design'!$J:$J,G$29)+SUMIFS('Program Design'!$V:$V,'Program Design'!$C:$C,$A33,'Program Design'!$D:$D,$B33,'Program Design'!$J:$J,G$29)+SUMIFS('Program Design'!$W:$W,'Program Design'!$C:$C,$A33,'Program Design'!$D:$D,$B33,'Program Design'!$J:$J,G$29)+SUMIFS(INDEX(OFFSET('Budget Inputs'!$A$1,6,1,5000,560),0,MATCH(CONCATENATE(G$29," Sub-Total"),OFFSET('Budget Inputs'!$A$1,6,1,1,560),0)),OFFSET('Budget Inputs'!$A$1,6,1,5000,1),$A33,OFFSET('Budget Inputs'!$A$1,6,2,5000,1),$B33),0) -> 0 | H33: =(SUMIFS(OFFSET('Savings Results'!$A$1,6,16 +MAX('Savings Results'!$G:$G)-MIN('Savings Results'!$G:$G)+MAX('Savings Results'!$J:$J)+G$29-MIN('Savings Results'!$G:$G),5000),OFFSET('Savings Results'!$A$1,6,6,5000),G$29,OFFSET('Savings Results'!$A$1,6,4,5000),"Dx",OFFSET('Savings Results'!$A$1,6,1,5000),$A33,OFFSET('Savings Results'!$A$1,6,2,5000),$B33)/(1/(1-SUM('CE Parameters'!$F$10:$F$11))))/1000 -> 0 | I33: =IFERROR(SUMIFS('Program Design'!$U:$U,'Program Design'!$C:$C,$A33,'Program Design'!$D:$D,$B33,'Program Design'!$J:$J,I$29)+SUMIFS('Program Design'!$V:$V,'Program Design'!$C:$C,$A33,'Program Design'!$D:$D,$B33,'Program Design'!$J:$J,I$29)+SUMIFS('Program Design'!$W:$W,'Program Design'!$C:$C,$A33,'Program Design'!$D:$D,$B33,'Program Design'!$J:$J,I$29)+SUMIFS(INDEX(OFFSET('Budget Inputs'!$A$1,6,1,5000,560),0,MATCH(CONCATENATE(I$29," Sub-Total"),OFFSET('Budget Inputs'!$A$1,6,1,1,560),0)),OFFSET('Budget Inputs'!$A$1,6,1,5000,1),$A33,OFFSET('Budget Inputs'!$A$1,6,2,5000,1),$B33),0) -> 0 | J33: =(SUMIFS(OFFSET('Savings Results'!$A$1,6,16 +MAX('Savings Results'!$G:$G)-MIN('Savings Results'!$G:$G)+MAX('Savings Results'!$J:$J)+I$29-MIN('Savings Results'!$G:$G),5000),OFFSET('Savings Results'!$A$1,6,6,5000),I$29,OFFSET('Savings Results'!$A$1,6,4,5000),"Dx",OFFSET('Savings Results'!$A$1,6,1,5000),$A33,OFFSET('Savings Results'!$A$1,6,2,5000),$B33)/(1/(1-SUM('CE Parameters'!$F$10:$F$11))))/1000 -> 0 | K33: =IFERROR(SUMIFS('Program Design'!$U:$U,'Program Design'!$C:$C,$A33,'Program Design'!$D:$D,$B33,'Program Design'!$J:$J,K$29)+SUMIFS('Program Design'!$V:$V,'Program Design'!$C:$C,$A33,'Program Design'!$D:$D,$B33,'Program Design'!$J:$J,K$29)+SUMIFS('Program Design'!$W:$W,'Program Design'!$C:$C,$A33,'Program Design'!$D:$D,$B33,'Program Design'!$J:$J,K$29)+SUMIFS(INDEX(OFFSET('Budget Inputs'!$A$1,6,1,5000,560),0,MATCH(CONCATENATE(K$29," Sub-Total"),OFFSET('Budget Inputs'!$A$1,6,1,1,560),0)),OFFSET('Budget Inputs'!$A$1,6,1,5000,1),$A33,OFFSET('Budget Inputs'!$A$1,6,2,5000,1),$B33),0) -> 0 | L33: =(SUMIFS(OFFSET('Savings Results'!$A$1,6,16 +MAX('Savings Results'!$G:$G)-MIN('Savings Results'!$G:$G)+MAX('Savings Results'!$J:$J)+K$29-MIN('Savings Results'!$G:$G),5000),OFFSET('Savings Results'!$A$1,6,6,5000),K$29,OFFSET('Savings Results'!$A$1,6,4,5000),"Dx",OFFSET('Savings Results'!$A$1,6,1,5000),$A33,OFFSET('Savings Results'!$A$1,6,2,5000),$B33)/(1/(1-SUM('CE Parameters'!$F$10:$F$11))))/1000 -> 0 | M33: =IFERROR(SUMIFS('Program Design'!$U:$U,'Program Design'!$C:$C,$A33,'Program Design'!$D:$D,$B33,'Program Design'!$J:$J,M$29)+SUMIFS('Program Design'!$V:$V,'Program Design'!$C:$C,$A33,'Program Design'!$D:$D,$B33,'Program Design'!$J:$J,M$29)+SUMIFS('Program Design'!$W:$W,'Program Design'!$C:$C,$A33,'Program Design'!$D:$D,$B33,'Program Design'!$J:$J,M$29)+SUMIFS(INDEX(OFFSET('Budget Inputs'!$A$1,6,1,5000,560),0,MATCH(CONCATENATE(M$29," Sub-Total"),OFFSET('Budget Inputs'!$A$1,6,1,1,560),0)),OFFSET('Budget Inputs'!$A$1,6,1,5000,1),$A33,OFFSET('Budget Inputs'!$A$1,6,2,5000,1),$B33),0) -> 0 | N33: =(SUMIFS(OFFSET('Savings Results'!$A$1,6,16 +MAX('Savings Results'!$G:$G)-MIN('Savings Results'!$G:$G)+MAX('Savings Results'!$J:$J)+M$29-MIN('Savings Results'!$G:$G),5000),OFFSET('Savings Results'!$A$1,6,6,5000),M$29,OFFSET('Savings Results'!$A$1,6,4,5000),"Dx",OFFSET('Savings Results'!$A$1,6,1,5000),$A33,OFFSET('Savings Results'!$A$1,6,2,5000),$B33)/(1/(1-SUM('CE Parameters'!$F$10:$F$11))))/1000 -> 0 | O33: =IFERROR(SUMIFS('Program Design'!$U:$U,'Program Design'!$C:$C,$A33,'Program Design'!$D:$D,$B33)+SUMIFS('Program Design'!$V:$V,'Program Design'!$C:$C,$A33,'Program Design'!$D:$D,$B33)+SUMIFS('Program Design'!$W:$W,'Program Design'!$C:$C,$A33,'Program Design'!$D:$D,$B33)+SUMIFS(INDEX(OFFSET('Budget Inputs'!$A$1,6,1,5000,560),0,MATCH("Total",OFFSET('Budget Inputs'!$A$1,6,1,1,560),0)),OFFSET('Budget Inputs'!$A$1,6,1,5000,1),$A33,OFFSET('Budget Inputs'!$A$1,6,2,5000,1),$B33),0) -> 0 | P33: =(SUMIFS(OFFSET('Savings Results'!$A$1,6,16 +MAX('Savings Results'!$G:$G)-MIN('Savings Results'!$G:$G)+MAX('Savings Results'!$J:$J)+M$29-MIN('Savings Results'!$G:$G),5000),OFFSET('Savings Results'!$A$1,6,4,5000),"Dx",OFFSET('Savings Results'!$A$1,6,1,5000),$A33,OFFSET('Savings Results'!$A$1,6,2,5000),$B33)/(1/(1-SUM('CE Parameters'!$F$10:$F$11))))/1000 -> 0
A34: Business | B34: High Performance New Construction (HPNC) Oshawa PUC Networks Inc. | C34: =IFERROR(SUMIFS('Program Design'!$U:$U,'Program Design'!$C:$C,$A34,'Program Design'!$D:$D,$B34,'Program Design'!$J:$J,C$29)+SUMIFS('Program Design'!$V:$V,'Program Design'!$C:$C,$A34,'Program Design'!$D:$D,$B34,'Program Design'!$J:$J,C$29)+SUMIFS('Program Design'!$W:$W,'Program Design'!$C:$C,$A34,'Program Design'!$D:$D,$B34,'Program Design'!$J:$J,C$29)+SUMIFS(INDEX(OFFSET('Budget Inputs'!$A$1,6,1,5000,560),0,MATCH(CONCATENATE(C$29," Sub-Total"),OFFSET('Budget Inputs'!$A$1,6,1,1,560),0)),OFFSET('Budget Inputs'!$A$1,6,1,5000,1),$A34,OFFSET('Budget Inputs'!$A$1,6,2,5000,1),$B34),0) -> 0 | D34: =(SUMIFS(OFFSET('Savings Results'!$A$1,6,16 +MAX('Savings Results'!$G:$G)-MIN('Savings Results'!$G:$G)+MAX('Savings Results'!$J:$J)+C$29-MIN('Savings Results'!$G:$G),5000),OFFSET('Savings Results'!$A$1,6,6,5000),C$29,OFFSET('Savings Results'!$A$1,6,4,5000),"Dx",OFFSET('Savings Results'!$A$1,6,1,5000),$A34,OFFSET('Savings Results'!$A$1,6,2,5000),$B34)/(1/(1-SUM('CE Parameters'!$F$10:$F$11))))/1000 -> 0 | E34: =IFERROR(SUMIFS('Program Design'!$U:$U,'Program Design'!$C:$C,$A34,'Program Design'!$D:$D,$B34,'Program Design'!$J:$J,E$29)+SUMIFS('Program Design'!$V:$V,'Program Design'!$C:$C,$A34,'Program Design'!$D:$D,$B34,'Program Design'!$J:$J,E$29)+SUMIFS('Program Design'!$W:$W,'Program Design'!$C:$C,$A34,'Program Design'!$D:$D,$B34,'Program Design'!$J:$J,E$29)+SUMIFS(INDEX(OFFSET('Budget Inputs'!$A$1,6,1,5000,560),0,MATCH(CONCATENATE(E$29," Sub-Total"),OFFSET('Budget Inputs'!$A$1,6,1,1,560),0)),OFFSET('Budget Inputs'!$A$1,6,1,5000,1),$A34,OFFSET('Budget Inputs'!$A$1,6,2,5000,1),$B34),0) -> 0 | F34: =(SUMIFS(OFFSET('Savings Results'!$A$1,6,16 +MAX('Savings Results'!$G:$G)-MIN('Savings Results'!$G:$G)+MAX('Savings Results'!$J:$J)+E$29-MIN('Savings Results'!$G:$G),5000),OFFSET('Savings Results'!$A$1,6,6,5000),E$29,OFFSET('Savings Results'!$A$1,6,4,5000),"Dx",OFFSET('Savings Results'!$A$1,6,1,5000),$A34,OFFSET('Savings Results'!$A$1,6,2,5000),$B34)/(1/(1-SUM('CE Parameters'!$F$10:$F$11))))/1000 -> 0 | G34: =IFERROR(SUMIFS('Program Design'!$U:$U,'Program Design'!$C:$C,$A34,'Program Design'!$D:$D,$B34,'Program Design'!$J:$J,G$29)+SUMIFS('Program Design'!$V:$V,'Program Design'!$C:$C,$A34,'Program Design'!$D:$D,$B34,'Program Design'!$J:$J,G$29)+SUMIFS('Program Design'!$W:$W,'Program Design'!$C:$C,$A34,'Program Design'!$D:$D,$B34,'Program Design'!$J:$J,G$29)+SUMIFS(INDEX(OFFSET('Budget Inputs'!$A$1,6,1,5000,560),0,MATCH(CONCATENATE(G$29," Sub-Total"),OFFSET('Budget Inputs'!$A$1,6,1,1,560),0)),OFFSET('Budget Inputs'!$A$1,6,1,5000,1),$A34,OFFSET('Budget Inputs'!$A$1,6,2,5000,1),$B34),0) -> 0 | H34: =(SUMIFS(OFFSET('Savings Results'!$A$1,6,16 +MAX('Savings Results'!$G:$G)-MIN('Savings Results'!$G:$G)+MAX('Savings Results'!$J:$J)+G$29-MIN('Savings Results'!$G:$G),5000),OFFSET('Savings Results'!$A$1,6,6,5000),G$29,OFFSET('Savings Results'!$A$1,6,4,5000),"Dx",OFFSET('Savings Results'!$A$1,6,1,5000),$A34,OFFSET('Savings Results'!$A$1,6,2,5000),$B34)/(1/(1-SUM('CE Parameters'!$F$10:$F$11))))/1000 -> 0 | I34: =IFERROR(SUMIFS('Program Design'!$U:$U,'Program Design'!$C:$C,$A34,'Program Design'!$D:$D,$B34,'Program Design'!$J:$J,I$29)+SUMIFS('Program Design'!$V:$V,'Program Design'!$C:$C,$A34,'Program Design'!$D:$D,$B34,'Program Design'!$J:$J,I$29)+SUMIFS('Program Design'!$W:$W,'Program Design'!$C:$C,$A34,'Program Design'!$D:$D,$B34,'Program Design'!$J:$J,I$29)+SUMIFS(INDEX(OFFSET('Budget Inputs'!$A$1,6,1,5000,560),0,MATCH(CONCATENATE(I$29," Sub-Total"),OFFSET('Budget Inputs'!$A$1,6,1,1,560),0)),OFFSET('Budget Inputs'!$A$1,6,1,5000,1),$A34,OFFSET('Budget Inputs'!$A$1,6,2,5000,1),$B34),0) -> 0 | J34: =(SUMIFS(OFFSET('Savings Results'!$A$1,6,16 +MAX('Savings Results'!$G:$G)-MIN('Savings Results'!$G:$G)+MAX('Savings Results'!$J:$J)+I$29-MIN('Savings Results'!$G:$G),5000),OFFSET('Savings Results'!$A$1,6,6,5000),I$29,OFFSET('Savings Results'!$A$1,6,4,5000),"Dx",OFFSET('Savings Results'!$A$1,6,1,5000),$A34,OFFSET('Savings Results'!$A$1,6,2,5000),$B34)/(1/(1-SUM('CE Parameters'!$F$10:$F$11))))/1000 -> 0 | K34: =IFERROR(SUMIFS('Program Design'!$U:$U,'Program Design'!$C:$C,$A34,'Program Design'!$D:$D,$B34,'Program Design'!$J:$J,K$29)+SUMIFS('Program Design'!$V:$V,'Program Design'!$C:$C,$A34,'Program Design'!$D:$D,$B34,'Program Design'!$J:$J,K$29)+SUMIFS('Program Design'!$W:$W,'Program Design'!$C:$C,$A34,'Program Design'!$D:$D,$B34,'Program Design'!$J:$J,K$29)+SUMIFS(INDEX(OFFSET('Budget Inputs'!$A$1,6,1,5000,560),0,MATCH(CONCATENATE(K$29," Sub-Total"),OFFSET('Budget Inputs'!$A$1,6,1,1,560),0)),OFFSET('Budget Inputs'!$A$1,6,1,5000,1),$A34,OFFSET('Budget Inputs'!$A$1,6,2,5000,1),$B34),0) -> 0 | L34: =(SUMIFS(OFFSET('Savings Results'!$A$1,6,16 +MAX('Savings Results'!$G:$G)-MIN('Savings Results'!$G:$G)+MAX('Savings Results'!$J:$J)+K$29-MIN('Savings Results'!$G:$G),5000),OFFSET('Savings Results'!$A$1,6,6,5000),K$29,OFFSET('Savings Results'!$A$1,6,4,5000),"Dx",OFFSET('Savings Results'!$A$1,6,1,5000),$A34,OFFSET('Savings Results'!$A$1,6,2,5000),$B34)/(1/(1-SUM('CE Parameters'!$F$10:$F$11))))/1000 -> 0 | M34: =IFERROR(SUMIFS('Program Design'!$U:$U,'Program Design'!$C:$C,$A34,'Program Design'!$D:$D,$B34,'Program Design'!$J:$J,M$29)+SUMIFS('Program Design'!$V:$V,'Program Design'!$C:$C,$A34,'Program Design'!$D:$D,$B34,'Program Design'!$J:$J,M$29)+SUMIFS('Program Design'!$W:$W,'Program Design'!$C:$C,$A34,'Program Design'!$D:$D,$B34,'Program Design'!$J:$J,M$29)+SUMIFS(INDEX(OFFSET('Budget Inputs'!$A$1,6,1,5000,560),0,MATCH(CONCATENATE(M$29," Sub-Total"),OFFSET('Budget Inputs'!$A$1,6,1,1,560),0)),OFFSET('Budget Inputs'!$A$1,6,1,5000,1),$A34,OFFSET('Budget Inputs'!$A$1,6,2,5000,1),$B34),0) -> 0 | N34: =(SUMIFS(OFFSET('Savings Results'!$A$1,6,16 +MAX('Savings Results'!$G:$G)-MIN('Savings Results'!$G:$G)+MAX('Savings Results'!$J:$J)+M$29-MIN('Savings Results'!$G:$G),5000),OFFSET('Savings Results'!$A$1,6,6,5000),M$29,OFFSET('Savings Results'!$A$1,6,4,5000),"Dx",OFFSET('Savings Results'!$A$1,6,1,5000),$A34,OFFSET('Savings Results'!$A$1,6,2,5000),$B34)/(1/(1-SUM('CE Parameters'!$F$10:$F$11))))/1000 -> 0 | O34: =IFERROR(SUMIFS('Program Design'!$U:$U,'Program Design'!$C:$C,$A34,'Program Design'!$D:$D,$B34)+SUMIFS('Program Design'!$V:$V,'Program Design'!$C:$C,$A34,'Program Design'!$D:$D,$B34)+SUMIFS('Program Design'!$W:$W,'Program Design'!$C:$C,$A34,'Program Design'!$D:$D,$B34)+SUMIFS(INDEX(OFFSET('Budget Inputs'!$A$1,6,1,5000,560),0,MATCH("Total",OFFSET('Budget Inputs'!$A$1,6,1,1,560),0)),OFFSET('Budget Inputs'!$A$1,6,1,5000,1),$A34,OFFSET('Budget Inputs'!$A$1,6,2,5000,1),$B34),0) -> 0 | P34: =(SUMIFS(OFFSET('Savings Results'!$A$1,6,16 +MAX('Savings Results'!$G:$G)-MIN('Savings Results'!$G:$G)+MAX('Savings Results'!$J:$J)+M$29-MIN('Savings Results'!$G:$G),5000),OFFSET('Savings Results'!$A$1,6,4,5000),"Dx",OFFSET('Savings Results'!$A$1,6,1,5000),$A34,OFFSET('Savings Results'!$A$1,6,2,5000),$B34)/(1/(1-SUM('CE Parameters'!$F$10:$F$11))))/1000 -> 0
A35: Business | B35: P4P Pilot Oshawa PUC Networks Inc. | C35: =IFERROR(SUMIFS('Program Design'!$U:$U,'Program Design'!$C:$C,$A35,'Program Design'!$D:$D,$B35,'Program Design'!$J:$J,C$29)+SUMIFS('Program Design'!$V:$V,'Program Design'!$C:$C,$A35,'Program Design'!$D:$D,$B35,'Program Design'!$J:$J,C$29)+SUMIFS('Program Design'!$W:$W,'Program Design'!$C:$C,$A35,'Program Design'!$D:$D,$B35,'Program Design'!$J:$J,C$29)+SUMIFS(INDEX(OFFSET('Budget Inputs'!$A$1,6,1,5000,560),0,MATCH(CONCATENATE(C$29," Sub-Total"),OFFSET('Budget Inputs'!$A$1,6,1,1,560),0)),OFFSET('Budget Inputs'!$A$1,6,1,5000,1),$A35,OFFSET('Budget Inputs'!$A$1,6,2,5000,1),$B35),0) -> 0 | D35: =(SUMIFS(OFFSET('Savings Results'!$A$1,6,16 +MAX('Savings Results'!$G:$G)-MIN('Savings Results'!$G:$G)+MAX('Savings Results'!$J:$J)+C$29-MIN('Savings Results'!$G:$G),5000),OFFSET('Savings Results'!$A$1,6,6,5000),C$29,OFFSET('Savings Results'!$A$1,6,4,5000),"Dx",OFFSET('Savings Results'!$A$1,6,1,5000),$A35,OFFSET('Savings Results'!$A$1,6,2,5000),$B35)/(1/(1-SUM('CE Parameters'!$F$10:$F$11))))/1000 -> 354.7206267 | E35: =IFERROR(SUMIFS('Program Design'!$U:$U,'Program Design'!$C:$C,$A35,'Program Design'!$D:$D,$B35,'Program Design'!$J:$J,E$29)+SUMIFS('Program Design'!$V:$V,'Program Design'!$C:$C,$A35,'Program Design'!$D:$D,$B35,'Program Design'!$J:$J,E$29)+SUMIFS('Program Design'!$W:$W,'Program Design'!$C:$C,$A35,'Program Design'!$D:$D,$B35,'Program Design'!$J:$J,E$29)+SUMIFS(INDEX(OFFSET('Budget Inputs'!$A$1,6,1,5000,560),0,MATCH(CONCATENATE(E$29," Sub-Total"),OFFSET('Budget Inputs'!$A$1,6,1,1,560),0)),OFFSET('Budget Inputs'!$A$1,6,1,5000,1),$A35,OFFSET('Budget Inputs'!$A$1,6,2,5000,1),$B35),0) -> 0 | F35: =(SUMIFS(OFFSET('Savings Results'!$A$1,6,16 +MAX('Savings Results'!$G:$G)-MIN('Savings Results'!$G:$G)+MAX('Savings Results'!$J:$J)+E$29-MIN('Savings Results'!$G:$G),5000),OFFSET('Savings Results'!$A$1,6,6,5000),E$29,OFFSET('Savings Results'!$A$1,6,4,5000),"Dx",OFFSET('Savings Results'!$A$1,6,1,5000),$A35,OFFSET('Savings Results'!$A$1,6,2,5000),$B35)/(1/(1-SUM('CE Parameters'!$F$10:$F$11))))/1000 -> 0 | G35: =IFERROR(SUMIFS('Program Design'!$U:$U,'Program Design'!$C:$C,$A35,'Program Design'!$D:$D,$B35,'Program Design'!$J:$J,G$29)+SUMIFS('Program Design'!$V:$V,'Program Design'!$C:$C,$A35,'Program Design'!$D:$D,$B35,'Program Design'!$J:$J,G$29)+SUMIFS('Program Design'!$W:$W,'Program Design'!$C:$C,$A35,'Program Design'!$D:$D,$B35,'Program Design'!$J:$J,G$29)+SUMIFS(INDEX(OFFSET('Budget Inputs'!$A$1,6,1,5000,560),0,MATCH(CONCATENATE(G$29," Sub-Total"),OFFSET('Budget Inputs'!$A$1,6,1,1,560),0)),OFFSET('Budget Inputs'!$A$1,6,1,5000,1),$A35,OFFSET('Budget Inputs'!$A$1,6,2,5000,1),$B35),0) -> 0 | H35: =(SUMIFS(OFFSET('Savings Results'!$A$1,6,16 +MAX('Savings Results'!$G:$G)-MIN('Savings Results'!$G:$G)+MAX('Savings Results'!$J:$J)+G$29-MIN('Savings Results'!$G:$G),5000),OFFSET('Savings Results'!$A$1,6,6,5000),G$29,OFFSET('Savings Results'!$A$1,6,4,5000),"Dx",OFFSET('Savings Results'!$A$1,6,1,5000),$A35,OFFSET('Savings Results'!$A$1,6,2,5000),$B35)/(1/(1-SUM('CE Parameters'!$F$10:$F$11))))/1000 -> 0 | I35: =IFERROR(SUMIFS('Program Design'!$U:$U,'Program Design'!$C:$C,$A35,'Program Design'!$D:$D,$B35,'Program Design'!$J:$J,I$29)+SUMIFS('Program Design'!$V:$V,'Program Design'!$C:$C,$A35,'Program Design'!$D:$D,$B35,'Program Design'!$J:$J,I$29)+SUMIFS('Program Design'!$W:$W,'Program Design'!$C:$C,$A35,'Program Design'!$D:$D,$B35,'Program Design'!$J:$J,I$29)+SUMIFS(INDEX(OFFSET('Budget Inputs'!$A$1,6,1,5000,560),0,MATCH(CONCATENATE(I$29," Sub-Total"),OFFSET('Budget Inputs'!$A$1,6,1,1,560),0)),OFFSET('Budget Inputs'!$A$1,6,1,5000,1),$A35,OFFSET('Budget Inputs'!$A$1,6,2,5000,1),$B35),0) -> 0 | J35: =(SUMIFS(OFFSET('Savings Results'!$A$1,6,16 +MAX('Savings Results'!$G:$G)-MIN('Savings Results'!$G:$G)+MAX('Savings Results'!$J:$J)+I$29-MIN('Savings Results'!$G:$G),5000),OFFSET('Savings Results'!$A$1,6,6,5000),I$29,OFFSET('Savings Results'!$A$1,6,4,5000),"Dx",OFFSET('Savings Results'!$A$1,6,1,5000),$A35,OFFSET('Savings Results'!$A$1,6,2,5000),$B35)/(1/(1-SUM('CE Parameters'!$F$10:$F$11))))/1000 -> 0 | K35: =IFERROR(SUMIFS('Program Design'!$U:$U,'Program Design'!$C:$C,$A35,'Program Design'!$D:$D,$B35,'Program Design'!$J:$J,K$29)+SUMIFS('Program Design'!$V:$V,'Program Design'!$C:$C,$A35,'Program Design'!$D:$D,$B35,'Program Design'!$J:$J,K$29)+SUMIFS('Program Design'!$W:$W,'Program Design'!$C:$C,$A35,'Program Design'!$D:$D,$B35,'Program Design'!$J:$J,K$29)+SUMIFS(INDEX(OFFSET('Budget Inputs'!$A$1,6,1,5000,560),0,MATCH(CONCATENATE(K$29," Sub-Total"),OFFSET('Budget Inputs'!$A$1,6,1,1,560),0)),OFFSET('Budget Inputs'!$A$1,6,1,5000,1),$A35,OFFSET('Budget Inputs'!$A$1,6,2,5000,1),$B35),0) -> 0 | L35: =(SUMIFS(OFFSET('Savings Results'!$A$1,6,16 +MAX('Savings Results'!$G:$G)-MIN('Savings Results'!$G:$G)+MAX('Savings Results'!$J:$J)+K$29-MIN('Savings Results'!$G:$G),5000),OFFSET('Savings Results'!$A$1,6,6,5000),K$29,OFFSET('Savings Results'!$A$1,6,4,5000),"Dx",OFFSET('Savings Results'!$A$1,6,1,5000),$A35,OFFSET('Savings Results'!$A$1,6,2,5000),$B35)/(1/(1-SUM('CE Parameters'!$F$10:$F$11))))/1000 -> 0 | M35: =IFERROR(SUMIFS('Program Design'!$U:$U,'Program Design'!$C:$C,$A35,'Program Design'!$D:$D,$B35,'Program Design'!$J:$J,M$29)+SUMIFS('Program Design'!$V:$V,'Program Design'!$C:$C,$A35,'Program Design'!$D:$D,$B35,'Program Design'!$J:$J,M$29)+SUMIFS('Program Design'!$W:$W,'Program Design'!$C:$C,$A35,'Program Design'!$D:$D,$B35,'Program Design'!$J:$J,M$29)+SUMIFS(INDEX(OFFSET('Budget Inputs'!$A$1,6,1,5000,560),0,MATCH(CONCATENATE(M$29," Sub-Total"),OFFSET('Budget Inputs'!$A$1,6,1,1,560),0)),OFFSET('Budget Inputs'!$A$1,6,1,5000,1),$A35,OFFSET('Budget Inputs'!$A$1,6,2,5000,1),$B35),0) -> 0 | N35: =(SUMIFS(OFFSET('Savings Results'!$A$1,6,16 +MAX('Savings Results'!$G:$G)-MIN('Savings Results'!$G:$G)+MAX('Savings Results'!$J:$J)+M$29-MIN('Savings Results'!$G:$G),5000),OFFSET('Savings Results'!$A$1,6,6,5000),M$29,OFFSET('Savings Results'!$A$1,6,4,5000),"Dx",OFFSET('Savings Results'!$A$1,6,1,5000),$A35,OFFSET('Savings Results'!$A$1,6,2,5000),$B35)/(1/(1-SUM('CE Parameters'!$F$10:$F$11))))/1000 -> 0 | O35: =IFERROR(SUMIFS('Program Design'!$U:$U,'Program Design'!$C:$C,$A35,'Program Design'!$D:$D,$B35)+SUMIFS('Program Design'!$V:$V,'Program Design'!$C:$C,$A35,'Program Design'!$D:$D,$B35)+SUMIFS('Program Design'!$W:$W,'Program Design'!$C:$C,$A35,'Program Design'!$D:$D,$B35)+SUMIFS(INDEX(OFFSET('Budget Inputs'!$A$1,6,1,5000,560),0,MATCH("Total",OFFSET('Budget Inputs'!$A$1,6,1,1,560),0)),OFFSET('Budget Inputs'!$A$1,6,1,5000,1),$A35,OFFSET('Budget Inputs'!$A$1,6,2,5000,1),$B35),0) -> 0 | P35: =(SUMIFS(OFFSET('Savings Results'!$A$1,6,16 +MAX('Savings Results'!$G:$G)-MIN('Savings Results'!$G:$G)+MAX('Savings Results'!$J:$J)+M$29-MIN('Savings Results'!$G:$G),5000),OFFSET('Savings Results'!$A$1,6,4,5000),"Dx",OFFSET('Savings Results'!$A$1,6,1,5000),$A35,OFFSET('Savings Results'!$A$1,6,2,5000),$B35)/(1/(1-SUM('CE Parameters'!$F$10:$F$11))))/1000 -> 354.7206267
A36: Business | B36: Audit Funding Oshawa PUC Networks Inc. | C36: =IFERROR(SUMIFS('Program Design'!$U:$U,'Program Design'!$C:$C,$A36,'Program Design'!$D:$D,$B36,'Program Design'!$J:$J,C$29)+SUMIFS('Program Design'!$V:$V,'Program Design'!$C:$C,$A36,'Program Design'!$D:$D,$B36,'Program Design'!$J:$J,C$29)+SUMIFS('Program Design'!$W:$W,'Program Design'!$C:$C,$A36,'Program Design'!$D:$D,$B36,'Program Design'!$J:$J,C$29)+SUMIFS(INDEX(OFFSET('Budget Inputs'!$A$1,6,1,5000,560),0,MATCH(CONCATENATE(C$29," Sub-Total"),OFFSET('Budget Inputs'!$A$1,6,1,1,560),0)),OFFSET('Budget Inputs'!$A$1,6,1,5000,1),$A36,OFFSET('Budget Inputs'!$A$1,6,2,5000,1),$B36),0) -> 0 | D36: =(SUMIFS(OFFSET('Savings Results'!$A$1,6,16 +MAX('Savings Results'!$G:$G)-MIN('Savings Results'!$G:$G)+MAX('Savings Results'!$J:$J)+C$29-MIN('Savings Results'!$G:$G),5000),OFFSET('Savings Results'!$A$1,6,6,5000),C$29,OFFSET('Savings Results'!$A$1,6,4,5000),"Dx",OFFSET('Savings Results'!$A$1,6,1,5000),$A36,OFFSET('Savings Results'!$A$1,6,2,5000),$B36)/(1/(1-SUM('CE Parameters'!$F$10:$F$11))))/1000 -> 0 | E36: =IFERROR(SUMIFS('Program Design'!$U:$U,'Program Design'!$C:$C,$A36,'Program Design'!$D:$D,$B36,'Program Design'!$J:$J,E$29)+SUMIFS('Program Design'!$V:$V,'Program Design'!$C:$C,$A36,'Program Design'!$D:$D,$B36,'Program Design'!$J:$J,E$29)+SUMIFS('Program Design'!$W:$W,'Program Design'!$C:$C,$A36,'Program Design'!$D:$D,$B36,'Program Design'!$J:$J,E$29)+SUMIFS(INDEX(OFFSET('Budget Inputs'!$A$1,6,1,5000,560),0,MATCH(CONCATENATE(E$29," Sub-Total"),OFFSET('Budget Inputs'!$A$1,6,1,1,560),0)),OFFSET('Budget Inputs'!$A$1,6,1,5000,1),$A36,OFFSET('Budget Inputs'!$A$1,6,2,5000,1),$B36),0) -> 0 | F36: =(SUMIFS(OFFSET('Savings Results'!$A$1,6,16 +MAX('Savings Results'!$G:$G)-MIN('Savings Results'!$G:$G)+MAX('Savings Results'!$J:$J)+E$29-MIN('Savings Results'!$G:$G),5000),OFFSET('Savings Results'!$A$1,6,6,5000),E$29,OFFSET('Savings Results'!$A$1,6,4,5000),"Dx",OFFSET('Savings Results'!$A$1,6,1,5000),$A36,OFFSET('Savings Results'!$A$1,6,2,5000),$B36)/(1/(1-SUM('CE Parameters'!$F$10:$F$11))))/1000 -> 0 | G36: =IFERROR(SUMIFS('Program Design'!$U:$U,'Program Design'!$C:$C,$A36,'Program Design'!$D:$D,$B36,'Program Design'!$J:$J,G$29)+SUMIFS('Program Design'!$V:$V,'Program Design'!$C:$C,$A36,'Program Design'!$D:$D,$B36,'Program Design'!$J:$J,G$29)+SUMIFS('Program Design'!$W:$W,'Program Design'!$C:$C,$A36,'Program Design'!$D:$D,$B36,'Program Design'!$J:$J,G$29)+SUMIFS(INDEX(OFFSET('Budget Inputs'!$A$1,6,1,5000,560),0,MATCH(CONCATENATE(G$29," Sub-Total"),OFFSET('Budget Inputs'!$A$1,6,1,1,560),0)),OFFSET('Budget Inputs'!$A$1,6,1,5000,1),$A36,OFFSET('Budget Inputs'!$A$1,6,2,5000,1),$B36),0) -> 0 | H36: =(SUMIFS(OFFSET('Savings Results'!$A$1,6,16 +MAX('Savings Results'!$G:$G)-MIN('Savings Results'!$G:$G)+MAX('Savings Results'!$J:$J)+G$29-MIN('Savings Results'!$G:$G),5000),OFFSET('Savings Results'!$A$1,6,6,5000),G$29,OFFSET('Savings Results'!$A$1,6,4,5000),"Dx",OFFSET('Savings Results'!$A$1,6,1,5000),$A36,OFFSET('Savings Results'!$A$1,6,2,5000),$B36)/(1/(1-SUM('CE Parameters'!$F$10:$F$11))))/1000 -> 0 | I36: =IFERROR(SUMIFS('Program Design'!$U:$U,'Program Design'!$C:$C,$A36,'Program Design'!$D:$D,$B36,'Program Design'!$J:$J,I$29)+SUMIFS('Program Design'!$V:$V,'Program Design'!$C:$C,$A36,'Program Design'!$D:$D,$B36,'Program Design'!$J:$J,I$29)+SUMIFS('Program Design'!$W:$W,'Program Design'!$C:$C,$A36,'Program Design'!$D:$D,$B36,'Program Design'!$J:$J,I$29)+SUMIFS(INDEX(OFFSET('Budget Inputs'!$A$1,6,1,5000,560),0,MATCH(CONCATENATE(I$29," Sub-Total"),OFFSET('Budget Inputs'!$A$1,6,1,1,560),0)),OFFSET('Budget Inputs'!$A$1,6,1,5000,1),$A36,OFFSET('Budget Inputs'!$A$1,6,2,5000,1),$B36),0) -> 0 | J36: =(SUMIFS(OFFSET('Savings Results'!$A$1,6,16 +MAX('Savings Results'!$G:$G)-MIN('Savings Results'!$G:$G)+MAX('Savings Results'!$J:$J)+I$29-MIN('Savings Results'!$G:$G),5000),OFFSET('Savings Results'!$A$1,6,6,5000),I$29,OFFSET('Savings Results'!$A$1,6,4,5000),"Dx",OFFSET('Savings Results'!$A$1,6,1,5000),$A36,OFFSET('Savings Results'!$A$1,6,2,5000),$B36)/(1/(1-SUM('CE Parameters'!$F$10:$F$11))))/1000 -> 0 | K36: =IFERROR(SUMIFS('Program Design'!$U:$U,'Program Design'!$C:$C,$A36,'Program Design'!$D:$D,$B36,'Program Design'!$J:$J,K$29)+SUMIFS('Program Design'!$V:$V,'Program Design'!$C:$C,$A36,'Program Design'!$D:$D,$B36,'Program Design'!$J:$J,K$29)+SUMIFS('Program Design'!$W:$W,'Program Design'!$C:$C,$A36,'Program Design'!$D:$D,$B36,'Program Design'!$J:$J,K$29)+SUMIFS(INDEX(OFFSET('Budget Inputs'!$A$1,6,1,5000,560),0,MATCH(CONCATENATE(K$29," Sub-Total"),OFFSET('Budget Inputs'!$A$1,6,1,1,560),0)),OFFSET('Budget Inputs'!$A$1,6,1,5000,1),$A36,OFFSET('Budget Inputs'!$A$1,6,2,5000,1),$B36),0) -> 0 | L36: =(SUMIFS(OFFSET('Savings Results'!$A$1,6,16 +MAX('Savings Results'!$G:$G)-MIN('Savings Results'!$G:$G)+MAX('Savings Results'!$J:$J)+K$29-MIN('Savings Results'!$G:$G),5000),OFFSET('Savings Results'!$A$1,6,6,5000),K$29,OFFSET('Savings Results'!$A$1,6,4,5000),"Dx",OFFSET('Savings Results'!$A$1,6,1,5000),$A36,OFFSET('Savings Results'!$A$1,6,2,5000),$B36)/(1/(1-SUM('CE Parameters'!$F$10:$F$11))))/1000 -> 0 | M36: =IFERROR(SUMIFS('Program Design'!$U:$U,'Program Design'!$C:$C,$A36,'Program Design'!$D:$D,$B36,'Program Design'!$J:$J,M$29)+SUMIFS('Program Design'!$V:$V,'Program Design'!$C:$C,$A36,'Program Design'!$D:$D,$B36,'Program Design'!$J:$J,M$29)+SUMIFS('Program Design'!$W:$W,'Program Design'!$C:$C,$A36,'Program Design'!$D:$D,$B36,'Program Design'!$J:$J,M$29)+SUMIFS(INDEX(OFFSET('Budget Inputs'!$A$1,6,1,5000,560),0,MATCH(CONCATENATE(M$29," Sub-Total"),OFFSET('Budget Inputs'!$A$1,6,1,1,560),0)),OFFSET('Budget Inputs'!$A$1,6,1,5000,1),$A36,OFFSET('Budget Inputs'!$A$1,6,2,5000,1),$B36),0) -> 0 | N36: =(SUMIFS(OFFSET('Savings Results'!$A$1,6,16 +MAX('Savings Results'!$G:$G)-MIN('Savings Results'!$G:$G)+MAX('Savings Results'!$J:$J)+M$29-MIN('Savings Results'!$G:$G),5000),OFFSET('Savings Results'!$A$1,6,6,5000),M$29,OFFSET('Savings Results'!$A$1,6,4,5000),"Dx",OFFSET('Savings Results'!$A$1,6,1,5000),$A36,OFFSET('Savings Results'!$A$1,6,2,5000),$B36)/(1/(1-SUM('CE Parameters'!$F$10:$F$11))))/1000 -> 0 | O36: =IFERROR(SUMIFS('Program Design'!$U:$U,'Program Design'!$C:$C,$A36,'Program Design'!$D:$D,$B36)+SUMIFS('Program Design'!$V:$V,'Program Design'!$C:$C,$A36,'Program Design'!$D:$D,$B36)+SUMIFS('Program Design'!$W:$W,'Program Design'!$C:$C,$A36,'Program Design'!$D:$D,$B36)+SUMIFS(INDEX(OFFSET('Budget Inputs'!$A$1,6,1,5000,560),0,MATCH("Total",OFFSET('Budget Inputs'!$A$1,6,1,1,560),0)),OFFSET('Budget Inputs'!$A$1,6,1,5000,1),$A36,OFFSET('Budget Inputs'!$A$1,6,2,5000,1),$B36),0) -> 0 | P36: =(SUMIFS(OFFSET('Savings Results'!$A$1,6,16 +MAX('Savings Results'!$G:$G)-MIN('Savings Results'!$G:$G)+MAX('Savings Results'!$J:$J)+M$29-MIN('Savings Results'!$G:$G),5000),OFFSET('Savings Results'!$A$1,6,4,5000),"Dx",OFFSET('Savings Results'!$A$1,6,1,5000),$A36,OFFSET('Savings Results'!$A$1,6,2,5000),$B36)/(1/(1-SUM('CE Parameters'!$F$10:$F$11))))/1000 -> 0
A37: Business | B37: EBCx Oshawa PUC Networks Inc. | C37: =IFERROR(SUMIFS('Program Design'!$U:$U,'Program Design'!$C:$C,$A37,'Program Design'!$D:$D,$B37,'Program Design'!$J:$J,C$29)+SUMIFS('Program Design'!$V:$V,'Program Design'!$C:$C,$A37,'Program Design'!$D:$D,$B37,'Program Design'!$J:$J,C$29)+SUMIFS('Program Design'!$W:$W,'Program Design'!$C:$C,$A37,'Program Design'!$D:$D,$B37,'Program Design'!$J:$J,C$29)+SUMIFS(INDEX(OFFSET('Budget Inputs'!$A$1,6,1,5000,560),0,MATCH(CONCATENATE(C$29," Sub-Total"),OFFSET('Budget Inputs'!$A$1,6,1,1,560),0)),OFFSET('Budget Inputs'!$A$1,6,1,5000,1),$A37,OFFSET('Budget Inputs'!$A$1,6,2,5000,1),$B37),0) -> 0 | D37: =(SUMIFS(OFFSET('Savings Results'!$A$1,6,16 +MAX('Savings Results'!$G:$G)-MIN('Savings Results'!$G:$G)+MAX('Savings Results'!$J:$J)+C$29-MIN('Savings Results'!$G:$G),5000),OFFSET('Savings Results'!$A$1,6,6,5000),C$29,OFFSET('Savings Results'!$A$1,6,4,5000),"Dx",OFFSET('Savings Results'!$A$1,6,1,5000),$A37,OFFSET('Savings Results'!$A$1,6,2,5000),$B37)/(1/(1-SUM('CE Parameters'!$F$10:$F$11))))/1000 -> 0 | E37: =IFERROR(SUMIFS('Program Design'!$U:$U,'Program Design'!$C:$C,$A37,'Program Design'!$D:$D,$B37,'Program Design'!$J:$J,E$29)+SUMIFS('Program Design'!$V:$V,'Program Design'!$C:$C,$A37,'Program Design'!$D:$D,$B37,'Program Design'!$J:$J,E$29)+SUMIFS('Program Design'!$W:$W,'Program Design'!$C:$C,$A37,'Program Design'!$D:$D,$B37,'Program Design'!$J:$J,E$29)+SUMIFS(INDEX(OFFSET('Budget Inputs'!$A$1,6,1,5000,560),0,MATCH(CONCATENATE(E$29," Sub-Total"),OFFSET('Budget Inputs'!$A$1,6,1,1,560),0)),OFFSET('Budget Inputs'!$A$1,6,1,5000,1),$A37,OFFSET('Budget Inputs'!$A$1,6,2,5000,1),$B37),0) -> 0 | F37: =(SUMIFS(OFFSET('Savings Results'!$A$1,6,16 +MAX('Savings Results'!$G:$G)-MIN('Savings Results'!$G:$G)+MAX('Savings Results'!$J:$J)+E$29-MIN('Savings Results'!$G:$G),5000),OFFSET('Savings Results'!$A$1,6,6,5000),E$29,OFFSET('Savings Results'!$A$1,6,4,5000),"Dx",OFFSET('Savings Results'!$A$1,6,1,5000),$A37,OFFSET('Savings Results'!$A$1,6,2,5000),$B37)/(1/(1-SUM('CE Parameters'!$F$10:$F$11))))/1000 -> 0 | G37: =IFERROR(SUMIFS('Program Design'!$U:$U,'Program Design'!$C:$C,$A37,'Program Design'!$D:$D,$B37,'Program Design'!$J:$J,G$29)+SUMIFS('Program Design'!$V:$V,'Program Design'!$C:$C,$A37,'Program Design'!$D:$D,$B37,'Program Design'!$J:$J,G$29)+SUMIFS('Program Design'!$W:$W,'Program Design'!$C:$C,$A37,'Program Design'!$D:$D,$B37,'Program Design'!$J:$J,G$29)+SUMIFS(INDEX(OFFSET('Budget Inputs'!$A$1,6,1,5000,560),0,MATCH(CONCATENATE(G$29," Sub-Total"),OFFSET('Budget Inputs'!$A$1,6,1,1,560),0)),OFFSET('Budget Inputs'!$A$1,6,1,5000,1),$A37,OFFSET('Budget Inputs'!$A$1,6,2,5000,1),$B37),0) -> 0 | H37: =(SUMIFS(OFFSET('Savings Results'!$A$1,6,16 +MAX('Savings Results'!$G:$G)-MIN('Savings Results'!$G:$G)+MAX('Savings Results'!$J:$J)+G$29-MIN('Savings Results'!$G:$G),5000),OFFSET('Savings Results'!$A$1,6,6,5000),G$29,OFFSET('Savings Results'!$A$1,6,4,5000),"Dx",OFFSET('Savings Results'!$A$1,6,1,5000),$A37,OFFSET('Savings Results'!$A$1,6,2,5000),$B37)/(1/(1-SUM('CE Parameters'!$F$10:$F$11))))/1000 -> 0 | I37: =IFERROR(SUMIFS('Program Design'!$U:$U,'Program Design'!$C:$C,$A37,'Program Design'!$D:$D,$B37,'Program Design'!$J:$J,I$29)+SUMIFS('Program Design'!$V:$V,'Program Design'!$C:$C,$A37,'Program Design'!$D:$D,$B37,'Program Design'!$J:$J,I$29)+SUMIFS('Program Design'!$W:$W,'Program Design'!$C:$C,$A37,'Program Design'!$D:$D,$B37,'Program Design'!$J:$J,I$29)+SUMIFS(INDEX(OFFSET('Budget Inputs'!$A$1,6,1,5000,560),0,MATCH(CONCATENATE(I$29," Sub-Total"),OFFSET('Budget Inputs'!$A$1,6,1,1,560),0)),OFFSET('Budget Inputs'!$A$1,6,1,5000,1),$A37,OFFSET('Budget Inputs'!$A$1,6,2,5000,1),$B37),0) -> 0 | J37: =(SUMIFS(OFFSET('Savings Results'!$A$1,6,16 +MAX('Savings Results'!$G:$G)-MIN('Savings Results'!$G:$G)+MAX('Savings Results'!$J:$J)+I$29-MIN('Savings Results'!$G:$G),5000),OFFSET('Savings Results'!$A$1,6,6,5000),I$29,OFFSET('Savings Results'!$A$1,6,4,5000),"Dx",OFFSET('Savings Results'!$A$1,6,1,5000),$A37,OFFSET('Savings Results'!$A$1,6,2,5000),$B37)/(1/(1-SUM('CE Parameters'!$F$10:$F$11))))/1000 -> 0 | K37: =IFERROR(SUMIFS('Program Design'!$U:$U,'Program Design'!$C:$C,$A37,'Program Design'!$D:$D,$B37,'Program Design'!$J:$J,K$29)+SUMIFS('Program Design'!$V:$V,'Program Design'!$C:$C,$A37,'Program Design'!$D:$D,$B37,'Program Design'!$J:$J,K$29)+SUMIFS('Program Design'!$W:$W,'Program Design'!$C:$C,$A37,'Program Design'!$D:$D,$B37,'Program Design'!$J:$J,K$29)+SUMIFS(INDEX(OFFSET('Budget Inputs'!$A$1,6,1,5000,560),0,MATCH(CONCATENATE(K$29," Sub-Total"),OFFSET('Budget Inputs'!$A$1,6,1,1,560),0)),OFFSET('Budget Inputs'!$A$1,6,1,5000,1),$A37,OFFSET('Budget Inputs'!$A$1,6,2,5000,1),$B37),0) -> 0 | L37: =(SUMIFS(OFFSET('Savings Results'!$A$1,6,16 +MAX('Savings Results'!$G:$G)-MIN('Savings Results'!$G:$G)+MAX('Savings Results'!$J:$J)+K$29-MIN('Savings Results'!$G:$G),5000),OFFSET('Savings Results'!$A$1,6,6,5000),K$29,OFFSET('Savings Results'!$A$1,6,4,5000),"Dx",OFFSET('Savings Results'!$A$1,6,1,5000),$A37,OFFSET('Savings Results'!$A$1,6,2,5000),$B37)/(1/(1-SUM('CE Parameters'!$F$10:$F$11))))/1000 -> 0 | M37: =IFERROR(SUMIFS('Program Design'!$U:$U,'Program Design'!$C:$C,$A37,'Program Design'!$D:$D,$B37,'Program Design'!$J:$J,M$29)+SUMIFS('Program Design'!$V:$V,'Program Design'!$C:$C,$A37,'Program Design'!$D:$D,$B37,'Program Design'!$J:$J,M$29)+SUMIFS('Program Design'!$W:$W,'Program Design'!$C:$C,$A37,'Program Design'!$D:$D,$B37,'Program Design'!$J:$J,M$29)+SUMIFS(INDEX(OFFSET('Budget Inputs'!$A$1,6,1,5000,560),0,MATCH(CONCATENATE(M$29," Sub-Total"),OFFSET('Budget Inputs'!$A$1,6,1,1,560),0)),OFFSET('Budget Inputs'!$A$1,6,1,5000,1),$A37,OFFSET('Budget Inputs'!$A$1,6,2,5000,1),$B37),0) -> 0 | N37: =(SUMIFS(OFFSET('Savings Results'!$A$1,6,16 +MAX('Savings Results'!$G:$G)-MIN('Savings Results'!$G:$G)+MAX('Savings Results'!$J:$J)+M$29-MIN('Savings Results'!$G:$G),5000),OFFSET('Savings Results'!$A$1,6,6,5000),M$29,OFFSET('Savings Results'!$A$1,6,4,5000),"Dx",OFFSET('Savings Results'!$A$1,6,1,5000),$A37,OFFSET('Savings Results'!$A$1,6,2,5000),$B37)/(1/(1-SUM('CE Parameters'!$F$10:$F$11))))/1000 -> 0 | O37: =IFERROR(SUMIFS('Program Design'!$U:$U,'Program Design'!$C:$C,$A37,'Program Design'!$D:$D,$B37)+SUMIFS('Program Design'!$V:$V,'Program Design'!$C:$C,$A37,'Program Design'!$D:$D,$B37)+SUMIFS('Program Design'!$W:$W,'Program Design'!$C:$C,$A37,'Program Design'!$D:$D,$B37)+SUMIFS(INDEX(OFFSET('Budget Inputs'!$A$1,6,1,5000,560),0,MATCH("Total",OFFSET('Budget Inputs'!$A$1,6,1,1,560),0)),OFFSET('Budget Inputs'!$A$1,6,1,5000,1),$A37,OFFSET('Budget Inputs'!$A$1,6,2,5000,1),$B37),0) -> 0 | P37: =(SUMIFS(OFFSET('Savings Results'!$A$1,6,16 +MAX('Savings Results'!$G:$G)-MIN('Savings Results'!$G:$G)+MAX('Savings Results'!$J:$J)+M$29-MIN('Savings Results'!$G:$G),5000),OFFSET('Savings Results'!$A$1,6,4,5000),"Dx",OFFSET('Savings Results'!$A$1,6,1,5000),$A37,OFFSET('Savings Results'!$A$1,6,2,5000),$B37)/(1/(1-SUM('CE Parameters'!$F$10:$F$11))))/1000 -> 0
A38: Business | B38: PSU Oshawa PUC Networks Inc. | C38: =IFERROR(SUMIFS('Program Design'!$U:$U,'Program Design'!$C:$C,$A38,'Program Design'!$D:$D,$B38,'Program Design'!$J:$J,C$29)+SUMIFS('Program Design'!$V:$V,'Program Design'!$C:$C,$A38,'Program Design'!$D:$D,$B38,'Program Design'!$J:$J,C$29)+SUMIFS('Program Design'!$W:$W,'Program Design'!$C:$C,$A38,'Program Design'!$D:$D,$B38,'Program Design'!$J:$J,C$29)+SUMIFS(INDEX(OFFSET('Budget Inputs'!$A$1,6,1,5000,560),0,MATCH(CONCATENATE(C$29," Sub-Total"),OFFSET('Budget Inputs'!$A$1,6,1,1,560),0)),OFFSET('Budget Inputs'!$A$1,6,1,5000,1),$A38,OFFSET('Budget Inputs'!$A$1,6,2,5000,1),$B38),0) -> 2 | D38: =(SUMIFS(OFFSET('Savings Results'!$A$1,6,16 +MAX('Savings Results'!$G:$G)-MIN('Savings Results'!$G:$G)+MAX('Savings Results'!$J:$J)+C$29-MIN('Savings Results'!$G:$G),5000),OFFSET('Savings Results'!$A$1,6,6,5000),C$29,OFFSET('Savings Results'!$A$1,6,4,5000),"Dx",OFFSET('Savings Results'!$A$1,6,1,5000),$A38,OFFSET('Savings Results'!$A$1,6,2,5000),$B38)/(1/(1-SUM('CE Parameters'!$F$10:$F$11))))/1000 -> 10800 | E38: =IFERROR(SUMIFS('Program Design'!$U:$U,'Program Design'!$C:$C,$A38,'Program Design'!$D:$D,$B38,'Program Design'!$J:$J,E$29)+SUMIFS('Program Design'!$V:$V,'Program Design'!$C:$C,$A38,'Program Design'!$D:$D,$B38,'Program Design'!$J:$J,E$29)+SUMIFS('Program Design'!$W:$W,'Program Design'!$C:$C,$A38,'Program Design'!$D:$D,$B38,'Program Design'!$J:$J,E$29)+SUMIFS(INDEX(OFFSET('Budget Inputs'!$A$1,6,1,5000,560),0,MATCH(CONCATENATE(E$29," Sub-Total"),OFFSET('Budget Inputs'!$A$1,6,1,1,560),0)),OFFSET('Budget Inputs'!$A$1,6,1,5000,1),$A38,OFFSET('Budget Inputs'!$A$1,6,2,5000,1),$B38),0) -> 0 | F38: =(SUMIFS(OFFSET('Savings Results'!$A$1,6,16 +MAX('Savings Results'!$G:$G)-MIN('Savings Results'!$G:$G)+MAX('Savings Results'!$J:$J)+E$29-MIN('Savings Results'!$G:$G),5000),OFFSET('Savings Results'!$A$1,6,6,5000),E$29,OFFSET('Savings Results'!$A$1,6,4,5000),"Dx",OFFSET('Savings Results'!$A$1,6,1,5000),$A38,OFFSET('Savings Results'!$A$1,6,2,5000),$B38)/(1/(1-SUM('CE Parameters'!$F$10:$F$11))))/1000 -> 0 | G38: =IFERROR(SUMIFS('Program Design'!$U:$U,'Program Design'!$C:$C,$A38,'Program Design'!$D:$D,$B38,'Program Design'!$J:$J,G$29)+SUMIFS('Program Design'!$V:$V,'Program Design'!$C:$C,$A38,'Program Design'!$D:$D,$B38,'Program Design'!$J:$J,G$29)+SUMIFS('Program Design'!$W:$W,'Program Design'!$C:$C,$A38,'Program Design'!$D:$D,$B38,'Program Design'!$J:$J,G$29)+SUMIFS(INDEX(OFFSET('Budget Inputs'!$A$1,6,1,5000,560),0,MATCH(CONCATENATE(G$29," Sub-Total"),OFFSET('Budget Inputs'!$A$1,6,1,1,560),0)),OFFSET('Budget Inputs'!$A$1,6,1,5000,1),$A38,OFFSET('Budget Inputs'!$A$1,6,2,5000,1),$B38),0) -> 0 | H38: =(SUMIFS(OFFSET('Savings Results'!$A$1,6,16 +MAX('Savings Results'!$G:$G)-MIN('Savings Results'!$G:$G)+MAX('Savings Results'!$J:$J)+G$29-MIN('Savings Results'!$G:$G),5000),OFFSET('Savings Results'!$A$1,6,6,5000),G$29,OFFSET('Savings Results'!$A$1,6,4,5000),"Dx",OFFSET('Savings Results'!$A$1,6,1,5000),$A38,OFFSET('Savings Results'!$A$1,6,2,5000),$B38)/(1/(1-SUM('CE Parameters'!$F$10:$F$11))))/1000 -> 0 | I38: =IFERROR(SUMIFS('Program Design'!$U:$U,'Program Design'!$C:$C,$A38,'Program Design'!$D:$D,$B38,'Program Design'!$J:$J,I$29)+SUMIFS('Program Design'!$V:$V,'Program Design'!$C:$C,$A38,'Program Design'!$D:$D,$B38,'Program Design'!$J:$J,I$29)+SUMIFS('Program Design'!$W:$W,'Program Design'!$C:$C,$A38,'Program Design'!$D:$D,$B38,'Program Design'!$J:$J,I$29)+SUMIFS(INDEX(OFFSET('Budget Inputs'!$A$1,6,1,5000,560),0,MATCH(CONCATENATE(I$29," Sub-Total"),OFFSET('Budget Inputs'!$A$1,6,1,1,560),0)),OFFSET('Budget Inputs'!$A$1,6,1,5000,1),$A38,OFFSET('Budget Inputs'!$A$1,6,2,5000,1),$B38),0) -> 0 | J38: =(SUMIFS(OFFSET('Savings Results'!$A$1,6,16 +MAX('Savings Results'!$G:$G)-MIN('Savings Results'!$G:$G)+MAX('Savings Results'!$J:$J)+I$29-MIN('Savings Results'!$G:$G),5000),OFFSET('Savings Results'!$A$1,6,6,5000),I$29,OFFSET('Savings Results'!$A$1,6,4,5000),"Dx",OFFSET('Savings Results'!$A$1,6,1,5000),$A38,OFFSET('Savings Results'!$A$1,6,2,5000),$B38)/(1/(1-SUM('CE Parameters'!$F$10:$F$11))))/1000 -> 0 | K38: =IFERROR(SUMIFS('Program Design'!$U:$U,'Program Design'!$C:$C,$A38,'Program Design'!$D:$D,$B38,'Program Design'!$J:$J,K$29)+SUMIFS('Program Design'!$V:$V,'Program Design'!$C:$C,$A38,'Program Design'!$D:$D,$B38,'Program Design'!$J:$J,K$29)+SUMIFS('Program Design'!$W:$W,'Program Design'!$C:$C,$A38,'Program Design'!$D:$D,$B38,'Program Design'!$J:$J,K$29)+SUMIFS(INDEX(OFFSET('Budget Inputs'!$A$1,6,1,5000,560),0,MATCH(CONCATENATE(K$29," Sub-Total"),OFFSET('Budget Inputs'!$A$1,6,1,1,560),0)),OFFSET('Budget Inputs'!$A$1,6,1,5000,1),$A38,OFFSET('Budget Inputs'!$A$1,6,2,5000,1),$B38),0) -> 0 | L38: =(SUMIFS(OFFSET('Savings Results'!$A$1,6,16 +MAX('Savings Results'!$G:$G)-MIN('Savings Results'!$G:$G)+MAX('Savings Results'!$J:$J)+K$29-MIN('Savings Results'!$G:$G),5000),OFFSET('Savings Results'!$A$1,6,6,5000),K$29,OFFSET('Savings Results'!$A$1,6,4,5000),"Dx",OFFSET('Savings Results'!$A$1,6,1,5000),$A38,OFFSET('Savings Results'!$A$1,6,2,5000),$B38)/(1/(1-SUM('CE Parameters'!$F$10:$F$11))))/1000 -> 0 | M38: =IFERROR(SUMIFS('Program Design'!$U:$U,'Program Design'!$C:$C,$A38,'Program Design'!$D:$D,$B38,'Program Design'!$J:$J,M$29)+SUMIFS('Program Design'!$V:$V,'Program Design'!$C:$C,$A38,'Program Design'!$D:$D,$B38,'Program Design'!$J:$J,M$29)+SUMIFS('Program Design'!$W:$W,'Program Design'!$C:$C,$A38,'Program Design'!$D:$D,$B38,'Program Design'!$J:$J,M$29)+SUMIFS(INDEX(OFFSET('Budget Inputs'!$A$1,6,1,5000,560),0,MATCH(CONCATENATE(M$29," Sub-Total"),OFFSET('Budget Inputs'!$A$1,6,1,1,560),0)),OFFSET('Budget Inputs'!$A$1,6,1,5000,1),$A38,OFFSET('Budget Inputs'!$A$1,6,2,5000,1),$B38),0) -> 0 | N38: =(SUMIFS(OFFSET('Savings Results'!$A$1,6,16 +MAX('Savings Results'!$G:$G)-MIN('Savings Results'!$G:$G)+MAX('Savings Results'!$J:$J)+M$29-MIN('Savings Results'!$G:$G),5000),OFFSET('Savings Results'!$A$1,6,6,5000),M$29,OFFSET('Savings Results'!$A$1,6,4,5000),"Dx",OFFSET('Savings Results'!$A$1,6,1,5000),$A38,OFFSET('Savings Results'!$A$1,6,2,5000),$B38)/(1/(1-SUM('CE Parameters'!$F$10:$F$11))))/1000 -> 0 | O38: =IFERROR(SUMIFS('Program Design'!$U:$U,'Program Design'!$C:$C,$A38,'Program Design'!$D:$D,$B38)+SUMIFS('Program Design'!$V:$V,'Program Design'!$C:$C,$A38,'Program Design'!$D:$D,$B38)+SUMIFS('Program Design'!$W:$W,'Program Design'!$C:$C,$A38,'Program Design'!$D:$D,$B38)+SUMIFS(INDEX(OFFSET('Budget Inputs'!$A$1,6,1,5000,560),0,MATCH("Total",OFFSET('Budget Inputs'!$A$1,6,1,1,560),0)),OFFSET('Budget Inputs'!$A$1,6,1,5000,1),$A38,OFFSET('Budget Inputs'!$A$1,6,2,5000,1),$B38),0) -> 2 | P38: =(SUMIFS(OFFSET('Savings Results'!$A$1,6,16 +MAX('Savings Results'!$G:$G)-MIN('Savings Results'!$G:$G)+MAX('Savings Results'!$J:$J)+M$29-MIN('Savings Results'!$G:$G),5000),OFFSET('Savings Results'!$A$1,6,4,5000),"Dx",OFFSET('Savings Results'!$A$1,6,1,5000),$A38,OFFSET('Savings Results'!$A$1,6,2,5000),$B38)/(1/(1-SUM('CE Parameters'!$F$10:$F$11))))/1000 -> 10800
A39: Business | B39: Energy Manager Oshawa PUC Networks Inc. | C39: =IFERROR(SUMIFS('Program Design'!$U:$U,'Program Design'!$C:$C,$A39,'Program Design'!$D:$D,$B39,'Program Design'!$J:$J,C$29)+SUMIFS('Program Design'!$V:$V,'Program Design'!$C:$C,$A39,'Program Design'!$D:$D,$B39,'Program Design'!$J:$J,C$29)+SUMIFS('Program Design'!$W:$W,'Program Design'!$C:$C,$A39,'Program Design'!$D:$D,$B39,'Program Design'!$J:$J,C$29)+SUMIFS(INDEX(OFFSET('Budget Inputs'!$A$1,6,1,5000,560),0,MATCH(CONCATENATE(C$29," Sub-Total"),OFFSET('Budget Inputs'!$A$1,6,1,1,560),0)),OFFSET('Budget Inputs'!$A$1,6,1,5000,1),$A39,OFFSET('Budget Inputs'!$A$1,6,2,5000,1),$B39),0) -> 0 | D39: =(SUMIFS(OFFSET('Savings Results'!$A$1,6,16 +MAX('Savings Results'!$G:$G)-MIN('Savings Results'!$G:$G)+MAX('Savings Results'!$J:$J)+C$29-MIN('Savings Results'!$G:$G),5000),OFFSET('Savings Results'!$A$1,6,6,5000),C$29,OFFSET('Savings Results'!$A$1,6,4,5000),"Dx",OFFSET('Savings Results'!$A$1,6,1,5000),$A39,OFFSET('Savings Results'!$A$1,6,2,5000),$B39)/(1/(1-SUM('CE Parameters'!$F$10:$F$11))))/1000 -> 39.56048513 | E39: =IFERROR(SUMIFS('Program Design'!$U:$U,'Program Design'!$C:$C,$A39,'Program Design'!$D:$D,$B39,'Program Design'!$J:$J,E$29)+SUMIFS('Program Design'!$V:$V,'Program Design'!$C:$C,$A39,'Program Design'!$D:$D,$B39,'Program Design'!$J:$J,E$29)+SUMIFS('Program Design'!$W:$W,'Program Design'!$C:$C,$A39,'Program Design'!$D:$D,$B39,'Program Design'!$J:$J,E$29)+SUMIFS(INDEX(OFFSET('Budget Inputs'!$A$1,6,1,5000,560),0,MATCH(CONCATENATE(E$29," Sub-Total"),OFFSET('Budget Inputs'!$A$1,6,1,1,560),0)),OFFSET('Budget Inputs'!$A$1,6,1,5000,1),$A39,OFFSET('Budget Inputs'!$A$1,6,2,5000,1),$B39),0) -> 0 | F39: =(SUMIFS(OFFSET('Savings Results'!$A$1,6,16 +MAX('Savings Results'!$G:$G)-MIN('Savings Results'!$G:$G)+MAX('Savings Results'!$J:$J)+E$29-MIN('Savings Results'!$G:$G),5000),OFFSET('Savings Results'!$A$1,6,6,5000),E$29,OFFSET('Savings Results'!$A$1,6,4,5000),"Dx",OFFSET('Savings Results'!$A$1,6,1,5000),$A39,OFFSET('Savings Results'!$A$1,6,2,5000),$B39)/(1/(1-SUM('CE Parameters'!$F$10:$F$11))))/1000 -> 0 | G39: =IFERROR(SUMIFS('Program Design'!$U:$U,'Program Design'!$C:$C,$A39,'Program Design'!$D:$D,$B39,'Program Design'!$J:$J,G$29)+SUMIFS('Program Design'!$V:$V,'Program Design'!$C:$C,$A39,'Program Design'!$D:$D,$B39,'Program Design'!$J:$J,G$29)+SUMIFS('Program Design'!$W:$W,'Program Design'!$C:$C,$A39,'Program Design'!$D:$D,$B39,'Program Design'!$J:$J,G$29)+SUMIFS(INDEX(OFFSET('Budget Inputs'!$A$1,6,1,5000,560),0,MATCH(CONCATENATE(G$29," Sub-Total"),OFFSET('Budget Inputs'!$A$1,6,1,1,560),0)),OFFSET('Budget Inputs'!$A$1,6,1,5000,1),$A39,OFFSET('Budget Inputs'!$A$1,6,2,5000,1),$B39),0) -> 0 | H39: =(SUMIFS(OFFSET('Savings Results'!$A$1,6,16 +MAX('Savings Results'!$G:$G)-MIN('Savings Results'!$G:$G)+MAX('Savings Results'!$J:$J)+G$29-MIN('Savings Results'!$G:$G),5000),OFFSET('Savings Results'!$A$1,6,6,5000),G$29,OFFSET('Savings Results'!$A$1,6,4,5000),"Dx",OFFSET('Savings Results'!$A$1,6,1,5000),$A39,OFFSET('Savings Results'!$A$1,6,2,5000),$B39)/(1/(1-SUM('CE Parameters'!$F$10:$F$11))))/1000 -> 0 | I39: =IFERROR(SUMIFS('Program Design'!$U:$U,'Program Design'!$C:$C,$A39,'Program Design'!$D:$D,$B39,'Program Design'!$J:$J,I$29)+SUMIFS('Program Design'!$V:$V,'Program Design'!$C:$C,$A39,'Program Design'!$D:$D,$B39,'Program Design'!$J:$J,I$29)+SUMIFS('Program Design'!$W:$W,'Program Design'!$C:$C,$A39,'Program Design'!$D:$D,$B39,'Program Design'!$J:$J,I$29)+SUMIFS(INDEX(OFFSET('Budget Inputs'!$A$1,6,1,5000,560),0,MATCH(CONCATENATE(I$29," Sub-Total"),OFFSET('Budget Inputs'!$A$1,6,1,1,560),0)),OFFSET('Budget Inputs'!$A$1,6,1,5000,1),$A39,OFFSET('Budget Inputs'!$A$1,6,2,5000,1),$B39),0) -> 0 | J39: =(SUMIFS(OFFSET('Savings Results'!$A$1,6,16 +MAX('Savings Results'!$G:$G)-MIN('Savings Results'!$G:$G)+MAX('Savings Results'!$J:$J)+I$29-MIN('Savings Results'!$G:$G),5000),OFFSET('Savings Results'!$A$1,6,6,5000),I$29,OFFSET('Savings Results'!$A$1,6,4,5000),"Dx",OFFSET('Savings Results'!$A$1,6,1,5000),$A39,OFFSET('Savings Results'!$A$1,6,2,5000),$B39)/(1/(1-SUM('CE Parameters'!$F$10:$F$11))))/1000 -> 0 | K39: =IFERROR(SUMIFS('Program Design'!$U:$U,'Program Design'!$C:$C,$A39,'Program Design'!$D:$D,$B39,'Program Design'!$J:$J,K$29)+SUMIFS('Program Design'!$V:$V,'Program Design'!$C:$C,$A39,'Program Design'!$D:$D,$B39,'Program Design'!$J:$J,K$29)+SUMIFS('Program Design'!$W:$W,'Program Design'!$C:$C,$A39,'Program Design'!$D:$D,$B39,'Program Design'!$J:$J,K$29)+SUMIFS(INDEX(OFFSET('Budget Inputs'!$A$1,6,1,5000,560),0,MATCH(CONCATENATE(K$29," Sub-Total"),OFFSET('Budget Inputs'!$A$1,6,1,1,560),0)),OFFSET('Budget Inputs'!$A$1,6,1,5000,1),$A39,OFFSET('Budget Inputs'!$A$1,6,2,5000,1),$B39),0) -> 0 | L39: =(SUMIFS(OFFSET('Savings Results'!$A$1,6,16 +MAX('Savings Results'!$G:$G)-MIN('Savings Results'!$G:$G)+MAX('Savings Results'!$J:$J)+K$29-MIN('Savings Results'!$G:$G),5000),OFFSET('Savings Results'!$A$1,6,6,5000),K$29,OFFSET('Savings Results'!$A$1,6,4,5000),"Dx",OFFSET('Savings Results'!$A$1,6,1,5000),$A39,OFFSET('Savings Results'!$A$1,6,2,5000),$B39)/(1/(1-SUM('CE Parameters'!$F$10:$F$11))))/1000 -> 0 | M39: =IFERROR(SUMIFS('Program Design'!$U:$U,'Program Design'!$C:$C,$A39,'Program Design'!$D:$D,$B39,'Program Design'!$J:$J,M$29)+SUMIFS('Program Design'!$V:$V,'Program Design'!$C:$C,$A39,'Program Design'!$D:$D,$B39,'Program Design'!$J:$J,M$29)+SUMIFS('Program Design'!$W:$W,'Program Design'!$C:$C,$A39,'Program Design'!$D:$D,$B39,'Program Design'!$J:$J,M$29)+SUMIFS(INDEX(OFFSET('Budget Inputs'!$A$1,6,1,5000,560),0,MATCH(CONCATENATE(M$29," Sub-Total"),OFFSET('Budget Inputs'!$A$1,6,1,1,560),0)),OFFSET('Budget Inputs'!$A$1,6,1,5000,1),$A39,OFFSET('Budget Inputs'!$A$1,6,2,5000,1),$B39),0) -> 0 | N39: =(SUMIFS(OFFSET('Savings Results'!$A$1,6,16 +MAX('Savings Results'!$G:$G)-MIN('Savings Results'!$G:$G)+MAX('Savings Results'!$J:$J)+M$29-MIN('Savings Results'!$G:$G),5000),OFFSET('Savings Results'!$A$1,6,6,5000),M$29,OFFSET('Savings Results'!$A$1,6,4,5000),"Dx",OFFSET('Savings Results'!$A$1,6,1,5000),$A39,OFFSET('Savings Results'!$A$1,6,2,5000),$B39)/(1/(1-SUM('CE Parameters'!$F$10:$F$11))))/1000 -> 0 | O39: =IFERROR(SUMIFS('Program Design'!$U:$U,'Program Design'!$C:$C,$A39,'Program Design'!$D:$D,$B39)+SUMIFS('Program Design'!$V:$V,'Program Design'!$C:$C,$A39,'Program Design'!$D:$D,$B39)+SUMIFS('Program Design'!$W:$W,'Program Design'!$C:$C,$A39,'Program Design'!$D:$D,$B39)+SUMIFS(INDEX(OFFSET('Budget Inputs'!$A$1,6,1,5000,560),0,MATCH("Total",OFFSET('Budget Inputs'!$A$1,6,1,1,560),0)),OFFSET('Budget Inputs'!$A$1,6,1,5000,1),$A39,OFFSET('Budget Inputs'!$A$1,6,2,5000,1),$B39),0) -> 0 | P39: =(SUMIFS(OFFSET('Savings Results'!$A$1,6,16 +MAX('Savings Results'!$G:$G)-MIN('Savings Results'!$G:$G)+MAX('Savings Results'!$J:$J)+M$29-MIN('Savings Results'!$G:$G),5000),OFFSET('Savings Results'!$A$1,6,4,5000),"Dx",OFFSET('Savings Results'!$A$1,6,1,5000),$A39,OFFSET('Savings Results'!$A$1,6,2,5000),$B39)/(1/(1-SUM('CE Parameters'!$F$10:$F$11))))/1000 -> 39.56048513
A40: Business | B40: M&T Oshawa PUC Networks Inc. | C40: =IFERROR(SUMIFS('Program Design'!$U:$U,'Program Design'!$C:$C,$A40,'Program Design'!$D:$D,$B40,'Program Design'!$J:$J,C$29)+SUMIFS('Program Design'!$V:$V,'Program Design'!$C:$C,$A40,'Program Design'!$D:$D,$B40,'Program Design'!$J:$J,C$29)+SUMIFS('Program Design'!$W:$W,'Program Design'!$C:$C,$A40,'Program Design'!$D:$D,$B40,'Program Design'!$J:$J,C$29)+SUMIFS(INDEX(OFFSET('Budget Inputs'!$A$1,6,1,5000,560),0,MATCH(CONCATENATE(C$29," Sub-Total"),OFFSET('Budget Inputs'!$A$1,6,1,1,560),0)),OFFSET('Budget Inputs'!$A$1,6,1,5000,1),$A40,OFFSET('Budget Inputs'!$A$1,6,2,5000,1),$B40),0) -> 0 | D40: =(SUMIFS(OFFSET('Savings Results'!$A$1,6,16 +MAX('Savings Results'!$G:$G)-MIN('Savings Results'!$G:$G)+MAX('Savings Results'!$J:$J)+C$29-MIN('Savings Results'!$G:$G),5000),OFFSET('Savings Results'!$A$1,6,6,5000),C$29,OFFSET('Savings Results'!$A$1,6,4,5000),"Dx",OFFSET('Savings Results'!$A$1,6,1,5000),$A40,OFFSET('Savings Results'!$A$1,6,2,5000),$B40)/(1/(1-SUM('CE Parameters'!$F$10:$F$11))))/1000 -> 0 | E40: =IFERROR(SUMIFS('Program Design'!$U:$U,'Program Design'!$C:$C,$A40,'Program Design'!$D:$D,$B40,'Program Design'!$J:$J,E$29)+SUMIFS('Program Design'!$V:$V,'Program Design'!$C:$C,$A40,'Program Design'!$D:$D,$B40,'Program Design'!$J:$J,E$29)+SUMIFS('Program Design'!$W:$W,'Program Design'!$C:$C,$A40,'Program Design'!$D:$D,$B40,'Program Design'!$J:$J,E$29)+SUMIFS(INDEX(OFFSET('Budget Inputs'!$A$1,6,1,5000,560),0,MATCH(CONCATENATE(E$29," Sub-Total"),OFFSET('Budget Inputs'!$A$1,6,1,1,560),0)),OFFSET('Budget Inputs'!$A$1,6,1,5000,1),$A40,OFFSET('Budget Inputs'!$A$1,6,2,5000,1),$B40),0) -> 0 | F40: =(SUMIFS(OFFSET('Savings Results'!$A$1,6,16 +MAX('Savings Results'!$G:$G)-MIN('Savings Results'!$G:$G)+MAX('Savings Results'!$J:$J)+E$29-MIN('Savings Results'!$G:$G),5000),OFFSET('Savings Results'!$A$1,6,6,5000),E$29,OFFSET('Savings Results'!$A$1,6,4,5000),"Dx",OFFSET('Savings Results'!$A$1,6,1,5000),$A40,OFFSET('Savings Results'!$A$1,6,2,5000),$B40)/(1/(1-SUM('CE Parameters'!$F$10:$F$11))))/1000 -> 0 | G40: =IFERROR(SUMIFS('Program Design'!$U:$U,'Program Design'!$C:$C,$A40,'Program Design'!$D:$D,$B40,'Program Design'!$J:$J,G$29)+SUMIFS('Program Design'!$V:$V,'Program Design'!$C:$C,$A40,'Program Design'!$D:$D,$B40,'Program Design'!$J:$J,G$29)+SUMIFS('Program Design'!$W:$W,'Program Design'!$C:$C,$A40,'Program Design'!$D:$D,$B40,'Program Design'!$J:$J,G$29)+SUMIFS(INDEX(OFFSET('Budget Inputs'!$A$1,6,1,5000,560),0,MATCH(CONCATENATE(G$29," Sub-Total"),OFFSET('Budget Inputs'!$A$1,6,1,1,560),0)),OFFSET('Budget Inputs'!$A$1,6,1,5000,1),$A40,OFFSET('Budget Inputs'!$A$1,6,2,5000,1),$B40),0) -> 0 | H40: =(SUMIFS(OFFSET('Savings Results'!$A$1,6,16 +MAX('Savings Results'!$G:$G)-MIN('Savings Results'!$G:$G)+MAX('Savings Results'!$J:$J)+G$29-MIN('Savings Results'!$G:$G),5000),OFFSET('Savings Results'!$A$1,6,6,5000),G$29,OFFSET('Savings Results'!$A$1,6,4,5000),"Dx",OFFSET('Savings Results'!$A$1,6,1,5000),$A40,OFFSET('Savings Results'!$A$1,6,2,5000),$B40)/(1/(1-SUM('CE Parameters'!$F$10:$F$11))))/1000 -> 0 | I40: =IFERROR(SUMIFS('Program Design'!$U:$U,'Program Design'!$C:$C,$A40,'Program Design'!$D:$D,$B40,'Program Design'!$J:$J,I$29)+SUMIFS('Program Design'!$V:$V,'Program Design'!$C:$C,$A40,'Program Design'!$D:$D,$B40,'Program Design'!$J:$J,I$29)+SUMIFS('Program Design'!$W:$W,'Program Design'!$C:$C,$A40,'Program Design'!$D:$D,$B40,'Program Design'!$J:$J,I$29)+SUMIFS(INDEX(OFFSET('Budget Inputs'!$A$1,6,1,5000,560),0,MATCH(CONCATENATE(I$29," Sub-Total"),OFFSET('Budget Inputs'!$A$1,6,1,1,560),0)),OFFSET('Budget Inputs'!$A$1,6,1,5000,1),$A40,OFFSET('Budget Inputs'!$A$1,6,2,5000,1),$B40),0) -> 0 | J40: =(SUMIFS(OFFSET('Savings Results'!$A$1,6,16 +MAX('Savings Results'!$G:$G)-MIN('Savings Results'!$G:$G)+MAX('Savings Results'!$J:$J)+I$29-MIN('Savings Results'!$G:$G),5000),OFFSET('Savings Results'!$A$1,6,6,5000),I$29,OFFSET('Savings Results'!$A$1,6,4,5000),"Dx",OFFSET('Savings Results'!$A$1,6,1,5000),$A40,OFFSET('Savings Results'!$A$1,6,2,5000),$B40)/(1/(1-SUM('CE Parameters'!$F$10:$F$11))))/1000 -> 0 | K40: =IFERROR(SUMIFS('Program Design'!$U:$U,'Program Design'!$C:$C,$A40,'Program Design'!$D:$D,$B40,'Program Design'!$J:$J,K$29)+SUMIFS('Program Design'!$V:$V,'Program Design'!$C:$C,$A40,'Program Design'!$D:$D,$B40,'Program Design'!$J:$J,K$29)+SUMIFS('Program Design'!$W:$W,'Program Design'!$C:$C,$A40,'Program Design'!$D:$D,$B40,'Program Design'!$J:$J,K$29)+SUMIFS(INDEX(OFFSET('Budget Inputs'!$A$1,6,1,5000,560),0,MATCH(CONCATENATE(K$29," Sub-Total"),OFFSET('Budget Inputs'!$A$1,6,1,1,560),0)),OFFSET('Budget Inputs'!$A$1,6,1,5000,1),$A40,OFFSET('Budget Inputs'!$A$1,6,2,5000,1),$B40),0) -> 0 | L40: =(SUMIFS(OFFSET('Savings Results'!$A$1,6,16 +MAX('Savings Results'!$G:$G)-MIN('Savings Results'!$G:$G)+MAX('Savings Results'!$J:$J)+K$29-MIN('Savings Results'!$G:$G),5000),OFFSET('Savings Results'!$A$1,6,6,5000),K$29,OFFSET('Savings Results'!$A$1,6,4,5000),"Dx",OFFSET('Savings Results'!$A$1,6,1,5000),$A40,OFFSET('Savings Results'!$A$1,6,2,5000),$B40)/(1/(1-SUM('CE Parameters'!$F$10:$F$11))))/1000 -> 0 | M40: =IFERROR(SUMIFS('Program Design'!$U:$U,'Program Design'!$C:$C,$A40,'Program Design'!$D:$D,$B40,'Program Design'!$J:$J,M$29)+SUMIFS('Program Design'!$V:$V,'Program Design'!$C:$C,$A40,'Program Design'!$D:$D,$B40,'Program Design'!$J:$J,M$29)+SUMIFS('Program Design'!$W:$W,'Program Design'!$C:$C,$A40,'Program Design'!$D:$D,$B40,'Program Design'!$J:$J,M$29)+SUMIFS(INDEX(OFFSET('Budget Inputs'!$A$1,6,1,5000,560),0,MATCH(CONCATENATE(M$29," Sub-Total"),OFFSET('Budget Inputs'!$A$1,6,1,1,560),0)),OFFSET('Budget Inputs'!$A$1,6,1,5000,1),$A40,OFFSET('Budget Inputs'!$A$1,6,2,5000,1),$B40),0) -> 0 | N40: =(SUMIFS(OFFSET('Savings Results'!$A$1,6,16 +MAX('Savings Results'!$G:$G)-MIN('Savings Results'!$G:$G)+MAX('Savings Results'!$J:$J)+M$29-MIN('Savings Results'!$G:$G),5000),OFFSET('Savings Results'!$A$1,6,6,5000),M$29,OFFSET('Savings Results'!$A$1,6,4,5000),"Dx",OFFSET('Savings Results'!$A$1,6,1,5000),$A40,OFFSET('Savings Results'!$A$1,6,2,5000),$B40)/(1/(1-SUM('CE Parameters'!$F$10:$F$11))))/1000 -> 0 | O40: =IFERROR(SUMIFS('Program Design'!$U:$U,'Program Design'!$C:$C,$A40,'Program Design'!$D:$D,$B40)+SUMIFS('Program Design'!$V:$V,'Program Design'!$C:$C,$A40,'Program Design'!$D:$D,$B40)+SUMIFS('Program Design'!$W:$W,'Program Design'!$C:$C,$A40,'Program Design'!$D:$D,$B40)+SUMIFS(INDEX(OFFSET('Budget Inputs'!$A$1,6,1,5000,560),0,MATCH("Total",OFFSET('Budget Inputs'!$A$1,6,1,1,560),0)),OFFSET('Budget Inputs'!$A$1,6,1,5000,1),$A40,OFFSET('Budget Inputs'!$A$1,6,2,5000,1),$B40),0) -> 0 | P40: =(SUMIFS(OFFSET('Savings Results'!$A$1,6,16 +MAX('Savings Results'!$G:$G)-MIN('Savings Results'!$G:$G)+MAX('Savings Results'!$J:$J)+M$29-MIN('Savings Results'!$G:$G),5000),OFFSET('Savings Results'!$A$1,6,4,5000),"Dx",OFFSET('Savings Results'!$A$1,6,1,5000),$A40,OFFSET('Savings Results'!$A$1,6,2,5000),$B40)/(1/(1-SUM('CE Parameters'!$F$10:$F$11))))/1000 -> 0
A41: Business | B41: Enabled Savings Oshawa PUC Networks Inc. | C41: =IFERROR(SUMIFS('Program Design'!$U:$U,'Program Design'!$C:$C,$A41,'Program Design'!$D:$D,$B41,'Program Design'!$J:$J,C$29)+SUMIFS('Program Design'!$V:$V,'Program Design'!$C:$C,$A41,'Program Design'!$D:$D,$B41,'Program Design'!$J:$J,C$29)+SUMIFS('Program Design'!$W:$W,'Program Design'!$C:$C,$A41,'Program Design'!$D:$D,$B41,'Program Design'!$J:$J,C$29)+SUMIFS(INDEX(OFFSET('Budget Inputs'!$A$1,6,1,5000,560),0,MATCH(CONCATENATE(C$29," Sub-Total"),OFFSET('Budget Inputs'!$A$1,6,1,1,560),0)),OFFSET('Budget Inputs'!$A$1,6,1,5000,1),$A41,OFFSET('Budget Inputs'!$A$1,6,2,5000,1),$B41),0) -> 0 | D41: =(SUMIFS(OFFSET('Savings Results'!$A$1,6,16 +MAX('Savings Results'!$G:$G)-MIN('Savings Results'!$G:$G)+MAX('Savings Results'!$J:$J)+C$29-MIN('Savings Results'!$G:$G),5000),OFFSET('Savings Results'!$A$1,6,6,5000),C$29,OFFSET('Savings Results'!$A$1,6,4,5000),"Dx",OFFSET('Savings Results'!$A$1,6,1,5000),$A41,OFFSET('Savings Results'!$A$1,6,2,5000),$B41)/(1/(1-SUM('CE Parameters'!$F$10:$F$11))))/1000 -> 0 | E41: =IFERROR(SUMIFS('Program Design'!$U:$U,'Program Design'!$C:$C,$A41,'Program Design'!$D:$D,$B41,'Program Design'!$J:$J,E$29)+SUMIFS('Program Design'!$V:$V,'Program Design'!$C:$C,$A41,'Program Design'!$D:$D,$B41,'Program Design'!$J:$J,E$29)+SUMIFS('Program Design'!$W:$W,'Program Design'!$C:$C,$A41,'Program Design'!$D:$D,$B41,'Program Design'!$J:$J,E$29)+SUMIFS(INDEX(OFFSET('Budget Inputs'!$A$1,6,1,5000,560),0,MATCH(CONCATENATE(E$29," Sub-Total"),OFFSET('Budget Inputs'!$A$1,6,1,1,560),0)),OFFSET('Budget Inputs'!$A$1,6,1,5000,1),$A41,OFFSET('Budget Inputs'!$A$1,6,2,5000,1),$B41),0) -> 0 | F41: =(SUMIFS(OFFSET('Savings Results'!$A$1,6,16 +MAX('Savings Results'!$G:$G)-MIN('Savings Results'!$G:$G)+MAX('Savings Results'!$J:$J)+E$29-MIN('Savings Results'!$G:$G),5000),OFFSET('Savings Results'!$A$1,6,6,5000),E$29,OFFSET('Savings Results'!$A$1,6,4,5000),"Dx",OFFSET('Savings Results'!$A$1,6,1,5000),$A41,OFFSET('Savings Results'!$A$1,6,2,5000),$B41)/(1/(1-SUM('CE Parameters'!$F$10:$F$11))))/1000 -> 0 | G41: =IFERROR(SUMIFS('Program Design'!$U:$U,'Program Design'!$C:$C,$A41,'Program Design'!$D:$D,$B41,'Program Design'!$J:$J,G$29)+SUMIFS('Program Design'!$V:$V,'Program Design'!$C:$C,$A41,'Program Design'!$D:$D,$B41,'Program Design'!$J:$J,G$29)+SUMIFS('Program Design'!$W:$W,'Program Design'!$C:$C,$A41,'Program Design'!$D:$D,$B41,'Program Design'!$J:$J,G$29)+SUMIFS(INDEX(OFFSET('Budget Inputs'!$A$1,6,1,5000,560),0,MATCH(CONCATENATE(G$29," Sub-Total"),OFFSET('Budget Inputs'!$A$1,6,1,1,560),0)),OFFSET('Budget Inputs'!$A$1,6,1,5000,1),$A41,OFFSET('Budget Inputs'!$A$1,6,2,5000,1),$B41),0) -> 0 | H41: =(SUMIFS(OFFSET('Savings Results'!$A$1,6,16 +MAX('Savings Results'!$G:$G)-MIN('Savings Results'!$G:$G)+MAX('Savings Results'!$J:$J)+G$29-MIN('Savings Results'!$G:$G),5000),OFFSET('Savings Results'!$A$1,6,6,5000),G$29,OFFSET('Savings Results'!$A$1,6,4,5000),"Dx",OFFSET('Savings Results'!$A$1,6,1,5000),$A41,OFFSET('Savings Results'!$A$1,6,2,5000),$B41)/(1/(1-SUM('CE Parameters'!$F$10:$F$11))))/1000 -> 0 | I41: =IFERROR(SUMIFS('Program Design'!$U:$U,'Program Design'!$C:$C,$A41,'Program Design'!$D:$D,$B41,'Program Design'!$J:$J,I$29)+SUMIFS('Program Design'!$V:$V,'Program Design'!$C:$C,$A41,'Program Design'!$D:$D,$B41,'Program Design'!$J:$J,I$29)+SUMIFS('Program Design'!$W:$W,'Program Design'!$C:$C,$A41,'Program Design'!$D:$D,$B41,'Program Design'!$J:$J,I$29)+SUMIFS(INDEX(OFFSET('Budget Inputs'!$A$1,6,1,5000,560),0,MATCH(CONCATENATE(I$29," Sub-Total"),OFFSET('Budget Inputs'!$A$1,6,1,1,560),0)),OFFSET('Budget Inputs'!$A$1,6,1,5000,1),$A41,OFFSET('Budget Inputs'!$A$1,6,2,5000,1),$B41),0) -> 0 | J41: =(SUMIFS(OFFSET('Savings Results'!$A$1,6,16 +MAX('Savings Results'!$G:$G)-MIN('Savings Results'!$G:$G)+MAX('Savings Results'!$J:$J)+I$29-MIN('Savings Results'!$G:$G),5000),OFFSET('Savings Results'!$A$1,6,6,5000),I$29,OFFSET('Savings Results'!$A$1,6,4,5000),"Dx",OFFSET('Savings Results'!$A$1,6,1,5000),$A41,OFFSET('Savings Results'!$A$1,6,2,5000),$B41)/(1/(1-SUM('CE Parameters'!$F$10:$F$11))))/1000 -> 0 | K41: =IFERROR(SUMIFS('Program Design'!$U:$U,'Program Design'!$C:$C,$A41,'Program Design'!$D:$D,$B41,'Program Design'!$J:$J,K$29)+SUMIFS('Program Design'!$V:$V,'Program Design'!$C:$C,$A41,'Program Design'!$D:$D,$B41,'Program Design'!$J:$J,K$29)+SUMIFS('Program Design'!$W:$W,'Program Design'!$C:$C,$A41,'Program Design'!$D:$D,$B41,'Program Design'!$J:$J,K$29)+SUMIFS(INDEX(OFFSET('Budget Inputs'!$A$1,6,1,5000,560),0,MATCH(CONCATENATE(K$29," Sub-Total"),OFFSET('Budget Inputs'!$A$1,6,1,1,560),0)),OFFSET('Budget Inputs'!$A$1,6,1,5000,1),$A41,OFFSET('Budget Inputs'!$A$1,6,2,5000,1),$B41),0) -> 0 | L41: =(SUMIFS(OFFSET('Savings Results'!$A$1,6,16 +MAX('Savings Results'!$G:$G)-MIN('Savings Results'!$G:$G)+MAX('Savings Results'!$J:$J)+K$29-MIN('Savings Results'!$G:$G),5000),OFFSET('Savings Results'!$A$1,6,6,5000),K$29,OFFSET('Savings Results'!$A$1,6,4,5000),"Dx",OFFSET('Savings Results'!$A$1,6,1,5000),$A41,OFFSET('Savings Results'!$A$1,6,2,5000),$B41)/(1/(1-SUM('CE Parameters'!$F$10:$F$11))))/1000 -> 0 | M41: =IFERROR(SUMIFS('Program Design'!$U:$U,'Program Design'!$C:$C,$A41,'Program Design'!$D:$D,$B41,'Program Design'!$J:$J,M$29)+SUMIFS('Program Design'!$V:$V,'Program Design'!$C:$C,$A41,'Program Design'!$D:$D,$B41,'Program Design'!$J:$J,M$29)+SUMIFS('Program Design'!$W:$W,'Program Design'!$C:$C,$A41,'Program Design'!$D:$D,$B41,'Program Design'!$J:$J,M$29)+SUMIFS(INDEX(OFFSET('Budget Inputs'!$A$1,6,1,5000,560),0,MATCH(CONCATENATE(M$29," Sub-Total"),OFFSET('Budget Inputs'!$A$1,6,1,1,560),0)),OFFSET('Budget Inputs'!$A$1,6,1,5000,1),$A41,OFFSET('Budget Inputs'!$A$1,6,2,5000,1),$B41),0) -> 0 | N41: =(SUMIFS(OFFSET('Savings Results'!$A$1,6,16 +MAX('Savings Results'!$G:$G)-MIN('Savings Results'!$G:$G)+MAX('Savings Results'!$J:$J)+M$29-MIN('Savings Results'!$G:$G),5000),OFFSET('Savings Results'!$A$1,6,6,5000),M$29,OFFSET('Savings Results'!$A$1,6,4,5000),"Dx",OFFSET('Savings Results'!$A$1,6,1,5000),$A41,OFFSET('Savings Results'!$A$1,6,2,5000),$B41)/(1/(1-SUM('CE Parameters'!$F$10:$F$11))))/1000 -> 0 | O41: =IFERROR(SUMIFS('Program Design'!$U:$U,'Program Design'!$C:$C,$A41,'Program Design'!$D:$D,$B41)+SUMIFS('Program Design'!$V:$V,'Program Design'!$C:$C,$A41,'Program Design'!$D:$D,$B41)+SUMIFS('Program Design'!$W:$W,'Program Design'!$C:$C,$A41,'Program Design'!$D:$D,$B41)+SUMIFS(INDEX(OFFSET('Budget Inputs'!$A$1,6,1,5000,560),0,MATCH("Total",OFFSET('Budget Inputs'!$A$1,6,1,1,560),0)),OFFSET('Budget Inputs'!$A$1,6,1,5000,1),$A41,OFFSET('Budget Inputs'!$A$1,6,2,5000,1),$B41),0) -> 0 | P41: =(SUMIFS(OFFSET('Savings Results'!$A$1,6,16 +MAX('Savings Results'!$G:$G)-MIN('Savings Results'!$G:$G)+MAX('Savings Results'!$J:$J)+M$29-MIN('Savings Results'!$G:$G),5000),OFFSET('Savings Results'!$A$1,6,4,5000),"Dx",OFFSET('Savings Results'!$A$1,6,1,5000),$A41,OFFSET('Savings Results'!$A$1,6,2,5000),$B41)/(1/(1-SUM('CE Parameters'!$F$10:$F$11))))/1000 -> 0
A42: Business | B42: ENERNOC Pilot Oshawa PUC Networks Inc. | C42: =IFERROR(SUMIFS('Program Design'!$U:$U,'Program Design'!$C:$C,$A42,'Program Design'!$D:$D,$B42,'Program Design'!$J:$J,C$29)+SUMIFS('Program Design'!$V:$V,'Program Design'!$C:$C,$A42,'Program Design'!$D:$D,$B42,'Program Design'!$J:$J,C$29)+SUMIFS('Program Design'!$W:$W,'Program Design'!$C:$C,$A42,'Program Design'!$D:$D,$B42,'Program Design'!$J:$J,C$29)+SUMIFS(INDEX(OFFSET('Budget Inputs'!$A$1,6,1,5000,560),0,MATCH(CONCATENATE(C$29," Sub-Total"),OFFSET('Budget Inputs'!$A$1,6,1,1,560),0)),OFFSET('Budget Inputs'!$A$1,6,1,5000,1),$A42,OFFSET('Budget Inputs'!$A$1,6,2,5000,1),$B42),0) -> 0 | D42: =(SUMIFS(OFFSET('Savings Results'!$A$1,6,16 +MAX('Savings Results'!$G:$G)-MIN('Savings Results'!$G:$G)+MAX('Savings Results'!$J:$J)+C$29-MIN('Savings Results'!$G:$G),5000),OFFSET('Savings Results'!$A$1,6,6,5000),C$29,OFFSET('Savings Results'!$A$1,6,4,5000),"Dx",OFFSET('Savings Results'!$A$1,6,1,5000),$A42,OFFSET('Savings Results'!$A$1,6,2,5000),$B42)/(1/(1-SUM('CE Parameters'!$F$10:$F$11))))/1000 -> 0 | E42: =IFERROR(SUMIFS('Program Design'!$U:$U,'Program Design'!$C:$C,$A42,'Program Design'!$D:$D,$B42,'Program Design'!$J:$J,E$29)+SUMIFS('Program Design'!$V:$V,'Program Design'!$C:$C,$A42,'Program Design'!$D:$D,$B42,'Program Design'!$J:$J,E$29)+SUMIFS('Program Design'!$W:$W,'Program Design'!$C:$C,$A42,'Program Design'!$D:$D,$B42,'Program Design'!$J:$J,E$29)+SUMIFS(INDEX(OFFSET('Budget Inputs'!$A$1,6,1,5000,560),0,MATCH(CONCATENATE(E$29," Sub-Total"),OFFSET('Budget Inputs'!$A$1,6,1,1,560),0)),OFFSET('Budget Inputs'!$A$1,6,1,5000,1),$A42,OFFSET('Budget Inputs'!$A$1,6,2,5000,1),$B42),0) -> 0 | F42: =(SUMIFS(OFFSET('Savings Results'!$A$1,6,16 +MAX('Savings Results'!$G:$G)-MIN('Savings Results'!$G:$G)+MAX('Savings Results'!$J:$J)+E$29-MIN('Savings Results'!$G:$G),5000),OFFSET('Savings Results'!$A$1,6,6,5000),E$29,OFFSET('Savings Results'!$A$1,6,4,5000),"Dx",OFFSET('Savings Results'!$A$1,6,1,5000),$A42,OFFSET('Savings Results'!$A$1,6,2,5000),$B42)/(1/(1-SUM('CE Parameters'!$F$10:$F$11))))/1000 -> 0 | G42: =IFERROR(SUMIFS('Program Design'!$U:$U,'Program Design'!$C:$C,$A42,'Program Design'!$D:$D,$B42,'Program Design'!$J:$J,G$29)+SUMIFS('Program Design'!$V:$V,'Program Design'!$C:$C,$A42,'Program Design'!$D:$D,$B42,'Program Design'!$J:$J,G$29)+SUMIFS('Program Design'!$W:$W,'Program Design'!$C:$C,$A42,'Program Design'!$D:$D,$B42,'Program Design'!$J:$J,G$29)+SUMIFS(INDEX(OFFSET('Budget Inputs'!$A$1,6,1,5000,560),0,MATCH(CONCATENATE(G$29," Sub-Total"),OFFSET('Budget Inputs'!$A$1,6,1,1,560),0)),OFFSET('Budget Inputs'!$A$1,6,1,5000,1),$A42,OFFSET('Budget Inputs'!$A$1,6,2,5000,1),$B42),0) -> 0 | H42: =(SUMIFS(OFFSET('Savings Results'!$A$1,6,16 +MAX('Savings Results'!$G:$G)-MIN('Savings Results'!$G:$G)+MAX('Savings Results'!$J:$J)+G$29-MIN('Savings Results'!$G:$G),5000),OFFSET('Savings Results'!$A$1,6,6,5000),G$29,OFFSET('Savings Results'!$A$1,6,4,5000),"Dx",OFFSET('Savings Results'!$A$1,6,1,5000),$A42,OFFSET('Savings Results'!$A$1,6,2,5000),$B42)/(1/(1-SUM('CE Parameters'!$F$10:$F$11))))/1000 -> 0 | I42: =IFERROR(SUMIFS('Program Design'!$U:$U,'Program Design'!$C:$C,$A42,'Program Design'!$D:$D,$B42,'Program Design'!$J:$J,I$29)+SUMIFS('Program Design'!$V:$V,'Program Design'!$C:$C,$A42,'Program Design'!$D:$D,$B42,'Program Design'!$J:$J,I$29)+SUMIFS('Program Design'!$W:$W,'Program Design'!$C:$C,$A42,'Program Design'!$D:$D,$B42,'Program Design'!$J:$J,I$29)+SUMIFS(INDEX(OFFSET('Budget Inputs'!$A$1,6,1,5000,560),0,MATCH(CONCATENATE(I$29," Sub-Total"),OFFSET('Budget Inputs'!$A$1,6,1,1,560),0)),OFFSET('Budget Inputs'!$A$1,6,1,5000,1),$A42,OFFSET('Budget Inputs'!$A$1,6,2,5000,1),$B42),0) -> 0 | J42: =(SUMIFS(OFFSET('Savings Results'!$A$1,6,16 +MAX('Savings Results'!$G:$G)-MIN('Savings Results'!$G:$G)+MAX('Savings Results'!$J:$J)+I$29-MIN('Savings Results'!$G:$G),5000),OFFSET('Savings Results'!$A$1,6,6,5000),I$29,OFFSET('Savings Results'!$A$1,6,4,5000),"Dx",OFFSET('Savings Results'!$A$1,6,1,5000),$A42,OFFSET('Savings Results'!$A$1,6,2,5000),$B42)/(1/(1-SUM('CE Parameters'!$F$10:$F$11))))/1000 -> 0 | K42: =IFERROR(SUMIFS('Program Design'!$U:$U,'Program Design'!$C:$C,$A42,'Program Design'!$D:$D,$B42,'Program Design'!$J:$J,K$29)+SUMIFS('Program Design'!$V:$V,'Program Design'!$C:$C,$A42,'Program Design'!$D:$D,$B42,'Program Design'!$J:$J,K$29)+SUMIFS('Program Design'!$W:$W,'Program Design'!$C:$C,$A42,'Program Design'!$D:$D,$B42,'Program Design'!$J:$J,K$29)+SUMIFS(INDEX(OFFSET('Budget Inputs'!$A$1,6,1,5000,560),0,MATCH(CONCATENATE(K$29," Sub-Total"),OFFSET('Budget Inputs'!$A$1,6,1,1,560),0)),OFFSET('Budget Inputs'!$A$1,6,1,5000,1),$A42,OFFSET('Budget Inputs'!$A$1,6,2,5000,1),$B42),0) -> 0 | L42: =(SUMIFS(OFFSET('Savings Results'!$A$1,6,16 +MAX('Savings Results'!$G:$G)-MIN('Savings Results'!$G:$G)+MAX('Savings Results'!$J:$J)+K$29-MIN('Savings Results'!$G:$G),5000),OFFSET('Savings Results'!$A$1,6,6,5000),K$29,OFFSET('Savings Results'!$A$1,6,4,5000),"Dx",OFFSET('Savings Results'!$A$1,6,1,5000),$A42,OFFSET('Savings Results'!$A$1,6,2,5000),$B42)/(1/(1-SUM('CE Parameters'!$F$10:$F$11))))/1000 -> 0 | M42: =IFERROR(SUMIFS('Program Design'!$U:$U,'Program Design'!$C:$C,$A42,'Program Design'!$D:$D,$B42,'Program Design'!$J:$J,M$29)+SUMIFS('Program Design'!$V:$V,'Program Design'!$C:$C,$A42,'Program Design'!$D:$D,$B42,'Program Design'!$J:$J,M$29)+SUMIFS('Program Design'!$W:$W,'Program Design'!$C:$C,$A42,'Program Design'!$D:$D,$B42,'Program Design'!$J:$J,M$29)+SUMIFS(INDEX(OFFSET('Budget Inputs'!$A$1,6,1,5000,560),0,MATCH(CONCATENATE(M$29," Sub-Total"),OFFSET('Budget Inputs'!$A$1,6,1,1,560),0)),OFFSET('Budget Inputs'!$A$1,6,1,5000,1),$A42,OFFSET('Budget Inputs'!$A$1,6,2,5000,1),$B42),0) -> 0 | N42: =(SUMIFS(OFFSET('Savings Results'!$A$1,6,16 +MAX('Savings Results'!$G:$G)-MIN('Savings Results'!$G:$G)+MAX('Savings Results'!$J:$J)+M$29-MIN('Savings Results'!$G:$G),5000),OFFSET('Savings Results'!$A$1,6,6,5000),M$29,OFFSET('Savings Results'!$A$1,6,4,5000),"Dx",OFFSET('Savings Results'!$A$1,6,1,5000),$A42,OFFSET('Savings Results'!$A$1,6,2,5000),$B42)/(1/(1-SUM('CE Parameters'!$F$10:$F$11))))/1000 -> 0 | O42: =IFERROR(SUMIFS('Program Design'!$U:$U,'Program Design'!$C:$C,$A42,'Program Design'!$D:$D,$B42)+SUMIFS('Program Design'!$V:$V,'Program Design'!$C:$C,$A42,'Program Design'!$D:$D,$B42)+SUMIFS('Program Design'!$W:$W,'Program Design'!$C:$C,$A42,'Program Design'!$D:$D,$B42)+SUMIFS(INDEX(OFFSET('Budget Inputs'!$A$1,6,1,5000,560),0,MATCH("Total",OFFSET('Budget Inputs'!$A$1,6,1,1,560),0)),OFFSET('Budget Inputs'!$A$1,6,1,5000,1),$A42,OFFSET('Budget Inputs'!$A$1,6,2,5000,1),$B42),0) -> 0 | P42: =(SUMIFS(OFFSET('Savings Results'!$A$1,6,16 +MAX('Savings Results'!$G:$G)-MIN('Savings Results'!$G:$G)+MAX('Savings Results'!$J:$J)+M$29-MIN('Savings Results'!$G:$G),5000),OFFSET('Savings Results'!$A$1,6,4,5000),"Dx",OFFSET('Savings Results'!$A$1,6,1,5000),$A42,OFFSET('Savings Results'!$A$1,6,2,5000),$B42)/(1/(1-SUM('CE Parameters'!$F$10:$F$11))))/1000 -> 0
A43: Business | B43: SEG Pilot Oshawa PUC Networks Inc. | C43: =IFERROR(SUMIFS('Program Design'!$U:$U,'Program Design'!$C:$C,$A43,'Program Design'!$D:$D,$B43,'Program Design'!$J:$J,C$29)+SUMIFS('Program Design'!$V:$V,'Program Design'!$C:$C,$A43,'Program Design'!$D:$D,$B43,'Program Design'!$J:$J,C$29)+SUMIFS('Program Design'!$W:$W,'Program Design'!$C:$C,$A43,'Program Design'!$D:$D,$B43,'Program Design'!$J:$J,C$29)+SUMIFS(INDEX(OFFSET('Budget Inputs'!$A$1,6,1,5000,560),0,MATCH(CONCATENATE(C$29," Sub-Total"),OFFSET('Budget Inputs'!$A$1,6,1,1,560),0)),OFFSET('Budget Inputs'!$A$1,6,1,5000,1),$A43,OFFSET('Budget Inputs'!$A$1,6,2,5000,1),$B43),0) -> 0 | D43: =(SUMIFS(OFFSET('Savings Results'!$A$1,6,16 +MAX('Savings Results'!$G:$G)-MIN('Savings Results'!$G:$G)+MAX('Savings Results'!$J:$J)+C$29-MIN('Savings Results'!$G:$G),5000),OFFSET('Savings Results'!$A$1,6,6,5000),C$29,OFFSET('Savings Results'!$A$1,6,4,5000),"Dx",OFFSET('Savings Results'!$A$1,6,1,5000),$A43,OFFSET('Savings Results'!$A$1,6,2,5000),$B43)/(1/(1-SUM('CE Parameters'!$F$10:$F$11))))/1000 -> 0 | E43: =IFERROR(SUMIFS('Program Design'!$U:$U,'Program Design'!$C:$C,$A43,'Program Design'!$D:$D,$B43,'Program Design'!$J:$J,E$29)+SUMIFS('Program Design'!$V:$V,'Program Design'!$C:$C,$A43,'Program Design'!$D:$D,$B43,'Program Design'!$J:$J,E$29)+SUMIFS('Program Design'!$W:$W,'Program Design'!$C:$C,$A43,'Program Design'!$D:$D,$B43,'Program Design'!$J:$J,E$29)+SUMIFS(INDEX(OFFSET('Budget Inputs'!$A$1,6,1,5000,560),0,MATCH(CONCATENATE(E$29," Sub-Total"),OFFSET('Budget Inputs'!$A$1,6,1,1,560),0)),OFFSET('Budget Inputs'!$A$1,6,1,5000,1),$A43,OFFSET('Budget Inputs'!$A$1,6,2,5000,1),$B43),0) -> 0 | F43: =(SUMIFS(OFFSET('Savings Results'!$A$1,6,16 +MAX('Savings Results'!$G:$G)-MIN('Savings Results'!$G:$G)+MAX('Savings Results'!$J:$J)+E$29-MIN('Savings Results'!$G:$G),5000),OFFSET('Savings Results'!$A$1,6,6,5000),E$29,OFFSET('Savings Results'!$A$1,6,4,5000),"Dx",OFFSET('Savings Results'!$A$1,6,1,5000),$A43,OFFSET('Savings Results'!$A$1,6,2,5000),$B43)/(1/(1-SUM('CE Parameters'!$F$10:$F$11))))/1000 -> 0 | G43: =IFERROR(SUMIFS('Program Design'!$U:$U,'Program Design'!$C:$C,$A43,'Program Design'!$D:$D,$B43,'Program Design'!$J:$J,G$29)+SUMIFS('Program Design'!$V:$V,'Program Design'!$C:$C,$A43,'Program Design'!$D:$D,$B43,'Program Design'!$J:$J,G$29)+SUMIFS('Program Design'!$W:$W,'Program Design'!$C:$C,$A43,'Program Design'!$D:$D,$B43,'Program Design'!$J:$J,G$29)+SUMIFS(INDEX(OFFSET('Budget Inputs'!$A$1,6,1,5000,560),0,MATCH(CONCATENATE(G$29," Sub-Total"),OFFSET('Budget Inputs'!$A$1,6,1,1,560),0)),OFFSET('Budget Inputs'!$A$1,6,1,5000,1),$A43,OFFSET('Budget Inputs'!$A$1,6,2,5000,1),$B43),0) -> 0 | H43: =(SUMIFS(OFFSET('Savings Results'!$A$1,6,16 +MAX('Savings Results'!$G:$G)-MIN('Savings Results'!$G:$G)+MAX('Savings Results'!$J:$J)+G$29-MIN('Savings Results'!$G:$G),5000),OFFSET('Savings Results'!$A$1,6,6,5000),G$29,OFFSET('Savings Results'!$A$1,6,4,5000),"Dx",OFFSET('Savings Results'!$A$1,6,1,5000),$A43,OFFSET('Savings Results'!$A$1,6,2,5000),$B43)/(1/(1-SUM('CE Parameters'!$F$10:$F$11))))/1000 -> 0 | I43: =IFERROR(SUMIFS('Program Design'!$U:$U,'Program Design'!$C:$C,$A43,'Program Design'!$D:$D,$B43,'Program Design'!$J:$J,I$29)+SUMIFS('Program Design'!$V:$V,'Program Design'!$C:$C,$A43,'Program Design'!$D:$D,$B43,'Program Design'!$J:$J,I$29)+SUMIFS('Program Design'!$W:$W,'Program Design'!$C:$C,$A43,'Program Design'!$D:$D,$B43,'Program Design'!$J:$J,I$29)+SUMIFS(INDEX(OFFSET('Budget Inputs'!$A$1,6,1,5000,560),0,MATCH(CONCATENATE(I$29," Sub-Total"),OFFSET('Budget Inputs'!$A$1,6,1,1,560),0)),OFFSET('Budget Inputs'!$A$1,6,1,5000,1),$A43,OFFSET('Budget Inputs'!$A$1,6,2,5000,1),$B43),0) -> 0 | J43: =(SUMIFS(OFFSET('Savings Results'!$A$1,6,16 +MAX('Savings Results'!$G:$G)-MIN('Savings Results'!$G:$G)+MAX('Savings Results'!$J:$J)+I$29-MIN('Savings Results'!$G:$G),5000),OFFSET('Savings Results'!$A$1,6,6,5000),I$29,OFFSET('Savings Results'!$A$1,6,4,5000),"Dx",OFFSET('Savings Results'!$A$1,6,1,5000),$A43,OFFSET('Savings Results'!$A$1,6,2,5000),$B43)/(1/(1-SUM('CE Parameters'!$F$10:$F$11))))/1000 -> 0 | K43: =IFERROR(SUMIFS('Program Design'!$U:$U,'Program Design'!$C:$C,$A43,'Program Design'!$D:$D,$B43,'Program Design'!$J:$J,K$29)+SUMIFS('Program Design'!$V:$V,'Program Design'!$C:$C,$A43,'Program Design'!$D:$D,$B43,'Program Design'!$J:$J,K$29)+SUMIFS('Program Design'!$W:$W,'Program Design'!$C:$C,$A43,'Program Design'!$D:$D,$B43,'Program Design'!$J:$J,K$29)+SUMIFS(INDEX(OFFSET('Budget Inputs'!$A$1,6,1,5000,560),0,MATCH(CONCATENATE(K$29," Sub-Total"),OFFSET('Budget Inputs'!$A$1,6,1,1,560),0)),OFFSET('Budget Inputs'!$A$1,6,1,5000,1),$A43,OFFSET('Budget Inputs'!$A$1,6,2,5000,1),$B43),0) -> 0 | L43: =(SUMIFS(OFFSET('Savings Results'!$A$1,6,16 +MAX('Savings Results'!$G:$G)-MIN('Savings Results'!$G:$G)+MAX('Savings Results'!$J:$J)+K$29-MIN('Savings Results'!$G:$G),5000),OFFSET('Savings Results'!$A$1,6,6,5000),K$29,OFFSET('Savings Results'!$A$1,6,4,5000),"Dx",OFFSET('Savings Results'!$A$1,6,1,5000),$A43,OFFSET('Savings Results'!$A$1,6,2,5000),$B43)/(1/(1-SUM('CE Parameters'!$F$10:$F$11))))/1000 -> 0 | M43: =IFERROR(SUMIFS('Program Design'!$U:$U,'Program Design'!$C:$C,$A43,'Program Design'!$D:$D,$B43,'Program Design'!$J:$J,M$29)+SUMIFS('Program Design'!$V:$V,'Program Design'!$C:$C,$A43,'Program Design'!$D:$D,$B43,'Program Design'!$J:$J,M$29)+SUMIFS('Program Design'!$W:$W,'Program Design'!$C:$C,$A43,'Program Design'!$D:$D,$B43,'Program Design'!$J:$J,M$29)+SUMIFS(INDEX(OFFSET('Budget Inputs'!$A$1,6,1,5000,560),0,MATCH(CONCATENATE(M$29," Sub-Total"),OFFSET('Budget Inputs'!$A$1,6,1,1,560),0)),OFFSET('Budget Inputs'!$A$1,6,1,5000,1),$A43,OFFSET('Budget Inputs'!$A$1,6,2,5000,1),$B43),0) -> 0 | N43: =(SUMIFS(OFFSET('Savings Results'!$A$1,6,16 +MAX('Savings Results'!$G:$G)-MIN('Savings Results'!$G:$G)+MAX('Savings Results'!$J:$J)+M$29-MIN('Savings Results'!$G:$G),5000),OFFSET('Savings Results'!$A$1,6,6,5000),M$29,OFFSET('Savings Results'!$A$1,6,4,5000),"Dx",OFFSET('Savings Results'!$A$1,6,1,5000),$A43,OFFSET('Savings Results'!$A$1,6,2,5000),$B43)/(1/(1-SUM('CE Parameters'!$F$10:$F$11))))/1000 -> 0 | O43: =IFERROR(SUMIFS('Program Design'!$U:$U,'Program Design'!$C:$C,$A43,'Program Design'!$D:$D,$B43)+SUMIFS('Program Design'!$V:$V,'Program Design'!$C:$C,$A43,'Program Design'!$D:$D,$B43)+SUMIFS('Program Design'!$W:$W,'Program Design'!$C:$C,$A43,'Program Design'!$D:$D,$B43)+SUMIFS(INDEX(OFFSET('Budget Inputs'!$A$1,6,1,5000,560),0,MATCH("Total",OFFSET('Budget Inputs'!$A$1,6,1,1,560),0)),OFFSET('Budget Inputs'!$A$1,6,1,5000,1),$A43,OFFSET('Budget Inputs'!$A$1,6,2,5000,1),$B43),0) -> 0 | P43: =(SUMIFS(OFFSET('Savings Results'!$A$1,6,16 +MAX('Savings Results'!$G:$G)-MIN('Savings Results'!$G:$G)+MAX('Savings Results'!$J:$J)+M$29-MIN('Savings Results'!$G:$G),5000),OFFSET('Savings Results'!$A$1,6,4,5000),"Dx",OFFSET('Savings Results'!$A$1,6,1,5000),$A43,OFFSET('Savings Results'!$A$1,6,2,5000),$B43)/(1/(1-SUM('CE Parameters'!$F$10:$F$11))))/1000 -> 0
A44: Business | B44: Retrofit Oshawa PUC Networks Inc. CFF | C44: =IFERROR(SUMIFS('Program Design'!$U:$U,'Program Design'!$C:$C,$A44,'Program Design'!$D:$D,$B44,'Program Design'!$J:$J,C$29)+SUMIFS('Program Design'!$V:$V,'Program Design'!$C:$C,$A44,'Program Design'!$D:$D,$B44,'Program Design'!$J:$J,C$29)+SUMIFS('Program Design'!$W:$W,'Program Design'!$C:$C,$A44,'Program Design'!$D:$D,$B44,'Program Design'!$J:$J,C$29)+SUMIFS(INDEX(OFFSET('Budget Inputs'!$A$1,6,1,5000,560),0,MATCH(CONCATENATE(C$29," Sub-Total"),OFFSET('Budget Inputs'!$A$1,6,1,1,560),0)),OFFSET('Budget Inputs'!$A$1,6,1,5000,1),$A44,OFFSET('Budget Inputs'!$A$1,6,2,5000,1),$B44),0) -> 0 | D44: =(SUMIFS(OFFSET('Savings Results'!$A$1,6,16 +MAX('Savings Results'!$G:$G)-MIN('Savings Results'!$G:$G)+MAX('Savings Results'!$J:$J)+C$29-MIN('Savings Results'!$G:$G),5000),OFFSET('Savings Results'!$A$1,6,6,5000),C$29,OFFSET('Savings Results'!$A$1,6,4,5000),"Dx",OFFSET('Savings Results'!$A$1,6,1,5000),$A44,OFFSET('Savings Results'!$A$1,6,2,5000),$B44)/(1/(1-SUM('CE Parameters'!$F$10:$F$11))))/1000 -> 0 | E44: =IFERROR(SUMIFS('Program Design'!$U:$U,'Program Design'!$C:$C,$A44,'Program Design'!$D:$D,$B44,'Program Design'!$J:$J,E$29)+SUMIFS('Program Design'!$V:$V,'Program Design'!$C:$C,$A44,'Program Design'!$D:$D,$B44,'Program Design'!$J:$J,E$29)+SUMIFS('Program Design'!$W:$W,'Program Design'!$C:$C,$A44,'Program Design'!$D:$D,$B44,'Program Design'!$J:$J,E$29)+SUMIFS(INDEX(OFFSET('Budget Inputs'!$A$1,6,1,5000,560),0,MATCH(CONCATENATE(E$29," Sub-Total"),OFFSET('Budget Inputs'!$A$1,6,1,1,560),0)),OFFSET('Budget Inputs'!$A$1,6,1,5000,1),$A44,OFFSET('Budget Inputs'!$A$1,6,2,5000,1),$B44),0) -> 654276.01 | F44: =(SUMIFS(OFFSET('Savings Results'!$A$1,6,16 +MAX('Savings Results'!$G:$G)-MIN('Savings Results'!$G:$G)+MAX('Savings Results'!$J:$J)+E$29-MIN('Savings Results'!$G:$G),5000),OFFSET('Savings Results'!$A$1,6,6,5000),E$29,OFFSET('Savings Results'!$A$1,6,4,5000),"Dx",OFFSET('Savings Results'!$A$1,6,1,5000),$A44,OFFSET('Savings Results'!$A$1,6,2,5000),$B44)/(1/(1-SUM('CE Parameters'!$F$10:$F$11))))/1000 -> 1903.7897 | G44: =IFERROR(SUMIFS('Program Design'!$U:$U,'Program Design'!$C:$C,$A44,'Program Design'!$D:$D,$B44,'Program Design'!$J:$J,G$29)+SUMIFS('Program Design'!$V:$V,'Program Design'!$C:$C,$A44,'Program Design'!$D:$D,$B44,'Program Design'!$J:$J,G$29)+SUMIFS('Program Design'!$W:$W,'Program Design'!$C:$C,$A44,'Program Design'!$D:$D,$B44,'Program Design'!$J:$J,G$29)+SUMIFS(INDEX(OFFSET('Budget Inputs'!$A$1,6,1,5000,560),0,MATCH(CONCATENATE(G$29," Sub-Total"),OFFSET('Budget Inputs'!$A$1,6,1,1,560),0)),OFFSET('Budget Inputs'!$A$1,6,1,5000,1),$A44,OFFSET('Budget Inputs'!$A$1,6,2,5000,1),$B44),0) -> 2141132.61 | H44: =(SUMIFS(OFFSET('Savings Results'!$A$1,6,16 +MAX('Savings Results'!$G:$G)-MIN('Savings Results'!$G:$G)+MAX('Savings Results'!$J:$J)+G$29-MIN('Savings Results'!$G:$G),5000),OFFSET('Savings Results'!$A$1,6,6,5000),G$29,OFFSET('Savings Results'!$A$1,6,4,5000),"Dx",OFFSET('Savings Results'!$A$1,6,1,5000),$A44,OFFSET('Savings Results'!$A$1,6,2,5000),$B44)/(1/(1-SUM('CE Parameters'!$F$10:$F$11))))/1000 -> 8847.754531 | I44: =IFERROR(SUMIFS('Program Design'!$U:$U,'Program Design'!$C:$C,$A44,'Program Design'!$D:$D,$B44,'Program Design'!$J:$J,I$29)+SUMIFS('Program Design'!$V:$V,'Program Design'!$C:$C,$A44,'Program Design'!$D:$D,$B44,'Program Design'!$J:$J,I$29)+SUMIFS('Program Design'!$W:$W,'Program Design'!$C:$C,$A44,'Program Design'!$D:$D,$B44,'Program Design'!$J:$J,I$29)+SUMIFS(INDEX(OFFSET('Budget Inputs'!$A$1,6,1,5000,560),0,MATCH(CONCATENATE(I$29," Sub-Total"),OFFSET('Budget Inputs'!$A$1,6,1,1,560),0)),OFFSET('Budget Inputs'!$A$1,6,1,5000,1),$A44,OFFSET('Budget Inputs'!$A$1,6,2,5000,1),$B44),0) -> 678413.61 | J44: =(SUMIFS(OFFSET('Savings Results'!$A$1,6,16 +MAX('Savings Results'!$G:$G)-MIN('Savings Results'!$G:$G)+MAX('Savings Results'!$J:$J)+I$29-MIN('Savings Results'!$G:$G),5000),OFFSET('Savings Results'!$A$1,6,6,5000),I$29,OFFSET('Savings Results'!$A$1,6,4,5000),"Dx",OFFSET('Savings Results'!$A$1,6,1,5000),$A44,OFFSET('Savings Results'!$A$1,6,2,5000),$B44)/(1/(1-SUM('CE Parameters'!$F$10:$F$11))))/1000 -> 1903.7897 | K44: =IFERROR(SUMIFS('Program Design'!$U:$U,'Program Design'!$C:$C,$A44,'Program Design'!$D:$D,$B44,'Program Design'!$J:$J,K$29)+SUMIFS('Program Design'!$V:$V,'Program Design'!$C:$C,$A44,'Program Design'!$D:$D,$B44,'Program Design'!$J:$J,K$29)+SUMIFS('Program Design'!$W:$W,'Program Design'!$C:$C,$A44,'Program Design'!$D:$D,$B44,'Program Design'!$J:$J,K$29)+SUMIFS(INDEX(OFFSET('Budget Inputs'!$A$1,6,1,5000,560),0,MATCH(CONCATENATE(K$29," Sub-Total"),OFFSET('Budget Inputs'!$A$1,6,1,1,560),0)),OFFSET('Budget Inputs'!$A$1,6,1,5000,1),$A44,OFFSET('Budget Inputs'!$A$1,6,2,5000,1),$B44),0) -> 678413.61 | L44: =(SUMIFS(OFFSET('Savings Results'!$A$1,6,16 +MAX('Savings Results'!$G:$G)-MIN('Savings Results'!$G:$G)+MAX('Savings Results'!$J:$J)+K$29-MIN('Savings Results'!$G:$G),5000),OFFSET('Savings Results'!$A$1,6,6,5000),K$29,OFFSET('Savings Results'!$A$1,6,4,5000),"Dx",OFFSET('Savings Results'!$A$1,6,1,5000),$A44,OFFSET('Savings Results'!$A$1,6,2,5000),$B44)/(1/(1-SUM('CE Parameters'!$F$10:$F$11))))/1000 -> 1903.7897 | M44: =IFERROR(SUMIFS('Program Design'!$U:$U,'Program Design'!$C:$C,$A44,'Program Design'!$D:$D,$B44,'Program Design'!$J:$J,M$29)+SUMIFS('Program Design'!$V:$V,'Program Design'!$C:$C,$A44,'Program Design'!$D:$D,$B44,'Program Design'!$J:$J,M$29)+SUMIFS('Program Design'!$W:$W,'Program Design'!$C:$C,$A44,'Program Design'!$D:$D,$B44,'Program Design'!$J:$J,M$29)+SUMIFS(INDEX(OFFSET('Budget Inputs'!$A$1,6,1,5000,560),0,MATCH(CONCATENATE(M$29," Sub-Total"),OFFSET('Budget Inputs'!$A$1,6,1,1,560),0)),OFFSET('Budget Inputs'!$A$1,6,1,5000,1),$A44,OFFSET('Budget Inputs'!$A$1,6,2,5000,1),$B44),0) -> 678413.61 | N44: =(SUMIFS(OFFSET('Savings Results'!$A$1,6,16 +MAX('Savings Results'!$G:$G)-MIN('Savings Results'!$G:$G)+MAX('Savings Results'!$J:$J)+M$29-MIN('Savings Results'!$G:$G),5000),OFFSET('Savings Results'!$A$1,6,6,5000),M$29,OFFSET('Savings Results'!$A$1,6,4,5000),"Dx",OFFSET('Savings Results'!$A$1,6,1,5000),$A44,OFFSET('Savings Results'!$A$1,6,2,5000),$B44)/(1/(1-SUM('CE Parameters'!$F$10:$F$11))))/1000 -> 1903.7897 | O44: =IFERROR(SUMIFS('Program Design'!$U:$U,'Program Design'!$C:$C,$A44,'Program Design'!$D:$D,$B44)+SUMIFS('Program Design'!$V:$V,'Program Design'!$C:$C,$A44,'Program Design'!$D:$D,$B44)+SUMIFS('Program Design'!$W:$W,'Program Design'!$C:$C,$A44,'Program Design'!$D:$D,$B44)+SUMIFS(INDEX(OFFSET('Budget Inputs'!$A$1,6,1,5000,560),0,MATCH("Total",OFFSET('Budget Inputs'!$A$1,6,1,1,560),0)),OFFSET('Budget Inputs'!$A$1,6,1,5000,1),$A44,OFFSET('Budget Inputs'!$A$1,6,2,5000,1),$B44),0) -> 4830649.45 | P44: =(SUMIFS(OFFSET('Savings Results'!$A$1,6,16 +MAX('Savings Results'!$G:$G)-MIN('Savings Results'!$G:$G)+MAX('Savings Results'!$J:$J)+M$29-MIN('Savings Results'!$G:$G),5000),OFFSET('Savings Results'!$A$1,6,4,5000),"Dx",OFFSET('Savings Results'!$A$1,6,1,5000),$A44,OFFSET('Savings Results'!$A$1,6,2,5000),$B44)/(1/(1-SUM('CE Parameters'!$F$10:$F$11))))/1000 -> 16462.91333
A45: Business | B45: Small Business Lighting Oshawa PUC Networks Inc. CFF | C45: =IFERROR(SUMIFS('Program Design'!$U:$U,'Program Design'!$C:$C,$A45,'Program Design'!$D:$D,$B45,'Program Design'!$J:$J,C$29)+SUMIFS('Program Design'!$V:$V,'Program Design'!$C:$C,$A45,'Program Design'!$D:$D,$B45,'Program Design'!$J:$J,C$29)+SUMIFS('Program Design'!$W:$W,'Program Design'!$C:$C,$A45,'Program Design'!$D:$D,$B45,'Program Design'!$J:$J,C$29)+SUMIFS(INDEX(OFFSET('Budget Inputs'!$A$1,6,1,5000,560),0,MATCH(CONCATENATE(C$29," Sub-Total"),OFFSET('Budget Inputs'!$A$1,6,1,1,560),0)),OFFSET('Budget Inputs'!$A$1,6,1,5000,1),$A45,OFFSET('Budget Inputs'!$A$1,6,2,5000,1),$B45),0) -> 0 | D45: =(SUMIFS(OFFSET('Savings Results'!$A$1,6,16 +MAX('Savings Results'!$G:$G)-MIN('Savings Results'!$G:$G)+MAX('Savings Results'!$J:$J)+C$29-MIN('Savings Results'!$G:$G),5000),OFFSET('Savings Results'!$A$1,6,6,5000),C$29,OFFSET('Savings Results'!$A$1,6,4,5000),"Dx",OFFSET('Savings Results'!$A$1,6,1,5000),$A45,OFFSET('Savings Results'!$A$1,6,2,5000),$B45)/(1/(1-SUM('CE Parameters'!$F$10:$F$11))))/1000 -> 0 | E45: =IFERROR(SUMIFS('Program Design'!$U:$U,'Program Design'!$C:$C,$A45,'Program Design'!$D:$D,$B45,'Program Design'!$J:$J,E$29)+SUMIFS('Program Design'!$V:$V,'Program Design'!$C:$C,$A45,'Program Design'!$D:$D,$B45,'Program Design'!$J:$J,E$29)+SUMIFS('Program Design'!$W:$W,'Program Design'!$C:$C,$A45,'Program Design'!$D:$D,$B45,'Program Design'!$J:$J,E$29)+SUMIFS(INDEX(OFFSET('Budget Inputs'!$A$1,6,1,5000,560),0,MATCH(CONCATENATE(E$29," Sub-Total"),OFFSET('Budget Inputs'!$A$1,6,1,1,560),0)),OFFSET('Budget Inputs'!$A$1,6,1,5000,1),$A45,OFFSET('Budget Inputs'!$A$1,6,2,5000,1),$B45),0) -> 262935.31 | F45: =(SUMIFS(OFFSET('Savings Results'!$A$1,6,16 +MAX('Savings Results'!$G:$G)-MIN('Savings Results'!$G:$G)+MAX('Savings Results'!$J:$J)+E$29-MIN('Savings Results'!$G:$G),5000),OFFSET('Savings Results'!$A$1,6,6,5000),E$29,OFFSET('Savings Results'!$A$1,6,4,5000),"Dx",OFFSET('Savings Results'!$A$1,6,1,5000),$A45,OFFSET('Savings Results'!$A$1,6,2,5000),$B45)/(1/(1-SUM('CE Parameters'!$F$10:$F$11))))/1000 -> 1620.2357 | G45: =IFERROR(SUMIFS('Program Design'!$U:$U,'Program Design'!$C:$C,$A45,'Program Design'!$D:$D,$B45,'Program Design'!$J:$J,G$29)+SUMIFS('Program Design'!$V:$V,'Program Design'!$C:$C,$A45,'Program Design'!$D:$D,$B45,'Program Design'!$J:$J,G$29)+SUMIFS('Program Design'!$W:$W,'Program Design'!$C:$C,$A45,'Program Design'!$D:$D,$B45,'Program Design'!$J:$J,G$29)+SUMIFS(INDEX(OFFSET('Budget Inputs'!$A$1,6,1,5000,560),0,MATCH(CONCATENATE(G$29," Sub-Total"),OFFSET('Budget Inputs'!$A$1,6,1,1,560),0)),OFFSET('Budget Inputs'!$A$1,6,1,5000,1),$A45,OFFSET('Budget Inputs'!$A$1,6,2,5000,1),$B45),0) -> 264384.17 | H45: =(SUMIFS(OFFSET('Savings Results'!$A$1,6,16 +MAX('Savings Results'!$G:$G)-MIN('Savings Results'!$G:$G)+MAX('Savings Results'!$J:$J)+G$29-MIN('Savings Results'!$G:$G),5000),OFFSET('Savings Results'!$A$1,6,6,5000),G$29,OFFSET('Savings Results'!$A$1,6,4,5000),"Dx",OFFSET('Savings Results'!$A$1,6,1,5000),$A45,OFFSET('Savings Results'!$A$1,6,2,5000),$B45)/(1/(1-SUM('CE Parameters'!$F$10:$F$11))))/1000 -> 1507.196 | I45: =IFERROR(SUMIFS('Program Design'!$U:$U,'Program Design'!$C:$C,$A45,'Program Design'!$D:$D,$B45,'Program Design'!$J:$J,I$29)+SUMIFS('Program Design'!$V:$V,'Program Design'!$C:$C,$A45,'Program Design'!$D:$D,$B45,'Program Design'!$J:$J,I$29)+SUMIFS('Program Design'!$W:$W,'Program Design'!$C:$C,$A45,'Program Design'!$D:$D,$B45,'Program Design'!$J:$J,I$29)+SUMIFS(INDEX(OFFSET('Budget Inputs'!$A$1,6,1,5000,560),0,MATCH(CONCATENATE(I$29," Sub-Total"),OFFSET('Budget Inputs'!$A$1,6,1,1,560),0)),OFFSET('Budget Inputs'!$A$1,6,1,5000,1),$A45,OFFSET('Budget Inputs'!$A$1,6,2,5000,1),$B45),0) -> 357884.17 | J45: =(SUMIFS(OFFSET('Savings Results'!$A$1,6,16 +MAX('Savings Results'!$G:$G)-MIN('Savings Results'!$G:$G)+MAX('Savings Results'!$J:$J)+I$29-MIN('Savings Results'!$G:$G),5000),OFFSET('Savings Results'!$A$1,6,6,5000),I$29,OFFSET('Savings Results'!$A$1,6,4,5000),"Dx",OFFSET('Savings Results'!$A$1,6,1,5000),$A45,OFFSET('Savings Results'!$A$1,6,2,5000),$B45)/(1/(1-SUM('CE Parameters'!$F$10:$F$11))))/1000 -> 2260.794 | K45: =IFERROR(SUMIFS('Program Design'!$U:$U,'Program Design'!$C:$C,$A45,'Program Design'!$D:$D,$B45,'Program Design'!$J:$J,K$29)+SUMIFS('Program Design'!$V:$V,'Program Design'!$C:$C,$A45,'Program Design'!$D:$D,$B45,'Program Design'!$J:$J,K$29)+SUMIFS('Program Design'!$W:$W,'Program Design'!$C:$C,$A45,'Program Design'!$D:$D,$B45,'Program Design'!$J:$J,K$29)+SUMIFS(INDEX(OFFSET('Budget Inputs'!$A$1,6,1,5000,560),0,MATCH(CONCATENATE(K$29," Sub-Total"),OFFSET('Budget Inputs'!$A$1,6,1,1,560),0)),OFFSET('Budget Inputs'!$A$1,6,1,5000,1),$A45,OFFSET('Budget Inputs'!$A$1,6,2,5000,1),$B45),0) -> 301784.17 | L45: =(SUMIFS(OFFSET('Savings Results'!$A$1,6,16 +MAX('Savings Results'!$G:$G)-MIN('Savings Results'!$G:$G)+MAX('Savings Results'!$J:$J)+K$29-MIN('Savings Results'!$G:$G),5000),OFFSET('Savings Results'!$A$1,6,6,5000),K$29,OFFSET('Savings Results'!$A$1,6,4,5000),"Dx",OFFSET('Savings Results'!$A$1,6,1,5000),$A45,OFFSET('Savings Results'!$A$1,6,2,5000),$B45)/(1/(1-SUM('CE Parameters'!$F$10:$F$11))))/1000 -> 1808.6352 | M45: =IFERROR(SUMIFS('Program Design'!$U:$U,'Program Design'!$C:$C,$A45,'Program Design'!$D:$D,$B45,'Program Design'!$J:$J,M$29)+SUMIFS('Program Design'!$V:$V,'Program Design'!$C:$C,$A45,'Program Design'!$D:$D,$B45,'Program Design'!$J:$J,M$29)+SUMIFS('Program Design'!$W:$W,'Program Design'!$C:$C,$A45,'Program Design'!$D:$D,$B45,'Program Design'!$J:$J,M$29)+SUMIFS(INDEX(OFFSET('Budget Inputs'!$A$1,6,1,5000,560),0,MATCH(CONCATENATE(M$29," Sub-Total"),OFFSET('Budget Inputs'!$A$1,6,1,1,560),0)),OFFSET('Budget Inputs'!$A$1,6,1,5000,1),$A45,OFFSET('Budget Inputs'!$A$1,6,2,5000,1),$B45),0) -> 301784.17 | N45: =(SUMIFS(OFFSET('Savings Results'!$A$1,6,16 +MAX('Savings Results'!$G:$G)-MIN('Savings Results'!$G:$G)+MAX('Savings Results'!$J:$J)+M$29-MIN('Savings Results'!$G:$G),5000),OFFSET('Savings Results'!$A$1,6,6,5000),M$29,OFFSET('Savings Results'!$A$1,6,4,5000),"Dx",OFFSET('Savings Results'!$A$1,6,1,5000),$A45,OFFSET('Savings Results'!$A$1,6,2,5000),$B45)/(1/(1-SUM('CE Parameters'!$F$10:$F$11))))/1000 -> 1808.6352 | O45: =IFERROR(SUMIFS('Program Design'!$U:$U,'Program Design'!$C:$C,$A45,'Program Design'!$D:$D,$B45)+SUMIFS('Program Design'!$V:$V,'Program Design'!$C:$C,$A45,'Program Design'!$D:$D,$B45)+SUMIFS('Program Design'!$W:$W,'Program Design'!$C:$C,$A45,'Program Design'!$D:$D,$B45)+SUMIFS(INDEX(OFFSET('Budget Inputs'!$A$1,6,1,5000,560),0,MATCH("Total",OFFSET('Budget Inputs'!$A$1,6,1,1,560),0)),OFFSET('Budget Inputs'!$A$1,6,1,5000,1),$A45,OFFSET('Budget Inputs'!$A$1,6,2,5000,1),$B45),0) -> 1488771.99 | P45: =(SUMIFS(OFFSET('Savings Results'!$A$1,6,16 +MAX('Savings Results'!$G:$G)-MIN('Savings Results'!$G:$G)+MAX('Savings Results'!$J:$J)+M$29-MIN('Savings Results'!$G:$G),5000),OFFSET('Savings Results'!$A$1,6,4,5000),"Dx",OFFSET('Savings Results'!$A$1,6,1,5000),$A45,OFFSET('Savings Results'!$A$1,6,2,5000),$B45)/(1/(1-SUM('CE Parameters'!$F$10:$F$11))))/1000 -> 9005.4961
A46: Business | B46: High Performance New Construction (HPNC) Oshawa PUC Networks Inc. CFF | C46: =IFERROR(SUMIFS('Program Design'!$U:$U,'Program Design'!$C:$C,$A46,'Program Design'!$D:$D,$B46,'Program Design'!$J:$J,C$29)+SUMIFS('Program Design'!$V:$V,'Program Design'!$C:$C,$A46,'Program Design'!$D:$D,$B46,'Program Design'!$J:$J,C$29)+SUMIFS('Program Design'!$W:$W,'Program Design'!$C:$C,$A46,'Program Design'!$D:$D,$B46,'Program Design'!$J:$J,C$29)+SUMIFS(INDEX(OFFSET('Budget Inputs'!$A$1,6,1,5000,560),0,MATCH(CONCATENATE(C$29," Sub-Total"),OFFSET('Budget Inputs'!$A$1,6,1,1,560),0)),OFFSET('Budget Inputs'!$A$1,6,1,5000,1),$A46,OFFSET('Budget Inputs'!$A$1,6,2,5000,1),$B46),0) -> 0 | D46: =(SUMIFS(OFFSET('Savings Results'!$A$1,6,16 +MAX('Savings Results'!$G:$G)-MIN('Savings Results'!$G:$G)+MAX('Savings Results'!$J:$J)+C$29-MIN('Savings Results'!$G:$G),5000),OFFSET('Savings Results'!$A$1,6,6,5000),C$29,OFFSET('Savings Results'!$A$1,6,4,5000),"Dx",OFFSET('Savings Results'!$A$1,6,1,5000),$A46,OFFSET('Savings Results'!$A$1,6,2,5000),$B46)/(1/(1-SUM('CE Parameters'!$F$10:$F$11))))/1000 -> 0 | E46: =IFERROR(SUMIFS('Program Design'!$U:$U,'Program Design'!$C:$C,$A46,'Program Design'!$D:$D,$B46,'Program Design'!$J:$J,E$29)+SUMIFS('Program Design'!$V:$V,'Program Design'!$C:$C,$A46,'Program Design'!$D:$D,$B46,'Program Design'!$J:$J,E$29)+SUMIFS('Program Design'!$W:$W,'Program Design'!$C:$C,$A46,'Program Design'!$D:$D,$B46,'Program Design'!$J:$J,E$29)+SUMIFS(INDEX(OFFSET('Budget Inputs'!$A$1,6,1,5000,560),0,MATCH(CONCATENATE(E$29," Sub-Total"),OFFSET('Budget Inputs'!$A$1,6,1,1,560),0)),OFFSET('Budget Inputs'!$A$1,6,1,5000,1),$A46,OFFSET('Budget Inputs'!$A$1,6,2,5000,1),$B46),0) -> 169328.6166 | F46: =(SUMIFS(OFFSET('Savings Results'!$A$1,6,16 +MAX('Savings Results'!$G:$G)-MIN('Savings Results'!$G:$G)+MAX('Savings Results'!$J:$J)+E$29-MIN('Savings Results'!$G:$G),5000),OFFSET('Savings Results'!$A$1,6,6,5000),E$29,OFFSET('Savings Results'!$A$1,6,4,5000),"Dx",OFFSET('Savings Results'!$A$1,6,1,5000),$A46,OFFSET('Savings Results'!$A$1,6,2,5000),$B46)/(1/(1-SUM('CE Parameters'!$F$10:$F$11))))/1000 -> 86.05418089 | G46: =IFERROR(SUMIFS('Program Design'!$U:$U,'Program Design'!$C:$C,$A46,'Program Design'!$D:$D,$B46,'Program Design'!$J:$J,G$29)+SUMIFS('Program Design'!$V:$V,'Program Design'!$C:$C,$A46,'Program Design'!$D:$D,$B46,'Program Design'!$J:$J,G$29)+SUMIFS('Program Design'!$W:$W,'Program Design'!$C:$C,$A46,'Program Design'!$D:$D,$B46,'Program Design'!$J:$J,G$29)+SUMIFS(INDEX(OFFSET('Budget Inputs'!$A$1,6,1,5000,560),0,MATCH(CONCATENATE(G$29," Sub-Total"),OFFSET('Budget Inputs'!$A$1,6,1,1,560),0)),OFFSET('Budget Inputs'!$A$1,6,1,5000,1),$A46,OFFSET('Budget Inputs'!$A$1,6,2,5000,1),$B46),0) -> 170324.8566 | H46: =(SUMIFS(OFFSET('Savings Results'!$A$1,6,16 +MAX('Savings Results'!$G:$G)-MIN('Savings Results'!$G:$G)+MAX('Savings Results'!$J:$J)+G$29-MIN('Savings Results'!$G:$G),5000),OFFSET('Savings Results'!$A$1,6,6,5000),G$29,OFFSET('Savings Results'!$A$1,6,4,5000),"Dx",OFFSET('Savings Results'!$A$1,6,1,5000),$A46,OFFSET('Savings Results'!$A$1,6,2,5000),$B46)/(1/(1-SUM('CE Parameters'!$F$10:$F$11))))/1000 -> 86.05418089 | I46: =IFERROR(SUMIFS('Program Design'!$U:$U,'Program Design'!$C:$C,$A46,'Program Design'!$D:$D,$B46,'Program Design'!$J:$J,I$29)+SUMIFS('Program Design'!$V:$V,'Program Design'!$C:$C,$A46,'Program Design'!$D:$D,$B46,'Program Design'!$J:$J,I$29)+SUMIFS('Program Design'!$W:$W,'Program Design'!$C:$C,$A46,'Program Design'!$D:$D,$B46,'Program Design'!$J:$J,I$29)+SUMIFS(INDEX(OFFSET('Budget Inputs'!$A$1,6,1,5000,560),0,MATCH(CONCATENATE(I$29," Sub-Total"),OFFSET('Budget Inputs'!$A$1,6,1,1,560),0)),OFFSET('Budget Inputs'!$A$1,6,1,5000,1),$A46,OFFSET('Budget Inputs'!$A$1,6,2,5000,1),$B46),0) -> 170324.8566 | J46: =(SUMIFS(OFFSET('Savings Results'!$A$1,6,16 +MAX('Savings Results'!$G:$G)-MIN('Savings Results'!$G:$G)+MAX('Savings Results'!$J:$J)+I$29-MIN('Savings Results'!$G:$G),5000),OFFSET('Savings Results'!$A$1,6,6,5000),I$29,OFFSET('Savings Results'!$A$1,6,4,5000),"Dx",OFFSET('Savings Results'!$A$1,6,1,5000),$A46,OFFSET('Savings Results'!$A$1,6,2,5000),$B46)/(1/(1-SUM('CE Parameters'!$F$10:$F$11))))/1000 -> 86.05418089 | K46: =IFERROR(SUMIFS('Program Design'!$U:$U,'Program Design'!$C:$C,$A46,'Program Design'!$D:$D,$B46,'Program Design'!$J:$J,K$29)+SUMIFS('Program Design'!$V:$V,'Program Design'!$C:$C,$A46,'Program Design'!$D:$D,$B46,'Program Design'!$J:$J,K$29)+SUMIFS('Program Design'!$W:$W,'Program Design'!$C:$C,$A46,'Program Design'!$D:$D,$B46,'Program Design'!$J:$J,K$29)+SUMIFS(INDEX(OFFSET('Budget Inputs'!$A$1,6,1,5000,560),0,MATCH(CONCATENATE(K$29," Sub-Total"),OFFSET('Budget Inputs'!$A$1,6,1,1,560),0)),OFFSET('Budget Inputs'!$A$1,6,1,5000,1),$A46,OFFSET('Budget Inputs'!$A$1,6,2,5000,1),$B46),0) -> 170324.8566 | L46: =(SUMIFS(OFFSET('Savings Results'!$A$1,6,16 +MAX('Savings Results'!$G:$G)-MIN('Savings Results'!$G:$G)+MAX('Savings Results'!$J:$J)+K$29-MIN('Savings Results'!$G:$G),5000),OFFSET('Savings Results'!$A$1,6,6,5000),K$29,OFFSET('Savings Results'!$A$1,6,4,5000),"Dx",OFFSET('Savings Results'!$A$1,6,1,5000),$A46,OFFSET('Savings Results'!$A$1,6,2,5000),$B46)/(1/(1-SUM('CE Parameters'!$F$10:$F$11))))/1000 -> 86.05418089 | M46: =IFERROR(SUMIFS('Program Design'!$U:$U,'Program Design'!$C:$C,$A46,'Program Design'!$D:$D,$B46,'Program Design'!$J:$J,M$29)+SUMIFS('Program Design'!$V:$V,'Program Design'!$C:$C,$A46,'Program Design'!$D:$D,$B46,'Program Design'!$J:$J,M$29)+SUMIFS('Program Design'!$W:$W,'Program Design'!$C:$C,$A46,'Program Design'!$D:$D,$B46,'Program Design'!$J:$J,M$29)+SUMIFS(INDEX(OFFSET('Budget Inputs'!$A$1,6,1,5000,560),0,MATCH(CONCATENATE(M$29," Sub-Total"),OFFSET('Budget Inputs'!$A$1,6,1,1,560),0)),OFFSET('Budget Inputs'!$A$1,6,1,5000,1),$A46,OFFSET('Budget Inputs'!$A$1,6,2,5000,1),$B46),0) -> 170324.8566 | N46: =(SUMIFS(OFFSET('Savings Results'!$A$1,6,16 +MAX('Savings Results'!$G:$G)-MIN('Savings Results'!$G:$G)+MAX('Savings Results'!$J:$J)+M$29-MIN('Savings Results'!$G:$G),5000),OFFSET('Savings Results'!$A$1,6,6,5000),M$29,OFFSET('Savings Results'!$A$1,6,4,5000),"Dx",OFFSET('Savings Results'!$A$1,6,1,5000),$A46,OFFSET('Savings Results'!$A$1,6,2,5000),$B46)/(1/(1-SUM('CE Parameters'!$F$10:$F$11))))/1000 -> 86.05418089 | O46: =IFERROR(SUMIFS('Program Design'!$U:$U,'Program Design'!$C:$C,$A46,'Program Design'!$D:$D,$B46)+SUMIFS('Program Design'!$V:$V,'Program Design'!$C:$C,$A46,'Program Design'!$D:$D,$B46)+SUMIFS('Program Design'!$W:$W,'Program Design'!$C:$C,$A46,'Program Design'!$D:$D,$B46)+SUMIFS(INDEX(OFFSET('Budget Inputs'!$A$1,6,1,5000,560),0,MATCH("Total",OFFSET('Budget Inputs'!$A$1,6,1,1,560),0)),OFFSET('Budget Inputs'!$A$1,6,1,5000,1),$A46,OFFSET('Budget Inputs'!$A$1,6,2,5000,1),$B46),0) -> 850628.0429 | P46: =(SUMIFS(OFFSET('Savings Results'!$A$1,6,16 +MAX('Savings Results'!$G:$G)-MIN('Savings Results'!$G:$G)+MAX('Savings Results'!$J:$J)+M$29-MIN('Savings Results'!$G:$G),5000),OFFSET('Savings Results'!$A$1,6,4,5000),"Dx",OFFSET('Savings Results'!$A$1,6,1,5000),$A46,OFFSET('Savings Results'!$A$1,6,2,5000),$B46)/(1/(1-SUM('CE Parameters'!$F$10:$F$11))))/1000 -> 430.2709045
A47: Business | B47: P4P Pilot Oshawa PUC Networks Inc. CFF | C47: =IFERROR(SUMIFS('Program Design'!$U:$U,'Program Design'!$C:$C,$A47,'Program Design'!$D:$D,$B47,'Program Design'!$J:$J,C$29)+SUMIFS('Program Design'!$V:$V,'Program Design'!$C:$C,$A47,'Program Design'!$D:$D,$B47,'Program Design'!$J:$J,C$29)+SUMIFS('Program Design'!$W:$W,'Program Design'!$C:$C,$A47,'Program Design'!$D:$D,$B47,'Program Design'!$J:$J,C$29)+SUMIFS(INDEX(OFFSET('Budget Inputs'!$A$1,6,1,5000,560),0,MATCH(CONCATENATE(C$29," Sub-Total"),OFFSET('Budget Inputs'!$A$1,6,1,1,560),0)),OFFSET('Budget Inputs'!$A$1,6,1,5000,1),$A47,OFFSET('Budget Inputs'!$A$1,6,2,5000,1),$B47),0) -> 0 | D47: =(SUMIFS(OFFSET('Savings Results'!$A$1,6,16 +MAX('Savings Results'!$G:$G)-MIN('Savings Results'!$G:$G)+MAX('Savings Results'!$J:$J)+C$29-MIN('Savings Results'!$G:$G),5000),OFFSET('Savings Results'!$A$1,6,6,5000),C$29,OFFSET('Savings Results'!$A$1,6,4,5000),"Dx",OFFSET('Savings Results'!$A$1,6,1,5000),$A47,OFFSET('Savings Results'!$A$1,6,2,5000),$B47)/(1/(1-SUM('CE Parameters'!$F$10:$F$11))))/1000 -> 0 | E47: =IFERROR(SUMIFS('Program Design'!$U:$U,'Program Design'!$C:$C,$A47,'Program Design'!$D:$D,$B47,'Program Design'!$J:$J,E$29)+SUMIFS('Program Design'!$V:$V,'Program Design'!$C:$C,$A47,'Program Design'!$D:$D,$B47,'Program Design'!$J:$J,E$29)+SUMIFS('Program Design'!$W:$W,'Program Design'!$C:$C,$A47,'Program Design'!$D:$D,$B47,'Program Design'!$J:$J,E$29)+SUMIFS(INDEX(OFFSET('Budget Inputs'!$A$1,6,1,5000,560),0,MATCH(CONCATENATE(E$29," Sub-Total"),OFFSET('Budget Inputs'!$A$1,6,1,1,560),0)),OFFSET('Budget Inputs'!$A$1,6,1,5000,1),$A47,OFFSET('Budget Inputs'!$A$1,6,2,5000,1),$B47),0) -> 0 | F47: =(SUMIFS(OFFSET('Savings Results'!$A$1,6,16 +MAX('Savings Results'!$G:$G)-MIN('Savings Results'!$G:$G)+MAX('Savings Results'!$J:$J)+E$29-MIN('Savings Results'!$G:$G),5000),OFFSET('Savings Results'!$A$1,6,6,5000),E$29,OFFSET('Savings Results'!$A$1,6,4,5000),"Dx",OFFSET('Savings Results'!$A$1,6,1,5000),$A47,OFFSET('Savings Results'!$A$1,6,2,5000),$B47)/(1/(1-SUM('CE Parameters'!$F$10:$F$11))))/1000 -> 0 | G47: =IFERROR(SUMIFS('Program Design'!$U:$U,'Program Design'!$C:$C,$A47,'Program Design'!$D:$D,$B47,'Program Design'!$J:$J,G$29)+SUMIFS('Program Design'!$V:$V,'Program Design'!$C:$C,$A47,'Program Design'!$D:$D,$B47,'Program Design'!$J:$J,G$29)+SUMIFS('Program Design'!$W:$W,'Program Design'!$C:$C,$A47,'Program Design'!$D:$D,$B47,'Program Design'!$J:$J,G$29)+SUMIFS(INDEX(OFFSET('Budget Inputs'!$A$1,6,1,5000,560),0,MATCH(CONCATENATE(G$29," Sub-Total"),OFFSET('Budget Inputs'!$A$1,6,1,1,560),0)),OFFSET('Budget Inputs'!$A$1,6,1,5000,1),$A47,OFFSET('Budget Inputs'!$A$1,6,2,5000,1),$B47),0) -> 0 | H47: =(SUMIFS(OFFSET('Savings Results'!$A$1,6,16 +MAX('Savings Results'!$G:$G)-MIN('Savings Results'!$G:$G)+MAX('Savings Results'!$J:$J)+G$29-MIN('Savings Results'!$G:$G),5000),OFFSET('Savings Results'!$A$1,6,6,5000),G$29,OFFSET('Savings Results'!$A$1,6,4,5000),"Dx",OFFSET('Savings Results'!$A$1,6,1,5000),$A47,OFFSET('Savings Results'!$A$1,6,2,5000),$B47)/(1/(1-SUM('CE Parameters'!$F$10:$F$11))))/1000 -> 0 | I47: =IFERROR(SUMIFS('Program Design'!$U:$U,'Program Design'!$C:$C,$A47,'Program Design'!$D:$D,$B47,'Program Design'!$J:$J,I$29)+SUMIFS('Program Design'!$V:$V,'Program Design'!$C:$C,$A47,'Program Design'!$D:$D,$B47,'Program Design'!$J:$J,I$29)+SUMIFS('Program Design'!$W:$W,'Program Design'!$C:$C,$A47,'Program Design'!$D:$D,$B47,'Program Design'!$J:$J,I$29)+SUMIFS(INDEX(OFFSET('Budget Inputs'!$A$1,6,1,5000,560),0,MATCH(CONCATENATE(I$29," Sub-Total"),OFFSET('Budget Inputs'!$A$1,6,1,1,560),0)),OFFSET('Budget Inputs'!$A$1,6,1,5000,1),$A47,OFFSET('Budget Inputs'!$A$1,6,2,5000,1),$B47),0) -> 0 | J47: =(SUMIFS(OFFSET('Savings Results'!$A$1,6,16 +MAX('Savings Results'!$G:$G)-MIN('Savings Results'!$G:$G)+MAX('Savings Results'!$J:$J)+I$29-MIN('Savings Results'!$G:$G),5000),OFFSET('Savings Results'!$A$1,6,6,5000),I$29,OFFSET('Savings Results'!$A$1,6,4,5000),"Dx",OFFSET('Savings Results'!$A$1,6,1,5000),$A47,OFFSET('Savings Results'!$A$1,6,2,5000),$B47)/(1/(1-SUM('CE Parameters'!$F$10:$F$11))))/1000 -> 0 | K47: =IFERROR(SUMIFS('Program Design'!$U:$U,'Program Design'!$C:$C,$A47,'Program Design'!$D:$D,$B47,'Program Design'!$J:$J,K$29)+SUMIFS('Program Design'!$V:$V,'Program Design'!$C:$C,$A47,'Program Design'!$D:$D,$B47,'Program Design'!$J:$J,K$29)+SUMIFS('Program Design'!$W:$W,'Program Design'!$C:$C,$A47,'Program Design'!$D:$D,$B47,'Program Design'!$J:$J,K$29)+SUMIFS(INDEX(OFFSET('Budget Inputs'!$A$1,6,1,5000,560),0,MATCH(CONCATENATE(K$29," Sub-Total"),OFFSET('Budget Inputs'!$A$1,6,1,1,560),0)),OFFSET('Budget Inputs'!$A$1,6,1,5000,1),$A47,OFFSET('Budget Inputs'!$A$1,6,2,5000,1),$B47),0) -> 0 | L47: =(SUMIFS(OFFSET('Savings Results'!$A$1,6,16 +MAX('Savings Results'!$G:$G)-MIN('Savings Results'!$G:$G)+MAX('Savings Results'!$J:$J)+K$29-MIN('Savings Results'!$G:$G),5000),OFFSET('Savings Results'!$A$1,6,6,5000),K$29,OFFSET('Savings Results'!$A$1,6,4,5000),"Dx",OFFSET('Savings Results'!$A$1,6,1,5000),$A47,OFFSET('Savings Results'!$A$1,6,2,5000),$B47)/(1/(1-SUM('CE Parameters'!$F$10:$F$11))))/1000 -> 0 | M47: =IFERROR(SUMIFS('Program Design'!$U:$U,'Program Design'!$C:$C,$A47,'Program Design'!$D:$D,$B47,'Program Design'!$J:$J,M$29)+SUMIFS('Program Design'!$V:$V,'Program Design'!$C:$C,$A47,'Program Design'!$D:$D,$B47,'Program Design'!$J:$J,M$29)+SUMIFS('Program Design'!$W:$W,'Program Design'!$C:$C,$A47,'Program Design'!$D:$D,$B47,'Program Design'!$J:$J,M$29)+SUMIFS(INDEX(OFFSET('Budget Inputs'!$A$1,6,1,5000,560),0,MATCH(CONCATENATE(M$29," Sub-Total"),OFFSET('Budget Inputs'!$A$1,6,1,1,560),0)),OFFSET('Budget Inputs'!$A$1,6,1,5000,1),$A47,OFFSET('Budget Inputs'!$A$1,6,2,5000,1),$B47),0) -> 0 | N47: =(SUMIFS(OFFSET('Savings Results'!$A$1,6,16 +MAX('Savings Results'!$G:$G)-MIN('Savings Results'!$G:$G)+MAX('Savings Results'!$J:$J)+M$29-MIN('Savings Results'!$G:$G),5000),OFFSET('Savings Results'!$A$1,6,6,5000),M$29,OFFSET('Savings Results'!$A$1,6,4,5000),"Dx",OFFSET('Savings Results'!$A$1,6,1,5000),$A47,OFFSET('Savings Results'!$A$1,6,2,5000),$B47)/(1/(1-SUM('CE Parameters'!$F$10:$F$11))))/1000 -> 0 | O47: =IFERROR(SUMIFS('Program Design'!$U:$U,'Program Design'!$C:$C,$A47,'Program Design'!$D:$D,$B47)+SUMIFS('Program Design'!$V:$V,'Program Design'!$C:$C,$A47,'Program Design'!$D:$D,$B47)+SUMIFS('Program Design'!$W:$W,'Program Design'!$C:$C,$A47,'Program Design'!$D:$D,$B47)+SUMIFS(INDEX(OFFSET('Budget Inputs'!$A$1,6,1,5000,560),0,MATCH("Total",OFFSET('Budget Inputs'!$A$1,6,1,1,560),0)),OFFSET('Budget Inputs'!$A$1,6,1,5000,1),$A47,OFFSET('Budget Inputs'!$A$1,6,2,5000,1),$B47),0) -> 0 | P47: =(SUMIFS(OFFSET('Savings Results'!$A$1,6,16 +MAX('Savings Results'!$G:$G)-MIN('Savings Results'!$G:$G)+MAX('Savings Results'!$J:$J)+M$29-MIN('Savings Results'!$G:$G),5000),OFFSET('Savings Results'!$A$1,6,4,5000),"Dx",OFFSET('Savings Results'!$A$1,6,1,5000),$A47,OFFSET('Savings Results'!$A$1,6,2,5000),$B47)/(1/(1-SUM('CE Parameters'!$F$10:$F$11))))/1000 -> 0
A48: Business | B48: Audit Funding Oshawa PUC Networks Inc. CFF | C48: =IFERROR(SUMIFS('Program Design'!$U:$U,'Program Design'!$C:$C,$A48,'Program Design'!$D:$D,$B48,'Program Design'!$J:$J,C$29)+SUMIFS('Program Design'!$V:$V,'Program Design'!$C:$C,$A48,'Program Design'!$D:$D,$B48,'Program Design'!$J:$J,C$29)+SUMIFS('Program Design'!$W:$W,'Program Design'!$C:$C,$A48,'Program Design'!$D:$D,$B48,'Program Design'!$J:$J,C$29)+SUMIFS(INDEX(OFFSET('Budget Inputs'!$A$1,6,1,5000,560),0,MATCH(CONCATENATE(C$29," Sub-Total"),OFFSET('Budget Inputs'!$A$1,6,1,1,560),0)),OFFSET('Budget Inputs'!$A$1,6,1,5000,1),$A48,OFFSET('Budget Inputs'!$A$1,6,2,5000,1),$B48),0) -> 0 | D48: =(SUMIFS(OFFSET('Savings Results'!$A$1,6,16 +MAX('Savings Results'!$G:$G)-MIN('Savings Results'!$G:$G)+MAX('Savings Results'!$J:$J)+C$29-MIN('Savings Results'!$G:$G),5000),OFFSET('Savings Results'!$A$1,6,6,5000),C$29,OFFSET('Savings Results'!$A$1,6,4,5000),"Dx",OFFSET('Savings Results'!$A$1,6,1,5000),$A48,OFFSET('Savings Results'!$A$1,6,2,5000),$B48)/(1/(1-SUM('CE Parameters'!$F$10:$F$11))))/1000 -> 0 | E48: =IFERROR(SUMIFS('Program Design'!$U:$U,'Program Design'!$C:$C,$A48,'Program Design'!$D:$D,$B48,'Program Design'!$J:$J,E$29)+SUMIFS('Program Design'!$V:$V,'Program Design'!$C:$C,$A48,'Program Design'!$D:$D,$B48,'Program Design'!$J:$J,E$29)+SUMIFS('Program Design'!$W:$W,'Program Design'!$C:$C,$A48,'Program Design'!$D:$D,$B48,'Program Design'!$J:$J,E$29)+SUMIFS(INDEX(OFFSET('Budget Inputs'!$A$1,6,1,5000,560),0,MATCH(CONCATENATE(E$29," Sub-Total"),OFFSET('Budget Inputs'!$A$1,6,1,1,560),0)),OFFSET('Budget Inputs'!$A$1,6,1,5000,1),$A48,OFFSET('Budget Inputs'!$A$1,6,2,5000,1),$B48),0) -> 68763.27 | F48: =(SUMIFS(OFFSET('Savings Results'!$A$1,6,16 +MAX('Savings Results'!$G:$G)-MIN('Savings Results'!$G:$G)+MAX('Savings Results'!$J:$J)+E$29-MIN('Savings Results'!$G:$G),5000),OFFSET('Savings Results'!$A$1,6,6,5000),E$29,OFFSET('Savings Results'!$A$1,6,4,5000),"Dx",OFFSET('Savings Results'!$A$1,6,1,5000),$A48,OFFSET('Savings Results'!$A$1,6,2,5000),$B48)/(1/(1-SUM('CE Parameters'!$F$10:$F$11))))/1000 -> 443.7931178 | G48: =IFERROR(SUMIFS('Program Design'!$U:$U,'Program Design'!$C:$C,$A48,'Program Design'!$D:$D,$B48,'Program Design'!$J:$J,G$29)+SUMIFS('Program Design'!$V:$V,'Program Design'!$C:$C,$A48,'Program Design'!$D:$D,$B48,'Program Design'!$J:$J,G$29)+SUMIFS('Program Design'!$W:$W,'Program Design'!$C:$C,$A48,'Program Design'!$D:$D,$B48,'Program Design'!$J:$J,G$29)+SUMIFS(INDEX(OFFSET('Budget Inputs'!$A$1,6,1,5000,560),0,MATCH(CONCATENATE(G$29," Sub-Total"),OFFSET('Budget Inputs'!$A$1,6,1,1,560),0)),OFFSET('Budget Inputs'!$A$1,6,1,5000,1),$A48,OFFSET('Budget Inputs'!$A$1,6,2,5000,1),$B48),0) -> 67115.97 | H48: =(SUMIFS(OFFSET('Savings Results'!$A$1,6,16 +MAX('Savings Results'!$G:$G)-MIN('Savings Results'!$G:$G)+MAX('Savings Results'!$J:$J)+G$29-MIN('Savings Results'!$G:$G),5000),OFFSET('Savings Results'!$A$1,6,6,5000),G$29,OFFSET('Savings Results'!$A$1,6,4,5000),"Dx",OFFSET('Savings Results'!$A$1,6,1,5000),$A48,OFFSET('Savings Results'!$A$1,6,2,5000),$B48)/(1/(1-SUM('CE Parameters'!$F$10:$F$11))))/1000 -> 369.8275982 | I48: =IFERROR(SUMIFS('Program Design'!$U:$U,'Program Design'!$C:$C,$A48,'Program Design'!$D:$D,$B48,'Program Design'!$J:$J,I$29)+SUMIFS('Program Design'!$V:$V,'Program Design'!$C:$C,$A48,'Program Design'!$D:$D,$B48,'Program Design'!$J:$J,I$29)+SUMIFS('Program Design'!$W:$W,'Program Design'!$C:$C,$A48,'Program Design'!$D:$D,$B48,'Program Design'!$J:$J,I$29)+SUMIFS(INDEX(OFFSET('Budget Inputs'!$A$1,6,1,5000,560),0,MATCH(CONCATENATE(I$29," Sub-Total"),OFFSET('Budget Inputs'!$A$1,6,1,1,560),0)),OFFSET('Budget Inputs'!$A$1,6,1,5000,1),$A48,OFFSET('Budget Inputs'!$A$1,6,2,5000,1),$B48),0) -> 67115.97 | J48: =(SUMIFS(OFFSET('Savings Results'!$A$1,6,16 +MAX('Savings Results'!$G:$G)-MIN('Savings Results'!$G:$G)+MAX('Savings Results'!$J:$J)+I$29-MIN('Savings Results'!$G:$G),5000),OFFSET('Savings Results'!$A$1,6,6,5000),I$29,OFFSET('Savings Results'!$A$1,6,4,5000),"Dx",OFFSET('Savings Results'!$A$1,6,1,5000),$A48,OFFSET('Savings Results'!$A$1,6,2,5000),$B48)/(1/(1-SUM('CE Parameters'!$F$10:$F$11))))/1000 -> 369.8275982 | K48: =IFERROR(SUMIFS('Program Design'!$U:$U,'Program Design'!$C:$C,$A48,'Program Design'!$D:$D,$B48,'Program Design'!$J:$J,K$29)+SUMIFS('Program Design'!$V:$V,'Program Design'!$C:$C,$A48,'Program Design'!$D:$D,$B48,'Program Design'!$J:$J,K$29)+SUMIFS('Program Design'!$W:$W,'Program Design'!$C:$C,$A48,'Program Design'!$D:$D,$B48,'Program Design'!$J:$J,K$29)+SUMIFS(INDEX(OFFSET('Budget Inputs'!$A$1,6,1,5000,560),0,MATCH(CONCATENATE(K$29," Sub-Total"),OFFSET('Budget Inputs'!$A$1,6,1,1,560),0)),OFFSET('Budget Inputs'!$A$1,6,1,5000,1),$A48,OFFSET('Budget Inputs'!$A$1,6,2,5000,1),$B48),0) -> 67115.97 | L48: =(SUMIFS(OFFSET('Savings Results'!$A$1,6,16 +MAX('Savings Results'!$G:$G)-MIN('Savings Results'!$G:$G)+MAX('Savings Results'!$J:$J)+K$29-MIN('Savings Results'!$G:$G),5000),OFFSET('Savings Results'!$A$1,6,6,5000),K$29,OFFSET('Savings Results'!$A$1,6,4,5000),"Dx",OFFSET('Savings Results'!$A$1,6,1,5000),$A48,OFFSET('Savings Results'!$A$1,6,2,5000),$B48)/(1/(1-SUM('CE Parameters'!$F$10:$F$11))))/1000 -> 369.8275982 | M48: =IFERROR(SUMIFS('Program Design'!$U:$U,'Program Design'!$C:$C,$A48,'Program Design'!$D:$D,$B48,'Program Design'!$J:$J,M$29)+SUMIFS('Program Design'!$V:$V,'Program Design'!$C:$C,$A48,'Program Design'!$D:$D,$B48,'Program Design'!$J:$J,M$29)+SUMIFS('Program Design'!$W:$W,'Program Design'!$C:$C,$A48,'Program Design'!$D:$D,$B48,'Program Design'!$J:$J,M$29)+SUMIFS(INDEX(OFFSET('Budget Inputs'!$A$1,6,1,5000,560),0,MATCH(CONCATENATE(M$29," Sub-Total"),OFFSET('Budget Inputs'!$A$1,6,1,1,560),0)),OFFSET('Budget Inputs'!$A$1,6,1,5000,1),$A48,OFFSET('Budget Inputs'!$A$1,6,2,5000,1),$B48),0) -> 67115.97 | N48: =(SUMIFS(OFFSET('Savings Results'!$A$1,6,16 +MAX('Savings Results'!$G:$G)-MIN('Savings Results'!$G:$G)+MAX('Savings Results'!$J:$J)+M$29-MIN('Savings Results'!$G:$G),5000),OFFSET('Savings Results'!$A$1,6,6,5000),M$29,OFFSET('Savings Results'!$A$1,6,4,5000),"Dx",OFFSET('Savings Results'!$A$1,6,1,5000),$A48,OFFSET('Savings Results'!$A$1,6,2,5000),$B48)/(1/(1-SUM('CE Parameters'!$F$10:$F$11))))/1000 -> 369.8275982 | O48: =IFERROR(SUMIFS('Program Design'!$U:$U,'Program Design'!$C:$C,$A48,'Program Design'!$D:$D,$B48)+SUMIFS('Program Design'!$V:$V,'Program Design'!$C:$C,$A48,'Program Design'!$D:$D,$B48)+SUMIFS('Program Design'!$W:$W,'Program Design'!$C:$C,$A48,'Program Design'!$D:$D,$B48)+SUMIFS(INDEX(OFFSET('Budget Inputs'!$A$1,6,1,5000,560),0,MATCH("Total",OFFSET('Budget Inputs'!$A$1,6,1,1,560),0)),OFFSET('Budget Inputs'!$A$1,6,1,5000,1),$A48,OFFSET('Budget Inputs'!$A$1,6,2,5000,1),$B48),0) -> 337227.15 | P48: =(SUMIFS(OFFSET('Savings Results'!$A$1,6,16 +MAX('Savings Results'!$G:$G)-MIN('Savings Results'!$G:$G)+MAX('Savings Results'!$J:$J)+M$29-MIN('Savings Results'!$G:$G),5000),OFFSET('Savings Results'!$A$1,6,4,5000),"Dx",OFFSET('Savings Results'!$A$1,6,1,5000),$A48,OFFSET('Savings Results'!$A$1,6,2,5000),$B48)/(1/(1-SUM('CE Parameters'!$F$10:$F$11))))/1000 -> 1479.310393
A49: Business | B49: EBCx Oshawa PUC Networks Inc. CFF | C49: =IFERROR(SUMIFS('Program Design'!$U:$U,'Program Design'!$C:$C,$A49,'Program Design'!$D:$D,$B49,'Program Design'!$J:$J,C$29)+SUMIFS('Program Design'!$V:$V,'Program Design'!$C:$C,$A49,'Program Design'!$D:$D,$B49,'Program Design'!$J:$J,C$29)+SUMIFS('Program Design'!$W:$W,'Program Design'!$C:$C,$A49,'Program Design'!$D:$D,$B49,'Program Design'!$J:$J,C$29)+SUMIFS(INDEX(OFFSET('Budget Inputs'!$A$1,6,1,5000,560),0,MATCH(CONCATENATE(C$29," Sub-Total"),OFFSET('Budget Inputs'!$A$1,6,1,1,560),0)),OFFSET('Budget Inputs'!$A$1,6,1,5000,1),$A49,OFFSET('Budget Inputs'!$A$1,6,2,5000,1),$B49),0) -> 0 | D49: =(SUMIFS(OFFSET('Savings Results'!$A$1,6,16 +MAX('Savings Results'!$G:$G)-MIN('Savings Results'!$G:$G)+MAX('Savings Results'!$J:$J)+C$29-MIN('Savings Results'!$G:$G),5000),OFFSET('Savings Results'!$A$1,6,6,5000),C$29,OFFSET('Savings Results'!$A$1,6,4,5000),"Dx",OFFSET('Savings Results'!$A$1,6,1,5000),$A49,OFFSET('Savings Results'!$A$1,6,2,5000),$B49)/(1/(1-SUM('CE Parameters'!$F$10:$F$11))))/1000 -> 0 | E49: =IFERROR(SUMIFS('Program Design'!$U:$U,'Program Design'!$C:$C,$A49,'Program Design'!$D:$D,$B49,'Program Design'!$J:$J,E$29)+SUMIFS('Program Design'!$V:$V,'Program Design'!$C:$C,$A49,'Program Design'!$D:$D,$B49,'Program Design'!$J:$J,E$29)+SUMIFS('Program Design'!$W:$W,'Program Design'!$C:$C,$A49,'Program Design'!$D:$D,$B49,'Program Design'!$J:$J,E$29)+SUMIFS(INDEX(OFFSET('Budget Inputs'!$A$1,6,1,5000,560),0,MATCH(CONCATENATE(E$29," Sub-Total"),OFFSET('Budget Inputs'!$A$1,6,1,1,560),0)),OFFSET('Budget Inputs'!$A$1,6,1,5000,1),$A49,OFFSET('Budget Inputs'!$A$1,6,2,5000,1),$B49),0) -> 0 | F49: =(SUMIFS(OFFSET('Savings Results'!$A$1,6,16 +MAX('Savings Results'!$G:$G)-MIN('Savings Results'!$G:$G)+MAX('Savings Results'!$J:$J)+E$29-MIN('Savings Results'!$G:$G),5000),OFFSET('Savings Results'!$A$1,6,6,5000),E$29,OFFSET('Savings Results'!$A$1,6,4,5000),"Dx",OFFSET('Savings Results'!$A$1,6,1,5000),$A49,OFFSET('Savings Results'!$A$1,6,2,5000),$B49)/(1/(1-SUM('CE Parameters'!$F$10:$F$11))))/1000 -> 0 | G49: =IFERROR(SUMIFS('Program Design'!$U:$U,'Program Design'!$C:$C,$A49,'Program Design'!$D:$D,$B49,'Program Design'!$J:$J,G$29)+SUMIFS('Program Design'!$V:$V,'Program Design'!$C:$C,$A49,'Program Design'!$D:$D,$B49,'Program Design'!$J:$J,G$29)+SUMIFS('Program Design'!$W:$W,'Program Design'!$C:$C,$A49,'Program Design'!$D:$D,$B49,'Program Design'!$J:$J,G$29)+SUMIFS(INDEX(OFFSET('Budget Inputs'!$A$1,6,1,5000,560),0,MATCH(CONCATENATE(G$29," Sub-Total"),OFFSET('Budget Inputs'!$A$1,6,1,1,560),0)),OFFSET('Budget Inputs'!$A$1,6,1,5000,1),$A49,OFFSET('Budget Inputs'!$A$1,6,2,5000,1),$B49),0) -> 0 | H49: =(SUMIFS(OFFSET('Savings Results'!$A$1,6,16 +MAX('Savings Results'!$G:$G)-MIN('Savings Results'!$G:$G)+MAX('Savings Results'!$J:$J)+G$29-MIN('Savings Results'!$G:$G),5000),OFFSET('Savings Results'!$A$1,6,6,5000),G$29,OFFSET('Savings Results'!$A$1,6,4,5000),"Dx",OFFSET('Savings Results'!$A$1,6,1,5000),$A49,OFFSET('Savings Results'!$A$1,6,2,5000),$B49)/(1/(1-SUM('CE Parameters'!$F$10:$F$11))))/1000 -> 0 | I49: =IFERROR(SUMIFS('Program Design'!$U:$U,'Program Design'!$C:$C,$A49,'Program Design'!$D:$D,$B49,'Program Design'!$J:$J,I$29)+SUMIFS('Program Design'!$V:$V,'Program Design'!$C:$C,$A49,'Program Design'!$D:$D,$B49,'Program Design'!$J:$J,I$29)+SUMIFS('Program Design'!$W:$W,'Program Design'!$C:$C,$A49,'Program Design'!$D:$D,$B49,'Program Design'!$J:$J,I$29)+SUMIFS(INDEX(OFFSET('Budget Inputs'!$A$1,6,1,5000,560),0,MATCH(CONCATENATE(I$29," Sub-Total"),OFFSET('Budget Inputs'!$A$1,6,1,1,560),0)),OFFSET('Budget Inputs'!$A$1,6,1,5000,1),$A49,OFFSET('Budget Inputs'!$A$1,6,2,5000,1),$B49),0) -> 0 | J49: =(SUMIFS(OFFSET('Savings Results'!$A$1,6,16 +MAX('Savings Results'!$G:$G)-MIN('Savings Results'!$G:$G)+MAX('Savings Results'!$J:$J)+I$29-MIN('Savings Results'!$G:$G),5000),OFFSET('Savings Results'!$A$1,6,6,5000),I$29,OFFSET('Savings Results'!$A$1,6,4,5000),"Dx",OFFSET('Savings Results'!$A$1,6,1,5000),$A49,OFFSET('Savings Results'!$A$1,6,2,5000),$B49)/(1/(1-SUM('CE Parameters'!$F$10:$F$11))))/1000 -> 0 | K49: =IFERROR(SUMIFS('Program Design'!$U:$U,'Program Design'!$C:$C,$A49,'Program Design'!$D:$D,$B49,'Program Design'!$J:$J,K$29)+SUMIFS('Program Design'!$V:$V,'Program Design'!$C:$C,$A49,'Program Design'!$D:$D,$B49,'Program Design'!$J:$J,K$29)+SUMIFS('Program Design'!$W:$W,'Program Design'!$C:$C,$A49,'Program Design'!$D:$D,$B49,'Program Design'!$J:$J,K$29)+SUMIFS(INDEX(OFFSET('Budget Inputs'!$A$1,6,1,5000,560),0,MATCH(CONCATENATE(K$29," Sub-Total"),OFFSET('Budget Inputs'!$A$1,6,1,1,560),0)),OFFSET('Budget Inputs'!$A$1,6,1,5000,1),$A49,OFFSET('Budget Inputs'!$A$1,6,2,5000,1),$B49),0) -> 0 | L49: =(SUMIFS(OFFSET('Savings Results'!$A$1,6,16 +MAX('Savings Results'!$G:$G)-MIN('Savings Results'!$G:$G)+MAX('Savings Results'!$J:$J)+K$29-MIN('Savings Results'!$G:$G),5000),OFFSET('Savings Results'!$A$1,6,6,5000),K$29,OFFSET('Savings Results'!$A$1,6,4,5000),"Dx",OFFSET('Savings Results'!$A$1,6,1,5000),$A49,OFFSET('Savings Results'!$A$1,6,2,5000),$B49)/(1/(1-SUM('CE Parameters'!$F$10:$F$11))))/1000 -> 0 | M49: =IFERROR(SUMIFS('Program Design'!$U:$U,'Program Design'!$C:$C,$A49,'Program Design'!$D:$D,$B49,'Program Design'!$J:$J,M$29)+SUMIFS('Program Design'!$V:$V,'Program Design'!$C:$C,$A49,'Program Design'!$D:$D,$B49,'Program Design'!$J:$J,M$29)+SUMIFS('Program Design'!$W:$W,'Program Design'!$C:$C,$A49,'Program Design'!$D:$D,$B49,'Program Design'!$J:$J,M$29)+SUMIFS(INDEX(OFFSET('Budget Inputs'!$A$1,6,1,5000,560),0,MATCH(CONCATENATE(M$29," Sub-Total"),OFFSET('Budget Inputs'!$A$1,6,1,1,560),0)),OFFSET('Budget Inputs'!$A$1,6,1,5000,1),$A49,OFFSET('Budget Inputs'!$A$1,6,2,5000,1),$B49),0) -> 0 | N49: =(SUMIFS(OFFSET('Savings Results'!$A$1,6,16 +MAX('Savings Results'!$G:$G)-MIN('Savings Results'!$G:$G)+MAX('Savings Results'!$J:$J)+M$29-MIN('Savings Results'!$G:$G),5000),OFFSET('Savings Results'!$A$1,6,6,5000),M$29,OFFSET('Savings Results'!$A$1,6,4,5000),"Dx",OFFSET('Savings Results'!$A$1,6,1,5000),$A49,OFFSET('Savings Results'!$A$1,6,2,5000),$B49)/(1/(1-SUM('CE Parameters'!$F$10:$F$11))))/1000 -> 0 | O49: =IFERROR(SUMIFS('Program Design'!$U:$U,'Program Design'!$C:$C,$A49,'Program Design'!$D:$D,$B49)+SUMIFS('Program Design'!$V:$V,'Program Design'!$C:$C,$A49,'Program Design'!$D:$D,$B49)+SUMIFS('Program Design'!$W:$W,'Program Design'!$C:$C,$A49,'Program Design'!$D:$D,$B49)+SUMIFS(INDEX(OFFSET('Budget Inputs'!$A$1,6,1,5000,560),0,MATCH("Total",OFFSET('Budget Inputs'!$A$1,6,1,1,560),0)),OFFSET('Budget Inputs'!$A$1,6,1,5000,1),$A49,OFFSET('Budget Inputs'!$A$1,6,2,5000,1),$B49),0) -> 0 | P49: =(SUMIFS(OFFSET('Savings Results'!$A$1,6,16 +MAX('Savings Results'!$G:$G)-MIN('Savings Results'!$G:$G)+MAX('Savings Results'!$J:$J)+M$29-MIN('Savings Results'!$G:$G),5000),OFFSET('Savings Results'!$A$1,6,4,5000),"Dx",OFFSET('Savings Results'!$A$1,6,1,5000),$A49,OFFSET('Savings Results'!$A$1,6,2,5000),$B49)/(1/(1-SUM('CE Parameters'!$F$10:$F$11))))/1000 -> 0
A50: Business | B50: PSU Oshawa PUC Networks Inc. CFF | C50: =IFERROR(SUMIFS('Program Design'!$U:$U,'Program Design'!$C:$C,$A50,'Program Design'!$D:$D,$B50,'Program Design'!$J:$J,C$29)+SUMIFS('Program Design'!$V:$V,'Program Design'!$C:$C,$A50,'Program Design'!$D:$D,$B50,'Program Design'!$J:$J,C$29)+SUMIFS('Program Design'!$W:$W,'Program Design'!$C:$C,$A50,'Program Design'!$D:$D,$B50,'Program Design'!$J:$J,C$29)+SUMIFS(INDEX(OFFSET('Budget Inputs'!$A$1,6,1,5000,560),0,MATCH(CONCATENATE(C$29," Sub-Total"),OFFSET('Budget Inputs'!$A$1,6,1,1,560),0)),OFFSET('Budget Inputs'!$A$1,6,1,5000,1),$A50,OFFSET('Budget Inputs'!$A$1,6,2,5000,1),$B50),0) -> 0 | D50: =(SUMIFS(OFFSET('Savings Results'!$A$1,6,16 +MAX('Savings Results'!$G:$G)-MIN('Savings Results'!$G:$G)+MAX('Savings Results'!$J:$J)+C$29-MIN('Savings Results'!$G:$G),5000),OFFSET('Savings Results'!$A$1,6,6,5000),C$29,OFFSET('Savings Results'!$A$1,6,4,5000),"Dx",OFFSET('Savings Results'!$A$1,6,1,5000),$A50,OFFSET('Savings Results'!$A$1,6,2,5000),$B50)/(1/(1-SUM('CE Parameters'!$F$10:$F$11))))/1000 -> 0 | E50: =IFERROR(SUMIFS('Program Design'!$U:$U,'Program Design'!$C:$C,$A50,'Program Design'!$D:$D,$B50,'Program Design'!$J:$J,E$29)+SUMIFS('Program Design'!$V:$V,'Program Design'!$C:$C,$A50,'Program Design'!$D:$D,$B50,'Program Design'!$J:$J,E$29)+SUMIFS('Program Design'!$W:$W,'Program Design'!$C:$C,$A50,'Program Design'!$D:$D,$B50,'Program Design'!$J:$J,E$29)+SUMIFS(INDEX(OFFSET('Budget Inputs'!$A$1,6,1,5000,560),0,MATCH(CONCATENATE(E$29," Sub-Total"),OFFSET('Budget Inputs'!$A$1,6,1,1,560),0)),OFFSET('Budget Inputs'!$A$1,6,1,5000,1),$A50,OFFSET('Budget Inputs'!$A$1,6,2,5000,1),$B50),0) -> 31759.19 | F50: =(SUMIFS(OFFSET('Savings Results'!$A$1,6,16 +MAX('Savings Results'!$G:$G)-MIN('Savings Results'!$G:$G)+MAX('Savings Results'!$J:$J)+E$29-MIN('Savings Results'!$G:$G),5000),OFFSET('Savings Results'!$A$1,6,6,5000),E$29,OFFSET('Savings Results'!$A$1,6,4,5000),"Dx",OFFSET('Savings Results'!$A$1,6,1,5000),$A50,OFFSET('Savings Results'!$A$1,6,2,5000),$B50)/(1/(1-SUM('CE Parameters'!$F$10:$F$11))))/1000 -> 0 | G50: =IFERROR(SUMIFS('Program Design'!$U:$U,'Program Design'!$C:$C,$A50,'Program Design'!$D:$D,$B50,'Program Design'!$J:$J,G$29)+SUMIFS('Program Design'!$V:$V,'Program Design'!$C:$C,$A50,'Program Design'!$D:$D,$B50,'Program Design'!$J:$J,G$29)+SUMIFS('Program Design'!$W:$W,'Program Design'!$C:$C,$A50,'Program Design'!$D:$D,$B50,'Program Design'!$J:$J,G$29)+SUMIFS(INDEX(OFFSET('Budget Inputs'!$A$1,6,1,5000,560),0,MATCH(CONCATENATE(G$29," Sub-Total"),OFFSET('Budget Inputs'!$A$1,6,1,1,560),0)),OFFSET('Budget Inputs'!$A$1,6,1,5000,1),$A50,OFFSET('Budget Inputs'!$A$1,6,2,5000,1),$B50),0) -> 34935.12 | H50: =(SUMIFS(OFFSET('Savings Results'!$A$1,6,16 +MAX('Savings Results'!$G:$G)-MIN('Savings Results'!$G:$G)+MAX('Savings Results'!$J:$J)+G$29-MIN('Savings Results'!$G:$G),5000),OFFSET('Savings Results'!$A$1,6,6,5000),G$29,OFFSET('Savings Results'!$A$1,6,4,5000),"Dx",OFFSET('Savings Results'!$A$1,6,1,5000),$A50,OFFSET('Savings Results'!$A$1,6,2,5000),$B50)/(1/(1-SUM('CE Parameters'!$F$10:$F$11))))/1000 -> 0 | I50: =IFERROR(SUMIFS('Program Design'!$U:$U,'Program Design'!$C:$C,$A50,'Program Design'!$D:$D,$B50,'Program Design'!$J:$J,I$29)+SUMIFS('Program Design'!$V:$V,'Program Design'!$C:$C,$A50,'Program Design'!$D:$D,$B50,'Program Design'!$J:$J,I$29)+SUMIFS('Program Design'!$W:$W,'Program Design'!$C:$C,$A50,'Program Design'!$D:$D,$B50,'Program Design'!$J:$J,I$29)+SUMIFS(INDEX(OFFSET('Budget Inputs'!$A$1,6,1,5000,560),0,MATCH(CONCATENATE(I$29," Sub-Total"),OFFSET('Budget Inputs'!$A$1,6,1,1,560),0)),OFFSET('Budget Inputs'!$A$1,6,1,5000,1),$A50,OFFSET('Budget Inputs'!$A$1,6,2,5000,1),$B50),0) -> 884936.12 | J50: =(SUMIFS(OFFSET('Savings Results'!$A$1,6,16 +MAX('Savings Results'!$G:$G)-MIN('Savings Results'!$G:$G)+MAX('Savings Results'!$J:$J)+I$29-MIN('Savings Results'!$G:$G),5000),OFFSET('Savings Results'!$A$1,6,6,5000),I$29,OFFSET('Savings Results'!$A$1,6,4,5000),"Dx",OFFSET('Savings Results'!$A$1,6,1,5000),$A50,OFFSET('Savings Results'!$A$1,6,2,5000),$B50)/(1/(1-SUM('CE Parameters'!$F$10:$F$11))))/1000 -> 3153.6 | K50: =IFERROR(SUMIFS('Program Design'!$U:$U,'Program Design'!$C:$C,$A50,'Program Design'!$D:$D,$B50,'Program Design'!$J:$J,K$29)+SUMIFS('Program Design'!$V:$V,'Program Design'!$C:$C,$A50,'Program Design'!$D:$D,$B50,'Program Design'!$J:$J,K$29)+SUMIFS('Program Design'!$W:$W,'Program Design'!$C:$C,$A50,'Program Design'!$D:$D,$B50,'Program Design'!$J:$J,K$29)+SUMIFS(INDEX(OFFSET('Budget Inputs'!$A$1,6,1,5000,560),0,MATCH(CONCATENATE(K$29," Sub-Total"),OFFSET('Budget Inputs'!$A$1,6,1,1,560),0)),OFFSET('Budget Inputs'!$A$1,6,1,5000,1),$A50,OFFSET('Budget Inputs'!$A$1,6,2,5000,1),$B50),0) -> 84935.12 | L50: =(SUMIFS(OFFSET('Savings Results'!$A$1,6,16 +MAX('Savings Results'!$G:$G)-MIN('Savings Results'!$G:$G)+MAX('Savings Results'!$J:$J)+K$29-MIN('Savings Results'!$G:$G),5000),OFFSET('Savings Results'!$A$1,6,6,5000),K$29,OFFSET('Savings Results'!$A$1,6,4,5000),"Dx",OFFSET('Savings Results'!$A$1,6,1,5000),$A50,OFFSET('Savings Results'!$A$1,6,2,5000),$B50)/(1/(1-SUM('CE Parameters'!$F$10:$F$11))))/1000 -> 0 | M50: =IFERROR(SUMIFS('Program Design'!$U:$U,'Program Design'!$C:$C,$A50,'Program Design'!$D:$D,$B50,'Program Design'!$J:$J,M$29)+SUMIFS('Program Design'!$V:$V,'Program Design'!$C:$C,$A50,'Program Design'!$D:$D,$B50,'Program Design'!$J:$J,M$29)+SUMIFS('Program Design'!$W:$W,'Program Design'!$C:$C,$A50,'Program Design'!$D:$D,$B50,'Program Design'!$J:$J,M$29)+SUMIFS(INDEX(OFFSET('Budget Inputs'!$A$1,6,1,5000,560),0,MATCH(CONCATENATE(M$29," Sub-Total"),OFFSET('Budget Inputs'!$A$1,6,1,1,560),0)),OFFSET('Budget Inputs'!$A$1,6,1,5000,1),$A50,OFFSET('Budget Inputs'!$A$1,6,2,5000,1),$B50),0) -> 934936.12 | N50: =(SUMIFS(OFFSET('Savings Results'!$A$1,6,16 +MAX('Savings Results'!$G:$G)-MIN('Savings Results'!$G:$G)+MAX('Savings Results'!$J:$J)+M$29-MIN('Savings Results'!$G:$G),5000),OFFSET('Savings Results'!$A$1,6,6,5000),M$29,OFFSET('Savings Results'!$A$1,6,4,5000),"Dx",OFFSET('Savings Results'!$A$1,6,1,5000),$A50,OFFSET('Savings Results'!$A$1,6,2,5000),$B50)/(1/(1-SUM('CE Parameters'!$F$10:$F$11))))/1000 -> 3153.6 | O50: =IFERROR(SUMIFS('Program Design'!$U:$U,'Program Design'!$C:$C,$A50,'Program Design'!$D:$D,$B50)+SUMIFS('Program Design'!$V:$V,'Program Design'!$C:$C,$A50,'Program Design'!$D:$D,$B50)+SUMIFS('Program Design'!$W:$W,'Program Design'!$C:$C,$A50,'Program Design'!$D:$D,$B50)+SUMIFS(INDEX(OFFSET('Budget Inputs'!$A$1,6,1,5000,560),0,MATCH("Total",OFFSET('Budget Inputs'!$A$1,6,1,1,560),0)),OFFSET('Budget Inputs'!$A$1,6,1,5000,1),$A50,OFFSET('Budget Inputs'!$A$1,6,2,5000,1),$B50),0) -> 1971501.67 | P50: =(SUMIFS(OFFSET('Savings Results'!$A$1,6,16 +MAX('Savings Results'!$G:$G)-MIN('Savings Results'!$G:$G)+MAX('Savings Results'!$J:$J)+M$29-MIN('Savings Results'!$G:$G),5000),OFFSET('Savings Results'!$A$1,6,4,5000),"Dx",OFFSET('Savings Results'!$A$1,6,1,5000),$A50,OFFSET('Savings Results'!$A$1,6,2,5000),$B50)/(1/(1-SUM('CE Parameters'!$F$10:$F$11))))/1000 -> 6307.2
A51: Business | B51: Energy Manager Oshawa PUC Networks Inc. CFF | C51: =IFERROR(SUMIFS('Program Design'!$U:$U,'Program Design'!$C:$C,$A51,'Program Design'!$D:$D,$B51,'Program Design'!$J:$J,C$29)+SUMIFS('Program Design'!$V:$V,'Program Design'!$C:$C,$A51,'Program Design'!$D:$D,$B51,'Program Design'!$J:$J,C$29)+SUMIFS('Program Design'!$W:$W,'Program Design'!$C:$C,$A51,'Program Design'!$D:$D,$B51,'Program Design'!$J:$J,C$29)+SUMIFS(INDEX(OFFSET('Budget Inputs'!$A$1,6,1,5000,560),0,MATCH(CONCATENATE(C$29," Sub-Total"),OFFSET('Budget Inputs'!$A$1,6,1,1,560),0)),OFFSET('Budget Inputs'!$A$1,6,1,5000,1),$A51,OFFSET('Budget Inputs'!$A$1,6,2,5000,1),$B51),0) -> 0 | D51: =(SUMIFS(OFFSET('Savings Results'!$A$1,6,16 +MAX('Savings Results'!$G:$G)-MIN('Savings Results'!$G:$G)+MAX('Savings Results'!$J:$J)+C$29-MIN('Savings Results'!$G:$G),5000),OFFSET('Savings Results'!$A$1,6,6,5000),C$29,OFFSET('Savings Results'!$A$1,6,4,5000),"Dx",OFFSET('Savings Results'!$A$1,6,1,5000),$A51,OFFSET('Savings Results'!$A$1,6,2,5000),$B51)/(1/(1-SUM('CE Parameters'!$F$10:$F$11))))/1000 -> 0 | E51: =IFERROR(SUMIFS('Program Design'!$U:$U,'Program Design'!$C:$C,$A51,'Program Design'!$D:$D,$B51,'Program Design'!$J:$J,E$29)+SUMIFS('Program Design'!$V:$V,'Program Design'!$C:$C,$A51,'Program Design'!$D:$D,$B51,'Program Design'!$J:$J,E$29)+SUMIFS('Program Design'!$W:$W,'Program Design'!$C:$C,$A51,'Program Design'!$D:$D,$B51,'Program Design'!$J:$J,E$29)+SUMIFS(INDEX(OFFSET('Budget Inputs'!$A$1,6,1,5000,560),0,MATCH(CONCATENATE(E$29," Sub-Total"),OFFSET('Budget Inputs'!$A$1,6,1,1,560),0)),OFFSET('Budget Inputs'!$A$1,6,1,5000,1),$A51,OFFSET('Budget Inputs'!$A$1,6,2,5000,1),$B51),0) -> 0 | F51: =(SUMIFS(OFFSET('Savings Results'!$A$1,6,16 +MAX('Savings Results'!$G:$G)-MIN('Savings Results'!$G:$G)+MAX('Savings Results'!$J:$J)+E$29-MIN('Savings Results'!$G:$G),5000),OFFSET('Savings Results'!$A$1,6,6,5000),E$29,OFFSET('Savings Results'!$A$1,6,4,5000),"Dx",OFFSET('Savings Results'!$A$1,6,1,5000),$A51,OFFSET('Savings Results'!$A$1,6,2,5000),$B51)/(1/(1-SUM('CE Parameters'!$F$10:$F$11))))/1000 -> 0 | G51: =IFERROR(SUMIFS('Program Design'!$U:$U,'Program Design'!$C:$C,$A51,'Program Design'!$D:$D,$B51,'Program Design'!$J:$J,G$29)+SUMIFS('Program Design'!$V:$V,'Program Design'!$C:$C,$A51,'Program Design'!$D:$D,$B51,'Program Design'!$J:$J,G$29)+SUMIFS('Program Design'!$W:$W,'Program Design'!$C:$C,$A51,'Program Design'!$D:$D,$B51,'Program Design'!$J:$J,G$29)+SUMIFS(INDEX(OFFSET('Budget Inputs'!$A$1,6,1,5000,560),0,MATCH(CONCATENATE(G$29," Sub-Total"),OFFSET('Budget Inputs'!$A$1,6,1,1,560),0)),OFFSET('Budget Inputs'!$A$1,6,1,5000,1),$A51,OFFSET('Budget Inputs'!$A$1,6,2,5000,1),$B51),0) -> 0 | H51: =(SUMIFS(OFFSET('Savings Results'!$A$1,6,16 +MAX('Savings Results'!$G:$G)-MIN('Savings Results'!$G:$G)+MAX('Savings Results'!$J:$J)+G$29-MIN('Savings Results'!$G:$G),5000),OFFSET('Savings Results'!$A$1,6,6,5000),G$29,OFFSET('Savings Results'!$A$1,6,4,5000),"Dx",OFFSET('Savings Results'!$A$1,6,1,5000),$A51,OFFSET('Savings Results'!$A$1,6,2,5000),$B51)/(1/(1-SUM('CE Parameters'!$F$10:$F$11))))/1000 -> 0 | I51: =IFERROR(SUMIFS('Program Design'!$U:$U,'Program Design'!$C:$C,$A51,'Program Design'!$D:$D,$B51,'Program Design'!$J:$J,I$29)+SUMIFS('Program Design'!$V:$V,'Program Design'!$C:$C,$A51,'Program Design'!$D:$D,$B51,'Program Design'!$J:$J,I$29)+SUMIFS('Program Design'!$W:$W,'Program Design'!$C:$C,$A51,'Program Design'!$D:$D,$B51,'Program Design'!$J:$J,I$29)+SUMIFS(INDEX(OFFSET('Budget Inputs'!$A$1,6,1,5000,560),0,MATCH(CONCATENATE(I$29," Sub-Total"),OFFSET('Budget Inputs'!$A$1,6,1,1,560),0)),OFFSET('Budget Inputs'!$A$1,6,1,5000,1),$A51,OFFSET('Budget Inputs'!$A$1,6,2,5000,1),$B51),0) -> 0 | J51: =(SUMIFS(OFFSET('Savings Results'!$A$1,6,16 +MAX('Savings Results'!$G:$G)-MIN('Savings Results'!$G:$G)+MAX('Savings Results'!$J:$J)+I$29-MIN('Savings Results'!$G:$G),5000),OFFSET('Savings Results'!$A$1,6,6,5000),I$29,OFFSET('Savings Results'!$A$1,6,4,5000),"Dx",OFFSET('Savings Results'!$A$1,6,1,5000),$A51,OFFSET('Savings Results'!$A$1,6,2,5000),$B51)/(1/(1-SUM('CE Parameters'!$F$10:$F$11))))/1000 -> 0 | K51: =IFERROR(SUMIFS('Program Design'!$U:$U,'Program Design'!$C:$C,$A51,'Program Design'!$D:$D,$B51,'Program Design'!$J:$J,K$29)+SUMIFS('Program Design'!$V:$V,'Program Design'!$C:$C,$A51,'Program Design'!$D:$D,$B51,'Program Design'!$J:$J,K$29)+SUMIFS('Program Design'!$W:$W,'Program Design'!$C:$C,$A51,'Program Design'!$D:$D,$B51,'Program Design'!$J:$J,K$29)+SUMIFS(INDEX(OFFSET('Budget Inputs'!$A$1,6,1,5000,560),0,MATCH(CONCATENATE(K$29," Sub-Total"),OFFSET('Budget Inputs'!$A$1,6,1,1,560),0)),OFFSET('Budget Inputs'!$A$1,6,1,5000,1),$A51,OFFSET('Budget Inputs'!$A$1,6,2,5000,1),$B51),0) -> 0 | L51: =(SUMIFS(OFFSET('Savings Results'!$A$1,6,16 +MAX('Savings Results'!$G:$G)-MIN('Savings Results'!$G:$G)+MAX('Savings Results'!$J:$J)+K$29-MIN('Savings Results'!$G:$G),5000),OFFSET('Savings Results'!$A$1,6,6,5000),K$29,OFFSET('Savings Results'!$A$1,6,4,5000),"Dx",OFFSET('Savings Results'!$A$1,6,1,5000),$A51,OFFSET('Savings Results'!$A$1,6,2,5000),$B51)/(1/(1-SUM('CE Parameters'!$F$10:$F$11))))/1000 -> 0 | M51: =IFERROR(SUMIFS('Program Design'!$U:$U,'Program Design'!$C:$C,$A51,'Program Design'!$D:$D,$B51,'Program Design'!$J:$J,M$29)+SUMIFS('Program Design'!$V:$V,'Program Design'!$C:$C,$A51,'Program Design'!$D:$D,$B51,'Program Design'!$J:$J,M$29)+SUMIFS('Program Design'!$W:$W,'Program Design'!$C:$C,$A51,'Program Design'!$D:$D,$B51,'Program Design'!$J:$J,M$29)+SUMIFS(INDEX(OFFSET('Budget Inputs'!$A$1,6,1,5000,560),0,MATCH(CONCATENATE(M$29," Sub-Total"),OFFSET('Budget Inputs'!$A$1,6,1,1,560),0)),OFFSET('Budget Inputs'!$A$1,6,1,5000,1),$A51,OFFSET('Budget Inputs'!$A$1,6,2,5000,1),$B51),0) -> 0 | N51: =(SUMIFS(OFFSET('Savings Results'!$A$1,6,16 +MAX('Savings Results'!$G:$G)-MIN('Savings Results'!$G:$G)+MAX('Savings Results'!$J:$J)+M$29-MIN('Savings Results'!$G:$G),5000),OFFSET('Savings Results'!$A$1,6,6,5000),M$29,OFFSET('Savings Results'!$A$1,6,4,5000),"Dx",OFFSET('Savings Results'!$A$1,6,1,5000),$A51,OFFSET('Savings Results'!$A$1,6,2,5000),$B51)/(1/(1-SUM('CE Parameters'!$F$10:$F$11))))/1000 -> 0 | O51: =IFERROR(SUMIFS('Program Design'!$U:$U,'Program Design'!$C:$C,$A51,'Program Design'!$D:$D,$B51)+SUMIFS('Program Design'!$V:$V,'Program Design'!$C:$C,$A51,'Program Design'!$D:$D,$B51)+SUMIFS('Program Design'!$W:$W,'Program Design'!$C:$C,$A51,'Program Design'!$D:$D,$B51)+SUMIFS(INDEX(OFFSET('Budget Inputs'!$A$1,6,1,5000,560),0,MATCH("Total",OFFSET('Budget Inputs'!$A$1,6,1,1,560),0)),OFFSET('Budget Inputs'!$A$1,6,1,5000,1),$A51,OFFSET('Budget Inputs'!$A$1,6,2,5000,1),$B51),0) -> 0 | P51: =(SUMIFS(OFFSET('Savings Results'!$A$1,6,16 +MAX('Savings Results'!$G:$G)-MIN('Savings Results'!$G:$G)+MAX('Savings Results'!$J:$J)+M$29-MIN('Savings Results'!$G:$G),5000),OFFSET('Savings Results'!$A$1,6,4,5000),"Dx",OFFSET('Savings Results'!$A$1,6,1,5000),$A51,OFFSET('Savings Results'!$A$1,6,2,5000),$B51)/(1/(1-SUM('CE Parameters'!$F$10:$F$11))))/1000 -> 0
A52: Business | B52: M&T Oshawa PUC Networks Inc. CFF | C52: =IFERROR(SUMIFS('Program Design'!$U:$U,'Program Design'!$C:$C,$A52,'Program Design'!$D:$D,$B52,'Program Design'!$J:$J,C$29)+SUMIFS('Program Design'!$V:$V,'Program Design'!$C:$C,$A52,'Program Design'!$D:$D,$B52,'Program Design'!$J:$J,C$29)+SUMIFS('Program Design'!$W:$W,'Program Design'!$C:$C,$A52,'Program Design'!$D:$D,$B52,'Program Design'!$J:$J,C$29)+SUMIFS(INDEX(OFFSET('Budget Inputs'!$A$1,6,1,5000,560),0,MATCH(CONCATENATE(C$29," Sub-Total"),OFFSET('Budget Inputs'!$A$1,6,1,1,560),0)),OFFSET('Budget Inputs'!$A$1,6,1,5000,1),$A52,OFFSET('Budget Inputs'!$A$1,6,2,5000,1),$B52),0) -> 0 | D52: =(SUMIFS(OFFSET('Savings Results'!$A$1,6,16 +MAX('Savings Results'!$G:$G)-MIN('Savings Results'!$G:$G)+MAX('Savings Results'!$J:$J)+C$29-MIN('Savings Results'!$G:$G),5000),OFFSET('Savings Results'!$A$1,6,6,5000),C$29,OFFSET('Savings Results'!$A$1,6,4,5000),"Dx",OFFSET('Savings Results'!$A$1,6,1,5000),$A52,OFFSET('Savings Results'!$A$1,6,2,5000),$B52)/(1/(1-SUM('CE Parameters'!$F$10:$F$11))))/1000 -> 0 | E52: =IFERROR(SUMIFS('Program Design'!$U:$U,'Program Design'!$C:$C,$A52,'Program Design'!$D:$D,$B52,'Program Design'!$J:$J,E$29)+SUMIFS('Program Design'!$V:$V,'Program Design'!$C:$C,$A52,'Program Design'!$D:$D,$B52,'Program Design'!$J:$J,E$29)+SUMIFS('Program Design'!$W:$W,'Program Design'!$C:$C,$A52,'Program Design'!$D:$D,$B52,'Program Design'!$J:$J,E$29)+SUMIFS(INDEX(OFFSET('Budget Inputs'!$A$1,6,1,5000,560),0,MATCH(CONCATENATE(E$29," Sub-Total"),OFFSET('Budget Inputs'!$A$1,6,1,1,560),0)),OFFSET('Budget Inputs'!$A$1,6,1,5000,1),$A52,OFFSET('Budget Inputs'!$A$1,6,2,5000,1),$B52),0) -> 0 | F52: =(SUMIFS(OFFSET('Savings Results'!$A$1,6,16 +MAX('Savings Results'!$G:$G)-MIN('Savings Results'!$G:$G)+MAX('Savings Results'!$J:$J)+E$29-MIN('Savings Results'!$G:$G),5000),OFFSET('Savings Results'!$A$1,6,6,5000),E$29,OFFSET('Savings Results'!$A$1,6,4,5000),"Dx",OFFSET('Savings Results'!$A$1,6,1,5000),$A52,OFFSET('Savings Results'!$A$1,6,2,5000),$B52)/(1/(1-SUM('CE Parameters'!$F$10:$F$11))))/1000 -> 0 | G52: =IFERROR(SUMIFS('Program Design'!$U:$U,'Program Design'!$C:$C,$A52,'Program Design'!$D:$D,$B52,'Program Design'!$J:$J,G$29)+SUMIFS('Program Design'!$V:$V,'Program Design'!$C:$C,$A52,'Program Design'!$D:$D,$B52,'Program Design'!$J:$J,G$29)+SUMIFS('Program Design'!$W:$W,'Program Design'!$C:$C,$A52,'Program Design'!$D:$D,$B52,'Program Design'!$J:$J,G$29)+SUMIFS(INDEX(OFFSET('Budget Inputs'!$A$1,6,1,5000,560),0,MATCH(CONCATENATE(G$29," Sub-Total"),OFFSET('Budget Inputs'!$A$1,6,1,1,560),0)),OFFSET('Budget Inputs'!$A$1,6,1,5000,1),$A52,OFFSET('Budget Inputs'!$A$1,6,2,5000,1),$B52),0) -> 0 | H52: =(SUMIFS(OFFSET('Savings Results'!$A$1,6,16 +MAX('Savings Results'!$G:$G)-MIN('Savings Results'!$G:$G)+MAX('Savings Results'!$J:$J)+G$29-MIN('Savings Results'!$G:$G),5000),OFFSET('Savings Results'!$A$1,6,6,5000),G$29,OFFSET('Savings Results'!$A$1,6,4,5000),"Dx",OFFSET('Savings Results'!$A$1,6,1,5000),$A52,OFFSET('Savings Results'!$A$1,6,2,5000),$B52)/(1/(1-SUM('CE Parameters'!$F$10:$F$11))))/1000 -> 0 | I52: =IFERROR(SUMIFS('Program Design'!$U:$U,'Program Design'!$C:$C,$A52,'Program Design'!$D:$D,$B52,'Program Design'!$J:$J,I$29)+SUMIFS('Program Design'!$V:$V,'Program Design'!$C:$C,$A52,'Program Design'!$D:$D,$B52,'Program Design'!$J:$J,I$29)+SUMIFS('Program Design'!$W:$W,'Program Design'!$C:$C,$A52,'Program Design'!$D:$D,$B52,'Program Design'!$J:$J,I$29)+SUMIFS(INDEX(OFFSET('Budget Inputs'!$A$1,6,1,5000,560),0,MATCH(CONCATENATE(I$29," Sub-Total"),OFFSET('Budget Inputs'!$A$1,6,1,1,560),0)),OFFSET('Budget Inputs'!$A$1,6,1,5000,1),$A52,OFFSET('Budget Inputs'!$A$1,6,2,5000,1),$B52),0) -> 0 | J52: =(SUMIFS(OFFSET('Savings Results'!$A$1,6,16 +MAX('Savings Results'!$G:$G)-MIN('Savings Results'!$G:$G)+MAX('Savings Results'!$J:$J)+I$29-MIN('Savings Results'!$G:$G),5000),OFFSET('Savings Results'!$A$1,6,6,5000),I$29,OFFSET('Savings Results'!$A$1,6,4,5000),"Dx",OFFSET('Savings Results'!$A$1,6,1,5000),$A52,OFFSET('Savings Results'!$A$1,6,2,5000),$B52)/(1/(1-SUM('CE Parameters'!$F$10:$F$11))))/1000 -> 0 | K52: =IFERROR(SUMIFS('Program Design'!$U:$U,'Program Design'!$C:$C,$A52,'Program Design'!$D:$D,$B52,'Program Design'!$J:$J,K$29)+SUMIFS('Program Design'!$V:$V,'Program Design'!$C:$C,$A52,'Program Design'!$D:$D,$B52,'Program Design'!$J:$J,K$29)+SUMIFS('Program Design'!$W:$W,'Program Design'!$C:$C,$A52,'Program Design'!$D:$D,$B52,'Program Design'!$J:$J,K$29)+SUMIFS(INDEX(OFFSET('Budget Inputs'!$A$1,6,1,5000,560),0,MATCH(CONCATENATE(K$29," Sub-Total"),OFFSET('Budget Inputs'!$A$1,6,1,1,560),0)),OFFSET('Budget Inputs'!$A$1,6,1,5000,1),$A52,OFFSET('Budget Inputs'!$A$1,6,2,5000,1),$B52),0) -> 0 | L52: =(SUMIFS(OFFSET('Savings Results'!$A$1,6,16 +MAX('Savings Results'!$G:$G)-MIN('Savings Results'!$G:$G)+MAX('Savings Results'!$J:$J)+K$29-MIN('Savings Results'!$G:$G),5000),OFFSET('Savings Results'!$A$1,6,6,5000),K$29,OFFSET('Savings Results'!$A$1,6,4,5000),"Dx",OFFSET('Savings Results'!$A$1,6,1,5000),$A52,OFFSET('Savings Results'!$A$1,6,2,5000),$B52)/(1/(1-SUM('CE Parameters'!$F$10:$F$11))))/1000 -> 0 | M52: =IFERROR(SUMIFS('Program Design'!$U:$U,'Program Design'!$C:$C,$A52,'Program Design'!$D:$D,$B52,'Program Design'!$J:$J,M$29)+SUMIFS('Program Design'!$V:$V,'Program Design'!$C:$C,$A52,'Program Design'!$D:$D,$B52,'Program Design'!$J:$J,M$29)+SUMIFS('Program Design'!$W:$W,'Program Design'!$C:$C,$A52,'Program Design'!$D:$D,$B52,'Program Design'!$J:$J,M$29)+SUMIFS(INDEX(OFFSET('Budget Inputs'!$A$1,6,1,5000,560),0,MATCH(CONCATENATE(M$29," Sub-Total"),OFFSET('Budget Inputs'!$A$1,6,1,1,560),0)),OFFSET('Budget Inputs'!$A$1,6,1,5000,1),$A52,OFFSET('Budget Inputs'!$A$1,6,2,5000,1),$B52),0) -> 0 | N52: =(SUMIFS(OFFSET('Savings Results'!$A$1,6,16 +MAX('Savings Results'!$G:$G)-MIN('Savings Results'!$G:$G)+MAX('Savings Results'!$J:$J)+M$29-MIN('Savings Results'!$G:$G),5000),OFFSET('Savings Results'!$A$1,6,6,5000),M$29,OFFSET('Savings Results'!$A$1,6,4,5000),"Dx",OFFSET('Savings Results'!$A$1,6,1,5000),$A52,OFFSET('Savings Results'!$A$1,6,2,5000),$B52)/(1/(1-SUM('CE Parameters'!$F$10:$F$11))))/1000 -> 0 | O52: =IFERROR(SUMIFS('Program Design'!$U:$U,'Program Design'!$C:$C,$A52,'Program Design'!$D:$D,$B52)+SUMIFS('Program Design'!$V:$V,'Program Design'!$C:$C,$A52,'Program Design'!$D:$D,$B52)+SUMIFS('Program Design'!$W:$W,'Program Design'!$C:$C,$A52,'Program Design'!$D:$D,$B52)+SUMIFS(INDEX(OFFSET('Budget Inputs'!$A$1,6,1,5000,560),0,MATCH("Total",OFFSET('Budget Inputs'!$A$1,6,1,1,560),0)),OFFSET('Budget Inputs'!$A$1,6,1,5000,1),$A52,OFFSET('Budget Inputs'!$A$1,6,2,5000,1),$B52),0) -> 0 | P52: =(SUMIFS(OFFSET('Savings Results'!$A$1,6,16 +MAX('Savings Results'!$G:$G)-MIN('Savings Results'!$G:$G)+MAX('Savings Results'!$J:$J)+M$29-MIN('Savings Results'!$G:$G),5000),OFFSET('Savings Results'!$A$1,6,4,5000),"Dx",OFFSET('Savings Results'!$A$1,6,1,5000),$A52,OFFSET('Savings Results'!$A$1,6,2,5000),$B52)/(1/(1-SUM('CE Parameters'!$F$10:$F$11))))/1000 -> 0
A53: Business | B53: Enabled Savings Oshawa PUC Networks Inc. CFF | C53: =IFERROR(SUMIFS('Program Design'!$U:$U,'Program Design'!$C:$C,$A53,'Program Design'!$D:$D,$B53,'Program Design'!$J:$J,C$29)+SUMIFS('Program Design'!$V:$V,'Program Design'!$C:$C,$A53,'Program Design'!$D:$D,$B53,'Program Design'!$J:$J,C$29)+SUMIFS('Program Design'!$W:$W,'Program Design'!$C:$C,$A53,'Program Design'!$D:$D,$B53,'Program Design'!$J:$J,C$29)+SUMIFS(INDEX(OFFSET('Budget Inputs'!$A$1,6,1,5000,560),0,MATCH(CONCATENATE(C$29," Sub-Total"),OFFSET('Budget Inputs'!$A$1,6,1,1,560),0)),OFFSET('Budget Inputs'!$A$1,6,1,5000,1),$A53,OFFSET('Budget Inputs'!$A$1,6,2,5000,1),$B53),0) -> 0 | D53: =(SUMIFS(OFFSET('Savings Results'!$A$1,6,16 +MAX('Savings Results'!$G:$G)-MIN('Savings Results'!$G:$G)+MAX('Savings Results'!$J:$J)+C$29-MIN('Savings Results'!$G:$G),5000),OFFSET('Savings Results'!$A$1,6,6,5000),C$29,OFFSET('Savings Results'!$A$1,6,4,5000),"Dx",OFFSET('Savings Results'!$A$1,6,1,5000),$A53,OFFSET('Savings Results'!$A$1,6,2,5000),$B53)/(1/(1-SUM('CE Parameters'!$F$10:$F$11))))/1000 -> 0 | E53: =IFERROR(SUMIFS('Program Design'!$U:$U,'Program Design'!$C:$C,$A53,'Program Design'!$D:$D,$B53,'Program Design'!$J:$J,E$29)+SUMIFS('Program Design'!$V:$V,'Program Design'!$C:$C,$A53,'Program Design'!$D:$D,$B53,'Program Design'!$J:$J,E$29)+SUMIFS('Program Design'!$W:$W,'Program Design'!$C:$C,$A53,'Program Design'!$D:$D,$B53,'Program Design'!$J:$J,E$29)+SUMIFS(INDEX(OFFSET('Budget Inputs'!$A$1,6,1,5000,560),0,MATCH(CONCATENATE(E$29," Sub-Total"),OFFSET('Budget Inputs'!$A$1,6,1,1,560),0)),OFFSET('Budget Inputs'!$A$1,6,1,5000,1),$A53,OFFSET('Budget Inputs'!$A$1,6,2,5000,1),$B53),0) -> 0 | F53: =(SUMIFS(OFFSET('Savings Results'!$A$1,6,16 +MAX('Savings Results'!$G:$G)-MIN('Savings Results'!$G:$G)+MAX('Savings Results'!$J:$J)+E$29-MIN('Savings Results'!$G:$G),5000),OFFSET('Savings Results'!$A$1,6,6,5000),E$29,OFFSET('Savings Results'!$A$1,6,4,5000),"Dx",OFFSET('Savings Results'!$A$1,6,1,5000),$A53,OFFSET('Savings Results'!$A$1,6,2,5000),$B53)/(1/(1-SUM('CE Parameters'!$F$10:$F$11))))/1000 -> 0 | G53: =IFERROR(SUMIFS('Program Design'!$U:$U,'Program Design'!$C:$C,$A53,'Program Design'!$D:$D,$B53,'Program Design'!$J:$J,G$29)+SUMIFS('Program Design'!$V:$V,'Program Design'!$C:$C,$A53,'Program Design'!$D:$D,$B53,'Program Design'!$J:$J,G$29)+SUMIFS('Program Design'!$W:$W,'Program Design'!$C:$C,$A53,'Program Design'!$D:$D,$B53,'Program Design'!$J:$J,G$29)+SUMIFS(INDEX(OFFSET('Budget Inputs'!$A$1,6,1,5000,560),0,MATCH(CONCATENATE(G$29," Sub-Total"),OFFSET('Budget Inputs'!$A$1,6,1,1,560),0)),OFFSET('Budget Inputs'!$A$1,6,1,5000,1),$A53,OFFSET('Budget Inputs'!$A$1,6,2,5000,1),$B53),0) -> 0 | H53: =(SUMIFS(OFFSET('Savings Results'!$A$1,6,16 +MAX('Savings Results'!$G:$G)-MIN('Savings Results'!$G:$G)+MAX('Savings Results'!$J:$J)+G$29-MIN('Savings Results'!$G:$G),5000),OFFSET('Savings Results'!$A$1,6,6,5000),G$29,OFFSET('Savings Results'!$A$1,6,4,5000),"Dx",OFFSET('Savings Results'!$A$1,6,1,5000),$A53,OFFSET('Savings Results'!$A$1,6,2,5000),$B53)/(1/(1-SUM('CE Parameters'!$F$10:$F$11))))/1000 -> 0 | I53: =IFERROR(SUMIFS('Program Design'!$U:$U,'Program Design'!$C:$C,$A53,'Program Design'!$D:$D,$B53,'Program Design'!$J:$J,I$29)+SUMIFS('Program Design'!$V:$V,'Program Design'!$C:$C,$A53,'Program Design'!$D:$D,$B53,'Program Design'!$J:$J,I$29)+SUMIFS('Program Design'!$W:$W,'Program Design'!$C:$C,$A53,'Program Design'!$D:$D,$B53,'Program Design'!$J:$J,I$29)+SUMIFS(INDEX(OFFSET('Budget Inputs'!$A$1,6,1,5000,560),0,MATCH(CONCATENATE(I$29," Sub-Total"),OFFSET('Budget Inputs'!$A$1,6,1,1,560),0)),OFFSET('Budget Inputs'!$A$1,6,1,5000,1),$A53,OFFSET('Budget Inputs'!$A$1,6,2,5000,1),$B53),0) -> 0 | J53: =(SUMIFS(OFFSET('Savings Results'!$A$1,6,16 +MAX('Savings Results'!$G:$G)-MIN('Savings Results'!$G:$G)+MAX('Savings Results'!$J:$J)+I$29-MIN('Savings Results'!$G:$G),5000),OFFSET('Savings Results'!$A$1,6,6,5000),I$29,OFFSET('Savings Results'!$A$1,6,4,5000),"Dx",OFFSET('Savings Results'!$A$1,6,1,5000),$A53,OFFSET('Savings Results'!$A$1,6,2,5000),$B53)/(1/(1-SUM('CE Parameters'!$F$10:$F$11))))/1000 -> 0 | K53: =IFERROR(SUMIFS('Program Design'!$U:$U,'Program Design'!$C:$C,$A53,'Program Design'!$D:$D,$B53,'Program Design'!$J:$J,K$29)+SUMIFS('Program Design'!$V:$V,'Program Design'!$C:$C,$A53,'Program Design'!$D:$D,$B53,'Program Design'!$J:$J,K$29)+SUMIFS('Program Design'!$W:$W,'Program Design'!$C:$C,$A53,'Program Design'!$D:$D,$B53,'Program Design'!$J:$J,K$29)+SUMIFS(INDEX(OFFSET('Budget Inputs'!$A$1,6,1,5000,560),0,MATCH(CONCATENATE(K$29," Sub-Total"),OFFSET('Budget Inputs'!$A$1,6,1,1,560),0)),OFFSET('Budget Inputs'!$A$1,6,1,5000,1),$A53,OFFSET('Budget Inputs'!$A$1,6,2,5000,1),$B53),0) -> 0 | L53: =(SUMIFS(OFFSET('Savings Results'!$A$1,6,16 +MAX('Savings Results'!$G:$G)-MIN('Savings Results'!$G:$G)+MAX('Savings Results'!$J:$J)+K$29-MIN('Savings Results'!$G:$G),5000),OFFSET('Savings Results'!$A$1,6,6,5000),K$29,OFFSET('Savings Results'!$A$1,6,4,5000),"Dx",OFFSET('Savings Results'!$A$1,6,1,5000),$A53,OFFSET('Savings Results'!$A$1,6,2,5000),$B53)/(1/(1-SUM('CE Parameters'!$F$10:$F$11))))/1000 -> 0 | M53: =IFERROR(SUMIFS('Program Design'!$U:$U,'Program Design'!$C:$C,$A53,'Program Design'!$D:$D,$B53,'Program Design'!$J:$J,M$29)+SUMIFS('Program Design'!$V:$V,'Program Design'!$C:$C,$A53,'Program Design'!$D:$D,$B53,'Program Design'!$J:$J,M$29)+SUMIFS('Program Design'!$W:$W,'Program Design'!$C:$C,$A53,'Program Design'!$D:$D,$B53,'Program Design'!$J:$J,M$29)+SUMIFS(INDEX(OFFSET('Budget Inputs'!$A$1,6,1,5000,560),0,MATCH(CONCATENATE(M$29," Sub-Total"),OFFSET('Budget Inputs'!$A$1,6,1,1,560),0)),OFFSET('Budget Inputs'!$A$1,6,1,5000,1),$A53,OFFSET('Budget Inputs'!$A$1,6,2,5000,1),$B53),0) -> 0 | N53: =(SUMIFS(OFFSET('Savings Results'!$A$1,6,16 +MAX('Savings Results'!$G:$G)-MIN('Savings Results'!$G:$G)+MAX('Savings Results'!$J:$J)+M$29-MIN('Savings Results'!$G:$G),5000),OFFSET('Savings Results'!$A$1,6,6,5000),M$29,OFFSET('Savings Results'!$A$1,6,4,5000),"Dx",OFFSET('Savings Results'!$A$1,6,1,5000),$A53,OFFSET('Savings Results'!$A$1,6,2,5000),$B53)/(1/(1-SUM('CE Parameters'!$F$10:$F$11))))/1000 -> 0 | O53: =IFERROR(SUMIFS('Program Design'!$U:$U,'Program Design'!$C:$C,$A53,'Program Design'!$D:$D,$B53)+SUMIFS('Program Design'!$V:$V,'Program Design'!$C:$C,$A53,'Program Design'!$D:$D,$B53)+SUMIFS('Program Design'!$W:$W,'Program Design'!$C:$C,$A53,'Program Design'!$D:$D,$B53)+SUMIFS(INDEX(OFFSET('Budget Inputs'!$A$1,6,1,5000,560),0,MATCH("Total",OFFSET('Budget Inputs'!$A$1,6,1,1,560),0)),OFFSET('Budget Inputs'!$A$1,6,1,5000,1),$A53,OFFSET('Budget Inputs'!$A$1,6,2,5000,1),$B53),0) -> 0 | P53: =(SUMIFS(OFFSET('Savings Results'!$A$1,6,16 +MAX('Savings Results'!$G:$G)-MIN('Savings Results'!$G:$G)+MAX('Savings Results'!$J:$J)+M$29-MIN('Savings Results'!$G:$G),5000),OFFSET('Savings Results'!$A$1,6,4,5000),"Dx",OFFSET('Savings Results'!$A$1,6,1,5000),$A53,OFFSET('Savings Results'!$A$1,6,2,5000),$B53)/(1/(1-SUM('CE Parameters'!$F$10:$F$11))))/1000 -> 0
A54: Business | B54: ENERNOC Pilot Oshawa PUC Networks Inc. CFF | C54: =IFERROR(SUMIFS('Program Design'!$U:$U,'Program Design'!$C:$C,$A54,'Program Design'!$D:$D,$B54,'Program Design'!$J:$J,C$29)+SUMIFS('Program Design'!$V:$V,'Program Design'!$C:$C,$A54,'Program Design'!$D:$D,$B54,'Program Design'!$J:$J,C$29)+SUMIFS('Program Design'!$W:$W,'Program Design'!$C:$C,$A54,'Program Design'!$D:$D,$B54,'Program Design'!$J:$J,C$29)+SUMIFS(INDEX(OFFSET('Budget Inputs'!$A$1,6,1,5000,560),0,MATCH(CONCATENATE(C$29," Sub-Total"),OFFSET('Budget Inputs'!$A$1,6,1,1,560),0)),OFFSET('Budget Inputs'!$A$1,6,1,5000,1),$A54,OFFSET('Budget Inputs'!$A$1,6,2,5000,1),$B54),0) -> 0 | D54: =(SUMIFS(OFFSET('Savings Results'!$A$1,6,16 +MAX('Savings Results'!$G:$G)-MIN('Savings Results'!$G:$G)+MAX('Savings Results'!$J:$J)+C$29-MIN('Savings Results'!$G:$G),5000),OFFSET('Savings Results'!$A$1,6,6,5000),C$29,OFFSET('Savings Results'!$A$1,6,4,5000),"Dx",OFFSET('Savings Results'!$A$1,6,1,5000),$A54,OFFSET('Savings Results'!$A$1,6,2,5000),$B54)/(1/(1-SUM('CE Parameters'!$F$10:$F$11))))/1000 -> 0 | E54: =IFERROR(SUMIFS('Program Design'!$U:$U,'Program Design'!$C:$C,$A54,'Program Design'!$D:$D,$B54,'Program Design'!$J:$J,E$29)+SUMIFS('Program Design'!$V:$V,'Program Design'!$C:$C,$A54,'Program Design'!$D:$D,$B54,'Program Design'!$J:$J,E$29)+SUMIFS('Program Design'!$W:$W,'Program Design'!$C:$C,$A54,'Program Design'!$D:$D,$B54,'Program Design'!$J:$J,E$29)+SUMIFS(INDEX(OFFSET('Budget Inputs'!$A$1,6,1,5000,560),0,MATCH(CONCATENATE(E$29," Sub-Total"),OFFSET('Budget Inputs'!$A$1,6,1,1,560),0)),OFFSET('Budget Inputs'!$A$1,6,1,5000,1),$A54,OFFSET('Budget Inputs'!$A$1,6,2,5000,1),$B54),0) -> 0 | F54: =(SUMIFS(OFFSET('Savings Results'!$A$1,6,16 +MAX('Savings Results'!$G:$G)-MIN('Savings Results'!$G:$G)+MAX('Savings Results'!$J:$J)+E$29-MIN('Savings Results'!$G:$G),5000),OFFSET('Savings Results'!$A$1,6,6,5000),E$29,OFFSET('Savings Results'!$A$1,6,4,5000),"Dx",OFFSET('Savings Results'!$A$1,6,1,5000),$A54,OFFSET('Savings Results'!$A$1,6,2,5000),$B54)/(1/(1-SUM('CE Parameters'!$F$10:$F$11))))/1000 -> 0 | G54: =IFERROR(SUMIFS('Program Design'!$U:$U,'Program Design'!$C:$C,$A54,'Program Design'!$D:$D,$B54,'Program Design'!$J:$J,G$29)+SUMIFS('Program Design'!$V:$V,'Program Design'!$C:$C,$A54,'Program Design'!$D:$D,$B54,'Program Design'!$J:$J,G$29)+SUMIFS('Program Design'!$W:$W,'Program Design'!$C:$C,$A54,'Program Design'!$D:$D,$B54,'Program Design'!$J:$J,G$29)+SUMIFS(INDEX(OFFSET('Budget Inputs'!$A$1,6,1,5000,560),0,MATCH(CONCATENATE(G$29," Sub-Total"),OFFSET('Budget Inputs'!$A$1,6,1,1,560),0)),OFFSET('Budget Inputs'!$A$1,6,1,5000,1),$A54,OFFSET('Budget Inputs'!$A$1,6,2,5000,1),$B54),0) -> 0 | H54: =(SUMIFS(OFFSET('Savings Results'!$A$1,6,16 +MAX('Savings Results'!$G:$G)-MIN('Savings Results'!$G:$G)+MAX('Savings Results'!$J:$J)+G$29-MIN('Savings Results'!$G:$G),5000),OFFSET('Savings Results'!$A$1,6,6,5000),G$29,OFFSET('Savings Results'!$A$1,6,4,5000),"Dx",OFFSET('Savings Results'!$A$1,6,1,5000),$A54,OFFSET('Savings Results'!$A$1,6,2,5000),$B54)/(1/(1-SUM('CE Parameters'!$F$10:$F$11))))/1000 -> 0 | I54: =IFERROR(SUMIFS('Program Design'!$U:$U,'Program Design'!$C:$C,$A54,'Program Design'!$D:$D,$B54,'Program Design'!$J:$J,I$29)+SUMIFS('Program Design'!$V:$V,'Program Design'!$C:$C,$A54,'Program Design'!$D:$D,$B54,'Program Design'!$J:$J,I$29)+SUMIFS('Program Design'!$W:$W,'Program Design'!$C:$C,$A54,'Program Design'!$D:$D,$B54,'Program Design'!$J:$J,I$29)+SUMIFS(INDEX(OFFSET('Budget Inputs'!$A$1,6,1,5000,560),0,MATCH(CONCATENATE(I$29," Sub-Total"),OFFSET('Budget Inputs'!$A$1,6,1,1,560),0)),OFFSET('Budget Inputs'!$A$1,6,1,5000,1),$A54,OFFSET('Budget Inputs'!$A$1,6,2,5000,1),$B54),0) -> 0 | J54: =(SUMIFS(OFFSET('Savings Results'!$A$1,6,16 +MAX('Savings Results'!$G:$G)-MIN('Savings Results'!$G:$G)+MAX('Savings Results'!$J:$J)+I$29-MIN('Savings Results'!$G:$G),5000),OFFSET('Savings Results'!$A$1,6,6,5000),I$29,OFFSET('Savings Results'!$A$1,6,4,5000),"Dx",OFFSET('Savings Results'!$A$1,6,1,5000),$A54,OFFSET('Savings Results'!$A$1,6,2,5000),$B54)/(1/(1-SUM('CE Parameters'!$F$10:$F$11))))/1000 -> 0 | K54: =IFERROR(SUMIFS('Program Design'!$U:$U,'Program Design'!$C:$C,$A54,'Program Design'!$D:$D,$B54,'Program Design'!$J:$J,K$29)+SUMIFS('Program Design'!$V:$V,'Program Design'!$C:$C,$A54,'Program Design'!$D:$D,$B54,'Program Design'!$J:$J,K$29)+SUMIFS('Program Design'!$W:$W,'Program Design'!$C:$C,$A54,'Program Design'!$D:$D,$B54,'Program Design'!$J:$J,K$29)+SUMIFS(INDEX(OFFSET('Budget Inputs'!$A$1,6,1,5000,560),0,MATCH(CONCATENATE(K$29," Sub-Total"),OFFSET('Budget Inputs'!$A$1,6,1,1,560),0)),OFFSET('Budget Inputs'!$A$1,6,1,5000,1),$A54,OFFSET('Budget Inputs'!$A$1,6,2,5000,1),$B54),0) -> 0 | L54: =(SUMIFS(OFFSET('Savings Results'!$A$1,6,16 +MAX('Savings Results'!$G:$G)-MIN('Savings Results'!$G:$G)+MAX('Savings Results'!$J:$J)+K$29-MIN('Savings Results'!$G:$G),5000),OFFSET('Savings Results'!$A$1,6,6,5000),K$29,OFFSET('Savings Results'!$A$1,6,4,5000),"Dx",OFFSET('Savings Results'!$A$1,6,1,5000),$A54,OFFSET('Savings Results'!$A$1,6,2,5000),$B54)/(1/(1-SUM('CE Parameters'!$F$10:$F$11))))/1000 -> 0 | M54: =IFERROR(SUMIFS('Program Design'!$U:$U,'Program Design'!$C:$C,$A54,'Program Design'!$D:$D,$B54,'Program Design'!$J:$J,M$29)+SUMIFS('Program Design'!$V:$V,'Program Design'!$C:$C,$A54,'Program Design'!$D:$D,$B54,'Program Design'!$J:$J,M$29)+SUMIFS('Program Design'!$W:$W,'Program Design'!$C:$C,$A54,'Program Design'!$D:$D,$B54,'Program Design'!$J:$J,M$29)+SUMIFS(INDEX(OFFSET('Budget Inputs'!$A$1,6,1,5000,560),0,MATCH(CONCATENATE(M$29," Sub-Total"),OFFSET('Budget Inputs'!$A$1,6,1,1,560),0)),OFFSET('Budget Inputs'!$A$1,6,1,5000,1),$A54,OFFSET('Budget Inputs'!$A$1,6,2,5000,1),$B54),0) -> 0 | N54: =(SUMIFS(OFFSET('Savings Results'!$A$1,6,16 +MAX('Savings Results'!$G:$G)-MIN('Savings Results'!$G:$G)+MAX('Savings Results'!$J:$J)+M$29-MIN('Savings Results'!$G:$G),5000),OFFSET('Savings Results'!$A$1,6,6,5000),M$29,OFFSET('Savings Results'!$A$1,6,4,5000),"Dx",OFFSET('Savings Results'!$A$1,6,1,5000),$A54,OFFSET('Savings Results'!$A$1,6,2,5000),$B54)/(1/(1-SUM('CE Parameters'!$F$10:$F$11))))/1000 -> 0 | O54: =IFERROR(SUMIFS('Program Design'!$U:$U,'Program Design'!$C:$C,$A54,'Program Design'!$D:$D,$B54)+SUMIFS('Program Design'!$V:$V,'Program Design'!$C:$C,$A54,'Program Design'!$D:$D,$B54)+SUMIFS('Program Design'!$W:$W,'Program Design'!$C:$C,$A54,'Program Design'!$D:$D,$B54)+SUMIFS(INDEX(OFFSET('Budget Inputs'!$A$1,6,1,5000,560),0,MATCH("Total",OFFSET('Budget Inputs'!$A$1,6,1,1,560),0)),OFFSET('Budget Inputs'!$A$1,6,1,5000,1),$A54,OFFSET('Budget Inputs'!$A$1,6,2,5000,1),$B54),0) -> 0 | P54: =(SUMIFS(OFFSET('Savings Results'!$A$1,6,16 +MAX('Savings Results'!$G:$G)-MIN('Savings Results'!$G:$G)+MAX('Savings Results'!$J:$J)+M$29-MIN('Savings Results'!$G:$G),5000),OFFSET('Savings Results'!$A$1,6,4,5000),"Dx",OFFSET('Savings Results'!$A$1,6,1,5000),$A54,OFFSET('Savings Results'!$A$1,6,2,5000),$B54)/(1/(1-SUM('CE Parameters'!$F$10:$F$11))))/1000 -> 0
A55: Business | B55: SEG Pilot Oshawa PUC Networks Inc. CFF | C55: =IFERROR(SUMIFS('Program Design'!$U:$U,'Program Design'!$C:$C,$A55,'Program Design'!$D:$D,$B55,'Program Design'!$J:$J,C$29)+SUMIFS('Program Design'!$V:$V,'Program Design'!$C:$C,$A55,'Program Design'!$D:$D,$B55,'Program Design'!$J:$J,C$29)+SUMIFS('Program Design'!$W:$W,'Program Design'!$C:$C,$A55,'Program Design'!$D:$D,$B55,'Program Design'!$J:$J,C$29)+SUMIFS(INDEX(OFFSET('Budget Inputs'!$A$1,6,1,5000,560),0,MATCH(CONCATENATE(C$29," Sub-Total"),OFFSET('Budget Inputs'!$A$1,6,1,1,560),0)),OFFSET('Budget Inputs'!$A$1,6,1,5000,1),$A55,OFFSET('Budget Inputs'!$A$1,6,2,5000,1),$B55),0) -> 0 | D55: =(SUMIFS(OFFSET('Savings Results'!$A$1,6,16 +MAX('Savings Results'!$G:$G)-MIN('Savings Results'!$G:$G)+MAX('Savings Results'!$J:$J)+C$29-MIN('Savings Results'!$G:$G),5000),OFFSET('Savings Results'!$A$1,6,6,5000),C$29,OFFSET('Savings Results'!$A$1,6,4,5000),"Dx",OFFSET('Savings Results'!$A$1,6,1,5000),$A55,OFFSET('Savings Results'!$A$1,6,2,5000),$B55)/(1/(1-SUM('CE Parameters'!$F$10:$F$11))))/1000 -> 0 | E55: =IFERROR(SUMIFS('Program Design'!$U:$U,'Program Design'!$C:$C,$A55,'Program Design'!$D:$D,$B55,'Program Design'!$J:$J,E$29)+SUMIFS('Program Design'!$V:$V,'Program Design'!$C:$C,$A55,'Program Design'!$D:$D,$B55,'Program Design'!$J:$J,E$29)+SUMIFS('Program Design'!$W:$W,'Program Design'!$C:$C,$A55,'Program Design'!$D:$D,$B55,'Program Design'!$J:$J,E$29)+SUMIFS(INDEX(OFFSET('Budget Inputs'!$A$1,6,1,5000,560),0,MATCH(CONCATENATE(E$29," Sub-Total"),OFFSET('Budget Inputs'!$A$1,6,1,1,560),0)),OFFSET('Budget Inputs'!$A$1,6,1,5000,1),$A55,OFFSET('Budget Inputs'!$A$1,6,2,5000,1),$B55),0) -> 0 | F55: =(SUMIFS(OFFSET('Savings Results'!$A$1,6,16 +MAX('Savings Results'!$G:$G)-MIN('Savings Results'!$G:$G)+MAX('Savings Results'!$J:$J)+E$29-MIN('Savings Results'!$G:$G),5000),OFFSET('Savings Results'!$A$1,6,6,5000),E$29,OFFSET('Savings Results'!$A$1,6,4,5000),"Dx",OFFSET('Savings Results'!$A$1,6,1,5000),$A55,OFFSET('Savings Results'!$A$1,6,2,5000),$B55)/(1/(1-SUM('CE Parameters'!$F$10:$F$11))))/1000 -> 0 | G55: =IFERROR(SUMIFS('Program Design'!$U:$U,'Program Design'!$C:$C,$A55,'Program Design'!$D:$D,$B55,'Program Design'!$J:$J,G$29)+SUMIFS('Program Design'!$V:$V,'Program Design'!$C:$C,$A55,'Program Design'!$D:$D,$B55,'Program Design'!$J:$J,G$29)+SUMIFS('Program Design'!$W:$W,'Program Design'!$C:$C,$A55,'Program Design'!$D:$D,$B55,'Program Design'!$J:$J,G$29)+SUMIFS(INDEX(OFFSET('Budget Inputs'!$A$1,6,1,5000,560),0,MATCH(CONCATENATE(G$29," Sub-Total"),OFFSET('Budget Inputs'!$A$1,6,1,1,560),0)),OFFSET('Budget Inputs'!$A$1,6,1,5000,1),$A55,OFFSET('Budget Inputs'!$A$1,6,2,5000,1),$B55),0) -> 0 | H55: =(SUMIFS(OFFSET('Savings Results'!$A$1,6,16 +MAX('Savings Results'!$G:$G)-MIN('Savings Results'!$G:$G)+MAX('Savings Results'!$J:$J)+G$29-MIN('Savings Results'!$G:$G),5000),OFFSET('Savings Results'!$A$1,6,6,5000),G$29,OFFSET('Savings Results'!$A$1,6,4,5000),"Dx",OFFSET('Savings Results'!$A$1,6,1,5000),$A55,OFFSET('Savings Results'!$A$1,6,2,5000),$B55)/(1/(1-SUM('CE Parameters'!$F$10:$F$11))))/1000 -> 0 | I55: =IFERROR(SUMIFS('Program Design'!$U:$U,'Program Design'!$C:$C,$A55,'Program Design'!$D:$D,$B55,'Program Design'!$J:$J,I$29)+SUMIFS('Program Design'!$V:$V,'Program Design'!$C:$C,$A55,'Program Design'!$D:$D,$B55,'Program Design'!$J:$J,I$29)+SUMIFS('Program Design'!$W:$W,'Program Design'!$C:$C,$A55,'Program Design'!$D:$D,$B55,'Program Design'!$J:$J,I$29)+SUMIFS(INDEX(OFFSET('Budget Inputs'!$A$1,6,1,5000,560),0,MATCH(CONCATENATE(I$29," Sub-Total"),OFFSET('Budget Inputs'!$A$1,6,1,1,560),0)),OFFSET('Budget Inputs'!$A$1,6,1,5000,1),$A55,OFFSET('Budget Inputs'!$A$1,6,2,5000,1),$B55),0) -> 0 | J55: =(SUMIFS(OFFSET('Savings Results'!$A$1,6,16 +MAX('Savings Results'!$G:$G)-MIN('Savings Results'!$G:$G)+MAX('Savings Results'!$J:$J)+I$29-MIN('Savings Results'!$G:$G),5000),OFFSET('Savings Results'!$A$1,6,6,5000),I$29,OFFSET('Savings Results'!$A$1,6,4,5000),"Dx",OFFSET('Savings Results'!$A$1,6,1,5000),$A55,OFFSET('Savings Results'!$A$1,6,2,5000),$B55)/(1/(1-SUM('CE Parameters'!$F$10:$F$11))))/1000 -> 0 | K55: =IFERROR(SUMIFS('Program Design'!$U:$U,'Program Design'!$C:$C,$A55,'Program Design'!$D:$D,$B55,'Program Design'!$J:$J,K$29)+SUMIFS('Program Design'!$V:$V,'Program Design'!$C:$C,$A55,'Program Design'!$D:$D,$B55,'Program Design'!$J:$J,K$29)+SUMIFS('Program Design'!$W:$W,'Program Design'!$C:$C,$A55,'Program Design'!$D:$D,$B55,'Program Design'!$J:$J,K$29)+SUMIFS(INDEX(OFFSET('Budget Inputs'!$A$1,6,1,5000,560),0,MATCH(CONCATENATE(K$29," Sub-Total"),OFFSET('Budget Inputs'!$A$1,6,1,1,560),0)),OFFSET('Budget Inputs'!$A$1,6,1,5000,1),$A55,OFFSET('Budget Inputs'!$A$1,6,2,5000,1),$B55),0) -> 0 | L55: =(SUMIFS(OFFSET('Savings Results'!$A$1,6,16 +MAX('Savings Results'!$G:$G)-MIN('Savings Results'!$G:$G)+MAX('Savings Results'!$J:$J)+K$29-MIN('Savings Results'!$G:$G),5000),OFFSET('Savings Results'!$A$1,6,6,5000),K$29,OFFSET('Savings Results'!$A$1,6,4,5000),"Dx",OFFSET('Savings Results'!$A$1,6,1,5000),$A55,OFFSET('Savings Results'!$A$1,6,2,5000),$B55)/(1/(1-SUM('CE Parameters'!$F$10:$F$11))))/1000 -> 0 | M55: =IFERROR(SUMIFS('Program Design'!$U:$U,'Program Design'!$C:$C,$A55,'Program Design'!$D:$D,$B55,'Program Design'!$J:$J,M$29)+SUMIFS('Program Design'!$V:$V,'Program Design'!$C:$C,$A55,'Program Design'!$D:$D,$B55,'Program Design'!$J:$J,M$29)+SUMIFS('Program Design'!$W:$W,'Program Design'!$C:$C,$A55,'Program Design'!$D:$D,$B55,'Program Design'!$J:$J,M$29)+SUMIFS(INDEX(OFFSET('Budget Inputs'!$A$1,6,1,5000,560),0,MATCH(CONCATENATE(M$29," Sub-Total"),OFFSET('Budget Inputs'!$A$1,6,1,1,560),0)),OFFSET('Budget Inputs'!$A$1,6,1,5000,1),$A55,OFFSET('Budget Inputs'!$A$1,6,2,5000,1),$B55),0) -> 0 | N55: =(SUMIFS(OFFSET('Savings Results'!$A$1,6,16 +MAX('Savings Results'!$G:$G)-MIN('Savings Results'!$G:$G)+MAX('Savings Results'!$J:$J)+M$29-MIN('Savings Results'!$G:$G),5000),OFFSET('Savings Results'!$A$1,6,6,5000),M$29,OFFSET('Savings Results'!$A$1,6,4,5000),"Dx",OFFSET('Savings Results'!$A$1,6,1,5000),$A55,OFFSET('Savings Results'!$A$1,6,2,5000),$B55)/(1/(1-SUM('CE Parameters'!$F$10:$F$11))))/1000 -> 0 | O55: =IFERROR(SUMIFS('Program Design'!$U:$U,'Program Design'!$C:$C,$A55,'Program Design'!$D:$D,$B55)+SUMIFS('Program Design'!$V:$V,'Program Design'!$C:$C,$A55,'Program Design'!$D:$D,$B55)+SUMIFS('Program Design'!$W:$W,'Program Design'!$C:$C,$A55,'Program Design'!$D:$D,$B55)+SUMIFS(INDEX(OFFSET('Budget Inputs'!$A$1,6,1,5000,560),0,MATCH("Total",OFFSET('Budget Inputs'!$A$1,6,1,1,560),0)),OFFSET('Budget Inputs'!$A$1,6,1,5000,1),$A55,OFFSET('Budget Inputs'!$A$1,6,2,5000,1),$B55),0) -> 0 | P55: =(SUMIFS(OFFSET('Savings Results'!$A$1,6,16 +MAX('Savings Results'!$G:$G)-MIN('Savings Results'!$G:$G)+MAX('Savings Results'!$J:$J)+M$29-MIN('Savings Results'!$G:$G),5000),OFFSET('Savings Results'!$A$1,6,4,5000),"Dx",OFFSET('Savings Results'!$A$1,6,1,5000),$A55,OFFSET('Savings Results'!$A$1,6,2,5000),$B55)/(1/(1-SUM('CE Parameters'!$F$10:$F$11))))/1000 -> 0
A56: Business | B56: Energy Manager Oshawa PUC Networks Inc. CFF - V2 | C56: =IFERROR(SUMIFS('Program Design'!$U:$U,'Program Design'!$C:$C,$A56,'Program Design'!$D:$D,$B56,'Program Design'!$J:$J,C$29)+SUMIFS('Program Design'!$V:$V,'Program Design'!$C:$C,$A56,'Program Design'!$D:$D,$B56,'Program Design'!$J:$J,C$29)+SUMIFS('Program Design'!$W:$W,'Program Design'!$C:$C,$A56,'Program Design'!$D:$D,$B56,'Program Design'!$J:$J,C$29)+SUMIFS(INDEX(OFFSET('Budget Inputs'!$A$1,6,1,5000,560),0,MATCH(CONCATENATE(C$29," Sub-Total"),OFFSET('Budget Inputs'!$A$1,6,1,1,560),0)),OFFSET('Budget Inputs'!$A$1,6,1,5000,1),$A56,OFFSET('Budget Inputs'!$A$1,6,2,5000,1),$B56),0) -> 0 | D56: =(SUMIFS(OFFSET('Savings Results'!$A$1,6,16 +MAX('Savings Results'!$G:$G)-MIN('Savings Results'!$G:$G)+MAX('Savings Results'!$J:$J)+C$29-MIN('Savings Results'!$G:$G),5000),OFFSET('Savings Results'!$A$1,6,6,5000),C$29,OFFSET('Savings Results'!$A$1,6,4,5000),"Dx",OFFSET('Savings Results'!$A$1,6,1,5000),$A56,OFFSET('Savings Results'!$A$1,6,2,5000),$B56)/(1/(1-SUM('CE Parameters'!$F$10:$F$11))))/1000 -> 0 | E56: =IFERROR(SUMIFS('Program Design'!$U:$U,'Program Design'!$C:$C,$A56,'Program Design'!$D:$D,$B56,'Program Design'!$J:$J,E$29)+SUMIFS('Program Design'!$V:$V,'Program Design'!$C:$C,$A56,'Program Design'!$D:$D,$B56,'Program Design'!$J:$J,E$29)+SUMIFS('Program Design'!$W:$W,'Program Design'!$C:$C,$A56,'Program Design'!$D:$D,$B56,'Program Design'!$J:$J,E$29)+SUMIFS(INDEX(OFFSET('Budget Inputs'!$A$1,6,1,5000,560),0,MATCH(CONCATENATE(E$29," Sub-Total"),OFFSET('Budget Inputs'!$A$1,6,1,1,560),0)),OFFSET('Budget Inputs'!$A$1,6,1,5000,1),$A56,OFFSET('Budget Inputs'!$A$1,6,2,5000,1),$B56),0) -> 0 | F56: =(SUMIFS(OFFSET('Savings Results'!$A$1,6,16 +MAX('Savings Results'!$G:$G)-MIN('Savings Results'!$G:$G)+MAX('Savings Results'!$J:$J)+E$29-MIN('Savings Results'!$G:$G),5000),OFFSET('Savings Results'!$A$1,6,6,5000),E$29,OFFSET('Savings Results'!$A$1,6,4,5000),"Dx",OFFSET('Savings Results'!$A$1,6,1,5000),$A56,OFFSET('Savings Results'!$A$1,6,2,5000),$B56)/(1/(1-SUM('CE Parameters'!$F$10:$F$11))))/1000 -> 0 | G56: =IFERROR(SUMIFS('Program Design'!$U:$U,'Program Design'!$C:$C,$A56,'Program Design'!$D:$D,$B56,'Program Design'!$J:$J,G$29)+SUMIFS('Program Design'!$V:$V,'Program Design'!$C:$C,$A56,'Program Design'!$D:$D,$B56,'Program Design'!$J:$J,G$29)+SUMIFS('Program Design'!$W:$W,'Program Design'!$C:$C,$A56,'Program Design'!$D:$D,$B56,'Program Design'!$J:$J,G$29)+SUMIFS(INDEX(OFFSET('Budget Inputs'!$A$1,6,1,5000,560),0,MATCH(CONCATENATE(G$29," Sub-Total"),OFFSET('Budget Inputs'!$A$1,6,1,1,560),0)),OFFSET('Budget Inputs'!$A$1,6,1,5000,1),$A56,OFFSET('Budget Inputs'!$A$1,6,2,5000,1),$B56),0) -> 12264.15094 | H56: =(SUMIFS(OFFSET('Savings Results'!$A$1,6,16 +MAX('Savings Results'!$G:$G)-MIN('Savings Results'!$G:$G)+MAX('Savings Results'!$J:$J)+G$29-MIN('Savings Results'!$G:$G),5000),OFFSET('Savings Results'!$A$1,6,6,5000),G$29,OFFSET('Savings Results'!$A$1,6,4,5000),"Dx",OFFSET('Savings Results'!$A$1,6,1,5000),$A56,OFFSET('Savings Results'!$A$1,6,2,5000),$B56)/(1/(1-SUM('CE Parameters'!$F$10:$F$11))))/1000 -> 63.67924528 | I56: =IFERROR(SUMIFS('Program Design'!$U:$U,'Program Design'!$C:$C,$A56,'Program Design'!$D:$D,$B56,'Program Design'!$J:$J,I$29)+SUMIFS('Program Design'!$V:$V,'Program Design'!$C:$C,$A56,'Program Design'!$D:$D,$B56,'Program Design'!$J:$J,I$29)+SUMIFS('Program Design'!$W:$W,'Program Design'!$C:$C,$A56,'Program Design'!$D:$D,$B56,'Program Design'!$J:$J,I$29)+SUMIFS(INDEX(OFFSET('Budget Inputs'!$A$1,6,1,5000,560),0,MATCH(CONCATENATE(I$29," Sub-Total"),OFFSET('Budget Inputs'!$A$1,6,1,1,560),0)),OFFSET('Budget Inputs'!$A$1,6,1,5000,1),$A56,OFFSET('Budget Inputs'!$A$1,6,2,5000,1),$B56),0) -> 73584.90566 | J56: =(SUMIFS(OFFSET('Savings Results'!$A$1,6,16 +MAX('Savings Results'!$G:$G)-MIN('Savings Results'!$G:$G)+MAX('Savings Results'!$J:$J)+I$29-MIN('Savings Results'!$G:$G),5000),OFFSET('Savings Results'!$A$1,6,6,5000),I$29,OFFSET('Savings Results'!$A$1,6,4,5000),"Dx",OFFSET('Savings Results'!$A$1,6,1,5000),$A56,OFFSET('Savings Results'!$A$1,6,2,5000),$B56)/(1/(1-SUM('CE Parameters'!$F$10:$F$11))))/1000 -> 382.0754717 | K56: =IFERROR(SUMIFS('Program Design'!$U:$U,'Program Design'!$C:$C,$A56,'Program Design'!$D:$D,$B56,'Program Design'!$J:$J,K$29)+SUMIFS('Program Design'!$V:$V,'Program Design'!$C:$C,$A56,'Program Design'!$D:$D,$B56,'Program Design'!$J:$J,K$29)+SUMIFS('Program Design'!$W:$W,'Program Design'!$C:$C,$A56,'Program Design'!$D:$D,$B56,'Program Design'!$J:$J,K$29)+SUMIFS(INDEX(OFFSET('Budget Inputs'!$A$1,6,1,5000,560),0,MATCH(CONCATENATE(K$29," Sub-Total"),OFFSET('Budget Inputs'!$A$1,6,1,1,560),0)),OFFSET('Budget Inputs'!$A$1,6,1,5000,1),$A56,OFFSET('Budget Inputs'!$A$1,6,2,5000,1),$B56),0) -> 73584.90566 | L56: =(SUMIFS(OFFSET('Savings Results'!$A$1,6,16 +MAX('Savings Results'!$G:$G)-MIN('Savings Results'!$G:$G)+MAX('Savings Results'!$J:$J)+K$29-MIN('Savings Results'!$G:$G),5000),OFFSET('Savings Results'!$A$1,6,6,5000),K$29,OFFSET('Savings Results'!$A$1,6,4,5000),"Dx",OFFSET('Savings Results'!$A$1,6,1,5000),$A56,OFFSET('Savings Results'!$A$1,6,2,5000),$B56)/(1/(1-SUM('CE Parameters'!$F$10:$F$11))))/1000 -> 382.0754717 | M56: =IFERROR(SUMIFS('Program Design'!$U:$U,'Program Design'!$C:$C,$A56,'Program Design'!$D:$D,$B56,'Program Design'!$J:$J,M$29)+SUMIFS('Program Design'!$V:$V,'Program Design'!$C:$C,$A56,'Program Design'!$D:$D,$B56,'Program Design'!$J:$J,M$29)+SUMIFS('Program Design'!$W:$W,'Program Design'!$C:$C,$A56,'Program Design'!$D:$D,$B56,'Program Design'!$J:$J,M$29)+SUMIFS(INDEX(OFFSET('Budget Inputs'!$A$1,6,1,5000,560),0,MATCH(CONCATENATE(M$29," Sub-Total"),OFFSET('Budget Inputs'!$A$1,6,1,1,560),0)),OFFSET('Budget Inputs'!$A$1,6,1,5000,1),$A56,OFFSET('Budget Inputs'!$A$1,6,2,5000,1),$B56),0) -> 73584.90566 | N56: =(SUMIFS(OFFSET('Savings Results'!$A$1,6,16 +MAX('Savings Results'!$G:$G)-MIN('Savings Results'!$G:$G)+MAX('Savings Results'!$J:$J)+M$29-MIN('Savings Results'!$G:$G),5000),OFFSET('Savings Results'!$A$1,6,6,5000),M$29,OFFSET('Savings Results'!$A$1,6,4,5000),"Dx",OFFSET('Savings Results'!$A$1,6,1,5000),$A56,OFFSET('Savings Results'!$A$1,6,2,5000),$B56)/(1/(1-SUM('CE Parameters'!$F$10:$F$11))))/1000 -> 382.0754717 | O56: =IFERROR(SUMIFS('Program Design'!$U:$U,'Program Design'!$C:$C,$A56,'Program Design'!$D:$D,$B56)+SUMIFS('Program Design'!$V:$V,'Program Design'!$C:$C,$A56,'Program Design'!$D:$D,$B56)+SUMIFS('Program Design'!$W:$W,'Program Design'!$C:$C,$A56,'Program Design'!$D:$D,$B56)+SUMIFS(INDEX(OFFSET('Budget Inputs'!$A$1,6,1,5000,560),0,MATCH("Total",OFFSET('Budget Inputs'!$A$1,6,1,1,560),0)),OFFSET('Budget Inputs'!$A$1,6,1,5000,1),$A56,OFFSET('Budget Inputs'!$A$1,6,2,5000,1),$B56),0) -> 233018.8679 | P56: =(SUMIFS(OFFSET('Savings Results'!$A$1,6,16 +MAX('Savings Results'!$G:$G)-MIN('Savings Results'!$G:$G)+MAX('Savings Results'!$J:$J)+M$29-MIN('Savings Results'!$G:$G),5000),OFFSET('Savings Results'!$A$1,6,4,5000),"Dx",OFFSET('Savings Results'!$A$1,6,1,5000),$A56,OFFSET('Savings Results'!$A$1,6,2,5000),$B56)/(1/(1-SUM('CE Parameters'!$F$10:$F$11))))/1000 -> 1146.226415
A57: Business | B57: M&T Oshawa PUC Networks Inc. CFF - V2 | C57: =IFERROR(SUMIFS('Program Design'!$U:$U,'Program Design'!$C:$C,$A57,'Program Design'!$D:$D,$B57,'Program Design'!$J:$J,C$29)+SUMIFS('Program Design'!$V:$V,'Program Design'!$C:$C,$A57,'Program Design'!$D:$D,$B57,'Program Design'!$J:$J,C$29)+SUMIFS('Program Design'!$W:$W,'Program Design'!$C:$C,$A57,'Program Design'!$D:$D,$B57,'Program Design'!$J:$J,C$29)+SUMIFS(INDEX(OFFSET('Budget Inputs'!$A$1,6,1,5000,560),0,MATCH(CONCATENATE(C$29," Sub-Total"),OFFSET('Budget Inputs'!$A$1,6,1,1,560),0)),OFFSET('Budget Inputs'!$A$1,6,1,5000,1),$A57,OFFSET('Budget Inputs'!$A$1,6,2,5000,1),$B57),0) -> 0 | D57: =(SUMIFS(OFFSET('Savings Results'!$A$1,6,16 +MAX('Savings Results'!$G:$G)-MIN('Savings Results'!$G:$G)+MAX('Savings Results'!$J:$J)+C$29-MIN('Savings Results'!$G:$G),5000),OFFSET('Savings Results'!$A$1,6,6,5000),C$29,OFFSET('Savings Results'!$A$1,6,4,5000),"Dx",OFFSET('Savings Results'!$A$1,6,1,5000),$A57,OFFSET('Savings Results'!$A$1,6,2,5000),$B57)/(1/(1-SUM('CE Parameters'!$F$10:$F$11))))/1000 -> 0 | E57: =IFERROR(SUMIFS('Program Design'!$U:$U,'Program Design'!$C:$C,$A57,'Program Design'!$D:$D,$B57,'Program Design'!$J:$J,E$29)+SUMIFS('Program Design'!$V:$V,'Program Design'!$C:$C,$A57,'Program Design'!$D:$D,$B57,'Program Design'!$J:$J,E$29)+SUMIFS('Program Design'!$W:$W,'Program Design'!$C:$C,$A57,'Program Design'!$D:$D,$B57,'Program Design'!$J:$J,E$29)+SUMIFS(INDEX(OFFSET('Budget Inputs'!$A$1,6,1,5000,560),0,MATCH(CONCATENATE(E$29," Sub-Total"),OFFSET('Budget Inputs'!$A$1,6,1,1,560),0)),OFFSET('Budget Inputs'!$A$1,6,1,5000,1),$A57,OFFSET('Budget Inputs'!$A$1,6,2,5000,1),$B57),0) -> 0 | F57: =(SUMIFS(OFFSET('Savings Results'!$A$1,6,16 +MAX('Savings Results'!$G:$G)-MIN('Savings Results'!$G:$G)+MAX('Savings Results'!$J:$J)+E$29-MIN('Savings Results'!$G:$G),5000),OFFSET('Savings Results'!$A$1,6,6,5000),E$29,OFFSET('Savings Results'!$A$1,6,4,5000),"Dx",OFFSET('Savings Results'!$A$1,6,1,5000),$A57,OFFSET('Savings Results'!$A$1,6,2,5000),$B57)/(1/(1-SUM('CE Parameters'!$F$10:$F$11))))/1000 -> 0 | G57: =IFERROR(SUMIFS('Program Design'!$U:$U,'Program Design'!$C:$C,$A57,'Program Design'!$D:$D,$B57,'Program Design'!$J:$J,G$29)+SUMIFS('Program Design'!$V:$V,'Program Design'!$C:$C,$A57,'Program Design'!$D:$D,$B57,'Program Design'!$J:$J,G$29)+SUMIFS('Program Design'!$W:$W,'Program Design'!$C:$C,$A57,'Program Design'!$D:$D,$B57,'Program Design'!$J:$J,G$29)+SUMIFS(INDEX(OFFSET('Budget Inputs'!$A$1,6,1,5000,560),0,MATCH(CONCATENATE(G$29," Sub-Total"),OFFSET('Budget Inputs'!$A$1,6,1,1,560),0)),OFFSET('Budget Inputs'!$A$1,6,1,5000,1),$A57,OFFSET('Budget Inputs'!$A$1,6,2,5000,1),$B57),0) -> 0 | H57: =(SUMIFS(OFFSET('Savings Results'!$A$1,6,16 +MAX('Savings Results'!$G:$G)-MIN('Savings Results'!$G:$G)+MAX('Savings Results'!$J:$J)+G$29-MIN('Savings Results'!$G:$G),5000),OFFSET('Savings Results'!$A$1,6,6,5000),G$29,OFFSET('Savings Results'!$A$1,6,4,5000),"Dx",OFFSET('Savings Results'!$A$1,6,1,5000),$A57,OFFSET('Savings Results'!$A$1,6,2,5000),$B57)/(1/(1-SUM('CE Parameters'!$F$10:$F$11))))/1000 -> 0 | I57: =IFERROR(SUMIFS('Program Design'!$U:$U,'Program Design'!$C:$C,$A57,'Program Design'!$D:$D,$B57,'Program Design'!$J:$J,I$29)+SUMIFS('Program Design'!$V:$V,'Program Design'!$C:$C,$A57,'Program Design'!$D:$D,$B57,'Program Design'!$J:$J,I$29)+SUMIFS('Program Design'!$W:$W,'Program Design'!$C:$C,$A57,'Program Design'!$D:$D,$B57,'Program Design'!$J:$J,I$29)+SUMIFS(INDEX(OFFSET('Budget Inputs'!$A$1,6,1,5000,560),0,MATCH(CONCATENATE(I$29," Sub-Total"),OFFSET('Budget Inputs'!$A$1,6,1,1,560),0)),OFFSET('Budget Inputs'!$A$1,6,1,5000,1),$A57,OFFSET('Budget Inputs'!$A$1,6,2,5000,1),$B57),0) -> 150000 | J57: =(SUMIFS(OFFSET('Savings Results'!$A$1,6,16 +MAX('Savings Results'!$G:$G)-MIN('Savings Results'!$G:$G)+MAX('Savings Results'!$J:$J)+I$29-MIN('Savings Results'!$G:$G),5000),OFFSET('Savings Results'!$A$1,6,6,5000),I$29,OFFSET('Savings Results'!$A$1,6,4,5000),"Dx",OFFSET('Savings Results'!$A$1,6,1,5000),$A57,OFFSET('Savings Results'!$A$1,6,2,5000),$B57)/(1/(1-SUM('CE Parameters'!$F$10:$F$11))))/1000 -> 500 | K57: =IFERROR(SUMIFS('Program Design'!$U:$U,'Program Design'!$C:$C,$A57,'Program Design'!$D:$D,$B57,'Program Design'!$J:$J,K$29)+SUMIFS('Program Design'!$V:$V,'Program Design'!$C:$C,$A57,'Program Design'!$D:$D,$B57,'Program Design'!$J:$J,K$29)+SUMIFS('Program Design'!$W:$W,'Program Design'!$C:$C,$A57,'Program Design'!$D:$D,$B57,'Program Design'!$J:$J,K$29)+SUMIFS(INDEX(OFFSET('Budget Inputs'!$A$1,6,1,5000,560),0,MATCH(CONCATENATE(K$29," Sub-Total"),OFFSET('Budget Inputs'!$A$1,6,1,1,560),0)),OFFSET('Budget Inputs'!$A$1,6,1,5000,1),$A57,OFFSET('Budget Inputs'!$A$1,6,2,5000,1),$B57),0) -> 0 | L57: =(SUMIFS(OFFSET('Savings Results'!$A$1,6,16 +MAX('Savings Results'!$G:$G)-MIN('Savings Results'!$G:$G)+MAX('Savings Results'!$J:$J)+K$29-MIN('Savings Results'!$G:$G),5000),OFFSET('Savings Results'!$A$1,6,6,5000),K$29,OFFSET('Savings Results'!$A$1,6,4,5000),"Dx",OFFSET('Savings Results'!$A$1,6,1,5000),$A57,OFFSET('Savings Results'!$A$1,6,2,5000),$B57)/(1/(1-SUM('CE Parameters'!$F$10:$F$11))))/1000 -> 0 | M57: =IFERROR(SUMIFS('Program Design'!$U:$U,'Program Design'!$C:$C,$A57,'Program Design'!$D:$D,$B57,'Program Design'!$J:$J,M$29)+SUMIFS('Program Design'!$V:$V,'Program Design'!$C:$C,$A57,'Program Design'!$D:$D,$B57,'Program Design'!$J:$J,M$29)+SUMIFS('Program Design'!$W:$W,'Program Design'!$C:$C,$A57,'Program Design'!$D:$D,$B57,'Program Design'!$J:$J,M$29)+SUMIFS(INDEX(OFFSET('Budget Inputs'!$A$1,6,1,5000,560),0,MATCH(CONCATENATE(M$29," Sub-Total"),OFFSET('Budget Inputs'!$A$1,6,1,1,560),0)),OFFSET('Budget Inputs'!$A$1,6,1,5000,1),$A57,OFFSET('Budget Inputs'!$A$1,6,2,5000,1),$B57),0) -> 150000 | N57: =(SUMIFS(OFFSET('Savings Results'!$A$1,6,16 +MAX('Savings Results'!$G:$G)-MIN('Savings Results'!$G:$G)+MAX('Savings Results'!$J:$J)+M$29-MIN('Savings Results'!$G:$G),5000),OFFSET('Savings Results'!$A$1,6,6,5000),M$29,OFFSET('Savings Results'!$A$1,6,4,5000),"Dx",OFFSET('Savings Results'!$A$1,6,1,5000),$A57,OFFSET('Savings Results'!$A$1,6,2,5000),$B57)/(1/(1-SUM('CE Parameters'!$F$10:$F$11))))/1000 -> 500 | O57: =IFERROR(SUMIFS('Program Design'!$U:$U,'Program Design'!$C:$C,$A57,'Program Design'!$D:$D,$B57)+SUMIFS('Program Design'!$V:$V,'Program Design'!$C:$C,$A57,'Program Design'!$D:$D,$B57)+SUMIFS('Program Design'!$W:$W,'Program Design'!$C:$C,$A57,'Program Design'!$D:$D,$B57)+SUMIFS(INDEX(OFFSET('Budget Inputs'!$A$1,6,1,5000,560),0,MATCH("Total",OFFSET('Budget Inputs'!$A$1,6,1,1,560),0)),OFFSET('Budget Inputs'!$A$1,6,1,5000,1),$A57,OFFSET('Budget Inputs'!$A$1,6,2,5000,1),$B57),0) -> 300000 | P57: =(SUMIFS(OFFSET('Savings Results'!$A$1,6,16 +MAX('Savings Results'!$G:$G)-MIN('Savings Results'!$G:$G)+MAX('Savings Results'!$J:$J)+M$29-MIN('Savings Results'!$G:$G),5000),OFFSET('Savings Results'!$A$1,6,4,5000),"Dx",OFFSET('Savings Results'!$A$1,6,1,5000),$A57,OFFSET('Savings Results'!$A$1,6,2,5000),$B57)/(1/(1-SUM('CE Parameters'!$F$10:$F$11))))/1000 -> 500
A58: Business | B58: Energy Performance Program | C58: =IFERROR(SUMIFS('Program Design'!$U:$U,'Program Design'!$C:$C,$A58,'Program Design'!$D:$D,$B58,'Program Design'!$J:$J,C$29)+SUMIFS('Program Design'!$V:$V,'Program Design'!$C:$C,$A58,'Program Design'!$D:$D,$B58,'Program Design'!$J:$J,C$29)+SUMIFS('Program Design'!$W:$W,'Program Design'!$C:$C,$A58,'Program Design'!$D:$D,$B58,'Program Design'!$J:$J,C$29)+SUMIFS(INDEX(OFFSET('Budget Inputs'!$A$1,6,1,5000,560),0,MATCH(CONCATENATE(C$29," Sub-Total"),OFFSET('Budget Inputs'!$A$1,6,1,1,560),0)),OFFSET('Budget Inputs'!$A$1,6,1,5000,1),$A58,OFFSET('Budget Inputs'!$A$1,6,2,5000,1),$B58),0) -> 0 | D58: =(SUMIFS(OFFSET('Savings Results'!$A$1,6,16 +MAX('Savings Results'!$G:$G)-MIN('Savings Results'!$G:$G)+MAX('Savings Results'!$J:$J)+C$29-MIN('Savings Results'!$G:$G),5000),OFFSET('Savings Results'!$A$1,6,6,5000),C$29,OFFSET('Savings Results'!$A$1,6,4,5000),"Dx",OFFSET('Savings Results'!$A$1,6,1,5000),$A58,OFFSET('Savings Results'!$A$1,6,2,5000),$B58)/(1/(1-SUM('CE Parameters'!$F$10:$F$11))))/1000 -> 0 | E58: =IFERROR(SUMIFS('Program Design'!$U:$U,'Program Design'!$C:$C,$A58,'Program Design'!$D:$D,$B58,'Program Design'!$J:$J,E$29)+SUMIFS('Program Design'!$V:$V,'Program Design'!$C:$C,$A58,'Program Design'!$D:$D,$B58,'Program Design'!$J:$J,E$29)+SUMIFS('Program Design'!$W:$W,'Program Design'!$C:$C,$A58,'Program Design'!$D:$D,$B58,'Program Design'!$J:$J,E$29)+SUMIFS(INDEX(OFFSET('Budget Inputs'!$A$1,6,1,5000,560),0,MATCH(CONCATENATE(E$29," Sub-Total"),OFFSET('Budget Inputs'!$A$1,6,1,1,560),0)),OFFSET('Budget Inputs'!$A$1,6,1,5000,1),$A58,OFFSET('Budget Inputs'!$A$1,6,2,5000,1),$B58),0) -> 0 | F58: =(SUMIFS(OFFSET('Savings Results'!$A$1,6,16 +MAX('Savings Results'!$G:$G)-MIN('Savings Results'!$G:$G)+MAX('Savings Results'!$J:$J)+E$29-MIN('Savings Results'!$G:$G),5000),OFFSET('Savings Results'!$A$1,6,6,5000),E$29,OFFSET('Savings Results'!$A$1,6,4,5000),"Dx",OFFSET('Savings Results'!$A$1,6,1,5000),$A58,OFFSET('Savings Results'!$A$1,6,2,5000),$B58)/(1/(1-SUM('CE Parameters'!$F$10:$F$11))))/1000 -> 0 | G58: =IFERROR(SUMIFS('Program Design'!$U:$U,'Program Design'!$C:$C,$A58,'Program Design'!$D:$D,$B58,'Program Design'!$J:$J,G$29)+SUMIFS('Program Design'!$V:$V,'Program Design'!$C:$C,$A58,'Program Design'!$D:$D,$B58,'Program Design'!$J:$J,G$29)+SUMIFS('Program Design'!$W:$W,'Program Design'!$C:$C,$A58,'Program Design'!$D:$D,$B58,'Program Design'!$J:$J,G$29)+SUMIFS(INDEX(OFFSET('Budget Inputs'!$A$1,6,1,5000,560),0,MATCH(CONCATENATE(G$29," Sub-Total"),OFFSET('Budget Inputs'!$A$1,6,1,1,560),0)),OFFSET('Budget Inputs'!$A$1,6,1,5000,1),$A58,OFFSET('Budget Inputs'!$A$1,6,2,5000,1),$B58),0) -> 1 | H58: =(SUMIFS(OFFSET('Savings Results'!$A$1,6,16 +MAX('Savings Results'!$G:$G)-MIN('Savings Results'!$G:$G)+MAX('Savings Results'!$J:$J)+G$29-MIN('Savings Results'!$G:$G),5000),OFFSET('Savings Results'!$A$1,6,6,5000),G$29,OFFSET('Savings Results'!$A$1,6,4,5000),"Dx",OFFSET('Savings Results'!$A$1,6,1,5000),$A58,OFFSET('Savings Results'!$A$1,6,2,5000),$B58)/(1/(1-SUM('CE Parameters'!$F$10:$F$11))))/1000 -> 0 | I58: =IFERROR(SUMIFS('Program Design'!$U:$U,'Program Design'!$C:$C,$A58,'Program Design'!$D:$D,$B58,'Program Design'!$J:$J,I$29)+SUMIFS('Program Design'!$V:$V,'Program Design'!$C:$C,$A58,'Program Design'!$D:$D,$B58,'Program Design'!$J:$J,I$29)+SUMIFS('Program Design'!$W:$W,'Program Design'!$C:$C,$A58,'Program Design'!$D:$D,$B58,'Program Design'!$J:$J,I$29)+SUMIFS(INDEX(OFFSET('Budget Inputs'!$A$1,6,1,5000,560),0,MATCH(CONCATENATE(I$29," Sub-Total"),OFFSET('Budget Inputs'!$A$1,6,1,1,560),0)),OFFSET('Budget Inputs'!$A$1,6,1,5000,1),$A58,OFFSET('Budget Inputs'!$A$1,6,2,5000,1),$B58),0) -> 1 | J58: =(SUMIFS(OFFSET('Savings Results'!$A$1,6,16 +MAX('Savings Results'!$G:$G)-MIN('Savings Results'!$G:$G)+MAX('Savings Results'!$J:$J)+I$29-MIN('Savings Results'!$G:$G),5000),OFFSET('Savings Results'!$A$1,6,6,5000),I$29,OFFSET('Savings Results'!$A$1,6,4,5000),"Dx",OFFSET('Savings Results'!$A$1,6,1,5000),$A58,OFFSET('Savings Results'!$A$1,6,2,5000),$B58)/(1/(1-SUM('CE Parameters'!$F$10:$F$11))))/1000 -> 0 | K58: =IFERROR(SUMIFS('Program Design'!$U:$U,'Program Design'!$C:$C,$A58,'Program Design'!$D:$D,$B58,'Program Design'!$J:$J,K$29)+SUMIFS('Program Design'!$V:$V,'Program Design'!$C:$C,$A58,'Program Design'!$D:$D,$B58,'Program Design'!$J:$J,K$29)+SUMIFS('Program Design'!$W:$W,'Program Design'!$C:$C,$A58,'Program Design'!$D:$D,$B58,'Program Design'!$J:$J,K$29)+SUMIFS(INDEX(OFFSET('Budget Inputs'!$A$1,6,1,5000,560),0,MATCH(CONCATENATE(K$29," Sub-Total"),OFFSET('Budget Inputs'!$A$1,6,1,1,560),0)),OFFSET('Budget Inputs'!$A$1,6,1,5000,1),$A58,OFFSET('Budget Inputs'!$A$1,6,2,5000,1),$B58),0) -> 1 | L58: =(SUMIFS(OFFSET('Savings Results'!$A$1,6,16 +MAX('Savings Results'!$G:$G)-MIN('Savings Results'!$G:$G)+MAX('Savings Results'!$J:$J)+K$29-MIN('Savings Results'!$G:$G),5000),OFFSET('Savings Results'!$A$1,6,6,5000),K$29,OFFSET('Savings Results'!$A$1,6,4,5000),"Dx",OFFSET('Savings Results'!$A$1,6,1,5000),$A58,OFFSET('Savings Results'!$A$1,6,2,5000),$B58)/(1/(1-SUM('CE Parameters'!$F$10:$F$11))))/1000 -> 0 | M58: =IFERROR(SUMIFS('Program Design'!$U:$U,'Program Design'!$C:$C,$A58,'Program Design'!$D:$D,$B58,'Program Design'!$J:$J,M$29)+SUMIFS('Program Design'!$V:$V,'Program Design'!$C:$C,$A58,'Program Design'!$D:$D,$B58,'Program Design'!$J:$J,M$29)+SUMIFS('Program Design'!$W:$W,'Program Design'!$C:$C,$A58,'Program Design'!$D:$D,$B58,'Program Design'!$J:$J,M$29)+SUMIFS(INDEX(OFFSET('Budget Inputs'!$A$1,6,1,5000,560),0,MATCH(CONCATENATE(M$29," Sub-Total"),OFFSET('Budget Inputs'!$A$1,6,1,1,560),0)),OFFSET('Budget Inputs'!$A$1,6,1,5000,1),$A58,OFFSET('Budget Inputs'!$A$1,6,2,5000,1),$B58),0) -> 1 | N58: =(SUMIFS(OFFSET('Savings Results'!$A$1,6,16 +MAX('Savings Results'!$G:$G)-MIN('Savings Results'!$G:$G)+MAX('Savings Results'!$J:$J)+M$29-MIN('Savings Results'!$G:$G),5000),OFFSET('Savings Results'!$A$1,6,6,5000),M$29,OFFSET('Savings Results'!$A$1,6,4,5000),"Dx",OFFSET('Savings Results'!$A$1,6,1,5000),$A58,OFFSET('Savings Results'!$A$1,6,2,5000),$B58)/(1/(1-SUM('CE Parameters'!$F$10:$F$11))))/1000 -> 0 | O58: =IFERROR(SUMIFS('Program Design'!$U:$U,'Program Design'!$C:$C,$A58,'Program Design'!$D:$D,$B58)+SUMIFS('Program Design'!$V:$V,'Program Design'!$C:$C,$A58,'Program Design'!$D:$D,$B58)+SUMIFS('Program Design'!$W:$W,'Program Design'!$C:$C,$A58,'Program Design'!$D:$D,$B58)+SUMIFS(INDEX(OFFSET('Budget Inputs'!$A$1,6,1,5000,560),0,MATCH("Total",OFFSET('Budget Inputs'!$A$1,6,1,1,560),0)),OFFSET('Budget Inputs'!$A$1,6,1,5000,1),$A58,OFFSET('Budget Inputs'!$A$1,6,2,5000,1),$B58),0) -> 4 | P58: =(SUMIFS(OFFSET('Savings Results'!$A$1,6,16 +MAX('Savings Results'!$G:$G)-MIN('Savings Results'!$G:$G)+MAX('Savings Results'!$J:$J)+M$29-MIN('Savings Results'!$G:$G),5000),OFFSET('Savings Results'!$A$1,6,4,5000),"Dx",OFFSET('Savings Results'!$A$1,6,1,5000),$A58,OFFSET('Savings Results'!$A$1,6,2,5000),$B58)/(1/(1-SUM('CE Parameters'!$F$10:$F$11))))/1000 -> 0
A59: Business | B59: BRI Oshawa PUCN CFF | C59: =IFERROR(SUMIFS('Program Design'!$U:$U,'Program Design'!$C:$C,$A59,'Program Design'!$D:$D,$B59,'Program Design'!$J:$J,C$29)+SUMIFS('Program Design'!$V:$V,'Program Design'!$C:$C,$A59,'Program Design'!$D:$D,$B59,'Program Design'!$J:$J,C$29)+SUMIFS('Program Design'!$W:$W,'Program Design'!$C:$C,$A59,'Program Design'!$D:$D,$B59,'Program Design'!$J:$J,C$29)+SUMIFS(INDEX(OFFSET('Budget Inputs'!$A$1,6,1,5000,560),0,MATCH(CONCATENATE(C$29," Sub-Total"),OFFSET('Budget Inputs'!$A$1,6,1,1,560),0)),OFFSET('Budget Inputs'!$A$1,6,1,5000,1),$A59,OFFSET('Budget Inputs'!$A$1,6,2,5000,1),$B59),0) -> 0 | D59: =(SUMIFS(OFFSET('Savings Results'!$A$1,6,16 +MAX('Savings Results'!$G:$G)-MIN('Savings Results'!$G:$G)+MAX('Savings Results'!$J:$J)+C$29-MIN('Savings Results'!$G:$G),5000),OFFSET('Savings Results'!$A$1,6,6,5000),C$29,OFFSET('Savings Results'!$A$1,6,4,5000),"Dx",OFFSET('Savings Results'!$A$1,6,1,5000),$A59,OFFSET('Savings Results'!$A$1,6,2,5000),$B59)/(1/(1-SUM('CE Parameters'!$F$10:$F$11))))/1000 -> 0 | E59: =IFERROR(SUMIFS('Program Design'!$U:$U,'Program Design'!$C:$C,$A59,'Program Design'!$D:$D,$B59,'Program Design'!$J:$J,E$29)+SUMIFS('Program Design'!$V:$V,'Program Design'!$C:$C,$A59,'Program Design'!$D:$D,$B59,'Program Design'!$J:$J,E$29)+SUMIFS('Program Design'!$W:$W,'Program Design'!$C:$C,$A59,'Program Design'!$D:$D,$B59,'Program Design'!$J:$J,E$29)+SUMIFS(INDEX(OFFSET('Budget Inputs'!$A$1,6,1,5000,560),0,MATCH(CONCATENATE(E$29," Sub-Total"),OFFSET('Budget Inputs'!$A$1,6,1,1,560),0)),OFFSET('Budget Inputs'!$A$1,6,1,5000,1),$A59,OFFSET('Budget Inputs'!$A$1,6,2,5000,1),$B59),0) -> 0 | F59: =(SUMIFS(OFFSET('Savings Results'!$A$1,6,16 +MAX('Savings Results'!$G:$G)-MIN('Savings Results'!$G:$G)+MAX('Savings Results'!$J:$J)+E$29-MIN('Savings Results'!$G:$G),5000),OFFSET('Savings Results'!$A$1,6,6,5000),E$29,OFFSET('Savings Results'!$A$1,6,4,5000),"Dx",OFFSET('Savings Results'!$A$1,6,1,5000),$A59,OFFSET('Savings Results'!$A$1,6,2,5000),$B59)/(1/(1-SUM('CE Parameters'!$F$10:$F$11))))/1000 -> 0 | G59: =IFERROR(SUMIFS('Program Design'!$U:$U,'Program Design'!$C:$C,$A59,'Program Design'!$D:$D,$B59,'Program Design'!$J:$J,G$29)+SUMIFS('Program Design'!$V:$V,'Program Design'!$C:$C,$A59,'Program Design'!$D:$D,$B59,'Program Design'!$J:$J,G$29)+SUMIFS('Program Design'!$W:$W,'Program Design'!$C:$C,$A59,'Program Design'!$D:$D,$B59,'Program Design'!$J:$J,G$29)+SUMIFS(INDEX(OFFSET('Budget Inputs'!$A$1,6,1,5000,560),0,MATCH(CONCATENATE(G$29," Sub-Total"),OFFSET('Budget Inputs'!$A$1,6,1,1,560),0)),OFFSET('Budget Inputs'!$A$1,6,1,5000,1),$A59,OFFSET('Budget Inputs'!$A$1,6,2,5000,1),$B59),0) -> 79838 | H59: =(SUMIFS(OFFSET('Savings Results'!$A$1,6,16 +MAX('Savings Results'!$G:$G)-MIN('Savings Results'!$G:$G)+MAX('Savings Results'!$J:$J)+G$29-MIN('Savings Results'!$G:$G),5000),OFFSET('Savings Results'!$A$1,6,6,5000),G$29,OFFSET('Savings Results'!$A$1,6,4,5000),"Dx",OFFSET('Savings Results'!$A$1,6,1,5000),$A59,OFFSET('Savings Results'!$A$1,6,2,5000),$B59)/(1/(1-SUM('CE Parameters'!$F$10:$F$11))))/1000 -> 145.5 | I59: =IFERROR(SUMIFS('Program Design'!$U:$U,'Program Design'!$C:$C,$A59,'Program Design'!$D:$D,$B59,'Program Design'!$J:$J,I$29)+SUMIFS('Program Design'!$V:$V,'Program Design'!$C:$C,$A59,'Program Design'!$D:$D,$B59,'Program Design'!$J:$J,I$29)+SUMIFS('Program Design'!$W:$W,'Program Design'!$C:$C,$A59,'Program Design'!$D:$D,$B59,'Program Design'!$J:$J,I$29)+SUMIFS(INDEX(OFFSET('Budget Inputs'!$A$1,6,1,5000,560),0,MATCH(CONCATENATE(I$29," Sub-Total"),OFFSET('Budget Inputs'!$A$1,6,1,1,560),0)),OFFSET('Budget Inputs'!$A$1,6,1,5000,1),$A59,OFFSET('Budget Inputs'!$A$1,6,2,5000,1),$B59),0) -> 199463 | J59: =(SUMIFS(OFFSET('Savings Results'!$A$1,6,16 +MAX('Savings Results'!$G:$G)-MIN('Savings Results'!$G:$G)+MAX('Savings Results'!$J:$J)+I$29-MIN('Savings Results'!$G:$G),5000),OFFSET('Savings Results'!$A$1,6,6,5000),I$29,OFFSET('Savings Results'!$A$1,6,4,5000),"Dx",OFFSET('Savings Results'!$A$1,6,1,5000),$A59,OFFSET('Savings Results'!$A$1,6,2,5000),$B59)/(1/(1-SUM('CE Parameters'!$F$10:$F$11))))/1000 -> 363.75 | K59: =IFERROR(SUMIFS('Program Design'!$U:$U,'Program Design'!$C:$C,$A59,'Program Design'!$D:$D,$B59,'Program Design'!$J:$J,K$29)+SUMIFS('Program Design'!$V:$V,'Program Design'!$C:$C,$A59,'Program Design'!$D:$D,$B59,'Program Design'!$J:$J,K$29)+SUMIFS('Program Design'!$W:$W,'Program Design'!$C:$C,$A59,'Program Design'!$D:$D,$B59,'Program Design'!$J:$J,K$29)+SUMIFS(INDEX(OFFSET('Budget Inputs'!$A$1,6,1,5000,560),0,MATCH(CONCATENATE(K$29," Sub-Total"),OFFSET('Budget Inputs'!$A$1,6,1,1,560),0)),OFFSET('Budget Inputs'!$A$1,6,1,5000,1),$A59,OFFSET('Budget Inputs'!$A$1,6,2,5000,1),$B59),0) -> 199463 | L59: =(SUMIFS(OFFSET('Savings Results'!$A$1,6,16 +MAX('Savings Results'!$G:$G)-MIN('Savings Results'!$G:$G)+MAX('Savings Results'!$J:$J)+K$29-MIN('Savings Results'!$G:$G),5000),OFFSET('Savings Results'!$A$1,6,6,5000),K$29,OFFSET('Savings Results'!$A$1,6,4,5000),"Dx",OFFSET('Savings Results'!$A$1,6,1,5000),$A59,OFFSET('Savings Results'!$A$1,6,2,5000),$B59)/(1/(1-SUM('CE Parameters'!$F$10:$F$11))))/1000 -> 363.75 | M59: =IFERROR(SUMIFS('Program Design'!$U:$U,'Program Design'!$C:$C,$A59,'Program Design'!$D:$D,$B59,'Program Design'!$J:$J,M$29)+SUMIFS('Program Design'!$V:$V,'Program Design'!$C:$C,$A59,'Program Design'!$D:$D,$B59,'Program Design'!$J:$J,M$29)+SUMIFS('Program Design'!$W:$W,'Program Design'!$C:$C,$A59,'Program Design'!$D:$D,$B59,'Program Design'!$J:$J,M$29)+SUMIFS(INDEX(OFFSET('Budget Inputs'!$A$1,6,1,5000,560),0,MATCH(CONCATENATE(M$29," Sub-Total"),OFFSET('Budget Inputs'!$A$1,6,1,1,560),0)),OFFSET('Budget Inputs'!$A$1,6,1,5000,1),$A59,OFFSET('Budget Inputs'!$A$1,6,2,5000,1),$B59),0) -> 199463 | N59: =(SUMIFS(OFFSET('Savings Results'!$A$1,6,16 +MAX('Savings Results'!$G:$G)-MIN('Savings Results'!$G:$G)+MAX('Savings Results'!$J:$J)+M$29-MIN('Savings Results'!$G:$G),5000),OFFSET('Savings Results'!$A$1,6,6,5000),M$29,OFFSET('Savings Results'!$A$1,6,4,5000),"Dx",OFFSET('Savings Results'!$A$1,6,1,5000),$A59,OFFSET('Savings Results'!$A$1,6,2,5000),$B59)/(1/(1-SUM('CE Parameters'!$F$10:$F$11))))/1000 -> 363.75 | O59: =IFERROR(SUMIFS('Program Design'!$U:$U,'Program Design'!$C:$C,$A59,'Program Design'!$D:$D,$B59)+SUMIFS('Program Design'!$V:$V,'Program Design'!$C:$C,$A59,'Program Design'!$D:$D,$B59)+SUMIFS('Program Design'!$W:$W,'Program Design'!$C:$C,$A59,'Program Design'!$D:$D,$B59)+SUMIFS(INDEX(OFFSET('Budget Inputs'!$A$1,6,1,5000,560),0,MATCH("Total",OFFSET('Budget Inputs'!$A$1,6,1,1,560),0)),OFFSET('Budget Inputs'!$A$1,6,1,5000,1),$A59,OFFSET('Budget Inputs'!$A$1,6,2,5000,1),$B59),0) -> 678227 | P59: =(SUMIFS(OFFSET('Savings Results'!$A$1,6,16 +MAX('Savings Results'!$G:$G)-MIN('Savings Results'!$G:$G)+MAX('Savings Results'!$J:$J)+M$29-MIN('Savings Results'!$G:$G),5000),OFFSET('Savings Results'!$A$1,6,4,5000),"Dx",OFFSET('Savings Results'!$A$1,6,1,5000),$A59,OFFSET('Savings Results'!$A$1,6,2,5000),$B59)/(1/(1-SUM('CE Parameters'!$F$10:$F$11))))/1000 -> 1236.75
A60: Business | B60: EBCx Oshawa PUC Networks Inc. CFF-V2 | C60: =IFERROR(SUMIFS('Program Design'!$U:$U,'Program Design'!$C:$C,$A60,'Program Design'!$D:$D,$B60,'Program Design'!$J:$J,C$29)+SUMIFS('Program Design'!$V:$V,'Program Design'!$C:$C,$A60,'Program Design'!$D:$D,$B60,'Program Design'!$J:$J,C$29)+SUMIFS('Program Design'!$W:$W,'Program Design'!$C:$C,$A60,'Program Design'!$D:$D,$B60,'Program Design'!$J:$J,C$29)+SUMIFS(INDEX(OFFSET('Budget Inputs'!$A$1,6,1,5000,560),0,MATCH(CONCATENATE(C$29," Sub-Total"),OFFSET('Budget Inputs'!$A$1,6,1,1,560),0)),OFFSET('Budget Inputs'!$A$1,6,1,5000,1),$A60,OFFSET('Budget Inputs'!$A$1,6,2,5000,1),$B60),0) -> 0 | D60: =(SUMIFS(OFFSET('Savings Results'!$A$1,6,16 +MAX('Savings Results'!$G:$G)-MIN('Savings Results'!$G:$G)+MAX('Savings Results'!$J:$J)+C$29-MIN('Savings Results'!$G:$G),5000),OFFSET('Savings Results'!$A$1,6,6,5000),C$29,OFFSET('Savings Results'!$A$1,6,4,5000),"Dx",OFFSET('Savings Results'!$A$1,6,1,5000),$A60,OFFSET('Savings Results'!$A$1,6,2,5000),$B60)/(1/(1-SUM('CE Parameters'!$F$10:$F$11))))/1000 -> 0 | E60: =IFERROR(SUMIFS('Program Design'!$U:$U,'Program Design'!$C:$C,$A60,'Program Design'!$D:$D,$B60,'Program Design'!$J:$J,E$29)+SUMIFS('Program Design'!$V:$V,'Program Design'!$C:$C,$A60,'Program Design'!$D:$D,$B60,'Program Design'!$J:$J,E$29)+SUMIFS('Program Design'!$W:$W,'Program Design'!$C:$C,$A60,'Program Design'!$D:$D,$B60,'Program Design'!$J:$J,E$29)+SUMIFS(INDEX(OFFSET('Budget Inputs'!$A$1,6,1,5000,560),0,MATCH(CONCATENATE(E$29," Sub-Total"),OFFSET('Budget Inputs'!$A$1,6,1,1,560),0)),OFFSET('Budget Inputs'!$A$1,6,1,5000,1),$A60,OFFSET('Budget Inputs'!$A$1,6,2,5000,1),$B60),0) -> 0 | F60: =(SUMIFS(OFFSET('Savings Results'!$A$1,6,16 +MAX('Savings Results'!$G:$G)-MIN('Savings Results'!$G:$G)+MAX('Savings Results'!$J:$J)+E$29-MIN('Savings Results'!$G:$G),5000),OFFSET('Savings Results'!$A$1,6,6,5000),E$29,OFFSET('Savings Results'!$A$1,6,4,5000),"Dx",OFFSET('Savings Results'!$A$1,6,1,5000),$A60,OFFSET('Savings Results'!$A$1,6,2,5000),$B60)/(1/(1-SUM('CE Parameters'!$F$10:$F$11))))/1000 -> 0 | G60: =IFERROR(SUMIFS('Program Design'!$U:$U,'Program Design'!$C:$C,$A60,'Program Design'!$D:$D,$B60,'Program Design'!$J:$J,G$29)+SUMIFS('Program Design'!$V:$V,'Program Design'!$C:$C,$A60,'Program Design'!$D:$D,$B60,'Program Design'!$J:$J,G$29)+SUMIFS('Program Design'!$W:$W,'Program Design'!$C:$C,$A60,'Program Design'!$D:$D,$B60,'Program Design'!$J:$J,G$29)+SUMIFS(INDEX(OFFSET('Budget Inputs'!$A$1,6,1,5000,560),0,MATCH(CONCATENATE(G$29," Sub-Total"),OFFSET('Budget Inputs'!$A$1,6,1,1,560),0)),OFFSET('Budget Inputs'!$A$1,6,1,5000,1),$A60,OFFSET('Budget Inputs'!$A$1,6,2,5000,1),$B60),0) -> 0 | H60: =(SUMIFS(OFFSET('Savings Results'!$A$1,6,16 +MAX('Savings Results'!$G:$G)-MIN('Savings Results'!$G:$G)+MAX('Savings Results'!$J:$J)+G$29-MIN('Savings Results'!$G:$G),5000),OFFSET('Savings Results'!$A$1,6,6,5000),G$29,OFFSET('Savings Results'!$A$1,6,4,5000),"Dx",OFFSET('Savings Results'!$A$1,6,1,5000),$A60,OFFSET('Savings Results'!$A$1,6,2,5000),$B60)/(1/(1-SUM('CE Parameters'!$F$10:$F$11))))/1000 -> 0 | I60: =IFERROR(SUMIFS('Program Design'!$U:$U,'Program Design'!$C:$C,$A60,'Program Design'!$D:$D,$B60,'Program Design'!$J:$J,I$29)+SUMIFS('Program Design'!$V:$V,'Program Design'!$C:$C,$A60,'Program Design'!$D:$D,$B60,'Program Design'!$J:$J,I$29)+SUMIFS('Program Design'!$W:$W,'Program Design'!$C:$C,$A60,'Program Design'!$D:$D,$B60,'Program Design'!$J:$J,I$29)+SUMIFS(INDEX(OFFSET('Budget Inputs'!$A$1,6,1,5000,560),0,MATCH(CONCATENATE(I$29," Sub-Total"),OFFSET('Budget Inputs'!$A$1,6,1,1,560),0)),OFFSET('Budget Inputs'!$A$1,6,1,5000,1),$A60,OFFSET('Budget Inputs'!$A$1,6,2,5000,1),$B60),0) -> 54545.45455 | J60: =(SUMIFS(OFFSET('Savings Results'!$A$1,6,16 +MAX('Savings Results'!$G:$G)-MIN('Savings Results'!$G:$G)+MAX('Savings Results'!$J:$J)+I$29-MIN('Savings Results'!$G:$G),5000),OFFSET('Savings Results'!$A$1,6,6,5000),I$29,OFFSET('Savings Results'!$A$1,6,4,5000),"Dx",OFFSET('Savings Results'!$A$1,6,1,5000),$A60,OFFSET('Savings Results'!$A$1,6,2,5000),$B60)/(1/(1-SUM('CE Parameters'!$F$10:$F$11))))/1000 -> 86.168078 | K60: =IFERROR(SUMIFS('Program Design'!$U:$U,'Program Design'!$C:$C,$A60,'Program Design'!$D:$D,$B60,'Program Design'!$J:$J,K$29)+SUMIFS('Program Design'!$V:$V,'Program Design'!$C:$C,$A60,'Program Design'!$D:$D,$B60,'Program Design'!$J:$J,K$29)+SUMIFS('Program Design'!$W:$W,'Program Design'!$C:$C,$A60,'Program Design'!$D:$D,$B60,'Program Design'!$J:$J,K$29)+SUMIFS(INDEX(OFFSET('Budget Inputs'!$A$1,6,1,5000,560),0,MATCH(CONCATENATE(K$29," Sub-Total"),OFFSET('Budget Inputs'!$A$1,6,1,1,560),0)),OFFSET('Budget Inputs'!$A$1,6,1,5000,1),$A60,OFFSET('Budget Inputs'!$A$1,6,2,5000,1),$B60),0) -> 54545.45455 | L60: =(SUMIFS(OFFSET('Savings Results'!$A$1,6,16 +MAX('Savings Results'!$G:$G)-MIN('Savings Results'!$G:$G)+MAX('Savings Results'!$J:$J)+K$29-MIN('Savings Results'!$G:$G),5000),OFFSET('Savings Results'!$A$1,6,6,5000),K$29,OFFSET('Savings Results'!$A$1,6,4,5000),"Dx",OFFSET('Savings Results'!$A$1,6,1,5000),$A60,OFFSET('Savings Results'!$A$1,6,2,5000),$B60)/(1/(1-SUM('CE Parameters'!$F$10:$F$11))))/1000 -> 86.168078 | M60: =IFERROR(SUMIFS('Program Design'!$U:$U,'Program Design'!$C:$C,$A60,'Program Design'!$D:$D,$B60,'Program Design'!$J:$J,M$29)+SUMIFS('Program Design'!$V:$V,'Program Design'!$C:$C,$A60,'Program Design'!$D:$D,$B60,'Program Design'!$J:$J,M$29)+SUMIFS('Program Design'!$W:$W,'Program Design'!$C:$C,$A60,'Program Design'!$D:$D,$B60,'Program Design'!$J:$J,M$29)+SUMIFS(INDEX(OFFSET('Budget Inputs'!$A$1,6,1,5000,560),0,MATCH(CONCATENATE(M$29," Sub-Total"),OFFSET('Budget Inputs'!$A$1,6,1,1,560),0)),OFFSET('Budget Inputs'!$A$1,6,1,5000,1),$A60,OFFSET('Budget Inputs'!$A$1,6,2,5000,1),$B60),0) -> 54545.45455 | N60: =(SUMIFS(OFFSET('Savings Results'!$A$1,6,16 +MAX('Savings Results'!$G:$G)-MIN('Savings Results'!$G:$G)+MAX('Savings Results'!$J:$J)+M$29-MIN('Savings Results'!$G:$G),5000),OFFSET('Savings Results'!$A$1,6,6,5000),M$29,OFFSET('Savings Results'!$A$1,6,4,5000),"Dx",OFFSET('Savings Results'!$A$1,6,1,5000),$A60,OFFSET('Savings Results'!$A$1,6,2,5000),$B60)/(1/(1-SUM('CE Parameters'!$F$10:$F$11))))/1000 -> 86.168078 | O60: =IFERROR(SUMIFS('Program Design'!$U:$U,'Program Design'!$C:$C,$A60,'Program Design'!$D:$D,$B60)+SUMIFS('Program Design'!$V:$V,'Program Design'!$C:$C,$A60,'Program Design'!$D:$D,$B60)+SUMIFS('Program Design'!$W:$W,'Program Design'!$C:$C,$A60,'Program Design'!$D:$D,$B60)+SUMIFS(INDEX(OFFSET('Budget Inputs'!$A$1,6,1,5000,560),0,MATCH("Total",OFFSET('Budget Inputs'!$A$1,6,1,1,560),0)),OFFSET('Budget Inputs'!$A$1,6,1,5000,1),$A60,OFFSET('Budget Inputs'!$A$1,6,2,5000,1),$B60),0) -> 163636.3636 | P60: =(SUMIFS(OFFSET('Savings Results'!$A$1,6,16 +MAX('Savings Results'!$G:$G)-MIN('Savings Results'!$G:$G)+MAX('Savings Results'!$J:$J)+M$29-MIN('Savings Results'!$G:$G),5000),OFFSET('Savings Results'!$A$1,6,4,5000),"Dx",OFFSET('Savings Results'!$A$1,6,1,5000),$A60,OFFSET('Savings Results'!$A$1,6,2,5000),$B60)/(1/(1-SUM('CE Parameters'!$F$10:$F$11))))/1000 -> 258.504234
A61: Consumer | B61: Coupons Oshawa PUC Networks Inc. | C61: =IFERROR(SUMIFS('Program Design'!$U:$U,'Program Design'!$C:$C,$A61,'Program Design'!$D:$D,$B61,'Program Design'!$J:$J,C$29)+SUMIFS('Program Design'!$V:$V,'Program Design'!$C:$C,$A61,'Program Design'!$D:$D,$B61,'Program Design'!$J:$J,C$29)+SUMIFS('Program Design'!$W:$W,'Program Design'!$C:$C,$A61,'Program Design'!$D:$D,$B61,'Program Design'!$J:$J,C$29)+SUMIFS(INDEX(OFFSET('Budget Inputs'!$A$1,6,1,5000,560),0,MATCH(CONCATENATE(C$29," Sub-Total"),OFFSET('Budget Inputs'!$A$1,6,1,1,560),0)),OFFSET('Budget Inputs'!$A$1,6,1,5000,1),$A61,OFFSET('Budget Inputs'!$A$1,6,2,5000,1),$B61),0) -> 0 | D61: =(SUMIFS(OFFSET('Savings Results'!$A$1,6,16 +MAX('Savings Results'!$G:$G)-MIN('Savings Results'!$G:$G)+MAX('Savings Results'!$J:$J)+C$29-MIN('Savings Results'!$G:$G),5000),OFFSET('Savings Results'!$A$1,6,6,5000),C$29,OFFSET('Savings Results'!$A$1,6,4,5000),"Dx",OFFSET('Savings Results'!$A$1,6,1,5000),$A61,OFFSET('Savings Results'!$A$1,6,2,5000),$B61)/(1/(1-SUM('CE Parameters'!$F$10:$F$11))))/1000 -> 1777.325922 | E61: =IFERROR(SUMIFS('Program Design'!$U:$U,'Program Design'!$C:$C,$A61,'Program Design'!$D:$D,$B61,'Program Design'!$J:$J,E$29)+SUMIFS('Program Design'!$V:$V,'Program Design'!$C:$C,$A61,'Program Design'!$D:$D,$B61,'Program Design'!$J:$J,E$29)+SUMIFS('Program Design'!$W:$W,'Program Design'!$C:$C,$A61,'Program Design'!$D:$D,$B61,'Program Design'!$J:$J,E$29)+SUMIFS(INDEX(OFFSET('Budget Inputs'!$A$1,6,1,5000,560),0,MATCH(CONCATENATE(E$29," Sub-Total"),OFFSET('Budget Inputs'!$A$1,6,1,1,560),0)),OFFSET('Budget Inputs'!$A$1,6,1,5000,1),$A61,OFFSET('Budget Inputs'!$A$1,6,2,5000,1),$B61),0) -> 0 | F61: =(SUMIFS(OFFSET('Savings Results'!$A$1,6,16 +MAX('Savings Results'!$G:$G)-MIN('Savings Results'!$G:$G)+MAX('Savings Results'!$J:$J)+E$29-MIN('Savings Results'!$G:$G),5000),OFFSET('Savings Results'!$A$1,6,6,5000),E$29,OFFSET('Savings Results'!$A$1,6,4,5000),"Dx",OFFSET('Savings Results'!$A$1,6,1,5000),$A61,OFFSET('Savings Results'!$A$1,6,2,5000),$B61)/(1/(1-SUM('CE Parameters'!$F$10:$F$11))))/1000 -> 0 | G61: =IFERROR(SUMIFS('Program Design'!$U:$U,'Program Design'!$C:$C,$A61,'Program Design'!$D:$D,$B61,'Program Design'!$J:$J,G$29)+SUMIFS('Program Design'!$V:$V,'Program Design'!$C:$C,$A61,'Program Design'!$D:$D,$B61,'Program Design'!$J:$J,G$29)+SUMIFS('Program Design'!$W:$W,'Program Design'!$C:$C,$A61,'Program Design'!$D:$D,$B61,'Program Design'!$J:$J,G$29)+SUMIFS(INDEX(OFFSET('Budget Inputs'!$A$1,6,1,5000,560),0,MATCH(CONCATENATE(G$29," Sub-Total"),OFFSET('Budget Inputs'!$A$1,6,1,1,560),0)),OFFSET('Budget Inputs'!$A$1,6,1,5000,1),$A61,OFFSET('Budget Inputs'!$A$1,6,2,5000,1),$B61),0) -> 0 | H61: =(SUMIFS(OFFSET('Savings Results'!$A$1,6,16 +MAX('Savings Results'!$G:$G)-MIN('Savings Results'!$G:$G)+MAX('Savings Results'!$J:$J)+G$29-MIN('Savings Results'!$G:$G),5000),OFFSET('Savings Results'!$A$1,6,6,5000),G$29,OFFSET('Savings Results'!$A$1,6,4,5000),"Dx",OFFSET('Savings Results'!$A$1,6,1,5000),$A61,OFFSET('Savings Results'!$A$1,6,2,5000),$B61)/(1/(1-SUM('CE Parameters'!$F$10:$F$11))))/1000 -> 0 | I61: =IFERROR(SUMIFS('Program Design'!$U:$U,'Program Design'!$C:$C,$A61,'Program Design'!$D:$D,$B61,'Program Design'!$J:$J,I$29)+SUMIFS('Program Design'!$V:$V,'Program Design'!$C:$C,$A61,'Program Design'!$D:$D,$B61,'Program Design'!$J:$J,I$29)+SUMIFS('Program Design'!$W:$W,'Program Design'!$C:$C,$A61,'Program Design'!$D:$D,$B61,'Program Design'!$J:$J,I$29)+SUMIFS(INDEX(OFFSET('Budget Inputs'!$A$1,6,1,5000,560),0,MATCH(CONCATENATE(I$29," Sub-Total"),OFFSET('Budget Inputs'!$A$1,6,1,1,560),0)),OFFSET('Budget Inputs'!$A$1,6,1,5000,1),$A61,OFFSET('Budget Inputs'!$A$1,6,2,5000,1),$B61),0) -> 0 | J61: =(SUMIFS(OFFSET('Savings Results'!$A$1,6,16 +MAX('Savings Results'!$G:$G)-MIN('Savings Results'!$G:$G)+MAX('Savings Results'!$J:$J)+I$29-MIN('Savings Results'!$G:$G),5000),OFFSET('Savings Results'!$A$1,6,6,5000),I$29,OFFSET('Savings Results'!$A$1,6,4,5000),"Dx",OFFSET('Savings Results'!$A$1,6,1,5000),$A61,OFFSET('Savings Results'!$A$1,6,2,5000),$B61)/(1/(1-SUM('CE Parameters'!$F$10:$F$11))))/1000 -> 0 | K61: =IFERROR(SUMIFS('Program Design'!$U:$U,'Program Design'!$C:$C,$A61,'Program Design'!$D:$D,$B61,'Program Design'!$J:$J,K$29)+SUMIFS('Program Design'!$V:$V,'Program Design'!$C:$C,$A61,'Program Design'!$D:$D,$B61,'Program Design'!$J:$J,K$29)+SUMIFS('Program Design'!$W:$W,'Program Design'!$C:$C,$A61,'Program Design'!$D:$D,$B61,'Program Design'!$J:$J,K$29)+SUMIFS(INDEX(OFFSET('Budget Inputs'!$A$1,6,1,5000,560),0,MATCH(CONCATENATE(K$29," Sub-Total"),OFFSET('Budget Inputs'!$A$1,6,1,1,560),0)),OFFSET('Budget Inputs'!$A$1,6,1,5000,1),$A61,OFFSET('Budget Inputs'!$A$1,6,2,5000,1),$B61),0) -> 0 | L61: =(SUMIFS(OFFSET('Savings Results'!$A$1,6,16 +MAX('Savings Results'!$G:$G)-MIN('Savings Results'!$G:$G)+MAX('Savings Results'!$J:$J)+K$29-MIN('Savings Results'!$G:$G),5000),OFFSET('Savings Results'!$A$1,6,6,5000),K$29,OFFSET('Savings Results'!$A$1,6,4,5000),"Dx",OFFSET('Savings Results'!$A$1,6,1,5000),$A61,OFFSET('Savings Results'!$A$1,6,2,5000),$B61)/(1/(1-SUM('CE Parameters'!$F$10:$F$11))))/1000 -> 0 | M61: =IFERROR(SUMIFS('Program Design'!$U:$U,'Program Design'!$C:$C,$A61,'Program Design'!$D:$D,$B61,'Program Design'!$J:$J,M$29)+SUMIFS('Program Design'!$V:$V,'Program Design'!$C:$C,$A61,'Program Design'!$D:$D,$B61,'Program Design'!$J:$J,M$29)+SUMIFS('Program Design'!$W:$W,'Program Design'!$C:$C,$A61,'Program Design'!$D:$D,$B61,'Program Design'!$J:$J,M$29)+SUMIFS(INDEX(OFFSET('Budget Inputs'!$A$1,6,1,5000,560),0,MATCH(CONCATENATE(M$29," Sub-Total"),OFFSET('Budget Inputs'!$A$1,6,1,1,560),0)),OFFSET('Budget Inputs'!$A$1,6,1,5000,1),$A61,OFFSET('Budget Inputs'!$A$1,6,2,5000,1),$B61),0) -> 0 | N61: =(SUMIFS(OFFSET('Savings Results'!$A$1,6,16 +MAX('Savings Results'!$G:$G)-MIN('Savings Results'!$G:$G)+MAX('Savings Results'!$J:$J)+M$29-MIN('Savings Results'!$G:$G),5000),OFFSET('Savings Results'!$A$1,6,6,5000),M$29,OFFSET('Savings Results'!$A$1,6,4,5000),"Dx",OFFSET('Savings Results'!$A$1,6,1,5000),$A61,OFFSET('Savings Results'!$A$1,6,2,5000),$B61)/(1/(1-SUM('CE Parameters'!$F$10:$F$11))))/1000 -> 0 | O61: =IFERROR(SUMIFS('Program Design'!$U:$U,'Program Design'!$C:$C,$A61,'Program Design'!$D:$D,$B61)+SUMIFS('Program Design'!$V:$V,'Program Design'!$C:$C,$A61,'Program Design'!$D:$D,$B61)+SUMIFS('Program Design'!$W:$W,'Program Design'!$C:$C,$A61,'Program Design'!$D:$D,$B61)+SUMIFS(INDEX(OFFSET('Budget Inputs'!$A$1,6,1,5000,560),0,MATCH("Total",OFFSET('Budget Inputs'!$A$1,6,1,1,560),0)),OFFSET('Budget Inputs'!$A$1,6,1,5000,1),$A61,OFFSET('Budget Inputs'!$A$1,6,2,5000,1),$B61),0) -> 0 | P61: =(SUMIFS(OFFSET('Savings Results'!$A$1,6,16 +MAX('Savings Results'!$G:$G)-MIN('Savings Results'!$G:$G)+MAX('Savings Results'!$J:$J)+M$29-MIN('Savings Results'!$G:$G),5000),OFFSET('Savings Results'!$A$1,6,4,5000),"Dx",OFFSET('Savings Results'!$A$1,6,1,5000),$A61,OFFSET('Savings Results'!$A$1,6,2,5000),$B61)/(1/(1-SUM('CE Parameters'!$F$10:$F$11))))/1000 -> 1751.15069
A62: Consumer | B62: Home Assistance Program (HAP) Oshawa PUC Networks Inc. | C62: =IFERROR(SUMIFS('Program Design'!$U:$U,'Program Design'!$C:$C,$A62,'Program Design'!$D:$D,$B62,'Program Design'!$J:$J,C$29)+SUMIFS('Program Design'!$V:$V,'Program Design'!$C:$C,$A62,'Program Design'!$D:$D,$B62,'Program Design'!$J:$J,C$29)+SUMIFS('Program Design'!$W:$W,'Program Design'!$C:$C,$A62,'Program Design'!$D:$D,$B62,'Program Design'!$J:$J,C$29)+SUMIFS(INDEX(OFFSET('Budget Inputs'!$A$1,6,1,5000,560),0,MATCH(CONCATENATE(C$29," Sub-Total"),OFFSET('Budget Inputs'!$A$1,6,1,1,560),0)),OFFSET('Budget Inputs'!$A$1,6,1,5000,1),$A62,OFFSET('Budget Inputs'!$A$1,6,2,5000,1),$B62),0) -> 0 | D62: =(SUMIFS(OFFSET('Savings Results'!$A$1,6,16 +MAX('Savings Results'!$G:$G)-MIN('Savings Results'!$G:$G)+MAX('Savings Results'!$J:$J)+C$29-MIN('Savings Results'!$G:$G),5000),OFFSET('Savings Results'!$A$1,6,6,5000),C$29,OFFSET('Savings Results'!$A$1,6,4,5000),"Dx",OFFSET('Savings Results'!$A$1,6,1,5000),$A62,OFFSET('Savings Results'!$A$1,6,2,5000),$B62)/(1/(1-SUM('CE Parameters'!$F$10:$F$11))))/1000 -> 76.7132521 | E62: =IFERROR(SUMIFS('Program Design'!$U:$U,'Program Design'!$C:$C,$A62,'Program Design'!$D:$D,$B62,'Program Design'!$J:$J,E$29)+SUMIFS('Program Design'!$V:$V,'Program Design'!$C:$C,$A62,'Program Design'!$D:$D,$B62,'Program Design'!$J:$J,E$29)+SUMIFS('Program Design'!$W:$W,'Program Design'!$C:$C,$A62,'Program Design'!$D:$D,$B62,'Program Design'!$J:$J,E$29)+SUMIFS(INDEX(OFFSET('Budget Inputs'!$A$1,6,1,5000,560),0,MATCH(CONCATENATE(E$29," Sub-Total"),OFFSET('Budget Inputs'!$A$1,6,1,1,560),0)),OFFSET('Budget Inputs'!$A$1,6,1,5000,1),$A62,OFFSET('Budget Inputs'!$A$1,6,2,5000,1),$B62),0) -> 0 | F62: =(SUMIFS(OFFSET('Savings Results'!$A$1,6,16 +MAX('Savings Results'!$G:$G)-MIN('Savings Results'!$G:$G)+MAX('Savings Results'!$J:$J)+E$29-MIN('Savings Results'!$G:$G),5000),OFFSET('Savings Results'!$A$1,6,6,5000),E$29,OFFSET('Savings Results'!$A$1,6,4,5000),"Dx",OFFSET('Savings Results'!$A$1,6,1,5000),$A62,OFFSET('Savings Results'!$A$1,6,2,5000),$B62)/(1/(1-SUM('CE Parameters'!$F$10:$F$11))))/1000 -> 0 | G62: =IFERROR(SUMIFS('Program Design'!$U:$U,'Program Design'!$C:$C,$A62,'Program Design'!$D:$D,$B62,'Program Design'!$J:$J,G$29)+SUMIFS('Program Design'!$V:$V,'Program Design'!$C:$C,$A62,'Program Design'!$D:$D,$B62,'Program Design'!$J:$J,G$29)+SUMIFS('Program Design'!$W:$W,'Program Design'!$C:$C,$A62,'Program Design'!$D:$D,$B62,'Program Design'!$J:$J,G$29)+SUMIFS(INDEX(OFFSET('Budget Inputs'!$A$1,6,1,5000,560),0,MATCH(CONCATENATE(G$29," Sub-Total"),OFFSET('Budget Inputs'!$A$1,6,1,1,560),0)),OFFSET('Budget Inputs'!$A$1,6,1,5000,1),$A62,OFFSET('Budget Inputs'!$A$1,6,2,5000,1),$B62),0) -> 0 | H62: =(SUMIFS(OFFSET('Savings Results'!$A$1,6,16 +MAX('Savings Results'!$G:$G)-MIN('Savings Results'!$G:$G)+MAX('Savings Results'!$J:$J)+G$29-MIN('Savings Results'!$G:$G),5000),OFFSET('Savings Results'!$A$1,6,6,5000),G$29,OFFSET('Savings Results'!$A$1,6,4,5000),"Dx",OFFSET('Savings Results'!$A$1,6,1,5000),$A62,OFFSET('Savings Results'!$A$1,6,2,5000),$B62)/(1/(1-SUM('CE Parameters'!$F$10:$F$11))))/1000 -> 0 | I62: =IFERROR(SUMIFS('Program Design'!$U:$U,'Program Design'!$C:$C,$A62,'Program Design'!$D:$D,$B62,'Program Design'!$J:$J,I$29)+SUMIFS('Program Design'!$V:$V,'Program Design'!$C:$C,$A62,'Program Design'!$D:$D,$B62,'Program Design'!$J:$J,I$29)+SUMIFS('Program Design'!$W:$W,'Program Design'!$C:$C,$A62,'Program Design'!$D:$D,$B62,'Program Design'!$J:$J,I$29)+SUMIFS(INDEX(OFFSET('Budget Inputs'!$A$1,6,1,5000,560),0,MATCH(CONCATENATE(I$29," Sub-Total"),OFFSET('Budget Inputs'!$A$1,6,1,1,560),0)),OFFSET('Budget Inputs'!$A$1,6,1,5000,1),$A62,OFFSET('Budget Inputs'!$A$1,6,2,5000,1),$B62),0) -> 0 | J62: =(SUMIFS(OFFSET('Savings Results'!$A$1,6,16 +MAX('Savings Results'!$G:$G)-MIN('Savings Results'!$G:$G)+MAX('Savings Results'!$J:$J)+I$29-MIN('Savings Results'!$G:$G),5000),OFFSET('Savings Results'!$A$1,6,6,5000),I$29,OFFSET('Savings Results'!$A$1,6,4,5000),"Dx",OFFSET('Savings Results'!$A$1,6,1,5000),$A62,OFFSET('Savings Results'!$A$1,6,2,5000),$B62)/(1/(1-SUM('CE Parameters'!$F$10:$F$11))))/1000 -> 0 | K62: =IFERROR(SUMIFS('Program Design'!$U:$U,'Program Design'!$C:$C,$A62,'Program Design'!$D:$D,$B62,'Program Design'!$J:$J,K$29)+SUMIFS('Program Design'!$V:$V,'Program Design'!$C:$C,$A62,'Program Design'!$D:$D,$B62,'Program Design'!$J:$J,K$29)+SUMIFS('Program Design'!$W:$W,'Program Design'!$C:$C,$A62,'Program Design'!$D:$D,$B62,'Program Design'!$J:$J,K$29)+SUMIFS(INDEX(OFFSET('Budget Inputs'!$A$1,6,1,5000,560),0,MATCH(CONCATENATE(K$29," Sub-Total"),OFFSET('Budget Inputs'!$A$1,6,1,1,560),0)),OFFSET('Budget Inputs'!$A$1,6,1,5000,1),$A62,OFFSET('Budget Inputs'!$A$1,6,2,5000,1),$B62),0) -> 0 | L62: =(SUMIFS(OFFSET('Savings Results'!$A$1,6,16 +MAX('Savings Results'!$G:$G)-MIN('Savings Results'!$G:$G)+MAX('Savings Results'!$J:$J)+K$29-MIN('Savings Results'!$G:$G),5000),OFFSET('Savings Results'!$A$1,6,6,5000),K$29,OFFSET('Savings Results'!$A$1,6,4,5000),"Dx",OFFSET('Savings Results'!$A$1,6,1,5000),$A62,OFFSET('Savings Results'!$A$1,6,2,5000),$B62)/(1/(1-SUM('CE Parameters'!$F$10:$F$11))))/1000 -> 0 | M62: =IFERROR(SUMIFS('Program Design'!$U:$U,'Program Design'!$C:$C,$A62,'Program Design'!$D:$D,$B62,'Program Design'!$J:$J,M$29)+SUMIFS('Program Design'!$V:$V,'Program Design'!$C:$C,$A62,'Program Design'!$D:$D,$B62,'Program Design'!$J:$J,M$29)+SUMIFS('Program Design'!$W:$W,'Program Design'!$C:$C,$A62,'Program Design'!$D:$D,$B62,'Program Design'!$J:$J,M$29)+SUMIFS(INDEX(OFFSET('Budget Inputs'!$A$1,6,1,5000,560),0,MATCH(CONCATENATE(M$29," Sub-Total"),OFFSET('Budget Inputs'!$A$1,6,1,1,560),0)),OFFSET('Budget Inputs'!$A$1,6,1,5000,1),$A62,OFFSET('Budget Inputs'!$A$1,6,2,5000,1),$B62),0) -> 0 | N62: =(SUMIFS(OFFSET('Savings Results'!$A$1,6,16 +MAX('Savings Results'!$G:$G)-MIN('Savings Results'!$G:$G)+MAX('Savings Results'!$J:$J)+M$29-MIN('Savings Results'!$G:$G),5000),OFFSET('Savings Results'!$A$1,6,6,5000),M$29,OFFSET('Savings Results'!$A$1,6,4,5000),"Dx",OFFSET('Savings Results'!$A$1,6,1,5000),$A62,OFFSET('Savings Results'!$A$1,6,2,5000),$B62)/(1/(1-SUM('CE Parameters'!$F$10:$F$11))))/1000 -> 0 | O62: =IFERROR(SUMIFS('Program Design'!$U:$U,'Program Design'!$C:$C,$A62,'Program Design'!$D:$D,$B62)+SUMIFS('Program Design'!$V:$V,'Program Design'!$C:$C,$A62,'Program Design'!$D:$D,$B62)+SUMIFS('Program Design'!$W:$W,'Program Design'!$C:$C,$A62,'Program Design'!$D:$D,$B62)+SUMIFS(INDEX(OFFSET('Budget Inputs'!$A$1,6,1,5000,560),0,MATCH("Total",OFFSET('Budget Inputs'!$A$1,6,1,1,560),0)),OFFSET('Budget Inputs'!$A$1,6,1,5000,1),$A62,OFFSET('Budget Inputs'!$A$1,6,2,5000,1),$B62),0) -> 0 | P62: =(SUMIFS(OFFSET('Savings Results'!$A$1,6,16 +MAX('Savings Results'!$G:$G)-MIN('Savings Results'!$G:$G)+MAX('Savings Results'!$J:$J)+M$29-MIN('Savings Results'!$G:$G),5000),OFFSET('Savings Results'!$A$1,6,4,5000),"Dx",OFFSET('Savings Results'!$A$1,6,1,5000),$A62,OFFSET('Savings Results'!$A$1,6,2,5000),$B62)/(1/(1-SUM('CE Parameters'!$F$10:$F$11))))/1000 -> 55.40718515
A63: Consumer | B63: RNC Oshawa PUC Networks Inc. | C63: =IFERROR(SUMIFS('Program Design'!$U:$U,'Program Design'!$C:$C,$A63,'Program Design'!$D:$D,$B63,'Program Design'!$J:$J,C$29)+SUMIFS('Program Design'!$V:$V,'Program Design'!$C:$C,$A63,'Program Design'!$D:$D,$B63,'Program Design'!$J:$J,C$29)+SUMIFS('Program Design'!$W:$W,'Program Design'!$C:$C,$A63,'Program Design'!$D:$D,$B63,'Program Design'!$J:$J,C$29)+SUMIFS(INDEX(OFFSET('Budget Inputs'!$A$1,6,1,5000,560),0,MATCH(CONCATENATE(C$29," Sub-Total"),OFFSET('Budget Inputs'!$A$1,6,1,1,560),0)),OFFSET('Budget Inputs'!$A$1,6,1,5000,1),$A63,OFFSET('Budget Inputs'!$A$1,6,2,5000,1),$B63),0) -> 0 | D63: =(SUMIFS(OFFSET('Savings Results'!$A$1,6,16 +MAX('Savings Results'!$G:$G)-MIN('Savings Results'!$G:$G)+MAX('Savings Results'!$J:$J)+C$29-MIN('Savings Results'!$G:$G),5000),OFFSET('Savings Results'!$A$1,6,6,5000),C$29,OFFSET('Savings Results'!$A$1,6,4,5000),"Dx",OFFSET('Savings Results'!$A$1,6,1,5000),$A63,OFFSET('Savings Results'!$A$1,6,2,5000),$B63)/(1/(1-SUM('CE Parameters'!$F$10:$F$11))))/1000 -> 0 | E63: =IFERROR(SUMIFS('Program Design'!$U:$U,'Program Design'!$C:$C,$A63,'Program Design'!$D:$D,$B63,'Program Design'!$J:$J,E$29)+SUMIFS('Program Design'!$V:$V,'Program Design'!$C:$C,$A63,'Program Design'!$D:$D,$B63,'Program Design'!$J:$J,E$29)+SUMIFS('Program Design'!$W:$W,'Program Design'!$C:$C,$A63,'Program Design'!$D:$D,$B63,'Program Design'!$J:$J,E$29)+SUMIFS(INDEX(OFFSET('Budget Inputs'!$A$1,6,1,5000,560),0,MATCH(CONCATENATE(E$29," Sub-Total"),OFFSET('Budget Inputs'!$A$1,6,1,1,560),0)),OFFSET('Budget Inputs'!$A$1,6,1,5000,1),$A63,OFFSET('Budget Inputs'!$A$1,6,2,5000,1),$B63),0) -> 0 | F63: =(SUMIFS(OFFSET('Savings Results'!$A$1,6,16 +MAX('Savings Results'!$G:$G)-MIN('Savings Results'!$G:$G)+MAX('Savings Results'!$J:$J)+E$29-MIN('Savings Results'!$G:$G),5000),OFFSET('Savings Results'!$A$1,6,6,5000),E$29,OFFSET('Savings Results'!$A$1,6,4,5000),"Dx",OFFSET('Savings Results'!$A$1,6,1,5000),$A63,OFFSET('Savings Results'!$A$1,6,2,5000),$B63)/(1/(1-SUM('CE Parameters'!$F$10:$F$11))))/1000 -> 0 | G63: =IFERROR(SUMIFS('Program Design'!$U:$U,'Program Design'!$C:$C,$A63,'Program Design'!$D:$D,$B63,'Program Design'!$J:$J,G$29)+SUMIFS('Program Design'!$V:$V,'Program Design'!$C:$C,$A63,'Program Design'!$D:$D,$B63,'Program Design'!$J:$J,G$29)+SUMIFS('Program Design'!$W:$W,'Program Design'!$C:$C,$A63,'Program Design'!$D:$D,$B63,'Program Design'!$J:$J,G$29)+SUMIFS(INDEX(OFFSET('Budget Inputs'!$A$1,6,1,5000,560),0,MATCH(CONCATENATE(G$29," Sub-Total"),OFFSET('Budget Inputs'!$A$1,6,1,1,560),0)),OFFSET('Budget Inputs'!$A$1,6,1,5000,1),$A63,OFFSET('Budget Inputs'!$A$1,6,2,5000,1),$B63),0) -> 0 | H63: =(SUMIFS(OFFSET('Savings Results'!$A$1,6,16 +MAX('Savings Results'!$G:$G)-MIN('Savings Results'!$G:$G)+MAX('Savings Results'!$J:$J)+G$29-MIN('Savings Results'!$G:$G),5000),OFFSET('Savings Results'!$A$1,6,6,5000),G$29,OFFSET('Savings Results'!$A$1,6,4,5000),"Dx",OFFSET('Savings Results'!$A$1,6,1,5000),$A63,OFFSET('Savings Results'!$A$1,6,2,5000),$B63)/(1/(1-SUM('CE Parameters'!$F$10:$F$11))))/1000 -> 0 | I63: =IFERROR(SUMIFS('Program Design'!$U:$U,'Program Design'!$C:$C,$A63,'Program Design'!$D:$D,$B63,'Program Design'!$J:$J,I$29)+SUMIFS('Program Design'!$V:$V,'Program Design'!$C:$C,$A63,'Program Design'!$D:$D,$B63,'Program Design'!$J:$J,I$29)+SUMIFS('Program Design'!$W:$W,'Program Design'!$C:$C,$A63,'Program Design'!$D:$D,$B63,'Program Design'!$J:$J,I$29)+SUMIFS(INDEX(OFFSET('Budget Inputs'!$A$1,6,1,5000,560),0,MATCH(CONCATENATE(I$29," Sub-Total"),OFFSET('Budget Inputs'!$A$1,6,1,1,560),0)),OFFSET('Budget Inputs'!$A$1,6,1,5000,1),$A63,OFFSET('Budget Inputs'!$A$1,6,2,5000,1),$B63),0) -> 0 | J63: =(SUMIFS(OFFSET('Savings Results'!$A$1,6,16 +MAX('Savings Results'!$G:$G)-MIN('Savings Results'!$G:$G)+MAX('Savings Results'!$J:$J)+I$29-MIN('Savings Results'!$G:$G),5000),OFFSET('Savings Results'!$A$1,6,6,5000),I$29,OFFSET('Savings Results'!$A$1,6,4,5000),"Dx",OFFSET('Savings Results'!$A$1,6,1,5000),$A63,OFFSET('Savings Results'!$A$1,6,2,5000),$B63)/(1/(1-SUM('CE Parameters'!$F$10:$F$11))))/1000 -> 0 | K63: =IFERROR(SUMIFS('Program Design'!$U:$U,'Program Design'!$C:$C,$A63,'Program Design'!$D:$D,$B63,'Program Design'!$J:$J,K$29)+SUMIFS('Program Design'!$V:$V,'Program Design'!$C:$C,$A63,'Program Design'!$D:$D,$B63,'Program Design'!$J:$J,K$29)+SUMIFS('Program Design'!$W:$W,'Program Design'!$C:$C,$A63,'Program Design'!$D:$D,$B63,'Program Design'!$J:$J,K$29)+SUMIFS(INDEX(OFFSET('Budget Inputs'!$A$1,6,1,5000,560),0,MATCH(CONCATENATE(K$29," Sub-Total"),OFFSET('Budget Inputs'!$A$1,6,1,1,560),0)),OFFSET('Budget Inputs'!$A$1,6,1,5000,1),$A63,OFFSET('Budget Inputs'!$A$1,6,2,5000,1),$B63),0) -> 0 | L63: =(SUMIFS(OFFSET('Savings Results'!$A$1,6,16 +MAX('Savings Results'!$G:$G)-MIN('Savings Results'!$G:$G)+MAX('Savings Results'!$J:$J)+K$29-MIN('Savings Results'!$G:$G),5000),OFFSET('Savings Results'!$A$1,6,6,5000),K$29,OFFSET('Savings Results'!$A$1,6,4,5000),"Dx",OFFSET('Savings Results'!$A$1,6,1,5000),$A63,OFFSET('Savings Results'!$A$1,6,2,5000),$B63)/(1/(1-SUM('CE Parameters'!$F$10:$F$11))))/1000 -> 0 | M63: =IFERROR(SUMIFS('Program Design'!$U:$U,'Program Design'!$C:$C,$A63,'Program Design'!$D:$D,$B63,'Program Design'!$J:$J,M$29)+SUMIFS('Program Design'!$V:$V,'Program Design'!$C:$C,$A63,'Program Design'!$D:$D,$B63,'Program Design'!$J:$J,M$29)+SUMIFS('Program Design'!$W:$W,'Program Design'!$C:$C,$A63,'Program Design'!$D:$D,$B63,'Program Design'!$J:$J,M$29)+SUMIFS(INDEX(OFFSET('Budget Inputs'!$A$1,6,1,5000,560),0,MATCH(CONCATENATE(M$29," Sub-Total"),OFFSET('Budget Inputs'!$A$1,6,1,1,560),0)),OFFSET('Budget Inputs'!$A$1,6,1,5000,1),$A63,OFFSET('Budget Inputs'!$A$1,6,2,5000,1),$B63),0) -> 0 | N63: =(SUMIFS(OFFSET('Savings Results'!$A$1,6,16 +MAX('Savings Results'!$G:$G)-MIN('Savings Results'!$G:$G)+MAX('Savings Results'!$J:$J)+M$29-MIN('Savings Results'!$G:$G),5000),OFFSET('Savings Results'!$A$1,6,6,5000),M$29,OFFSET('Savings Results'!$A$1,6,4,5000),"Dx",OFFSET('Savings Results'!$A$1,6,1,5000),$A63,OFFSET('Savings Results'!$A$1,6,2,5000),$B63)/(1/(1-SUM('CE Parameters'!$F$10:$F$11))))/1000 -> 0 | O63: =IFERROR(SUMIFS('Program Design'!$U:$U,'Program Design'!$C:$C,$A63,'Program Design'!$D:$D,$B63)+SUMIFS('Program Design'!$V:$V,'Program Design'!$C:$C,$A63,'Program Design'!$D:$D,$B63)+SUMIFS('Program Design'!$W:$W,'Program Design'!$C:$C,$A63,'Program Design'!$D:$D,$B63)+SUMIFS(INDEX(OFFSET('Budget Inputs'!$A$1,6,1,5000,560),0,MATCH("Total",OFFSET('Budget Inputs'!$A$1,6,1,1,560),0)),OFFSET('Budget Inputs'!$A$1,6,1,5000,1),$A63,OFFSET('Budget Inputs'!$A$1,6,2,5000,1),$B63),0) -> 0 | P63: =(SUMIFS(OFFSET('Savings Results'!$A$1,6,16 +MAX('Savings Results'!$G:$G)-MIN('Savings Results'!$G:$G)+MAX('Savings Results'!$J:$J)+M$29-MIN('Savings Results'!$G:$G),5000),OFFSET('Savings Results'!$A$1,6,4,5000),"Dx",OFFSET('Savings Results'!$A$1,6,1,5000),$A63,OFFSET('Savings Results'!$A$1,6,2,5000),$B63)/(1/(1-SUM('CE Parameters'!$F$10:$F$11))))/1000 -> 0
A64: Consumer | B64: HVAC Oshawa PUC Networks Inc. | C64: =IFERROR(SUMIFS('Program Design'!$U:$U,'Program Design'!$C:$C,$A64,'Program Design'!$D:$D,$B64,'Program Design'!$J:$J,C$29)+SUMIFS('Program Design'!$V:$V,'Program Design'!$C:$C,$A64,'Program Design'!$D:$D,$B64,'Program Design'!$J:$J,C$29)+SUMIFS('Program Design'!$W:$W,'Program Design'!$C:$C,$A64,'Program Design'!$D:$D,$B64,'Program Design'!$J:$J,C$29)+SUMIFS(INDEX(OFFSET('Budget Inputs'!$A$1,6,1,5000,560),0,MATCH(CONCATENATE(C$29," Sub-Total"),OFFSET('Budget Inputs'!$A$1,6,1,1,560),0)),OFFSET('Budget Inputs'!$A$1,6,1,5000,1),$A64,OFFSET('Budget Inputs'!$A$1,6,2,5000,1),$B64),0) -> 0 | D64: =(SUMIFS(OFFSET('Savings Results'!$A$1,6,16 +MAX('Savings Results'!$G:$G)-MIN('Savings Results'!$G:$G)+MAX('Savings Results'!$J:$J)+C$29-MIN('Savings Results'!$G:$G),5000),OFFSET('Savings Results'!$A$1,6,6,5000),C$29,OFFSET('Savings Results'!$A$1,6,4,5000),"Dx",OFFSET('Savings Results'!$A$1,6,1,5000),$A64,OFFSET('Savings Results'!$A$1,6,2,5000),$B64)/(1/(1-SUM('CE Parameters'!$F$10:$F$11))))/1000 -> 1265.384166 | E64: =IFERROR(SUMIFS('Program Design'!$U:$U,'Program Design'!$C:$C,$A64,'Program Design'!$D:$D,$B64,'Program Design'!$J:$J,E$29)+SUMIFS('Program Design'!$V:$V,'Program Design'!$C:$C,$A64,'Program Design'!$D:$D,$B64,'Program Design'!$J:$J,E$29)+SUMIFS('Program Design'!$W:$W,'Program Design'!$C:$C,$A64,'Program Design'!$D:$D,$B64,'Program Design'!$J:$J,E$29)+SUMIFS(INDEX(OFFSET('Budget Inputs'!$A$1,6,1,5000,560),0,MATCH(CONCATENATE(E$29," Sub-Total"),OFFSET('Budget Inputs'!$A$1,6,1,1,560),0)),OFFSET('Budget Inputs'!$A$1,6,1,5000,1),$A64,OFFSET('Budget Inputs'!$A$1,6,2,5000,1),$B64),0) -> 0 | F64: =(SUMIFS(OFFSET('Savings Results'!$A$1,6,16 +MAX('Savings Results'!$G:$G)-MIN('Savings Results'!$G:$G)+MAX('Savings Results'!$J:$J)+E$29-MIN('Savings Results'!$G:$G),5000),OFFSET('Savings Results'!$A$1,6,6,5000),E$29,OFFSET('Savings Results'!$A$1,6,4,5000),"Dx",OFFSET('Savings Results'!$A$1,6,1,5000),$A64,OFFSET('Savings Results'!$A$1,6,2,5000),$B64)/(1/(1-SUM('CE Parameters'!$F$10:$F$11))))/1000 -> 0 | G64: =IFERROR(SUMIFS('Program Design'!$U:$U,'Program Design'!$C:$C,$A64,'Program Design'!$D:$D,$B64,'Program Design'!$J:$J,G$29)+SUMIFS('Program Design'!$V:$V,'Program Design'!$C:$C,$A64,'Program Design'!$D:$D,$B64,'Program Design'!$J:$J,G$29)+SUMIFS('Program Design'!$W:$W,'Program Design'!$C:$C,$A64,'Program Design'!$D:$D,$B64,'Program Design'!$J:$J,G$29)+SUMIFS(INDEX(OFFSET('Budget Inputs'!$A$1,6,1,5000,560),0,MATCH(CONCATENATE(G$29," Sub-Total"),OFFSET('Budget Inputs'!$A$1,6,1,1,560),0)),OFFSET('Budget Inputs'!$A$1,6,1,5000,1),$A64,OFFSET('Budget Inputs'!$A$1,6,2,5000,1),$B64),0) -> 0 | H64: =(SUMIFS(OFFSET('Savings Results'!$A$1,6,16 +MAX('Savings Results'!$G:$G)-MIN('Savings Results'!$G:$G)+MAX('Savings Results'!$J:$J)+G$29-MIN('Savings Results'!$G:$G),5000),OFFSET('Savings Results'!$A$1,6,6,5000),G$29,OFFSET('Savings Results'!$A$1,6,4,5000),"Dx",OFFSET('Savings Results'!$A$1,6,1,5000),$A64,OFFSET('Savings Results'!$A$1,6,2,5000),$B64)/(1/(1-SUM('CE Parameters'!$F$10:$F$11))))/1000 -> 0 | I64: =IFERROR(SUMIFS('Program Design'!$U:$U,'Program Design'!$C:$C,$A64,'Program Design'!$D:$D,$B64,'Program Design'!$J:$J,I$29)+SUMIFS('Program Design'!$V:$V,'Program Design'!$C:$C,$A64,'Program Design'!$D:$D,$B64,'Program Design'!$J:$J,I$29)+SUMIFS('Program Design'!$W:$W,'Program Design'!$C:$C,$A64,'Program Design'!$D:$D,$B64,'Program Design'!$J:$J,I$29)+SUMIFS(INDEX(OFFSET('Budget Inputs'!$A$1,6,1,5000,560),0,MATCH(CONCATENATE(I$29," Sub-Total"),OFFSET('Budget Inputs'!$A$1,6,1,1,560),0)),OFFSET('Budget Inputs'!$A$1,6,1,5000,1),$A64,OFFSET('Budget Inputs'!$A$1,6,2,5000,1),$B64),0) -> 0 | J64: =(SUMIFS(OFFSET('Savings Results'!$A$1,6,16 +MAX('Savings Results'!$G:$G)-MIN('Savings Results'!$G:$G)+MAX('Savings Results'!$J:$J)+I$29-MIN('Savings Results'!$G:$G),5000),OFFSET('Savings Results'!$A$1,6,6,5000),I$29,OFFSET('Savings Results'!$A$1,6,4,5000),"Dx",OFFSET('Savings Results'!$A$1,6,1,5000),$A64,OFFSET('Savings Results'!$A$1,6,2,5000),$B64)/(1/(1-SUM('CE Parameters'!$F$10:$F$11))))/1000 -> 0 | K64: =IFERROR(SUMIFS('Program Design'!$U:$U,'Program Design'!$C:$C,$A64,'Program Design'!$D:$D,$B64,'Program Design'!$J:$J,K$29)+SUMIFS('Program Design'!$V:$V,'Program Design'!$C:$C,$A64,'Program Design'!$D:$D,$B64,'Program Design'!$J:$J,K$29)+SUMIFS('Program Design'!$W:$W,'Program Design'!$C:$C,$A64,'Program Design'!$D:$D,$B64,'Program Design'!$J:$J,K$29)+SUMIFS(INDEX(OFFSET('Budget Inputs'!$A$1,6,1,5000,560),0,MATCH(CONCATENATE(K$29," Sub-Total"),OFFSET('Budget Inputs'!$A$1,6,1,1,560),0)),OFFSET('Budget Inputs'!$A$1,6,1,5000,1),$A64,OFFSET('Budget Inputs'!$A$1,6,2,5000,1),$B64),0) -> 0 | L64: =(SUMIFS(OFFSET('Savings Results'!$A$1,6,16 +MAX('Savings Results'!$G:$G)-MIN('Savings Results'!$G:$G)+MAX('Savings Results'!$J:$J)+K$29-MIN('Savings Results'!$G:$G),5000),OFFSET('Savings Results'!$A$1,6,6,5000),K$29,OFFSET('Savings Results'!$A$1,6,4,5000),"Dx",OFFSET('Savings Results'!$A$1,6,1,5000),$A64,OFFSET('Savings Results'!$A$1,6,2,5000),$B64)/(1/(1-SUM('CE Parameters'!$F$10:$F$11))))/1000 -> 0 | M64: =IFERROR(SUMIFS('Program Design'!$U:$U,'Program Design'!$C:$C,$A64,'Program Design'!$D:$D,$B64,'Program Design'!$J:$J,M$29)+SUMIFS('Program Design'!$V:$V,'Program Design'!$C:$C,$A64,'Program Design'!$D:$D,$B64,'Program Design'!$J:$J,M$29)+SUMIFS('Program Design'!$W:$W,'Program Design'!$C:$C,$A64,'Program Design'!$D:$D,$B64,'Program Design'!$J:$J,M$29)+SUMIFS(INDEX(OFFSET('Budget Inputs'!$A$1,6,1,5000,560),0,MATCH(CONCATENATE(M$29," Sub-Total"),OFFSET('Budget Inputs'!$A$1,6,1,1,560),0)),OFFSET('Budget Inputs'!$A$1,6,1,5000,1),$A64,OFFSET('Budget Inputs'!$A$1,6,2,5000,1),$B64),0) -> 0 | N64: =(SUMIFS(OFFSET('Savings Results'!$A$1,6,16 +MAX('Savings Results'!$G:$G)-MIN('Savings Results'!$G:$G)+MAX('Savings Results'!$J:$J)+M$29-MIN('Savings Results'!$G:$G),5000),OFFSET('Savings Results'!$A$1,6,6,5000),M$29,OFFSET('Savings Results'!$A$1,6,4,5000),"Dx",OFFSET('Savings Results'!$A$1,6,1,5000),$A64,OFFSET('Savings Results'!$A$1,6,2,5000),$B64)/(1/(1-SUM('CE Parameters'!$F$10:$F$11))))/1000 -> 0 | O64: =IFERROR(SUMIFS('Program Design'!$U:$U,'Program Design'!$C:$C,$A64,'Program Design'!$D:$D,$B64)+SUMIFS('Program Design'!$V:$V,'Program Design'!$C:$C,$A64,'Program Design'!$D:$D,$B64)+SUMIFS('Program Design'!$W:$W,'Program Design'!$C:$C,$A64,'Program Design'!$D:$D,$B64)+SUMIFS(INDEX(OFFSET('Budget Inputs'!$A$1,6,1,5000,560),0,MATCH("Total",OFFSET('Budget Inputs'!$A$1,6,1,1,560),0)),OFFSET('Budget Inputs'!$A$1,6,1,5000,1),$A64,OFFSET('Budget Inputs'!$A$1,6,2,5000,1),$B64),0) -> 0 | P64: =(SUMIFS(OFFSET('Savings Results'!$A$1,6,16 +MAX('Savings Results'!$G:$G)-MIN('Savings Results'!$G:$G)+MAX('Savings Results'!$J:$J)+M$29-MIN('Savings Results'!$G:$G),5000),OFFSET('Savings Results'!$A$1,6,4,5000),"Dx",OFFSET('Savings Results'!$A$1,6,1,5000),$A64,OFFSET('Savings Results'!$A$1,6,2,5000),$B64)/(1/(1-SUM('CE Parameters'!$F$10:$F$11))))/1000 -> 1265.384166
A65: Consumer | B65: Appliance Retirement Oshawa PUC Networks Inc. | C65: =IFERROR(SUMIFS('Program Design'!$U:$U,'Program Design'!$C:$C,$A65,'Program Design'!$D:$D,$B65,'Program Design'!$J:$J,C$29)+SUMIFS('Program Design'!$V:$V,'Program Design'!$C:$C,$A65,'Program Design'!$D:$D,$B65,'Program Design'!$J:$J,C$29)+SUMIFS('Program Design'!$W:$W,'Program Design'!$C:$C,$A65,'Program Design'!$D:$D,$B65,'Program Design'!$J:$J,C$29)+SUMIFS(INDEX(OFFSET('Budget Inputs'!$A$1,6,1,5000,560),0,MATCH(CONCATENATE(C$29," Sub-Total"),OFFSET('Budget Inputs'!$A$1,6,1,1,560),0)),OFFSET('Budget Inputs'!$A$1,6,1,5000,1),$A65,OFFSET('Budget Inputs'!$A$1,6,2,5000,1),$B65),0) -> 0 | D65: =(SUMIFS(OFFSET('Savings Results'!$A$1,6,16 +MAX('Savings Results'!$G:$G)-MIN('Savings Results'!$G:$G)+MAX('Savings Results'!$J:$J)+C$29-MIN('Savings Results'!$G:$G),5000),OFFSET('Savings Results'!$A$1,6,6,5000),C$29,OFFSET('Savings Results'!$A$1,6,4,5000),"Dx",OFFSET('Savings Results'!$A$1,6,1,5000),$A65,OFFSET('Savings Results'!$A$1,6,2,5000),$B65)/(1/(1-SUM('CE Parameters'!$F$10:$F$11))))/1000 -> 9.67012989 | E65: =IFERROR(SUMIFS('Program Design'!$U:$U,'Program Design'!$C:$C,$A65,'Program Design'!$D:$D,$B65,'Program Design'!$J:$J,E$29)+SUMIFS('Program Design'!$V:$V,'Program Design'!$C:$C,$A65,'Program Design'!$D:$D,$B65,'Program Design'!$J:$J,E$29)+SUMIFS('Program Design'!$W:$W,'Program Design'!$C:$C,$A65,'Program Design'!$D:$D,$B65,'Program Design'!$J:$J,E$29)+SUMIFS(INDEX(OFFSET('Budget Inputs'!$A$1,6,1,5000,560),0,MATCH(CONCATENATE(E$29," Sub-Total"),OFFSET('Budget Inputs'!$A$1,6,1,1,560),0)),OFFSET('Budget Inputs'!$A$1,6,1,5000,1),$A65,OFFSET('Budget Inputs'!$A$1,6,2,5000,1),$B65),0) -> 0 | F65: =(SUMIFS(OFFSET('Savings Results'!$A$1,6,16 +MAX('Savings Results'!$G:$G)-MIN('Savings Results'!$G:$G)+MAX('Savings Results'!$J:$J)+E$29-MIN('Savings Results'!$G:$G),5000),OFFSET('Savings Results'!$A$1,6,6,5000),E$29,OFFSET('Savings Results'!$A$1,6,4,5000),"Dx",OFFSET('Savings Results'!$A$1,6,1,5000),$A65,OFFSET('Savings Results'!$A$1,6,2,5000),$B65)/(1/(1-SUM('CE Parameters'!$F$10:$F$11))))/1000 -> 0 | G65: =IFERROR(SUMIFS('Program Design'!$U:$U,'Program Design'!$C:$C,$A65,'Program Design'!$D:$D,$B65,'Program Design'!$J:$J,G$29)+SUMIFS('Program Design'!$V:$V,'Program Design'!$C:$C,$A65,'Program Design'!$D:$D,$B65,'Program Design'!$J:$J,G$29)+SUMIFS('Program Design'!$W:$W,'Program Design'!$C:$C,$A65,'Program Design'!$D:$D,$B65,'Program Design'!$J:$J,G$29)+SUMIFS(INDEX(OFFSET('Budget Inputs'!$A$1,6,1,5000,560),0,MATCH(CONCATENATE(G$29," Sub-Total"),OFFSET('Budget Inputs'!$A$1,6,1,1,560),0)),OFFSET('Budget Inputs'!$A$1,6,1,5000,1),$A65,OFFSET('Budget Inputs'!$A$1,6,2,5000,1),$B65),0) -> 0 | H65: =(SUMIFS(OFFSET('Savings Results'!$A$1,6,16 +MAX('Savings Results'!$G:$G)-MIN('Savings Results'!$G:$G)+MAX('Savings Results'!$J:$J)+G$29-MIN('Savings Results'!$G:$G),5000),OFFSET('Savings Results'!$A$1,6,6,5000),G$29,OFFSET('Savings Results'!$A$1,6,4,5000),"Dx",OFFSET('Savings Results'!$A$1,6,1,5000),$A65,OFFSET('Savings Results'!$A$1,6,2,5000),$B65)/(1/(1-SUM('CE Parameters'!$F$10:$F$11))))/1000 -> 0 | I65: =IFERROR(SUMIFS('Program Design'!$U:$U,'Program Design'!$C:$C,$A65,'Program Design'!$D:$D,$B65,'Program Design'!$J:$J,I$29)+SUMIFS('Program Design'!$V:$V,'Program Design'!$C:$C,$A65,'Program Design'!$D:$D,$B65,'Program Design'!$J:$J,I$29)+SUMIFS('Program Design'!$W:$W,'Program Design'!$C:$C,$A65,'Program Design'!$D:$D,$B65,'Program Design'!$J:$J,I$29)+SUMIFS(INDEX(OFFSET('Budget Inputs'!$A$1,6,1,5000,560),0,MATCH(CONCATENATE(I$29," Sub-Total"),OFFSET('Budget Inputs'!$A$1,6,1,1,560),0)),OFFSET('Budget Inputs'!$A$1,6,1,5000,1),$A65,OFFSET('Budget Inputs'!$A$1,6,2,5000,1),$B65),0) -> 0 | J65: =(SUMIFS(OFFSET('Savings Results'!$A$1,6,16 +MAX('Savings Results'!$G:$G)-MIN('Savings Results'!$G:$G)+MAX('Savings Results'!$J:$J)+I$29-MIN('Savings Results'!$G:$G),5000),OFFSET('Savings Results'!$A$1,6,6,5000),I$29,OFFSET('Savings Results'!$A$1,6,4,5000),"Dx",OFFSET('Savings Results'!$A$1,6,1,5000),$A65,OFFSET('Savings Results'!$A$1,6,2,5000),$B65)/(1/(1-SUM('CE Parameters'!$F$10:$F$11))))/1000 -> 0 | K65: =IFERROR(SUMIFS('Program Design'!$U:$U,'Program Design'!$C:$C,$A65,'Program Design'!$D:$D,$B65,'Program Design'!$J:$J,K$29)+SUMIFS('Program Design'!$V:$V,'Program Design'!$C:$C,$A65,'Program Design'!$D:$D,$B65,'Program Design'!$J:$J,K$29)+SUMIFS('Program Design'!$W:$W,'Program Design'!$C:$C,$A65,'Program Design'!$D:$D,$B65,'Program Design'!$J:$J,K$29)+SUMIFS(INDEX(OFFSET('Budget Inputs'!$A$1,6,1,5000,560),0,MATCH(CONCATENATE(K$29," Sub-Total"),OFFSET('Budget Inputs'!$A$1,6,1,1,560),0)),OFFSET('Budget Inputs'!$A$1,6,1,5000,1),$A65,OFFSET('Budget Inputs'!$A$1,6,2,5000,1),$B65),0) -> 0 | L65: =(SUMIFS(OFFSET('Savings Results'!$A$1,6,16 +MAX('Savings Results'!$G:$G)-MIN('Savings Results'!$G:$G)+MAX('Savings Results'!$J:$J)+K$29-MIN('Savings Results'!$G:$G),5000),OFFSET('Savings Results'!$A$1,6,6,5000),K$29,OFFSET('Savings Results'!$A$1,6,4,5000),"Dx",OFFSET('Savings Results'!$A$1,6,1,5000),$A65,OFFSET('Savings Results'!$A$1,6,2,5000),$B65)/(1/(1-SUM('CE Parameters'!$F$10:$F$11))))/1000 -> 0 | M65: =IFERROR(SUMIFS('Program Design'!$U:$U,'Program Design'!$C:$C,$A65,'Program Design'!$D:$D,$B65,'Program Design'!$J:$J,M$29)+SUMIFS('Program Design'!$V:$V,'Program Design'!$C:$C,$A65,'Program Design'!$D:$D,$B65,'Program Design'!$J:$J,M$29)+SUMIFS('Program Design'!$W:$W,'Program Design'!$C:$C,$A65,'Program Design'!$D:$D,$B65,'Program Design'!$J:$J,M$29)+SUMIFS(INDEX(OFFSET('Budget Inputs'!$A$1,6,1,5000,560),0,MATCH(CONCATENATE(M$29," Sub-Total"),OFFSET('Budget Inputs'!$A$1,6,1,1,560),0)),OFFSET('Budget Inputs'!$A$1,6,1,5000,1),$A65,OFFSET('Budget Inputs'!$A$1,6,2,5000,1),$B65),0) -> 0 | N65: =(SUMIFS(OFFSET('Savings Results'!$A$1,6,16 +MAX('Savings Results'!$G:$G)-MIN('Savings Results'!$G:$G)+MAX('Savings Results'!$J:$J)+M$29-MIN('Savings Results'!$G:$G),5000),OFFSET('Savings Results'!$A$1,6,6,5000),M$29,OFFSET('Savings Results'!$A$1,6,4,5000),"Dx",OFFSET('Savings Results'!$A$1,6,1,5000),$A65,OFFSET('Savings Results'!$A$1,6,2,5000),$B65)/(1/(1-SUM('CE Parameters'!$F$10:$F$11))))/1000 -> 0 | O65: =IFERROR(SUMIFS('Program Design'!$U:$U,'Program Design'!$C:$C,$A65,'Program Design'!$D:$D,$B65)+SUMIFS('Program Design'!$V:$V,'Program Design'!$C:$C,$A65,'Program Design'!$D:$D,$B65)+SUMIFS('Program Design'!$W:$W,'Program Design'!$C:$C,$A65,'Program Design'!$D:$D,$B65)+SUMIFS(INDEX(OFFSET('Budget Inputs'!$A$1,6,1,5000,560),0,MATCH("Total",OFFSET('Budget Inputs'!$A$1,6,1,1,560),0)),OFFSET('Budget Inputs'!$A$1,6,1,5000,1),$A65,OFFSET('Budget Inputs'!$A$1,6,2,5000,1),$B65),0) -> 0 | P65: =(SUMIFS(OFFSET('Savings Results'!$A$1,6,16 +MAX('Savings Results'!$G:$G)-MIN('Savings Results'!$G:$G)+MAX('Savings Results'!$J:$J)+M$29-MIN('Savings Results'!$G:$G),5000),OFFSET('Savings Results'!$A$1,6,4,5000),"Dx",OFFSET('Savings Results'!$A$1,6,1,5000),$A65,OFFSET('Savings Results'!$A$1,6,2,5000),$B65)/(1/(1-SUM('CE Parameters'!$F$10:$F$11))))/1000 -> 0
A66: Consumer | B66: Coupons Oshawa PUC Networks Inc. CFF | C66: =IFERROR(SUMIFS('Program Design'!$U:$U,'Program Design'!$C:$C,$A66,'Program Design'!$D:$D,$B66,'Program Design'!$J:$J,C$29)+SUMIFS('Program Design'!$V:$V,'Program Design'!$C:$C,$A66,'Program Design'!$D:$D,$B66,'Program Design'!$J:$J,C$29)+SUMIFS('Program Design'!$W:$W,'Program Design'!$C:$C,$A66,'Program Design'!$D:$D,$B66,'Program Design'!$J:$J,C$29)+SUMIFS(INDEX(OFFSET('Budget Inputs'!$A$1,6,1,5000,560),0,MATCH(CONCATENATE(C$29," Sub-Total"),OFFSET('Budget Inputs'!$A$1,6,1,1,560),0)),OFFSET('Budget Inputs'!$A$1,6,1,5000,1),$A66,OFFSET('Budget Inputs'!$A$1,6,2,5000,1),$B66),0) -> 0 | D66: =(SUMIFS(OFFSET('Savings Results'!$A$1,6,16 +MAX('Savings Results'!$G:$G)-MIN('Savings Results'!$G:$G)+MAX('Savings Results'!$J:$J)+C$29-MIN('Savings Results'!$G:$G),5000),OFFSET('Savings Results'!$A$1,6,6,5000),C$29,OFFSET('Savings Results'!$A$1,6,4,5000),"Dx",OFFSET('Savings Results'!$A$1,6,1,5000),$A66,OFFSET('Savings Results'!$A$1,6,2,5000),$B66)/(1/(1-SUM('CE Parameters'!$F$10:$F$11))))/1000 -> 0 | E66: =IFERROR(SUMIFS('Program Design'!$U:$U,'Program Design'!$C:$C,$A66,'Program Design'!$D:$D,$B66,'Program Design'!$J:$J,E$29)+SUMIFS('Program Design'!$V:$V,'Program Design'!$C:$C,$A66,'Program Design'!$D:$D,$B66,'Program Design'!$J:$J,E$29)+SUMIFS('Program Design'!$W:$W,'Program Design'!$C:$C,$A66,'Program Design'!$D:$D,$B66,'Program Design'!$J:$J,E$29)+SUMIFS(INDEX(OFFSET('Budget Inputs'!$A$1,6,1,5000,560),0,MATCH(CONCATENATE(E$29," Sub-Total"),OFFSET('Budget Inputs'!$A$1,6,1,1,560),0)),OFFSET('Budget Inputs'!$A$1,6,1,5000,1),$A66,OFFSET('Budget Inputs'!$A$1,6,2,5000,1),$B66),0) -> 749594.6151 | F66: =(SUMIFS(OFFSET('Savings Results'!$A$1,6,16 +MAX('Savings Results'!$G:$G)-MIN('Savings Results'!$G:$G)+MAX('Savings Results'!$J:$J)+E$29-MIN('Savings Results'!$G:$G),5000),OFFSET('Savings Results'!$A$1,6,6,5000),E$29,OFFSET('Savings Results'!$A$1,6,4,5000),"Dx",OFFSET('Savings Results'!$A$1,6,1,5000),$A66,OFFSET('Savings Results'!$A$1,6,2,5000),$B66)/(1/(1-SUM('CE Parameters'!$F$10:$F$11))))/1000 -> 3887.585605 | G66: =IFERROR(SUMIFS('Program Design'!$U:$U,'Program Design'!$C:$C,$A66,'Program Design'!$D:$D,$B66,'Program Design'!$J:$J,G$29)+SUMIFS('Program Design'!$V:$V,'Program Design'!$C:$C,$A66,'Program Design'!$D:$D,$B66,'Program Design'!$J:$J,G$29)+SUMIFS('Program Design'!$W:$W,'Program Design'!$C:$C,$A66,'Program Design'!$D:$D,$B66,'Program Design'!$J:$J,G$29)+SUMIFS(INDEX(OFFSET('Budget Inputs'!$A$1,6,1,5000,560),0,MATCH(CONCATENATE(G$29," Sub-Total"),OFFSET('Budget Inputs'!$A$1,6,1,1,560),0)),OFFSET('Budget Inputs'!$A$1,6,1,5000,1),$A66,OFFSET('Budget Inputs'!$A$1,6,2,5000,1),$B66),0) -> 578137.2988 | H66: =(SUMIFS(OFFSET('Savings Results'!$A$1,6,16 +MAX('Savings Results'!$G:$G)-MIN('Savings Results'!$G:$G)+MAX('Savings Results'!$J:$J)+G$29-MIN('Savings Results'!$G:$G),5000),OFFSET('Savings Results'!$A$1,6,6,5000),G$29,OFFSET('Savings Results'!$A$1,6,4,5000),"Dx",OFFSET('Savings Results'!$A$1,6,1,5000),$A66,OFFSET('Savings Results'!$A$1,6,2,5000),$B66)/(1/(1-SUM('CE Parameters'!$F$10:$F$11))))/1000 -> 2915.689204 | I66: =IFERROR(SUMIFS('Program Design'!$U:$U,'Program Design'!$C:$C,$A66,'Program Design'!$D:$D,$B66,'Program Design'!$J:$J,I$29)+SUMIFS('Program Design'!$V:$V,'Program Design'!$C:$C,$A66,'Program Design'!$D:$D,$B66,'Program Design'!$J:$J,I$29)+SUMIFS('Program Design'!$W:$W,'Program Design'!$C:$C,$A66,'Program Design'!$D:$D,$B66,'Program Design'!$J:$J,I$29)+SUMIFS(INDEX(OFFSET('Budget Inputs'!$A$1,6,1,5000,560),0,MATCH(CONCATENATE(I$29," Sub-Total"),OFFSET('Budget Inputs'!$A$1,6,1,1,560),0)),OFFSET('Budget Inputs'!$A$1,6,1,5000,1),$A66,OFFSET('Budget Inputs'!$A$1,6,2,5000,1),$B66),0) -> 578137.2988 | J66: =(SUMIFS(OFFSET('Savings Results'!$A$1,6,16 +MAX('Savings Results'!$G:$G)-MIN('Savings Results'!$G:$G)+MAX('Savings Results'!$J:$J)+I$29-MIN('Savings Results'!$G:$G),5000),OFFSET('Savings Results'!$A$1,6,6,5000),I$29,OFFSET('Savings Results'!$A$1,6,4,5000),"Dx",OFFSET('Savings Results'!$A$1,6,1,5000),$A66,OFFSET('Savings Results'!$A$1,6,2,5000),$B66)/(1/(1-SUM('CE Parameters'!$F$10:$F$11))))/1000 -> 2915.689204 | K66: =IFERROR(SUMIFS('Program Design'!$U:$U,'Program Design'!$C:$C,$A66,'Program Design'!$D:$D,$B66,'Program Design'!$J:$J,K$29)+SUMIFS('Program Design'!$V:$V,'Program Design'!$C:$C,$A66,'Program Design'!$D:$D,$B66,'Program Design'!$J:$J,K$29)+SUMIFS('Program Design'!$W:$W,'Program Design'!$C:$C,$A66,'Program Design'!$D:$D,$B66,'Program Design'!$J:$J,K$29)+SUMIFS(INDEX(OFFSET('Budget Inputs'!$A$1,6,1,5000,560),0,MATCH(CONCATENATE(K$29," Sub-Total"),OFFSET('Budget Inputs'!$A$1,6,1,1,560),0)),OFFSET('Budget Inputs'!$A$1,6,1,5000,1),$A66,OFFSET('Budget Inputs'!$A$1,6,2,5000,1),$B66),0) -> 578137.2988 | L66: =(SUMIFS(OFFSET('Savings Results'!$A$1,6,16 +MAX('Savings Results'!$G:$G)-MIN('Savings Results'!$G:$G)+MAX('Savings Results'!$J:$J)+K$29-MIN('Savings Results'!$G:$G),5000),OFFSET('Savings Results'!$A$1,6,6,5000),K$29,OFFSET('Savings Results'!$A$1,6,4,5000),"Dx",OFFSET('Savings Results'!$A$1,6,1,5000),$A66,OFFSET('Savings Results'!$A$1,6,2,5000),$B66)/(1/(1-SUM('CE Parameters'!$F$10:$F$11))))/1000 -> 2915.689204 | M66: =IFERROR(SUMIFS('Program Design'!$U:$U,'Program Design'!$C:$C,$A66,'Program Design'!$D:$D,$B66,'Program Design'!$J:$J,M$29)+SUMIFS('Program Design'!$V:$V,'Program Design'!$C:$C,$A66,'Program Design'!$D:$D,$B66,'Program Design'!$J:$J,M$29)+SUMIFS('Program Design'!$W:$W,'Program Design'!$C:$C,$A66,'Program Design'!$D:$D,$B66,'Program Design'!$J:$J,M$29)+SUMIFS(INDEX(OFFSET('Budget Inputs'!$A$1,6,1,5000,560),0,MATCH(CONCATENATE(M$29," Sub-Total"),OFFSET('Budget Inputs'!$A$1,6,1,1,560),0)),OFFSET('Budget Inputs'!$A$1,6,1,5000,1),$A66,OFFSET('Budget Inputs'!$A$1,6,2,5000,1),$B66),0) -> 578137.2988 | N66: =(SUMIFS(OFFSET('Savings Results'!$A$1,6,16 +MAX('Savings Results'!$G:$G)-MIN('Savings Results'!$G:$G)+MAX('Savings Results'!$J:$J)+M$29-MIN('Savings Results'!$G:$G),5000),OFFSET('Savings Results'!$A$1,6,6,5000),M$29,OFFSET('Savings Results'!$A$1,6,4,5000),"Dx",OFFSET('Savings Results'!$A$1,6,1,5000),$A66,OFFSET('Savings Results'!$A$1,6,2,5000),$B66)/(1/(1-SUM('CE Parameters'!$F$10:$F$11))))/1000 -> 2915.689204 | O66: =IFERROR(SUMIFS('Program Design'!$U:$U,'Program Design'!$C:$C,$A66,'Program Design'!$D:$D,$B66)+SUMIFS('Program Design'!$V:$V,'Program Design'!$C:$C,$A66,'Program Design'!$D:$D,$B66)+SUMIFS('Program Design'!$W:$W,'Program Design'!$C:$C,$A66,'Program Design'!$D:$D,$B66)+SUMIFS(INDEX(OFFSET('Budget Inputs'!$A$1,6,1,5000,560),0,MATCH("Total",OFFSET('Budget Inputs'!$A$1,6,1,1,560),0)),OFFSET('Budget Inputs'!$A$1,6,1,5000,1),$A66,OFFSET('Budget Inputs'!$A$1,6,2,5000,1),$B66),0) -> 3062143.81 | P66: =(SUMIFS(OFFSET('Savings Results'!$A$1,6,16 +MAX('Savings Results'!$G:$G)-MIN('Savings Results'!$G:$G)+MAX('Savings Results'!$J:$J)+M$29-MIN('Savings Results'!$G:$G),5000),OFFSET('Savings Results'!$A$1,6,4,5000),"Dx",OFFSET('Savings Results'!$A$1,6,1,5000),$A66,OFFSET('Savings Results'!$A$1,6,2,5000),$B66)/(1/(1-SUM('CE Parameters'!$F$10:$F$11))))/1000 -> 17497.9923
A67: Consumer | B67: Home Assistance Program (HAP) Oshawa PUC Networks Inc. CFF | C67: =IFERROR(SUMIFS('Program Design'!$U:$U,'Program Design'!$C:$C,$A67,'Program Design'!$D:$D,$B67,'Program Design'!$J:$J,C$29)+SUMIFS('Program Design'!$V:$V,'Program Design'!$C:$C,$A67,'Program Design'!$D:$D,$B67,'Program Design'!$J:$J,C$29)+SUMIFS('Program Design'!$W:$W,'Program Design'!$C:$C,$A67,'Program Design'!$D:$D,$B67,'Program Design'!$J:$J,C$29)+SUMIFS(INDEX(OFFSET('Budget Inputs'!$A$1,6,1,5000,560),0,MATCH(CONCATENATE(C$29," Sub-Total"),OFFSET('Budget Inputs'!$A$1,6,1,1,560),0)),OFFSET('Budget Inputs'!$A$1,6,1,5000,1),$A67,OFFSET('Budget Inputs'!$A$1,6,2,5000,1),$B67),0) -> 0 | D67: =(SUMIFS(OFFSET('Savings Results'!$A$1,6,16 +MAX('Savings Results'!$G:$G)-MIN('Savings Results'!$G:$G)+MAX('Savings Results'!$J:$J)+C$29-MIN('Savings Results'!$G:$G),5000),OFFSET('Savings Results'!$A$1,6,6,5000),C$29,OFFSET('Savings Results'!$A$1,6,4,5000),"Dx",OFFSET('Savings Results'!$A$1,6,1,5000),$A67,OFFSET('Savings Results'!$A$1,6,2,5000),$B67)/(1/(1-SUM('CE Parameters'!$F$10:$F$11))))/1000 -> 0 | E67: =IFERROR(SUMIFS('Program Design'!$U:$U,'Program Design'!$C:$C,$A67,'Program Design'!$D:$D,$B67,'Program Design'!$J:$J,E$29)+SUMIFS('Program Design'!$V:$V,'Program Design'!$C:$C,$A67,'Program Design'!$D:$D,$B67,'Program Design'!$J:$J,E$29)+SUMIFS('Program Design'!$W:$W,'Program Design'!$C:$C,$A67,'Program Design'!$D:$D,$B67,'Program Design'!$J:$J,E$29)+SUMIFS(INDEX(OFFSET('Budget Inputs'!$A$1,6,1,5000,560),0,MATCH(CONCATENATE(E$29," Sub-Total"),OFFSET('Budget Inputs'!$A$1,6,1,1,560),0)),OFFSET('Budget Inputs'!$A$1,6,1,5000,1),$A67,OFFSET('Budget Inputs'!$A$1,6,2,5000,1),$B67),0) -> 80295 | F67: =(SUMIFS(OFFSET('Savings Results'!$A$1,6,16 +MAX('Savings Results'!$G:$G)-MIN('Savings Results'!$G:$G)+MAX('Savings Results'!$J:$J)+E$29-MIN('Savings Results'!$G:$G),5000),OFFSET('Savings Results'!$A$1,6,6,5000),E$29,OFFSET('Savings Results'!$A$1,6,4,5000),"Dx",OFFSET('Savings Results'!$A$1,6,1,5000),$A67,OFFSET('Savings Results'!$A$1,6,2,5000),$B67)/(1/(1-SUM('CE Parameters'!$F$10:$F$11))))/1000 -> 145.75406 | G67: =IFERROR(SUMIFS('Program Design'!$U:$U,'Program Design'!$C:$C,$A67,'Program Design'!$D:$D,$B67,'Program Design'!$J:$J,G$29)+SUMIFS('Program Design'!$V:$V,'Program Design'!$C:$C,$A67,'Program Design'!$D:$D,$B67,'Program Design'!$J:$J,G$29)+SUMIFS('Program Design'!$W:$W,'Program Design'!$C:$C,$A67,'Program Design'!$D:$D,$B67,'Program Design'!$J:$J,G$29)+SUMIFS(INDEX(OFFSET('Budget Inputs'!$A$1,6,1,5000,560),0,MATCH(CONCATENATE(G$29," Sub-Total"),OFFSET('Budget Inputs'!$A$1,6,1,1,560),0)),OFFSET('Budget Inputs'!$A$1,6,1,5000,1),$A67,OFFSET('Budget Inputs'!$A$1,6,2,5000,1),$B67),0) -> 105658.2957 | H67: =(SUMIFS(OFFSET('Savings Results'!$A$1,6,16 +MAX('Savings Results'!$G:$G)-MIN('Savings Results'!$G:$G)+MAX('Savings Results'!$J:$J)+G$29-MIN('Savings Results'!$G:$G),5000),OFFSET('Savings Results'!$A$1,6,6,5000),G$29,OFFSET('Savings Results'!$A$1,6,4,5000),"Dx",OFFSET('Savings Results'!$A$1,6,1,5000),$A67,OFFSET('Savings Results'!$A$1,6,2,5000),$B67)/(1/(1-SUM('CE Parameters'!$F$10:$F$11))))/1000 -> 208.2200857 | I67: =IFERROR(SUMIFS('Program Design'!$U:$U,'Program Design'!$C:$C,$A67,'Program Design'!$D:$D,$B67,'Program Design'!$J:$J,I$29)+SUMIFS('Program Design'!$V:$V,'Program Design'!$C:$C,$A67,'Program Design'!$D:$D,$B67,'Program Design'!$J:$J,I$29)+SUMIFS('Program Design'!$W:$W,'Program Design'!$C:$C,$A67,'Program Design'!$D:$D,$B67,'Program Design'!$J:$J,I$29)+SUMIFS(INDEX(OFFSET('Budget Inputs'!$A$1,6,1,5000,560),0,MATCH(CONCATENATE(I$29," Sub-Total"),OFFSET('Budget Inputs'!$A$1,6,1,1,560),0)),OFFSET('Budget Inputs'!$A$1,6,1,5000,1),$A67,OFFSET('Budget Inputs'!$A$1,6,2,5000,1),$B67),0) -> 120731.1529 | J67: =(SUMIFS(OFFSET('Savings Results'!$A$1,6,16 +MAX('Savings Results'!$G:$G)-MIN('Savings Results'!$G:$G)+MAX('Savings Results'!$J:$J)+I$29-MIN('Savings Results'!$G:$G),5000),OFFSET('Savings Results'!$A$1,6,6,5000),I$29,OFFSET('Savings Results'!$A$1,6,4,5000),"Dx",OFFSET('Savings Results'!$A$1,6,1,5000),$A67,OFFSET('Savings Results'!$A$1,6,2,5000),$B67)/(1/(1-SUM('CE Parameters'!$F$10:$F$11))))/1000 -> 249.8641029 | K67: =IFERROR(SUMIFS('Program Design'!$U:$U,'Program Design'!$C:$C,$A67,'Program Design'!$D:$D,$B67,'Program Design'!$J:$J,K$29)+SUMIFS('Program Design'!$V:$V,'Program Design'!$C:$C,$A67,'Program Design'!$D:$D,$B67,'Program Design'!$J:$J,K$29)+SUMIFS('Program Design'!$W:$W,'Program Design'!$C:$C,$A67,'Program Design'!$D:$D,$B67,'Program Design'!$J:$J,K$29)+SUMIFS(INDEX(OFFSET('Budget Inputs'!$A$1,6,1,5000,560),0,MATCH(CONCATENATE(K$29," Sub-Total"),OFFSET('Budget Inputs'!$A$1,6,1,1,560),0)),OFFSET('Budget Inputs'!$A$1,6,1,5000,1),$A67,OFFSET('Budget Inputs'!$A$1,6,2,5000,1),$B67),0) -> 105658.2957 | L67: =(SUMIFS(OFFSET('Savings Results'!$A$1,6,16 +MAX('Savings Results'!$G:$G)-MIN('Savings Results'!$G:$G)+MAX('Savings Results'!$J:$J)+K$29-MIN('Savings Results'!$G:$G),5000),OFFSET('Savings Results'!$A$1,6,6,5000),K$29,OFFSET('Savings Results'!$A$1,6,4,5000),"Dx",OFFSET('Savings Results'!$A$1,6,1,5000),$A67,OFFSET('Savings Results'!$A$1,6,2,5000),$B67)/(1/(1-SUM('CE Parameters'!$F$10:$F$11))))/1000 -> 208.2200857 | M67: =IFERROR(SUMIFS('Program Design'!$U:$U,'Program Design'!$C:$C,$A67,'Program Design'!$D:$D,$B67,'Program Design'!$J:$J,M$29)+SUMIFS('Program Design'!$V:$V,'Program Design'!$C:$C,$A67,'Program Design'!$D:$D,$B67,'Program Design'!$J:$J,M$29)+SUMIFS('Program Design'!$W:$W,'Program Design'!$C:$C,$A67,'Program Design'!$D:$D,$B67,'Program Design'!$J:$J,M$29)+SUMIFS(INDEX(OFFSET('Budget Inputs'!$A$1,6,1,5000,560),0,MATCH(CONCATENATE(M$29," Sub-Total"),OFFSET('Budget Inputs'!$A$1,6,1,1,560),0)),OFFSET('Budget Inputs'!$A$1,6,1,5000,1),$A67,OFFSET('Budget Inputs'!$A$1,6,2,5000,1),$B67),0) -> 105658.2957 | N67: =(SUMIFS(OFFSET('Savings Results'!$A$1,6,16 +MAX('Savings Results'!$G:$G)-MIN('Savings Results'!$G:$G)+MAX('Savings Results'!$J:$J)+M$29-MIN('Savings Results'!$G:$G),5000),OFFSET('Savings Results'!$A$1,6,6,5000),M$29,OFFSET('Savings Results'!$A$1,6,4,5000),"Dx",OFFSET('Savings Results'!$A$1,6,1,5000),$A67,OFFSET('Savings Results'!$A$1,6,2,5000),$B67)/(1/(1-SUM('CE Parameters'!$F$10:$F$11))))/1000 -> 208.2200857 | O67: =IFERROR(SUMIFS('Program Design'!$U:$U,'Program Design'!$C:$C,$A67,'Program Design'!$D:$D,$B67)+SUMIFS('Program Design'!$V:$V,'Program Design'!$C:$C,$A67,'Program Design'!$D:$D,$B67)+SUMIFS('Program Design'!$W:$W,'Program Design'!$C:$C,$A67,'Program Design'!$D:$D,$B67)+SUMIFS(INDEX(OFFSET('Budget Inputs'!$A$1,6,1,5000,560),0,MATCH("Total",OFFSET('Budget Inputs'!$A$1,6,1,1,560),0)),OFFSET('Budget Inputs'!$A$1,6,1,5000,1),$A67,OFFSET('Budget Inputs'!$A$1,6,2,5000,1),$B67),0) -> 518001.04 | P67: =(SUMIFS(OFFSET('Savings Results'!$A$1,6,16 +MAX('Savings Results'!$G:$G)-MIN('Savings Results'!$G:$G)+MAX('Savings Results'!$J:$J)+M$29-MIN('Savings Results'!$G:$G),5000),OFFSET('Savings Results'!$A$1,6,4,5000),"Dx",OFFSET('Savings Results'!$A$1,6,1,5000),$A67,OFFSET('Savings Results'!$A$1,6,2,5000),$B67)/(1/(1-SUM('CE Parameters'!$F$10:$F$11))))/1000 -> 1020.27842
A68: Consumer | B68: RNC Oshawa PUC Networks Inc. CFF | C68: =IFERROR(SUMIFS('Program Design'!$U:$U,'Program Design'!$C:$C,$A68,'Program Design'!$D:$D,$B68,'Program Design'!$J:$J,C$29)+SUMIFS('Program Design'!$V:$V,'Program Design'!$C:$C,$A68,'Program Design'!$D:$D,$B68,'Program Design'!$J:$J,C$29)+SUMIFS('Program Design'!$W:$W,'Program Design'!$C:$C,$A68,'Program Design'!$D:$D,$B68,'Program Design'!$J:$J,C$29)+SUMIFS(INDEX(OFFSET('Budget Inputs'!$A$1,6,1,5000,560),0,MATCH(CONCATENATE(C$29," Sub-Total"),OFFSET('Budget Inputs'!$A$1,6,1,1,560),0)),OFFSET('Budget Inputs'!$A$1,6,1,5000,1),$A68,OFFSET('Budget Inputs'!$A$1,6,2,5000,1),$B68),0) -> 0 | D68: =(SUMIFS(OFFSET('Savings Results'!$A$1,6,16 +MAX('Savings Results'!$G:$G)-MIN('Savings Results'!$G:$G)+MAX('Savings Results'!$J:$J)+C$29-MIN('Savings Results'!$G:$G),5000),OFFSET('Savings Results'!$A$1,6,6,5000),C$29,OFFSET('Savings Results'!$A$1,6,4,5000),"Dx",OFFSET('Savings Results'!$A$1,6,1,5000),$A68,OFFSET('Savings Results'!$A$1,6,2,5000),$B68)/(1/(1-SUM('CE Parameters'!$F$10:$F$11))))/1000 -> 0 | E68: =IFERROR(SUMIFS('Program Design'!$U:$U,'Program Design'!$C:$C,$A68,'Program Design'!$D:$D,$B68,'Program Design'!$J:$J,E$29)+SUMIFS('Program Design'!$V:$V,'Program Design'!$C:$C,$A68,'Program Design'!$D:$D,$B68,'Program Design'!$J:$J,E$29)+SUMIFS('Program Design'!$W:$W,'Program Design'!$C:$C,$A68,'Program Design'!$D:$D,$B68,'Program Design'!$J:$J,E$29)+SUMIFS(INDEX(OFFSET('Budget Inputs'!$A$1,6,1,5000,560),0,MATCH(CONCATENATE(E$29," Sub-Total"),OFFSET('Budget Inputs'!$A$1,6,1,1,560),0)),OFFSET('Budget Inputs'!$A$1,6,1,5000,1),$A68,OFFSET('Budget Inputs'!$A$1,6,2,5000,1),$B68),0) -> 46830.29 | F68: =(SUMIFS(OFFSET('Savings Results'!$A$1,6,16 +MAX('Savings Results'!$G:$G)-MIN('Savings Results'!$G:$G)+MAX('Savings Results'!$J:$J)+E$29-MIN('Savings Results'!$G:$G),5000),OFFSET('Savings Results'!$A$1,6,6,5000),E$29,OFFSET('Savings Results'!$A$1,6,4,5000),"Dx",OFFSET('Savings Results'!$A$1,6,1,5000),$A68,OFFSET('Savings Results'!$A$1,6,2,5000),$B68)/(1/(1-SUM('CE Parameters'!$F$10:$F$11))))/1000 -> 59.1136 | G68: =IFERROR(SUMIFS('Program Design'!$U:$U,'Program Design'!$C:$C,$A68,'Program Design'!$D:$D,$B68,'Program Design'!$J:$J,G$29)+SUMIFS('Program Design'!$V:$V,'Program Design'!$C:$C,$A68,'Program Design'!$D:$D,$B68,'Program Design'!$J:$J,G$29)+SUMIFS('Program Design'!$W:$W,'Program Design'!$C:$C,$A68,'Program Design'!$D:$D,$B68,'Program Design'!$J:$J,G$29)+SUMIFS(INDEX(OFFSET('Budget Inputs'!$A$1,6,1,5000,560),0,MATCH(CONCATENATE(G$29," Sub-Total"),OFFSET('Budget Inputs'!$A$1,6,1,1,560),0)),OFFSET('Budget Inputs'!$A$1,6,1,5000,1),$A68,OFFSET('Budget Inputs'!$A$1,6,2,5000,1),$B68),0) -> 48114.92 | H68: =(SUMIFS(OFFSET('Savings Results'!$A$1,6,16 +MAX('Savings Results'!$G:$G)-MIN('Savings Results'!$G:$G)+MAX('Savings Results'!$J:$J)+G$29-MIN('Savings Results'!$G:$G),5000),OFFSET('Savings Results'!$A$1,6,6,5000),G$29,OFFSET('Savings Results'!$A$1,6,4,5000),"Dx",OFFSET('Savings Results'!$A$1,6,1,5000),$A68,OFFSET('Savings Results'!$A$1,6,2,5000),$B68)/(1/(1-SUM('CE Parameters'!$F$10:$F$11))))/1000 -> 59.1136 | I68: =IFERROR(SUMIFS('Program Design'!$U:$U,'Program Design'!$C:$C,$A68,'Program Design'!$D:$D,$B68,'Program Design'!$J:$J,I$29)+SUMIFS('Program Design'!$V:$V,'Program Design'!$C:$C,$A68,'Program Design'!$D:$D,$B68,'Program Design'!$J:$J,I$29)+SUMIFS('Program Design'!$W:$W,'Program Design'!$C:$C,$A68,'Program Design'!$D:$D,$B68,'Program Design'!$J:$J,I$29)+SUMIFS(INDEX(OFFSET('Budget Inputs'!$A$1,6,1,5000,560),0,MATCH(CONCATENATE(I$29," Sub-Total"),OFFSET('Budget Inputs'!$A$1,6,1,1,560),0)),OFFSET('Budget Inputs'!$A$1,6,1,5000,1),$A68,OFFSET('Budget Inputs'!$A$1,6,2,5000,1),$B68),0) -> 48114.92 | J68: =(SUMIFS(OFFSET('Savings Results'!$A$1,6,16 +MAX('Savings Results'!$G:$G)-MIN('Savings Results'!$G:$G)+MAX('Savings Results'!$J:$J)+I$29-MIN('Savings Results'!$G:$G),5000),OFFSET('Savings Results'!$A$1,6,6,5000),I$29,OFFSET('Savings Results'!$A$1,6,4,5000),"Dx",OFFSET('Savings Results'!$A$1,6,1,5000),$A68,OFFSET('Savings Results'!$A$1,6,2,5000),$B68)/(1/(1-SUM('CE Parameters'!$F$10:$F$11))))/1000 -> 59.1136 | K68: =IFERROR(SUMIFS('Program Design'!$U:$U,'Program Design'!$C:$C,$A68,'Program Design'!$D:$D,$B68,'Program Design'!$J:$J,K$29)+SUMIFS('Program Design'!$V:$V,'Program Design'!$C:$C,$A68,'Program Design'!$D:$D,$B68,'Program Design'!$J:$J,K$29)+SUMIFS('Program Design'!$W:$W,'Program Design'!$C:$C,$A68,'Program Design'!$D:$D,$B68,'Program Design'!$J:$J,K$29)+SUMIFS(INDEX(OFFSET('Budget Inputs'!$A$1,6,1,5000,560),0,MATCH(CONCATENATE(K$29," Sub-Total"),OFFSET('Budget Inputs'!$A$1,6,1,1,560),0)),OFFSET('Budget Inputs'!$A$1,6,1,5000,1),$A68,OFFSET('Budget Inputs'!$A$1,6,2,5000,1),$B68),0) -> 48114.92 | L68: =(SUMIFS(OFFSET('Savings Results'!$A$1,6,16 +MAX('Savings Results'!$G:$G)-MIN('Savings Results'!$G:$G)+MAX('Savings Results'!$J:$J)+K$29-MIN('Savings Results'!$G:$G),5000),OFFSET('Savings Results'!$A$1,6,6,5000),K$29,OFFSET('Savings Results'!$A$1,6,4,5000),"Dx",OFFSET('Savings Results'!$A$1,6,1,5000),$A68,OFFSET('Savings Results'!$A$1,6,2,5000),$B68)/(1/(1-SUM('CE Parameters'!$F$10:$F$11))))/1000 -> 59.1136 | M68: =IFERROR(SUMIFS('Program Design'!$U:$U,'Program Design'!$C:$C,$A68,'Program Design'!$D:$D,$B68,'Program Design'!$J:$J,M$29)+SUMIFS('Program Design'!$V:$V,'Program Design'!$C:$C,$A68,'Program Design'!$D:$D,$B68,'Program Design'!$J:$J,M$29)+SUMIFS('Program Design'!$W:$W,'Program Design'!$C:$C,$A68,'Program Design'!$D:$D,$B68,'Program Design'!$J:$J,M$29)+SUMIFS(INDEX(OFFSET('Budget Inputs'!$A$1,6,1,5000,560),0,MATCH(CONCATENATE(M$29," Sub-Total"),OFFSET('Budget Inputs'!$A$1,6,1,1,560),0)),OFFSET('Budget Inputs'!$A$1,6,1,5000,1),$A68,OFFSET('Budget Inputs'!$A$1,6,2,5000,1),$B68),0) -> 48114.92 | N68: =(SUMIFS(OFFSET('Savings Results'!$A$1,6,16 +MAX('Savings Results'!$G:$G)-MIN('Savings Results'!$G:$G)+MAX('Savings Results'!$J:$J)+M$29-MIN('Savings Results'!$G:$G),5000),OFFSET('Savings Results'!$A$1,6,6,5000),M$29,OFFSET('Savings Results'!$A$1,6,4,5000),"Dx",OFFSET('Savings Results'!$A$1,6,1,5000),$A68,OFFSET('Savings Results'!$A$1,6,2,5000),$B68)/(1/(1-SUM('CE Parameters'!$F$10:$F$11))))/1000 -> 59.1136 | O68: =IFERROR(SUMIFS('Program Design'!$U:$U,'Program Design'!$C:$C,$A68,'Program Design'!$D:$D,$B68)+SUMIFS('Program Design'!$V:$V,'Program Design'!$C:$C,$A68,'Program Design'!$D:$D,$B68)+SUMIFS('Program Design'!$W:$W,'Program Design'!$C:$C,$A68,'Program Design'!$D:$D,$B68)+SUMIFS(INDEX(OFFSET('Budget Inputs'!$A$1,6,1,5000,560),0,MATCH("Total",OFFSET('Budget Inputs'!$A$1,6,1,1,560),0)),OFFSET('Budget Inputs'!$A$1,6,1,5000,1),$A68,OFFSET('Budget Inputs'!$A$1,6,2,5000,1),$B68),0) -> 239289.97 | P68: =(SUMIFS(OFFSET('Savings Results'!$A$1,6,16 +MAX('Savings Results'!$G:$G)-MIN('Savings Results'!$G:$G)+MAX('Savings Results'!$J:$J)+M$29-MIN('Savings Results'!$G:$G),5000),OFFSET('Savings Results'!$A$1,6,4,5000),"Dx",OFFSET('Savings Results'!$A$1,6,1,5000),$A68,OFFSET('Savings Results'!$A$1,6,2,5000),$B68)/(1/(1-SUM('CE Parameters'!$F$10:$F$11))))/1000 -> 295.568
A69: Consumer | B69: HVAC Oshawa PUC Networks Inc. CFF | C69: =IFERROR(SUMIFS('Program Design'!$U:$U,'Program Design'!$C:$C,$A69,'Program Design'!$D:$D,$B69,'Program Design'!$J:$J,C$29)+SUMIFS('Program Design'!$V:$V,'Program Design'!$C:$C,$A69,'Program Design'!$D:$D,$B69,'Program Design'!$J:$J,C$29)+SUMIFS('Program Design'!$W:$W,'Program Design'!$C:$C,$A69,'Program Design'!$D:$D,$B69,'Program Design'!$J:$J,C$29)+SUMIFS(INDEX(OFFSET('Budget Inputs'!$A$1,6,1,5000,560),0,MATCH(CONCATENATE(C$29," Sub-Total"),OFFSET('Budget Inputs'!$A$1,6,1,1,560),0)),OFFSET('Budget Inputs'!$A$1,6,1,5000,1),$A69,OFFSET('Budget Inputs'!$A$1,6,2,5000,1),$B69),0) -> 0 | D69: =(SUMIFS(OFFSET('Savings Results'!$A$1,6,16 +MAX('Savings Results'!$G:$G)-MIN('Savings Results'!$G:$G)+MAX('Savings Results'!$J:$J)+C$29-MIN('Savings Results'!$G:$G),5000),OFFSET('Savings Results'!$A$1,6,6,5000),C$29,OFFSET('Savings Results'!$A$1,6,4,5000),"Dx",OFFSET('Savings Results'!$A$1,6,1,5000),$A69,OFFSET('Savings Results'!$A$1,6,2,5000),$B69)/(1/(1-SUM('CE Parameters'!$F$10:$F$11))))/1000 -> 0 | E69: =IFERROR(SUMIFS('Program Design'!$U:$U,'Program Design'!$C:$C,$A69,'Program Design'!$D:$D,$B69,'Program Design'!$J:$J,E$29)+SUMIFS('Program Design'!$V:$V,'Program Design'!$C:$C,$A69,'Program Design'!$D:$D,$B69,'Program Design'!$J:$J,E$29)+SUMIFS('Program Design'!$W:$W,'Program Design'!$C:$C,$A69,'Program Design'!$D:$D,$B69,'Program Design'!$J:$J,E$29)+SUMIFS(INDEX(OFFSET('Budget Inputs'!$A$1,6,1,5000,560),0,MATCH(CONCATENATE(E$29," Sub-Total"),OFFSET('Budget Inputs'!$A$1,6,1,1,560),0)),OFFSET('Budget Inputs'!$A$1,6,1,5000,1),$A69,OFFSET('Budget Inputs'!$A$1,6,2,5000,1),$B69),0) -> 704812.95 | F69: =(SUMIFS(OFFSET('Savings Results'!$A$1,6,16 +MAX('Savings Results'!$G:$G)-MIN('Savings Results'!$G:$G)+MAX('Savings Results'!$J:$J)+E$29-MIN('Savings Results'!$G:$G),5000),OFFSET('Savings Results'!$A$1,6,6,5000),E$29,OFFSET('Savings Results'!$A$1,6,4,5000),"Dx",OFFSET('Savings Results'!$A$1,6,1,5000),$A69,OFFSET('Savings Results'!$A$1,6,2,5000),$B69)/(1/(1-SUM('CE Parameters'!$F$10:$F$11))))/1000 -> 984.5110262 | G69: =IFERROR(SUMIFS('Program Design'!$U:$U,'Program Design'!$C:$C,$A69,'Program Design'!$D:$D,$B69,'Program Design'!$J:$J,G$29)+SUMIFS('Program Design'!$V:$V,'Program Design'!$C:$C,$A69,'Program Design'!$D:$D,$B69,'Program Design'!$J:$J,G$29)+SUMIFS('Program Design'!$W:$W,'Program Design'!$C:$C,$A69,'Program Design'!$D:$D,$B69,'Program Design'!$J:$J,G$29)+SUMIFS(INDEX(OFFSET('Budget Inputs'!$A$1,6,1,5000,560),0,MATCH(CONCATENATE(G$29," Sub-Total"),OFFSET('Budget Inputs'!$A$1,6,1,1,560),0)),OFFSET('Budget Inputs'!$A$1,6,1,5000,1),$A69,OFFSET('Budget Inputs'!$A$1,6,2,5000,1),$B69),0) -> 535929.25 | H69: =(SUMIFS(OFFSET('Savings Results'!$A$1,6,16 +MAX('Savings Results'!$G:$G)-MIN('Savings Results'!$G:$G)+MAX('Savings Results'!$J:$J)+G$29-MIN('Savings Results'!$G:$G),5000),OFFSET('Savings Results'!$A$1,6,6,5000),G$29,OFFSET('Savings Results'!$A$1,6,4,5000),"Dx",OFFSET('Savings Results'!$A$1,6,1,5000),$A69,OFFSET('Savings Results'!$A$1,6,2,5000),$B69)/(1/(1-SUM('CE Parameters'!$F$10:$F$11))))/1000 -> 738.3832697 | I69: =IFERROR(SUMIFS('Program Design'!$U:$U,'Program Design'!$C:$C,$A69,'Program Design'!$D:$D,$B69,'Program Design'!$J:$J,I$29)+SUMIFS('Program Design'!$V:$V,'Program Design'!$C:$C,$A69,'Program Design'!$D:$D,$B69,'Program Design'!$J:$J,I$29)+SUMIFS('Program Design'!$W:$W,'Program Design'!$C:$C,$A69,'Program Design'!$D:$D,$B69,'Program Design'!$J:$J,I$29)+SUMIFS(INDEX(OFFSET('Budget Inputs'!$A$1,6,1,5000,560),0,MATCH(CONCATENATE(I$29," Sub-Total"),OFFSET('Budget Inputs'!$A$1,6,1,1,560),0)),OFFSET('Budget Inputs'!$A$1,6,1,5000,1),$A69,OFFSET('Budget Inputs'!$A$1,6,2,5000,1),$B69),0) -> 535929.25 | J69: =(SUMIFS(OFFSET('Savings Results'!$A$1,6,16 +MAX('Savings Results'!$G:$G)-MIN('Savings Results'!$G:$G)+MAX('Savings Results'!$J:$J)+I$29-MIN('Savings Results'!$G:$G),5000),OFFSET('Savings Results'!$A$1,6,6,5000),I$29,OFFSET('Savings Results'!$A$1,6,4,5000),"Dx",OFFSET('Savings Results'!$A$1,6,1,5000),$A69,OFFSET('Savings Results'!$A$1,6,2,5000),$B69)/(1/(1-SUM('CE Parameters'!$F$10:$F$11))))/1000 -> 738.3832697 | K69: =IFERROR(SUMIFS('Program Design'!$U:$U,'Program Design'!$C:$C,$A69,'Program Design'!$D:$D,$B69,'Program Design'!$J:$J,K$29)+SUMIFS('Program Design'!$V:$V,'Program Design'!$C:$C,$A69,'Program Design'!$D:$D,$B69,'Program Design'!$J:$J,K$29)+SUMIFS('Program Design'!$W:$W,'Program Design'!$C:$C,$A69,'Program Design'!$D:$D,$B69,'Program Design'!$J:$J,K$29)+SUMIFS(INDEX(OFFSET('Budget Inputs'!$A$1,6,1,5000,560),0,MATCH(CONCATENATE(K$29," Sub-Total"),OFFSET('Budget Inputs'!$A$1,6,1,1,560),0)),OFFSET('Budget Inputs'!$A$1,6,1,5000,1),$A69,OFFSET('Budget Inputs'!$A$1,6,2,5000,1),$B69),0) -> 535929.25 | L69: =(SUMIFS(OFFSET('Savings Results'!$A$1,6,16 +MAX('Savings Results'!$G:$G)-MIN('Savings Results'!$G:$G)+MAX('Savings Results'!$J:$J)+K$29-MIN('Savings Results'!$G:$G),5000),OFFSET('Savings Results'!$A$1,6,6,5000),K$29,OFFSET('Savings Results'!$A$1,6,4,5000),"Dx",OFFSET('Savings Results'!$A$1,6,1,5000),$A69,OFFSET('Savings Results'!$A$1,6,2,5000),$B69)/(1/(1-SUM('CE Parameters'!$F$10:$F$11))))/1000 -> 738.3832697 | M69: =IFERROR(SUMIFS('Program Design'!$U:$U,'Program Design'!$C:$C,$A69,'Program Design'!$D:$D,$B69,'Program Design'!$J:$J,M$29)+SUMIFS('Program Design'!$V:$V,'Program Design'!$C:$C,$A69,'Program Design'!$D:$D,$B69,'Program Design'!$J:$J,M$29)+SUMIFS('Program Design'!$W:$W,'Program Design'!$C:$C,$A69,'Program Design'!$D:$D,$B69,'Program Design'!$J:$J,M$29)+SUMIFS(INDEX(OFFSET('Budget Inputs'!$A$1,6,1,5000,560),0,MATCH(CONCATENATE(M$29," Sub-Total"),OFFSET('Budget Inputs'!$A$1,6,1,1,560),0)),OFFSET('Budget Inputs'!$A$1,6,1,5000,1),$A69,OFFSET('Budget Inputs'!$A$1,6,2,5000,1),$B69),0) -> 535929.25 | N69: =(SUMIFS(OFFSET('Savings Results'!$A$1,6,16 +MAX('Savings Results'!$G:$G)-MIN('Savings Results'!$G:$G)+MAX('Savings Results'!$J:$J)+M$29-MIN('Savings Results'!$G:$G),5000),OFFSET('Savings Results'!$A$1,6,6,5000),M$29,OFFSET('Savings Results'!$A$1,6,4,5000),"Dx",OFFSET('Savings Results'!$A$1,6,1,5000),$A69,OFFSET('Savings Results'!$A$1,6,2,5000),$B69)/(1/(1-SUM('CE Parameters'!$F$10:$F$11))))/1000 -> 738.3832697 | O69: =IFERROR(SUMIFS('Program Design'!$U:$U,'Program Design'!$C:$C,$A69,'Program Design'!$D:$D,$B69)+SUMIFS('Program Design'!$V:$V,'Program Design'!$C:$C,$A69,'Program Design'!$D:$D,$B69)+SUMIFS('Program Design'!$W:$W,'Program Design'!$C:$C,$A69,'Program Design'!$D:$D,$B69)+SUMIFS(INDEX(OFFSET('Budget Inputs'!$A$1,6,1,5000,560),0,MATCH("Total",OFFSET('Budget Inputs'!$A$1,6,1,1,560),0)),OFFSET('Budget Inputs'!$A$1,6,1,5000,1),$A69,OFFSET('Budget Inputs'!$A$1,6,2,5000,1),$B69),0) -> 2848529.95 | P69: =(SUMIFS(OFFSET('Savings Results'!$A$1,6,16 +MAX('Savings Results'!$G:$G)-MIN('Savings Results'!$G:$G)+MAX('Savings Results'!$J:$J)+M$29-MIN('Savings Results'!$G:$G),5000),OFFSET('Savings Results'!$A$1,6,4,5000),"Dx",OFFSET('Savings Results'!$A$1,6,1,5000),$A69,OFFSET('Savings Results'!$A$1,6,2,5000),$B69)/(1/(1-SUM('CE Parameters'!$F$10:$F$11))))/1000 -> 3938.044105
A70: Consumer | B70: Appliance Retirement Oshawa PUC Networks Inc. CFF | C70: =IFERROR(SUMIFS('Program Design'!$U:$U,'Program Design'!$C:$C,$A70,'Program Design'!$D:$D,$B70,'Program Design'!$J:$J,C$29)+SUMIFS('Program Design'!$V:$V,'Program Design'!$C:$C,$A70,'Program Design'!$D:$D,$B70,'Program Design'!$J:$J,C$29)+SUMIFS('Program Design'!$W:$W,'Program Design'!$C:$C,$A70,'Program Design'!$D:$D,$B70,'Program Design'!$J:$J,C$29)+SUMIFS(INDEX(OFFSET('Budget Inputs'!$A$1,6,1,5000,560),0,MATCH(CONCATENATE(C$29," Sub-Total"),OFFSET('Budget Inputs'!$A$1,6,1,1,560),0)),OFFSET('Budget Inputs'!$A$1,6,1,5000,1),$A70,OFFSET('Budget Inputs'!$A$1,6,2,5000,1),$B70),0) -> 0 | D70: =(SUMIFS(OFFSET('Savings Results'!$A$1,6,16 +MAX('Savings Results'!$G:$G)-MIN('Savings Results'!$G:$G)+MAX('Savings Results'!$J:$J)+C$29-MIN('Savings Results'!$G:$G),5000),OFFSET('Savings Results'!$A$1,6,6,5000),C$29,OFFSET('Savings Results'!$A$1,6,4,5000),"Dx",OFFSET('Savings Results'!$A$1,6,1,5000),$A70,OFFSET('Savings Results'!$A$1,6,2,5000),$B70)/(1/(1-SUM('CE Parameters'!$F$10:$F$11))))/1000 -> 0 | E70: =IFERROR(SUMIFS('Program Design'!$U:$U,'Program Design'!$C:$C,$A70,'Program Design'!$D:$D,$B70,'Program Design'!$J:$J,E$29)+SUMIFS('Program Design'!$V:$V,'Program Design'!$C:$C,$A70,'Program Design'!$D:$D,$B70,'Program Design'!$J:$J,E$29)+SUMIFS('Program Design'!$W:$W,'Program Design'!$C:$C,$A70,'Program Design'!$D:$D,$B70,'Program Design'!$J:$J,E$29)+SUMIFS(INDEX(OFFSET('Budget Inputs'!$A$1,6,1,5000,560),0,MATCH(CONCATENATE(E$29," Sub-Total"),OFFSET('Budget Inputs'!$A$1,6,1,1,560),0)),OFFSET('Budget Inputs'!$A$1,6,1,5000,1),$A70,OFFSET('Budget Inputs'!$A$1,6,2,5000,1),$B70),0) -> 0 | F70: =(SUMIFS(OFFSET('Savings Results'!$A$1,6,16 +MAX('Savings Results'!$G:$G)-MIN('Savings Results'!$G:$G)+MAX('Savings Results'!$J:$J)+E$29-MIN('Savings Results'!$G:$G),5000),OFFSET('Savings Results'!$A$1,6,6,5000),E$29,OFFSET('Savings Results'!$A$1,6,4,5000),"Dx",OFFSET('Savings Results'!$A$1,6,1,5000),$A70,OFFSET('Savings Results'!$A$1,6,2,5000),$B70)/(1/(1-SUM('CE Parameters'!$F$10:$F$11))))/1000 -> 0 | G70: =IFERROR(SUMIFS('Program Design'!$U:$U,'Program Design'!$C:$C,$A70,'Program Design'!$D:$D,$B70,'Program Design'!$J:$J,G$29)+SUMIFS('Program Design'!$V:$V,'Program Design'!$C:$C,$A70,'Program Design'!$D:$D,$B70,'Program Design'!$J:$J,G$29)+SUMIFS('Program Design'!$W:$W,'Program Design'!$C:$C,$A70,'Program Design'!$D:$D,$B70,'Program Design'!$J:$J,G$29)+SUMIFS(INDEX(OFFSET('Budget Inputs'!$A$1,6,1,5000,560),0,MATCH(CONCATENATE(G$29," Sub-Total"),OFFSET('Budget Inputs'!$A$1,6,1,1,560),0)),OFFSET('Budget Inputs'!$A$1,6,1,5000,1),$A70,OFFSET('Budget Inputs'!$A$1,6,2,5000,1),$B70),0) -> 0 | H70: =(SUMIFS(OFFSET('Savings Results'!$A$1,6,16 +MAX('Savings Results'!$G:$G)-MIN('Savings Results'!$G:$G)+MAX('Savings Results'!$J:$J)+G$29-MIN('Savings Results'!$G:$G),5000),OFFSET('Savings Results'!$A$1,6,6,5000),G$29,OFFSET('Savings Results'!$A$1,6,4,5000),"Dx",OFFSET('Savings Results'!$A$1,6,1,5000),$A70,OFFSET('Savings Results'!$A$1,6,2,5000),$B70)/(1/(1-SUM('CE Parameters'!$F$10:$F$11))))/1000 -> 0 | I70: =IFERROR(SUMIFS('Program Design'!$U:$U,'Program Design'!$C:$C,$A70,'Program Design'!$D:$D,$B70,'Program Design'!$J:$J,I$29)+SUMIFS('Program Design'!$V:$V,'Program Design'!$C:$C,$A70,'Program Design'!$D:$D,$B70,'Program Design'!$J:$J,I$29)+SUMIFS('Program Design'!$W:$W,'Program Design'!$C:$C,$A70,'Program Design'!$D:$D,$B70,'Program Design'!$J:$J,I$29)+SUMIFS(INDEX(OFFSET('Budget Inputs'!$A$1,6,1,5000,560),0,MATCH(CONCATENATE(I$29," Sub-Total"),OFFSET('Budget Inputs'!$A$1,6,1,1,560),0)),OFFSET('Budget Inputs'!$A$1,6,1,5000,1),$A70,OFFSET('Budget Inputs'!$A$1,6,2,5000,1),$B70),0) -> 0 | J70: =(SUMIFS(OFFSET('Savings Results'!$A$1,6,16 +MAX('Savings Results'!$G:$G)-MIN('Savings Results'!$G:$G)+MAX('Savings Results'!$J:$J)+I$29-MIN('Savings Results'!$G:$G),5000),OFFSET('Savings Results'!$A$1,6,6,5000),I$29,OFFSET('Savings Results'!$A$1,6,4,5000),"Dx",OFFSET('Savings Results'!$A$1,6,1,5000),$A70,OFFSET('Savings Results'!$A$1,6,2,5000),$B70)/(1/(1-SUM('CE Parameters'!$F$10:$F$11))))/1000 -> 0 | K70: =IFERROR(SUMIFS('Program Design'!$U:$U,'Program Design'!$C:$C,$A70,'Program Design'!$D:$D,$B70,'Program Design'!$J:$J,K$29)+SUMIFS('Program Design'!$V:$V,'Program Design'!$C:$C,$A70,'Program Design'!$D:$D,$B70,'Program Design'!$J:$J,K$29)+SUMIFS('Program Design'!$W:$W,'Program Design'!$C:$C,$A70,'Program Design'!$D:$D,$B70,'Program Design'!$J:$J,K$29)+SUMIFS(INDEX(OFFSET('Budget Inputs'!$A$1,6,1,5000,560),0,MATCH(CONCATENATE(K$29," Sub-Total"),OFFSET('Budget Inputs'!$A$1,6,1,1,560),0)),OFFSET('Budget Inputs'!$A$1,6,1,5000,1),$A70,OFFSET('Budget Inputs'!$A$1,6,2,5000,1),$B70),0) -> 0 | L70: =(SUMIFS(OFFSET('Savings Results'!$A$1,6,16 +MAX('Savings Results'!$G:$G)-MIN('Savings Results'!$G:$G)+MAX('Savings Results'!$J:$J)+K$29-MIN('Savings Results'!$G:$G),5000),OFFSET('Savings Results'!$A$1,6,6,5000),K$29,OFFSET('Savings Results'!$A$1,6,4,5000),"Dx",OFFSET('Savings Results'!$A$1,6,1,5000),$A70,OFFSET('Savings Results'!$A$1,6,2,5000),$B70)/(1/(1-SUM('CE Parameters'!$F$10:$F$11))))/1000 -> 0 | M70: =IFERROR(SUMIFS('Program Design'!$U:$U,'Program Design'!$C:$C,$A70,'Program Design'!$D:$D,$B70,'Program Design'!$J:$J,M$29)+SUMIFS('Program Design'!$V:$V,'Program Design'!$C:$C,$A70,'Program Design'!$D:$D,$B70,'Program Design'!$J:$J,M$29)+SUMIFS('Program Design'!$W:$W,'Program Design'!$C:$C,$A70,'Program Design'!$D:$D,$B70,'Program Design'!$J:$J,M$29)+SUMIFS(INDEX(OFFSET('Budget Inputs'!$A$1,6,1,5000,560),0,MATCH(CONCATENATE(M$29," Sub-Total"),OFFSET('Budget Inputs'!$A$1,6,1,1,560),0)),OFFSET('Budget Inputs'!$A$1,6,1,5000,1),$A70,OFFSET('Budget Inputs'!$A$1,6,2,5000,1),$B70),0) -> 0 | N70: =(SUMIFS(OFFSET('Savings Results'!$A$1,6,16 +MAX('Savings Results'!$G:$G)-MIN('Savings Results'!$G:$G)+MAX('Savings Results'!$J:$J)+M$29-MIN('Savings Results'!$G:$G),5000),OFFSET('Savings Results'!$A$1,6,6,5000),M$29,OFFSET('Savings Results'!$A$1,6,4,5000),"Dx",OFFSET('Savings Results'!$A$1,6,1,5000),$A70,OFFSET('Savings Results'!$A$1,6,2,5000),$B70)/(1/(1-SUM('CE Parameters'!$F$10:$F$11))))/1000 -> 0 | O70: =IFERROR(SUMIFS('Program Design'!$U:$U,'Program Design'!$C:$C,$A70,'Program Design'!$D:$D,$B70)+SUMIFS('Program Design'!$V:$V,'Program Design'!$C:$C,$A70,'Program Design'!$D:$D,$B70)+SUMIFS('Program Design'!$W:$W,'Program Design'!$C:$C,$A70,'Program Design'!$D:$D,$B70)+SUMIFS(INDEX(OFFSET('Budget Inputs'!$A$1,6,1,5000,560),0,MATCH("Total",OFFSET('Budget Inputs'!$A$1,6,1,1,560),0)),OFFSET('Budget Inputs'!$A$1,6,1,5000,1),$A70,OFFSET('Budget Inputs'!$A$1,6,2,5000,1),$B70),0) -> 0 | P70: =(SUMIFS(OFFSET('Savings Results'!$A$1,6,16 +MAX('Savings Results'!$G:$G)-MIN('Savings Results'!$G:$G)+MAX('Savings Results'!$J:$J)+M$29-MIN('Savings Results'!$G:$G),5000),OFFSET('Savings Results'!$A$1,6,4,5000),"Dx",OFFSET('Savings Results'!$A$1,6,1,5000),$A70,OFFSET('Savings Results'!$A$1,6,2,5000),$B70)/(1/(1-SUM('CE Parameters'!$F$10:$F$11))))/1000 -> 0
